Workbook

Sheet Analysis
A1: Date | B1: Facebook Spend | C1: Amazon Ads Spend | D1: adWords Search Spend | E1: Adwords Display Spend | F1: Adcenter Spend | G1: Total Ad Spend | H1: Facebook Conv. | I1: Amazon Ads Conv. | J1: Lava Conv. | K1: adWords Search Conv. | L1: adwords display Conv. | M1: adwords display view-through conv. | N1: Adcenter Conv. | O1: Adwords Content Spend | P1: Adwords Content Conv. | Q1: Adwords Content View Through | R1: Adwords Retargeting Spend | S1: Adwords Retargeting Conv. | T1: Amazon iPods Sold | U1: Amazon Pyle Sold | V1: Amazon Aquavibe Sold | W1: Amazon Discovery Sold | X1: Magento iPods Sold | Y1: Magento Pyle Sold | Z1: Magento Aquavibe Sold | AA1: Magento Discovery Sold | AB1: Total iPods sold | AC1: Amazon Revenue | AD1: Magento Revenue | AE1: Total Revenue | AF1: Estimated Profit | AG1: Paypal Amount Sent | AH1: Amazon Amount Sent | AI1: myAccountAccess Amount Sent | AJ1: Umpqua Balance | AK1: myAccountAccess Balance | AL1: Amazon Balance | AM1: Total Balance | AN1: Actual Balance | AO1: iPod inventory | AP1: Pyle | AQ1: Aquavibe | AR1: Discovery | AS1: Amazon iPod | AT1: Amazon Pyle | AU1: Amazon Aquavibe | AV1: Amazon Discovery | AW1: =IFERROR(VLOOKUP($A266,'1861740736.csv'!$A$11:$J$251,10,FALSE),0) | AX1: iPods Umpqua | AY1: iPods End of Year | AZ1: headphones End of Year | BA1: Pyle myaccountaccess | BB1: iPods myaccountaccess | BC1: Yield Loss | BD1: Aquavibe purchased | BE1: Discovery Purchased | BF1: Missing iPods | BG1: Paypal Balance | BH1: Paypal Amount Sent before | BI1: Paypal Calculated stuff | BJ1: Amazon Amount | BK1: Amazon Calculated Stuff | BL1: MyAccountAccess | BN1: SwimBuds Inventory | BO1: Savings Balance | BP1: Estimated Profit (new way) | BQ1: =OFFSET(A1,0,'Cool Graph'!$H$1) -> Facebook Spend | BR1: =OFFSET(A1,0,'Cool Graph'!$I$1) -> Estimated Profit (new way)
A2: 2012-03-22 | AO2: 124 | AP2: 300 | AQ2: 100 | AR2: 42
A3: 2012-03-31 | B3: 86.19 | C3: 74.08 | D3: 140.7 | E3: 79.65 | F3: 6.2 | G3: =SUM(B3:E3) -> 380.62 | K3: 3 | L3: 0 | M3: 0 | N3: 0 | O3: 72.68 | P3: 0 | Q3: 0 | R3: 6.97 | S3: 0 | T3: 2 | U3: 0 | V3: 0 | X3: 8 | Y3: 6 | Z3: 2 | AA3: 0 | AC3: 333.99 | AD3: 1435 | AG3: 9288.11 | AH3: 0 | AI3: 0 | AJ3: 18841.82 | AK3: -16505.98 | AO3: 150 | AP3: 200 | AQ3: 150 | AR3: 150 | BA3: 0 | BB3: 0 | BD3: 0
A4: 2012-04-01 | H4: =H5+H6 -> 0 | I4: 0 | J4: 0
A5: 2012-04-02 | AL5: 7190.4 | AS5: 175 | AT5: 86 | AU5: 227

Sheet AmazonAds
A1: www.amazon.com
A2: HOME | HELP | LOGOUT
A3: PRODUCTS
A5: Upload Product Ads
A6: View Products
A7: Download Product Report
A8: Use FTP
A9: ADVERTISING
A11: Manage Bids
A12: Daily Budget
A13: REPORTS
A15: Payments
A16: Ad Performance
A17: SETTINGS
A19: Account Info
A20: Notification Preferences
A21: Login Settings
A22: Shipping Settings
A23: User Permissions
A27: Close Panel
A29: Ad Performance
A30: Use this page to access reports about your advertising performance including impressions, clicks and spend.
A31: Performance Over Time | Performance By Category | Performance By SKU
A33: This report summarizes your clicks and spend over a specified time period. Use this form to modify the date range and categories included in your report. Learn more.
A35: Show:
A36: Between: | F36: and
A38: Category: | B38: All Categories (Change)
A40: Performance By Category and Performance Over Time reports by selected categories are not available for dates prior to October 1, 2010. To access performance data for dates prior to October 1, 2010, use "All Categories" or Performance By SKU reports. Learn more.
B42: Update
B43: Update
A44: Performance Over Time by day between March 26, 2012 and April 2, 2012 for All Categories | C44: Print this report | Download this data
A45: Date | B45: Clicks | C45: Average Cost-per-click | D45: Total Spend
A47: 2012-04-02 | B47: 50 | C47: 0.8 | D47: 40.19
A48: 2012-04-01 | B48: 108 | C48: 0.66 | D48: 71.26
A49: 2012-03-31 | B49: 118 | C49: 0.63 | D49: 74.08
A50: 2012-03-30 | B50: 53 | C50: 0.71 | D50: 37.82
A51: 2012-03-29 | B51: 45 | C51: 0.8 | D51: 35.81
A52: 2012-03-28 | B52: 54 | C52: 0.84 | D52: 45.48
A53: 2012-03-27 | B53: 70 | C53: 0.79 | D53: 55.16
A54: 2012-03-26 | B54: 85 | C54: 0.75 | D54: 63.76
A59: While Amazon Services has made every effort to ensure that this information is up-to-date and accurate, it is provided on an "as is" basis without warranties of any kind, either express or implied, as to its accuracy or reliability.
A67: Rate this page | Contact Seller Support
A68: Underwater Audio LLC © 1999-2012, Amazon.com, Inc. or its affiliates

Sheet myAccountAccess
A1: Welcome, TODD E WALKER Monday, April 02, 2012
A2: View online statementsView online
A3: Transactions | B3: Help | C3: Click on column headings to re-sort | D3: Next
A4: Transaction Details
A5: Transaction Details
A6: Transaction Details
A7: Transaction | B7: Posting | C7: Description | D7: Credit | E7: Charge
A8: Trancore E OProd2A
A9: The creditor, issuer and service provider of your Credit Card is Elan Financial Services.
A10: statements
A11: Select date range | B11: Start Date | C11: Popup Calendar for Start Date mm/dd/yyyy
A12: Secure Messages
A13: Rewards Center
A14: Refine Transactions
A15: Privacy Policy and Terms of Use
A16: Printer-friendly Format | B16: Return to Top | C16: Next
A17: Online Statements
A18: Manage PaymentsManage Payments
A19: Manage Payments
A20: Manage Account
A21: Logout
A22: Last Statement Balance: -$12,929.13
A23: HelpNext Payment Due: 04/17/2012
A24: HelpMinimum Payment Due: $0.00
A25: Help$16,505.98 | B25: Help$4,974.00
A26: Download Transactions
A27: Download transaction dataDownload transaction data for this account
A28: Date | B28: Date
A29: Current Balance | B29: Available Credit
A30: Credit Card Accounts
A31: Cardmember Service
A32: Alerts
A33: Account Details | Rewards Center | Rewards Center
A34: Account - ACCOUNTS PAYABLE - Ending in 8082 | F34: 16505.98
A35: 2012-03-30 | B35: 2012-03-30 | C35: FACEBOOK.COM*LEDT322YR www.fb.me/cc CA more | E35: 176.95 | F35: =F34-E35+D35 -> 16329.03
A36: 2012-03-29 | B36: 2012-03-30 | C36: VZWRLSS*IVR VW 800-922-0204 NJ more | E36: 112.9 | F36: =F35-E36+D36 -> 16216.13
A37: 2012-03-29 | B37: 2012-03-30 | C37: AMAZON MKTPLACE PMTS AMZN.COM/BILL WA more | E37: 28.94 | F37: 16187.19
A38: 2012-03-29 | B38: 2012-03-30 | C38: GOOGLE*9929058275 CC@GOOGLE.COM CA more | E38: 500 | F38: 15687.19
A39: 2012-03-29 | B39: 2012-03-30 | C39: B & H PHOTO-VIDEO.COM 800-9479950 NY more | E39: 920 | F39: 14767.19
A40: 2012-03-29 | B40: 2012-03-30 | C40: STAPLS9226595254000 800-3333330 CA more | E40: 48.93 | F40: 14718.26
A41: 2012-03-29 | B41: 2012-03-29 | C41: FACEBOOK.COM*CHAT322YR www.fb.me/cc CA more | E41: 302.83 | F41: 14415.43
A42: 2012-03-28 | B42: 2012-03-30 | C42: W W GRAINGER 916 877-2022594 IL more | E42: 306.11 | F42: 14109.32
A43: 2012-03-28 | B43: 2012-03-29 | C43: AMAZON MKTPLACE PMTS AMZN.COM/BILL WA more | E43: 4.35 | F43: 14104.97
A44: 2012-03-28 | B44: 2012-03-29 | C44: STAMPS.COM 888-434-0055 CA more | E44: 37.32 | F44: 14067.65
A45: 2012-03-28 | B45: 2012-03-29 | C45: Amazon.com AMZN.COM/BILL WA more | E45: 4.92 | F45: 14062.73
A46: 2012-03-28 | B46: 2012-03-29 | C46: Amazon.com AMZN.COM/BILL WA more | E46: 7.94 | F46: 14054.79
A47: 2012-03-28 | B47: 2012-03-29 | C47: AMAZON MKTPLACE PMTS AMZN.COM/BILL WA more | E47: 21 | F47: 14033.79
A48: 2012-03-28 | B48: 2012-03-29 | C48: GOOGLE*9929058275 CC@GOOGLE.COM CA more | E48: 500 | F48: 13533.79
A49: 2012-03-28 | B49: 2012-03-29 | C49: AMAZON MKTPLACE PMTS AMZN.COM/BILL WA more | E49: 29.99 | F49: 13503.8
A50: 2012-03-28 | B50: 2012-03-29 | C50: OSU BEAVER STORE MAIN CORVALLIS OR more | E50: 17346 | F50: -3842.2
A51: 2012-03-28 | B51: 2012-03-28 | C51: FACEBOOK.COM*MG7T322YR www.fb.me/cc CA more | E51: 359.44 | F51: -4201.64
A52: 2012-03-28 | B52: 2012-03-28 | C52: Amazon.com AMZN.COM/BILL WA more | E52: 12.82 | F52: -4214.46
A53: 2012-03-27 | B53: 2012-03-29 | C53: BYU PMPC WSC MAIL PROVO UT more | E53: 2.79 | F53: -4217.25
A54: 2012-03-27 | B54: 2012-03-28 | C54: B & H PHOTO-VIDEO.COM 800-9479950 NY more | E54: 3821.95 | F54: -8039.2
A55: 2012-03-27 | B55: 2012-03-28 | C55: WALMART.COM 8009666546 8009666546 AR more | E55: 2818.2 | F55: -10857.4
A56: 2012-03-27 | B56: 2012-03-28 | C56: USPS POSTAGE(STAMPS.CO 888-434-0055 CA more | E56: 210 | F56: -11067.4
A57: 2012-03-27 | B57: 2012-03-28 | C57: Amazon.com AMZN.COM/BILL WA more | E57: 3.49 | F57: -11070.89
A58: 2012-03-27 | B58: 2012-03-28 | C58: REYNOLDS ADVANCEED MAT 818-358-6000 CA more | E58: 42.89 | F58: -11113.78
A59: 2012-03-27 | B59: 2012-03-27 | C59: INTERNET PAYMENT THANK YOU | D59: 7868.93 | F59: -3244.85
A60: 2012-03-27 | B60: 2012-03-27 | C60: INTERNET PAYMENT THANK YOU | D60: 7868.93 | F60: 4624.08
A61: 2012-03-27 | B61: 2012-03-27 | C61: INTERNET PAYMENT THANK YOU | D61: 7868.93 | F61: 12493.01
A62: 2012-03-27 | B62: 2012-03-27 | C62: FACEBOOK.COM*WH4T322YR www.fb.me/cc CA more | E62: 227.4 | F62: 12265.61
A63: 2012-03-26 | B63: 2012-03-27 | C63: AMAZON MKTPLACE PMTS AMZN.COM/BILL WA more | E63: 29.74 | F63: 12235.87
A64: 2012-03-26 | B64: 2012-03-27 | C64: Amazon.com AMZN.COM/BILL WA more | E64: 44.99 | F64: 12190.88
B73: End Date | C73: Popup Calendar for End Date mm/dd/yyyy | D73: View
A78: Build: trancore.012.02_Build_17
A80: Security Standards © 2012 Elan Financial Services
A81: Trancore E OProd2A
A82: Build: trancore.012.02_Build_17

Sheet Adcenter
A1: User: underwateraudio | B1: | | C1: Sign out | D1: | | E1: My settings | F1: | | G1: Help
A2: Home
A3: Campaigns
A4: Opportunities
A5: Accounts & Billing
A6: Tools
A7: Reports
A8: Customer: Underwater Audio
A9: Account: Underwater Audio
A11: Use the old version
A12: ? This month:4/1/2012 - 4/2/2012
A13: ? -
A14: Yesterday: 4/1/2012
A15: Last 7 days: 3/26/2012 - 4/1/2012
A16: Today: 4/2/2012
A17: This month: 4/1/2012 - 4/2/2012
A18: Last month: 3/1/2012 - 3/31/2012
A19: Last 3 months: 1/1/2012 - 3/31/2012
A20: Last 6 months: 10/1/2011 - 3/31/2012
A21: This year: 1/1/2012 - 4/2/2012
A22: Last year: 1/1/2011 - 12/31/2011
A23: Entire time: 4/2/2010 - 4/2/2012
A24: Custom range
A25: Account selected:
A26: Status: Active | Import your campaigns | Manage your business locations | Manage your analytics settings
A27: Account performance trend
A28: X
A30: Campaigns
A31: Ad Groups
A32: Ads
A33: Keywords
A35: Add new filter
A36: Apply saved filters
A37: Select a campaign
A38: Add another
C40: Pause | G40: Add or remove columns | I40: Page
C41: Pause | H41: Campaign | I41: of
C42: Resume
C43: Resume | H43: Delivery
C44: Delete
C45: Delete | H45: Status
H47: Ad groups
H49: Budget
H51: Budget type
H53: Spend
H55: Clicks
H57: Impr.
H59: CTR (%)
H61: Avg. pos.
H63: Avg. CPC
H65: Avg. CPM
H67: CPA
H69: Conv.
H71: Neg. keywords
B73: Campaign | I73: Delivery | K73: Status | M73: Ad groups | O73: Budget | Q73: Budget type | S73: Budget type | U73: Spend | W73: Clicks | Y73: Impr. | AA73: CTR (%) | AC73: Avg. pos. | AE73: Avg. CPC | AG73: Avg. CPM | AI73: CPA | AK73: Conv. | AM73: Neg. keywords
B74: Search>Mid Tail>Exact | K74: Active | M74: 31 | O74: 150 | Q74: Daily | S74: 6 | U74: 3.85 | W74: 8 | Y74: 268 | AA74: 2.99 | AC74: 2.18 | AE74: 0.48 | AG74: 14.37 | AI74: - | AK74: 0 | AM74: 5
I75: Eligible
B76: Search>Core>Exact | K76: Active | M76: 76 | O76: 400 | Q76: Daily | S76: 6 | U76: 1.88 | W76: 6 | Y76: 88 | AA76: 6.82 | AC76: 1.03 | AE76: 0.31 | AG76: 21.36 | AI76: - | AK76: 0 | AM76: 5
I77: Eligible
B78: Search>Long Tail>Exact | K78: Active | M78: 55 | O78: 150 | Q78: Daily | S78: 6 | U78: 0.47 | W78: 2 | Y78: 464 | AA78: 0.43 | AC78: 4.56 | AE78: 0.24 | AG78: 1.01 | AI78: - | AK78: 0 | AM78: None
I79: Eligible
B80: Search>UnderwaterAudio | I80: Campaign paused | K80: Paused | M80: 96 | O80: 50 | Q80: Daily | S80: 6 | U80: - | W80: - | Y80: - | AA80: - | AC80: - | AE80: - | AG80: - | AI80: - | AK80: - | AM80: None
B81: Search total | I81: - | K81: - | M81: - | O81: - | Q81: - | S81: - | U81: 6.2 | W81: 16 | Y81: 820 | AA81: 1.95 | AC81: 3.4 | AE81: 0.39 | AG81: 7.56 | AI81: - | AK81: 0 | AM81: -
B82: Content total | I82: - | K82: - | M82: - | O82: - | Q82: - | S82: - | U82: - | W82: - | Y82: - | AA82: - | AC82: - | AE82: - | AG82: - | AI82: - | AK82: - | AM82: -
B83: Deleted items total | I83: - | K83: - | M83: - | O83: - | Q83: - | S83: - | U83: 0 | W83: 0 | Y83: 0 | AA83: - | AC83: - | AE83: - | AG83: - | AI83: - | AK83: 0 | AM83: -
B84: Overall total - 4 campaigns | I84: - | K84: - | M84: - | O84: - | Q84: - | S84: - | U84: 6.2 | W84: 16 | Y84: 820 | AA84: 1.95 | AC84: 3.4 | AE84: 0.39 | AG84: 7.56 | AI84: - | AK84: 0 | AM84: -
A85: loading...
A86: There are no campaigns available in this account.
A87: Clicks and impressions received in the last three hours may not be included here.
A90: Did this help you?
A91: 2012 Microsoft | Legal | Privacy | Microsoft Advertising | Support | Community | Feedback
A92: %>
A93: Loading...
A94: Loading...
A96: Import your Yahoo! account and campaign data
A98: One or more of your accounts has over 100,000 keywords, which exceeds the limit for importing directly into adCenter. You can use the adCenter Desktop tool to quickly import your campaigns and upload them to adCenter. To import your Yahoo! campaigns into adCenter, follow these steps:
A100: 1. Download and install the adCenter Desktop tool.
A102: 2. Use your adCenter user name and password to sign in to adCenter Desktop.
A104: 3. On the Home tab, click Import, and then click Import from Yahoo!.
A106: 4. Follow the onscreen instructions to import your campaigns into Desktop.
A108: 5. In the Manager pane, fix any errors.
A110: 6. Click Sync Changes to upload your campaigns to adCenter.
A112: 7. Repeat steps 3 to 6 for each account you want to import.

Sheet MagentoInventory
A1: Magento Logo
A3: Logged in as underwateradmin|Monday, April 2, 2012|Try Magento Go for Free|Log Out
A4: SearchLoading...
A6: Dashboard
A7: Sales
A8: Orders
A9: Invoices
A10: Shipments
A11: Credit Memos
A12: Transactions
A13: Recurring Profiles (beta)
A14: Billing Agreements
A15: Terms and conditions
A16: Tax
A17: Manage Tax Rules
A18: Manage Tax Zones & Rates
A19: Import / Export Tax Rates
A20: Customer Tax Classes
A21: Product Tax Classes
A22: Catalog
A23: Manage Products
A24: TheFind feed
A25: Manage attributes
A26: Manage items
A27: Manage Categories
A28: Attributes
A29: Manage Attributes
A30: Manage Attribute Sets
A31: URL Rewrite Management
A32: Search Terms
A33: Reviews and Ratings
A34: Customer Reviews
A35: Pending Reviews
A36: All Reviews
A37: Manage Ratings
A38: Tags
A39: All Tags
A40: Pending Tags
A41: Google Sitemap
A42: Mobile
A43: Manage Apps
A44: Submission History
A45: Message Templates
A46: Message Queue
A47: Customers
A48: Manage Customers
A49: Customer Groups
A50: Online Customers
A51: Promotions
A52: Catalog Price Rules
A53: Shopping Cart Price Rules
A54: Newsletter
A55: Newsletter Templates
A56: Newsletter Queue
A57: Newsletter Subscribers
A58: Newsletter Problem Reports
A59: CMS
A60: Pages
A61: Static Blocks
A62: Widgets
A63: Polls
A64: Reports
A65: Sales
A66: Orders
A67: Tax
A68: Invoiced
A69: Shipping
A70: Refunds
A71: Coupons
A72: PayPal Settlement Reports
A73: Shopping Cart
A74: Products in carts
A75: Abandoned carts
A76: Products
A77: Bestsellers
A78: Products Ordered
A79: Most Viewed
A80: Low stock
A81: Downloads
A82: Customers
A83: New Accounts
A84: Customers by orders total
A85: Customers by number of orders
A86: Tags
A87: Customers
A88: Products
A89: Popular
A90: Reviews
A91: Customers Reviews
A92: Products Reviews
A93: Search Terms
A94: Refresh Statistics
A95: System
A96: Magestore Extensions
A97: License Keys
A98: Extension Feedbacks
A99: My Account
A100: Notifications
A101: Tools
A102: Backups
A103: Compilation
A104: Web Services
A105: Users
A106: Roles
A107: Design
A108: Import/Export
A109: Import
A110: Export
A111: Dataflow - Profiles
A112: Dataflow - Advanced Profiles
A113: Manage Currency Rates
A114: Transactional Emails
A115: Custom Variables
A116: Permissions
A117: Users
A118: Roles
A119: Magento Connect
A120: Magento Connect Manager
A121: Package Extensions
A122: Cache Management
A123: Index Management
A124: Manage Stores
A125: Order Statuses
A126: Configuration
A128: Get help for this page
A129: You have 2 critical, 4 major, 19 minor and 46 notice unread message(s). Go to messages inbox Latest Message: Magento Community Preview Version CE 1.7.0.0-RC1 has been released! Read details
A130: Products Ordered
A131: From: Select Date | B131: Export to:
A132: To: Select Date | B132: Export
A133: Show By:
A134: Refresh
A135: Period | B135: Product Name | C135: Quantity Ordered
A136: 2012-03-31 | B136: Waterproof iPod + Pyle Headphones | C136: 6
B137: Waterproof iPod + Aquavibe Headphones | C137: 2
A138: Total | C138: 8
A140: Help Us Keep Magento Healthy - Report All Bugs
A141: Interface Locale:
A143: Connect with the Magento Community
A144: Magento is a trademark of Magento Inc.
A145: Copyright 2012 Magento Inc.
A147: Magento ver. 1.6.0.0
A148: Products Ordered
A150: Loading...
A151: Please wait...

Sheet Magento
A1: Magento Logo
A3: Logged in as underwateradmin|Monday, April 2, 2012|Try Magento Go for Free|Log Out
A4: SearchLoading...
A6: Dashboard
A7: Sales
A8: Orders
A9: Invoices
A10: Shipments
A11: Credit Memos
A12: Transactions
A13: Recurring Profiles (beta)
A14: Billing Agreements
A15: Terms and conditions
A16: Tax
A17: Manage Tax Rules
A18: Manage Tax Zones & Rates
A19: Import / Export Tax Rates
A20: Customer Tax Classes
A21: Product Tax Classes
A22: Catalog
A23: Manage Products
A24: TheFind feed
A25: Manage attributes
A26: Manage items
A27: Manage Categories
A28: Attributes
A29: Manage Attributes
A30: Manage Attribute Sets
A31: URL Rewrite Management
A32: Search Terms
A33: Reviews and Ratings
A34: Customer Reviews
A35: Pending Reviews
A36: All Reviews
A37: Manage Ratings
A38: Tags
A39: All Tags
A40: Pending Tags
A41: Google Sitemap
A42: Mobile
A43: Manage Apps
A44: Submission History
A45: Message Templates
A46: Message Queue
A47: Customers
A48: Manage Customers
A49: Customer Groups
A50: Online Customers
A51: Promotions
A52: Catalog Price Rules
A53: Shopping Cart Price Rules
A54: Newsletter
A55: Newsletter Templates
A56: Newsletter Queue
A57: Newsletter Subscribers
A58: Newsletter Problem Reports
A59: CMS
A60: Pages
A61: Static Blocks
A62: Widgets
A63: Polls
A64: Reports
A65: Sales
A66: Orders
A67: Tax
A68: Invoiced
A69: Shipping
A70: Refunds
A71: Coupons
A72: PayPal Settlement Reports
A73: Shopping Cart
A74: Products in carts
A75: Abandoned carts
A76: Products
A77: Bestsellers
A78: Products Ordered
A79: Most Viewed
A80: Low stock
A81: Downloads
A82: Customers
A83: New Accounts
A84: Customers by orders total
A85: Customers by number of orders
A86: Tags
A87: Customers
A88: Products
A89: Popular
A90: Reviews
A91: Customers Reviews
A92: Products Reviews
A93: Search Terms
A94: Refresh Statistics
A95: System
A96: Magestore Extensions
A97: License Keys
A98: Extension Feedbacks
A99: My Account
A100: Notifications
A101: Tools
A102: Backups
A103: Compilation
A104: Web Services
A105: Users
A106: Roles
A107: Design
A108: Import/Export
A109: Import
A110: Export
A111: Dataflow - Profiles
A112: Dataflow - Advanced Profiles
A113: Manage Currency Rates
A114: Transactional Emails
A115: Custom Variables
A116: Permissions
A117: Users
A118: Roles
A119: Magento Connect
A120: Magento Connect Manager
A121: Package Extensions
A122: Cache Management
A123: Index Management
A124: Manage Stores
A125: Order Statuses
A126: Configuration
A128: Get help for this page
A129: You have 2 critical, 4 major, 19 minor and 46 notice unread message(s). Go to messages inbox Latest Message: Magento Community Preview Version CE 1.7.0.0-RC1 has been released! Read details
A132: This report depends on timezone configuration. Once timezone is changed, the lifetime statistics need to be refreshed.
A133: Last updated: Apr 2, 2012 1:13:00 PM. To refresh last day's statistics, click here.
A135: Total Ordered Report | B135: Show Report
A136: Filter
A138: Match Period To | B138: Order Updated Date report is real-time, does not need statistics refreshing.
A139: Period
A140: From *
A141: To *
A142: Order Status | B142: Applies to Any of the Specified Order Statuses
A144: Empty Rows
A145: Show Actual Values
A146: Export to:
A147: Export
A148: Period | B148: Orders | C148: Sales Items | D148: Sales Total | E148: Invoiced | F148: Refunded | G148: Sales Tax | H148: Sales Shipping | I148: Sales Discount | J148: Canceled
A149: Total | B149: 8 | C149: 8 | D149: 1435 | E149: 1435 | F149: 0 | G149: 0 | H149: 45 | I149: 0 | J149: 0
A150: 2012-03-31 | B150: 8 | C150: 8 | D150: 1435 | E150: 1435 | F150: 0 | G150: 0 | H150: 45 | I150: 0 | J150: 0
A152: Help Us Keep Magento Healthy - Report All Bugs
A153: Interface Locale:
A155: Connect with the Magento Community
A156: Magento is a trademark of Magento Inc.
A157: Copyright 2012 Magento Inc.
A159: Magento ver. 1.6.0.0
A160: Total Ordered Report | B160: Show Report
A162: Loading...
A163: Please wait...

Sheet Facebook
A1: 0
A2: 0
A3: 0
A4: Find Friends
A5: Friend Requests
A6: No new requests
A7: See All Friend Requests
A8: Send a New Message
A9: Messages
A10: See All Messages
A12: Notifications
A13: Melora Aj likes your link.
A14: about an hour ago
A15: Devin Layne Kunz sent you a request in Are You Smarter Than A 5th Grader?
A16: about an hour ago
A17: Brett Hafen, Jordan Elmer and 4 others posted in Provo YSA 229th Neighborhood.
A18: about an hour ago
A19: Michelle Walker invited you to Camille Walker's event Camille Needs a Favor.
A20: 2 hours ago
A22: See All Notifications
A23: Search
A24: Scott Walker
A25: Home
A26: Account Settings
A28: Use Facebook as:
A29: 1
A30: Underwater Audio
A31: Account Settings
A32: Privacy Settings
A33: Help
A34: Ads and Pages
A35: Account
A36: Underwater Audio
A37: All Accounts
A38: 304118787 (Scott Walker, USD)
A39: 11988765 (Underwater Audio, USD)
A40: Campaigns & Ads (0)
A42: All Ads (0)
A43: Pages (0)
A44: Reports (0)
A46: Scheduled Reports (0)
A47: Settings (0)
A48: Billing (0)
A50: Funding Source (0)
A51: Creative Library (0)
A53: New Creative (0)
A54: Power Editor (0)
A55: Learn More (0)
A56: Have a Question for the Facebook Global Marketing Solutions Team?
A57: We're here to support your business goals. Let us know if you have any questions about your campaign. We'll reply within 1 business day.
A58: Contact Us
A59: Create an Ad
A60: All Campaigns
A61: Notifications
A62: 2012-03-28
A64: 3 ads were approved.
A65: 6 ads were approved.
A66: 2012-03-27
A68: The ad Page Post|Most Recent Post was approved.
A69: Daily Spend
A70: Today | B70: $82.63 USD
A71: 2012-04-01 | B71: $224.31 USD
A72: 2012-03-31 | B72: $86.19 USD
A73: 2012-03-30 | B73: $62.92 USD
A74: 2012-03-29 | B74: $107.99 USD
A75: Lifetime stats
A76: 3/26/2012 4/2/2012
A78: Sun | B78: Mon | C78: Tue | D78: Wed | E78: Thu | F78: Fri | G78: Sat
A80: to
A82: Sun | B82: Mon | C82: Tue | D82: Wed | E82: Thu | F82: Fri | G82: Sat
A84: No end date
A85: All Except Deleted
A86: Select rows to editSaveCancelFull Report4 results
B87: Campaign?CampaignA campaign is a group of ads that you've created in this account. | C87: Status?StatusEach campaign may be running, paused, completed or deleted. | D87: Start Date?Start DateThe date a campaign is eligible to start running. Campaigns can run continuously or be limited with specific dates. | E87: End Date?End DateThe date a campaign is scheduled to stop. Campaigns can run continuously or be limited with specific dates. | F87: Budget?BudgetThe maximum amount you're willing to spend on each campaign, per day or in the lifetime of the campaign. | G87: Remaining?RemainingThe amount still available in this campaign's daily or lifetime budget. | H87: Spent?SpentThe amount you've spent on your campaign during the dates selected.
B88: New Year | C88: Active | D88: 2011-12-29 | E88: Ongoing | F88: 500 | G88: 483.14 | H88: 5931.91
C89: Active | D89: 1:42am | F89: Daily | G89: Today
C90: Paused
C91: Deleted
B92: Sponsored Stories | C92: Active | D92: 2012-01-11 | E92: Ongoing | F92: 300 | G92: 234.23 | H92: 2535.84
C93: Active | D93: 4:04pm | F93: Daily | G93: Today
C94: Paused
C95: Deleted
B96: Underwater Audio Holiday 2011 | C96: Paused | D96: 2011-11-22 | E96: Ongoing | F96: 100 | G96: 100 | H96: 1619.05
C97: Paused | D97: 11:36am | F97: Daily | G97: Today
C98: Active
C99: Deleted
B100: UnderwaterAudio Generic | C100: Paused | D100: 2011-09-28 | E100: Ongoing | F100: 500 | G100: 500 | H100: 1399.48
C101: Paused | D101: 9:40am | F101: Daily | G101: Today
C102: Active
C103: Deleted
A104: 4 results
A105: Facebook 2012 English (US)
A106: About Advertising Create a Page Developers Careers Privacy Terms Help

Sheet Analytics
A1: .
A3: Old versioninfo@underwateraudio.comSettingsMy | B3: AccountSign | C3: out
A4: Admin
A5: Help
A7: http://underwateraudio.com | B7: - | C7: http://underwateraudio.com
A9: underwateraudio.com [DEFAULT]
A12: ACCOUNTS LIST
A15: underwateraudio.com
A17: 1 Properties
A21: http://underwateraudio.com | B21: - | C21: http://underwateraudio.com
A24: UA-24608686-1
A27: underwateraudio.com [DEFAULT]
A29: Home
A31: Standard Reporting
A33: Custom Reporting
A35: Audience | C35: Loading
A37: Overview
A39: Demographics
C40: Loading...
A42: Location | C42: Apr 1, 2012- Apr 1, 2012
C43: Compare to: Apr 1, 2012- | D43: Apr | E43: 1, | F43: 2012
A44: Language
D45: 2012-02-01 | L45: 2012-03-01 | T45: 2012-04-01 | AC45: Date Range:
A46: Custom Variables | E46: S | F46: M | G46: T | H46: W | I46: T | J46: F | K46: S | M46: S | N46: M | O46: T | P46: W | Q46: T | R46: F | S46: S | U46: S | V46: M | W46: T | X46: W | Y46: T | Z46: F | AA46: S | AC46: -
H47: 1 | I47: 2 | J47: 3 | K47: 4 | Q47: 1 | R47: 2 | S47: 3 | U47: 1 | V47: 2 | W47: 3 | X47: 4 | Y47: 5 | Z47: 6 | AA47: 7 | AC47: Compare to past
A48: User Defined | E48: 5 | F48: 6 | G48: 7 | H48: 8 | I48: 9 | J48: 10 | K48: 11 | M48: 4 | N48: 5 | O48: 6 | P48: 7 | Q48: 8 | R48: 9 | S48: 10 | U48: 8 | V48: 9 | W48: 10 | X48: 11 | Y48: 12 | Z48: 13 | AA48: 14 | AC48: -
E49: 12 | F49: 13 | G49: 14 | H49: 15 | I49: 16 | J49: 17 | K49: 18 | M49: 11 | N49: 12 | O49: 13 | P49: 14 | Q49: 15 | R49: 16 | S49: 17 | U49: 15 | V49: 16 | W49: 17 | X49: 18 | Y49: 19 | Z49: 20 | AA49: 21
A50: Behavior | E50: 19 | F50: 20 | G50: 21 | H50: 22 | I50: 23 | J50: 24 | K50: 25 | M50: 18 | N50: 19 | O50: 20 | P50: 21 | Q50: 22 | R50: 23 | S50: 24 | U50: 22 | V50: 23 | W50: 24 | X50: 25 | Y50: 26 | Z50: 27 | AA50: 28 | AC50: cancel
E51: 26 | F51: 27 | G51: 28 | H51: 29 | M51: 25 | N51: 26 | O51: 27 | P51: 28 | Q51: 29 | R51: 30 | S51: 31 | U51: 29 | V51: 30
A53: New | B53: vs | C53: Returning | D53: Today | J53: None | L53: Today | R53: None | T53: Today | Z53: None
C54: All Traffic
A55: Frequency | B55: & | C55: Recency
C56: Advanced SegmentsEmail BETAExport
A57: Engagement | C57: Add to Dashboard
A59: Technology | C59: Select up to four segments by which to filter your report ?
A62: Browser | B62: & | C62: OS
A64: Network
A66: Social | C66: All Visits
A69: Engagement
C70: New Visitors
A71: Action
A73: Pages
C74: Returning Visitors
A75: Mobile
A78: Overview | C78: Paid Search Traffic
A80: Devices
A82: Visitors Flow | C82: Non-paid Search Traffic
C86: Search Traffic
A87: Advertising
A89: AdWords
C90: Direct Traffic
A92: Campaigns
A94: Keywords | C94: Referral Traffic
A96: Matched | B96: Search | C96: Queries
A98: Day Parts | C98: Visits with Conversions
A100: Destination URLs
A102: Placements | C102: Visits with Transactions
A104: Keyword Positions
A106: TV Ads | C106: Mobile Traffic
C110: Non-bounce Visits
A111: Traffic Sources
C112: Custom Segments
A113: Overview
A115: Sources | C115: Applycancel
A118: All Traffic | C118: + New Custom Segment
A120: Direct | C120: CSV
A122: Referrals | C122: TSV
A124: Search | C124: TSV for Excel
C126: PDF BETA
A127: Overview
A129: Organic | C129: Report name | AC129: The report name is required.
A131: Paid
C132: Email Report: All Traffic
A133: Campaigns
A135: Search | B135: Engine | C135: Optimization | AC135: info@underwateraudio.com
C136: To | AC136: Must be a valid email address.
A138: Queries | C138: Subject | AC138: The subject is required.
A140: Landing Pages | C140: Attachments | AC140: CSV
AC141: CSV
A142: Geographical Summary
AC143: TSV
AC145: TSV for Excel
A147: Content | AC147: PDF
A149: Overview | AC149: All Traffic
C150: Frequency | AC150: Weekly
A151: Site Content | AC151: Once
AC153: Daily
A154: Pages
AC155: Weekly
A156: Content Drilldown
AC157: Monthly
A158: Landing Pages
AC159: Quarterly
A160: Exit Pages | AC160: Day of Month:1st
AC161: 1st
A162: Site Speed
AC163: 2nd
A165: Overview | AC165: 3rd
A167: Page Timings | AC167: 4th
A169: Site Search | AC169: 5th
AC171: 6th
A172: Overview
AC173: 7th
A174: Usage
AC175: 8th
A176: Search Terms
AC177: 9th
A178: Pages
AC179: 10th
A180: Events
AC181: 11th
A183: Overview | AC183: 12th
A185: Top Events | AC185: 13th
A187: Pages | AC187: 14th
A189: Events Flow | AC189: 15th
A191: AdSense | AC191: 16th
AC193: 17th
A194: Overview
AC195: 18th
A196: AdSense Pages
AC197: 19th
A198: AdSense Referrers
AC199: 20th
A200: In-Page Analytics
AC201: 21th
AC203: 22th
A205: Conversions | AC205: 23th
A207: Goals | AC207: 24th
AC209: 25th
A210: Overview
AC211: 26th
A212: Goal URLs
AC213: 27th
A214: Reverse | B214: Goal | C214: Path
AC215: 28th
A216: Funnel Visualization
AC217: Last Day
A218: Goal Flow | AC218: Day of Week:
AC219: S
A220: Ecommerce
AC221: M
A223: Overview | AC223: T
A225: Product Performance | AC225: W
A227: Sales Performance | AC227: T
A229: Transactions | AC229: F
A231: Time | B231: to | C231: Purchase | AC231: S
C232: Advanced Options
A233: Multi-Channel Funnels | C233: Active for 6 months
C234: 1 month
A236: Overview | C236: 2 months
A238: Assisted Conversions | C238: 3 months
A240: Top | B240: Conversion | C240: Paths
A242: Time Lag | C242: 5 months
A244: Path Length | C244: 6 months
C246: 7 months
C248: 8 months
A250: Help | C250: 9 months
C252: 10 months
A253: The | B253: All | C253: Traffic | D253: Report
C254: 11 months
A255: Viewing Metrics
C256: 12 months
A257: Find | B257: Your | C257: Old | D257: Reports | E257: in | F257: the | G257: New | H257: Interface
C259: Email body is missing, please drop a line.
C262: Cancel
A263: Help center
C264: Add To An Existing Email: All Traffic
A267: Get Help | C267: Daily Emails (0)
C268: Weekly Emails (0)
C269: Monthly Emails (0)
C270: Quarterly Emails (0)
C273: Create a new email
C274: Cancel
C276: Control the number of visits used to calculate this report:
C281: Faster Processing
C283: Higher Precision
C285: Learn More
C287: This report is based on 0 visits (NaN% of visits).
AC289: 100.00% of total visits
C291: Explorer
C293: Site UsageGoal Set 1Ecommerce
C300: Day
C302: Week
C304: Month
C306: Visits
C311: Site Usage
C313: Visits
C316: Pages/Visit
C319: Avg. Visit Duration
C322: % New Visits
C325: Bounce Rate
C328: Goal Set 1
C330: Visits
C333: Goal Conversion Rate
C336: Per Visit Goal Value
C339: Conversion (Goal1 Conversion Rate)
C342: Ecommerce
C344: Visits
C347: Revenue
C350: Transactions
... 186 more rows

Sheet AmazonInventory
A1: www.amazon.com
A2: HOME | MESSAGES | HELP | LOGOUT
A3: INVENTORY
A5: Manage Inventory
A6: Manage FBA Inventory
A7: Add a Product
A8: Upload Products & Inventory
A9: Download Inventory File
A10: Manage Promotions
A11: Manage FBA Shipments
A12: ORDERS
A14: Manage Orders
A15: Order Reports
A16: Upload Order Related Files
A17: Manage Returns
A18: REPORTS
A20: Payments
A21: Amazon Selling Coach
A22: Business Reports
A23: Fulfillment
A24: Tax Document Library
A25: PERFORMANCE
A27: Customer Metrics
A28: Feedback
A29: A-to-z Guarantee Claims
A30: Chargeback Claims
A31: Performance Notifications
A32: SETTINGS
A34: Account Info
A35: Notification Preferences
A36: Login Settings
A37: Manage Returns Settings
A38: Gift Options
A39: Shipping Settings
A40: Tax Settings
A41: User Permissions
A42: Your Info & Policies
A43: Fulfillment by Amazon
A44: All Inventory View | Inventory Amazon Fulfills | Shipping Queue
A45: Amazon-Fulfilled Inventory | B45: Sign up for International Shipping
A46: Learn more | B46: Now you can sell your Media items internationally through FBA Export.
B47: Sign up for FBA Export
B49: E.g.: "harry potter", "harry", "B000122SSP", "your-merchant-sku" | C49: Search
B50: Min: Max:
A52: Storage Monitor
A54: What's this?
A56: Standard-Size
A58: 445
A59: 5000 units
A61: Approaching Inventory Storage Limit.
A63: At risk of reaching Inventory Storage Limit.
A65: Inventory Storage Limit reached.
A67: Oversize
A69: 0
A70: 500 units
A72: Approaching Inventory Storage Limit.
A74: At risk of reaching Inventory Storage Limit.
A76: Inventory Storage Limit reached.
A78: You have exceeded 75% of your Inventory Storage Limit for Standard-Size Units. Learn more
A79: You have exceeded 90% of your Inventory Storage Limit for Standard-Size Units. Learn more
A80: You have reached your Inventory Storage Limit for Standard-Size Units. You will be unable to send additional Units of this type to an Amazon fulfillment center until your inventory level decreases below your Inventory Storage Limit. Learn more
A81: You have exceeded 75% of your Inventory Storage Limit for Oversize Units. Learn more
A82: You have exceeded 90% of your Inventory Storage Limit for Oversize Units. Learn more
A83: You have reached your Inventory Storage Limit for Oversize Units. You will be unable to send additional Units of this type to an Amazon fulfillment center until your inventory level decreases below your Inventory Storage Limit. Learn more
A85: Listings last updated on: April 2, 2012 12:23:58 PM PDT
A88: Please Note:
A89: All Items (1 to 10 of 10 Items) | B89: Include Archived Items What are archived items?Show ASIN/FNSKU | C89: Page 1
B90: Apply to 0 Selected Item(s): | C90: Go to the Manage FBA Inventory Report | D90: Reset prices Submit prices
B91: Go
B92: Merchant SKU | C92: Title | D92: Condition | E92: Price | F92: Inbound | G92: Fulfillable | H92: Unfulfillable | I92: Reserved | J92: Unit Volume
B93: Merchant SKUYour listing identifier | D93: ConditionItem's physical condition | E93: PriceListing's current price | F93: InboundQuantity inbound to Amazon | G93: FulfillableQuantity available for shipment from Amazon | H93: UnfulfillableQuantity damaged or otherwise unfit for shipment from Amazon | I93: ReservedQuantity set aside for a pending order or item verification | J93: (cubic feet)
J94: Unit VolumePer-unit volume (including packaging)
B95: AVIDWP966 | C95: Waterproof Digital Earbuds | D95: New | E95: $ | F95: 0 | G95: 0 | H95: 0 | I95: 0 | J95: 0.015
C96: EAN: 0628586849617 ASIN: B003UVI8ZK FNSKU: X0009XPQA3
B97: AquatuneLW | C97: Nautilus 100% waterproof headphones (standard cord length, white) | D97: New | E97: $ | F97: 0 | G97: 0 | H97: 0 | I97: 0 | J97: 0.021
C98: EAN: 0628586849679 ASIN: B006IJU9F8 FNSKU: X0009PWGXL
B99: AqutuneLB | C99: Nautilus 100% waterproof headphones (standard cord length, black) | D99: New | E99: $ | F99: 0 | G99: 0 | H99: 0 | I99: 0 | J99: 0.021
C100: EAN: 0628586849693 ASIN: B006IF8292 FNSKU: X0009PWGX1
B101: IX-PN5X-1QKN | C101: Waterproof iPod Shuffle SILVER (4th Gen 2GB) by Underwater Audio (New waterproof headphone promotions coming soon!) (More Colors Available! Click 'Underwater Audio' by the title for availability) | D101: New | E101: $ | F101: 27 | G101: 2 | H101: 3 2 1 | I101: 7 | J101: 0.003
C102: EAN: 0628586849600 ASIN: B005FA38SG FNSKU: X0008CWEZP
B103: QP-92DO-2XBL | C103: Pyle PWPE10W Marine Sport Waterproof In-Ear Earbud Stereo Headphones for iPod/iPhone/MP3 Player (White) | D103: New | E103: $ | F103: 0 | G103: 86 | H103: 0 | I103: 1 | J103: 0.024
C104: EAN: 0068888900201 ASIN: B0037Z1FRM FNSKU: X0008OKEC3
B105: WIpodPink | C105: Waterproof iPod Shuffle PINK (4th Gen 2GB) by Underwater Audio (New waterproof headphone promotions coming soon!) (More Colors Available! Click 'Underwater Audio' by the title for availability) | D105: New | E105: $ | F105: 24 | G105: 0 | H105: 1 1 | I105: 1 | J105: 0.007
C106: EAN: 0628586849655 ASIN: B006WN65VC FNSKU: X000A6H0E9
B107: WiPodBlue | C107: Waterproof iPod Shuffle BLUE (4th Gen 2GB) by Underwater Audio (New waterproof headphone promotions coming soon!) (More Colors Available! Click 'Underwater Audio' by the title for availability) | D107: New | E107: $ | F107: 19 | G107: 2 | H107: 1 1 | I107: 1 | J107: 0.009
C108: EAN: 0628586849624 ASIN: B00749YS30 FNSKU: X000AGZEG5
B109: WiPodGreen | C109: Waterproof iPod Shuffle GREEN (4th Gen 2GB) by Underwater Audio (New waterproof headphone promotions coming soon!) (More Colors Available! Click 'Underwater Audio' by the title for availability) | D109: New | E109: $ | F109: 8 | G109: 3 | H109: 0 | I109: 0 | J109: 0.009
C110: EAN: 0628586849648 ASIN: B0074A4LRW FNSKU: X000AGZP19
B111: WiPodOrange | C111: Waterproof iPod Shuffle ORANGE (4th Gen 2GB) by Underwater Audio (New waterproof headphone promotions coming soon!) (More Colors Available! Click 'Underwater Audio' by the title for availability) | D111: New | E111: $ | F111: 11 | G111: 19 | H111: 0 | I111: 1 | J111: 0.008
C112: EAN: 0628586849631 ASIN: B0074A38L2 FNSKU: X000AGZJVP
B113: iHip-Aquavibe | C113: iHip AquaVibe Underwater Earbuds Durable and Lightweight Down to 25 Meters | D113: New | E113: $ | F113: 96 | G113: 131 | H113: 0 | I113: 0 | J113: 0.009
C114: EAN: 0187016639674 ASIN: B005T4J2LA FNSKU: X000A5452P
B115: Apply to 0 Selected Item(s): | C115: Reset prices Submit prices
B116: Go
A117: 1 to 10 of 10 Items | B117: Page 1
A118: Prices for the following MSKU(s) could not be updated:
A120: Reason | B120: Merchant SKU
A121: STATUS | B121: MSKU
A122: Please wait...
A123: Why are my items unfulfillable?
A125: Items are designated as unfulfillable when they are damaged or otherwise unfit for sale or shipment. Learn more
A127: Disposition | B127: Units
A128: Carrier Damaged
A129: Customer Damaged
A130: Defective
A131: Distributor Damaged
A132: Expired
A133: Warehouse Damaged
A134: Create a removal order for:
A135: This Item
A136: All Unfulfillable Inventory
A137: Submit
A138: We are making changes to the download version of this report to better support sellers with large inventories and provide a more consistent download experience. The old CSV version will be removed soon. Please migrate any dependencies you may have on this report to the new tab-delimited "Manage FBA Inventory" report on the Amazon Fulfillment Reports page by the end of January 2012.
A140: Continue
A148: Rate this page | Contact Seller Support
A149: Underwater Audio © 1999-2012, Amazon.com, Inc. or its affiliates

Sheet AmazonSales
A1: www.amazon.com
A2: HOME | MESSAGES | HELP | LOGOUT
A3: INVENTORY
A5: Manage Inventory
A6: Manage FBA Inventory
A7: Add a Product
A8: Upload Products & Inventory
A9: Download Inventory File
A10: Manage Promotions
A11: Manage FBA Shipments
A12: ORDERS
A14: Manage Orders
A15: Order Reports
A16: Upload Order Related Files
A17: Manage Returns
A18: REPORTS
A20: Payments
A21: Amazon Selling Coach
A22: Business Reports
A23: Fulfillment
A24: Tax Document Library
A25: PERFORMANCE
A27: Customer Metrics
A28: Feedback
A29: A-to-z Guarantee Claims
A30: Chargeback Claims
A31: Performance Notifications
A32: SETTINGS
A34: Account Info
A35: Notification Preferences
A36: Login Settings
A37: Manage Returns Settings
A38: Gift Options
A39: Shipping Settings
A40: Tax Settings
A41: User Permissions
A42: Your Info & Policies
A43: Fulfillment by Amazon
A44: You are participating in New Site Metrics and Reports. Feedback | Exit Beta
A45: CancelTry it now
A47: We would appreciate any feedback or suggestions regarding this Beta experience.
A49: 1
A50: 2
A51: 3
A52: 4
A53: 5
A54: 6
A55: 7
A56: 8
A57: 9
A58: 10
A59: Poor Good
A60: 1
A61: 2
A62: 3
A63: 4
A64: 5
A65: 6
A66: 7
A67: 8
A68: 9
A69: 10
A70: Poor Good
A72: Is there anything else you would like us to know?
A74: CancelSubmit
A76: Clicking "Exit discovery" will revert this page back to the original experience. New Site Metrics and Reports.
A78: How would you rate the overall experience?
A80: 1
A81: 2
A82: 3
A83: 4
A84: 5
A85: 6
A86: 7
A87: 8
A88: 9
A89: 10
A90: Poor Good
A92: Is there anything else you would like us to know?
A94: Remain in BetaExit Beta
A95: Columns
A97: Columns
A98: Show/Hide Fields:
A99: (Parent) ASIN
A100: Title
A101: Sessions
A102: Session Percentage
A103: Page Views
A104: Page Views Percentage
A105: Buy Box Percentage
A106: Units Ordered
A107: Unit Session Percentage
A108: Ordered Product Sales
A109: Orders Placed
A111: Reports
A113: Business Reports
A114: By Date
A115: Sales and Traffic
A116: Detail Page Sales and Traffic
A117: Seller Performance
A118: By ASIN
A119: Detail Page Sales and Traffic
A120: Detail Page Sales and Traffic by Parent Item
A121: Detail Page Sales and Traffic by Child Item
A122: Other
A123: Sales and Orders by Month
A124: Listings with Missing Information
A125: Amazon Selling Coach
A127: Low or Out-of-Stock Items
A128: ASIN Merge Notification
A129: Fulfillment Opportunities
A130: Low Price Opportunities
A131: Product Opportunities
A133: Display:
A135: Detail Page Sales and Traffic by Parent Item
A137: Learn more
A139: View:
A141: By Day
A142: By Week
A143: By Month
A145: From:To:
A146: Zoom:
A148: 7D
A149: 1M
A150: 3M
A151: 6M
A152: 1Y
A153: 2Y
A155: Download
A157: CSV
A159: Pivot
A161: SKU Performance
A163: Return to Date Report
B164: (Parent) ASIN | C164: Title | D164: Page Views | E164: Page Views Percentage | F164: Buy Box Percentage | G164: Units Ordered | H164: Ordered Product Sales | I164: Orders Placed
B166: Sort Descending | C166: Remove Column | D166: Sort Descending | E166: Sort Descending | F166: Sort Descending | G166: Sort Descending | H166: Sort Descending | I166: Sort Descending
B167: Sort Ascending | D167: Sort Ascending | E167: Sort Ascending | F167: Sort Ascending | G167: Sort Ascending | H167: Sort Ascending | I167: Sort Ascending
B168: Remove Column | C168: What's this? | D168: Remove Column | E168: Remove Column | F168: Remove Column | G168: Remove Column | H168: Remove Column | I168: Remove Column
C169: Title or name of the product
B170: What's this? | D170: What's this? | E170: What's this? | F170: What's this? | G170: What's this? | H170: What's this? | I170: What's this?
B171: A parent product appears in our catalog as a non-buyable, generic identifier for a product that has buyable variations (child products) | D171: Hits in your Amazon.com presence for the selected time period | E171: Percentage of page views that a particular SKU/ASIN receives relative to the total number of page views for all products | F171: This is the percentage of page views where the buy box (the add to shopping cart link) appeared on the page for customers to add your product to their cart | G171: Number of units ordered | H171: The amount of product order, calculated by multiplying the price of products and the number of units sold for the selected time period | I171: Number of orders placed
B173: (Parent) ASIN | C173: Title | D173: Page Views | E173: Page Views Percentage | F173: Buy Box Percentage | G173: Units Ordered | H173: Ordered Product Sales | I173: Orders Placed
B175: B005T4J2LA | C175: iHip AquaVibe Underwater Earbuds Durable and Lightweight Down to 25 Meters | D175: 12 | E175: 0.0377 | F175: 0 | G175: 0 | H175: 0 | I175: 0
B176: B006O64JH4 | C176: Pyle Marine Sport Waterproof In-Ear Earbud Stereo Headphones for iPod/iPhone/MP3 Player | D176: 214 | E176: 0.673 | F176: 0 | G176: 0 | H176: 0 | I176: 0
B177: B00749YS30 | C177: Waterproof iPod Shuffle BLUE (4th Gen 2GB) by Underwater Audio (New waterproof headphone promotions coming soon!) (More Colors Available! Click 'Underwater Audio' by the title for availability) | D177: 10 | E177: 0.0314 | F177: 1 | G177: 0 | H177: 0 | I177: 0
B178: B0074A38L2 | C178: Waterproof iPod Shuffle ORANGE (4th Gen 2GB) by Underwater Audio (New waterproof headphone promotions coming soon!) (More Colors Available! Click 'Underwater Audio' by the title for availability) | D178: 1 | E178: 0.0031 | F178: 1 | G178: 0 | H178: 0 | I178: 0
B179: B0074A4LRW | C179: Waterproof iPod Shuffle GREEN (4th Gen 2GB) by Underwater Audio (New waterproof headphone promotions coming soon!) (More Colors Available! Click 'Underwater Audio' by the title for availability) | D179: 6 | E179: 0.0189 | F179: 1 | G179: 0 | H179: 0 | I179: 0
B180: B005FA38SG | C180: Waterproof iPod Shuffle SILVER (4th Gen 2GB) by Underwater Audio (New waterproof headphone promotions coming soon!) (More Colors Available! Click 'Underwater Audio' by the title for availability) | D180: 58 | E180: 0.1824 | F180: 0.91 | G180: 1 | H180: 165 | I180: 1
B181: B006WN65VC | C181: Waterproof iPod Shuffle PINK (4th Gen 2GB) by Underwater Audio (New waterproof headphone promotions coming soon!) (More Colors Available! Click 'Underwater Audio' by the title for availability) | D181: 17 | E181: 0.0535 | F181: 1 | G181: 1 | H181: 168.99 | I181: 1
A182: Retrieving more data...
A184: Creating graph
A185: Date:
A187: Pivot
A188: SKU Performance
A196: Rate this page | Contact Seller Support
A197: Underwater Audio © 1999-2012, Amazon.com, Inc. or its affiliates
A198: < PrevNext >
A199: 2012-03-01
A200: Su | B200: Mo | C200: Tu | D200: We | E200: Th | F200: Fr | G200: Sa
E201: 1 | F201: 2 | G201: 3
A202: 4 | B202: 5 | C202: 6 | D202: 7 | E202: 8 | F202: 9 | G202: 10
A203: 11 | B203: 12 | C203: 13 | D203: 14 | E203: 15 | F203: 16 | G203: 17
A204: 18 | B204: 19 | C204: 20 | D204: 21 | E204: 22 | F204: 23 | G204: 24
A205: 25 | B205: 26 | C205: 27 | D205: 28 | E205: 29 | F205: 30 | G205: 31

Sheet Amazon
A1: www.amazon.com
A2: HOME | MESSAGES | HELP | LOGOUT
A3: INVENTORY
A5: Manage Inventory
A6: Manage FBA Inventory
A7: Add a Product
A8: Upload Products & Inventory
A9: Download Inventory File
A10: Manage Promotions
A11: Manage FBA Shipments
A12: ORDERS
A14: Manage Orders
A15: Order Reports
A16: Upload Order Related Files
A17: Manage Returns
A18: REPORTS
A20: Payments
A21: Amazon Selling Coach
A22: Business Reports
A23: Fulfillment
A24: Tax Document Library
A25: PERFORMANCE
A27: Customer Metrics
A28: Feedback
A29: A-to-z Guarantee Claims
A30: Chargeback Claims
A31: Performance Notifications
A32: SETTINGS
A34: Account Info
A35: Notification Preferences
A36: Login Settings
A37: Manage Returns Settings
A38: Gift Options
A39: Shipping Settings
A40: Tax Settings
A41: User Permissions
A42: Your Info & Policies
A43: Fulfillment by Amazon
A44: Amazon Selling Coach (NEW)
A46: 1. 3
A47: Low or Out-of-Stock Items
A48: Update your inventory to continue selling these items without interruption. Last updated: 03/31/2012
A49: Show
A50: Download Report
A51: SKU
A52: Current Inventory
A53: WiPodBlue
A54: 3
A55: IX-PN5X-1QKN
A56: 8
A57: WiPodGreen
A58: 4
A59: View all 3 items
A60: 2. 1
A61: Low Price Opportunities
A62: Compare my listings to similar offers with lower prices. Last updated: 03/31/2012
A63: Show
A64: Download Report
A65: SKU
A66: Lowest Price + Shipping ($)
A67: QP-92DO-2XBL
A68: 13.18
A69: View all 1 items
A70: Business Reports Tell us what you think of this new feature
A71: Headlines
A72: (see all)
A73: New Option for Contacting Buyers about Feedback
A74: 2012-03-30
A75: We've added a "Resolve" feedback button to Feedback Manager that allows you to e-mail a buyer directly and begin resolving any problems with an order. Learn more
A76: Advertisement
A77: More Selling Tools
A78: Fulfillment by Amazon Revenue Calculator
A79: 2011-10-27
A80: Check out the cost benefits of using Fulfillment by Amazon with the FBA Revenue Calculator. Learn more
A81: Amazon Marketplace Shipping Service Now Available
A82: 2010-09-30
A83: Buy United States Postal Service® postage on Seller Central to save time and money. Learn more
A84: Recent product recalls
A85: Recent product recalls
A87: Seller Discussions (NEW)
A91: Seller Forums
A92: Seller Support Blog
A94: Your Orders (Amazon.com)
A98: Seller Fulfilled
A101: 0 In last day:
A102: 0 In last 7 days:
A103: 0 Pending:
A104: 0 Unshipped:
A105: 0 Return requests:
A107: Fulfilled by Amazon
A110: 2 In last day:
A111: 28 In last 7 days:
A112: View your Orders
A114: Feedback Rating
A117: 4.8 stars over the past 12 months (29 ratings)
A118: Feedback | B118: 30 days | C118: 90 days | D118: 365 days
A119: Positive | B119: 0.8 | C119: 0.95 | D119: 0.97
A120: Neutral | B120: 0 | C120: 0 | D120: 0
A121: Negative | B121: 0.2 | C121: 0.05 | D121: 0.03
A122: Count | B122: 5 | C122: 19 | D122: 29
A124: View your Ratings and Feedback
A126: Other Amazon Links
A130: Amazon.com Home Page
A131: Your Buyer Account
A132: Your Trade-In Account
A133: Amazon Associates
A134: Kindle Direct Publishing
A136: Site Map
A139: Inventory
A140: • Manage Inventory
A141: • Manage FBA Inventory
A142: • Add a Product
A143: • Upload Products & Inventory
A144: • Download Inventory File
A145: • Manage Promotions
A146: • Manage FBA Shipments
A148: Orders
A149: • Manage Orders
A150: • Order Reports
A151: • Upload Order Related Files
A152: • Manage Returns
A154: Reports
A155: • Payments
A156: • Amazon Selling Coach
A157: • Business Reports
A158: • Fulfillment
A159: • Tax Document Library
A161: Performance
A162: • Customer Metrics
A163: • Feedback
A164: • A-to-z Guarantee Claims
A165: • Chargeback Claims
A166: • Performance Notifications
A168: Settings
A169: • Account Info
A170: • Notification Preferences
A171: • Login Settings
A172: • Manage Returns Settings
A173: • Gift Options
A174: • Shipping Settings
A175: • Tax Settings
A176: • User Permissions
A177: • Your Info & Policies
A178: • Fulfillment by Amazon
A180: Reset to default view
A182: Low Inventory
A185: 3
A186: Low or Out-of-Stock Items
A187: Based on your recent inventory and sales data (as of 03/31/2012)
A188: Download Report
A189: SKU Current Inventory
A191: 3
A192: WiPodBlue
A193: 8
A194: IX-PN5X-1QKN
A195: 4
A196: WiPodGreen
A197: View all 3 items
A199: Amazon Selling Coach
A202: Complete your listings
A203: 4 of your active or inactive listings are missing crucial product information such as an image or description.
A204: › View all suggestions
A206: Seller Performance
A209: Good
A210: View Details
A212: Payments Summary
A215: Recent Payment
A216: Mar 24, 2012 – $9,231.13
A217: Disbursed to your bank account ending in 6349
A219: Balance
A221: 7190.4
A223: Buyer Messages
A227: 0 Messages without a response:
A228: 4 All messages received:
A229: In the last 7 days
A230: View your messages
A232: Manage Your Case Log
A235: View your case log
A237: Buyer Claims
A240: A-to-z Guarantee claims: | B240: 0
A241: Chargeback claims: | B241: 0
A242: Claims requiring action
A244: Sales Summary
A247: loading
A248: View more seller metrics
A250: Unshipped Orders
A254: 0 Amazon.com:
A255: 0 All:
A263: Rate this page | Contact Seller Support
A264: Underwater Audio © 1999-2012, Amazon.com, Inc. or its affiliates

Sheet adWords
AD1: info@underwateraudio.com | AF1: Announcements (1) | AG1: Help | AH1: Sign out
AD2: Customer ID: 992-905-8275
A3: Home | AD3: Campaigns | AI3: Opportunities | AJ3: Tools and Analysis | AK3: Billing | AL3: My account
AM4: Loading...
AM5: Search
A7: All online campaigns
A8: Content>Image
A9: Content>Text
A10: Content>UnderwaterAudio
A11: Interest>Image
A12: Retargeting>Image
A13: Retargeting>Text
A14: Search>Core>Broad
A15: Search>Core>Exact
A16: Search>Core>Phrase
A17: Search>Long Tail>Exact
A18: Search>Mid Tail>Exact
A19: Search>UnderwaterAudio>Broad
A20: Search>UnderwaterAudio>Phrase
A21: Shared library
A23: Reports
A25: Automated rules
A27: Custom alerts
A29: Help
A30: Help Center
A32: Go
A33: Get Help
A35: PreviousPrevious| NextNext
A36: All online campaigns
A39: Save
A41: Cancel
A42: Ads disapproved (2)Ads disapproved (2)View| | AM42: Dismiss|
A43: Please review our Advertising Policies and edit your ads to resubmit for review. Learn more.
A44: Set for:
A45: Campaigns eligible to use Conversion Optimizer (2)Campaigns eligible to use Conversion Optimizer (2)View| | AM45: Dismiss|
A46: Conversion Optimizer uses your conversion tracking data to get you more conversions at a lower cost. To turn it on, edit your Bidding option on the Settings tab. Learn more.
A47: Set for:
A48: Increase traffic with new keywords (311)Increase traffic with new keywords (311)View| | AM48: Dismiss|
A49: Set for:
A50: Show 0 more alerts
Q51: Campaigns | R51: Ad groups | S51: Settings | T51: Ads | U51: Keywords | V51: Networks | W51: Audiences | X51: Ad extensions | Y51: Auto targets | Z51: Dimensions | AA51: Topics
A57: All but deleted campaigns
A65: Segment
A73: Filter
A81: Columns
A105: Search
A109: Graph options Show graph
A110: Primary metric
A112: Conv. (1-per-click)
A113: Compare to
A115: Metric
A117: CTR
A119: Custom date range
A120: 1 days starting on
A122: Go
A123: Please select a shorter date range.
A131: Close
A132: View Change History
A136: Automated rules can save you time by making changes to your account based on criteria you specify. Learn how to create rules, and see examples of popular rules.
A140: Rules aren't guaranteed to run in some cases, so we recommend regularly monitoring the rules you set up. Learn more
A148: Save
A156: Cancel
A164: New campaign
A181: Change status...
A189: Alerts
A197: Automate
C201: Campaign | D201: Budget | E201: Status | F201: Clicks | G201: Impr. | H201: CTR | I201: Avg. CPC | J201: Cost | K201: Avg. Pos. | L201: Conv. (1-per-click) | M201: Cost / conv. (1-per-click) | N201: Conv. rate (1-per-click) | O201: View-through Conv. | P201: Impr. share
C209: Campaign | D209: Budget | E209: Status | F209: Clicks | G209: Impr. | H209: CTR | I209: Avg. CPC | J209: Cost | K209: Avg. Pos. | L209: Conv. (1-per-click) | M209: Cost / conv. (1-per-click) | N209: Conv. rate (1-per-click) | O209: View-through Conv. | P209: Impr. share
C213: Total - all but deleted campaigns | F213: 338 | G213: 56785 | H213: 0.006 | I213: 0.65 | J213: 220.35 | K213: 1.4 | L213: 3 | M213: 73.45 | N213: 0.0089 | O213: 0 | P213: < 10%
C214: Total - Search | F214: 143 | G214: 9109 | H214: 0.0157 | I214: 0.98 | J214: 140.7 | K214: 2.3 | L214: 3 | M214: 46.9 | N214: 0.021 | O214: 0 | P214: 0.3746
C215: Total - Display Network | F215: 195 | G215: 47676 | H215: 0.0041 | I215: 0.41 | J215: 79.65 | K215: 1.2 | L215: 0 | M215: 0 | N215: 0 | O215: 0 | P215: < 10%
C216: Total - all campaigns | D216: $1,610.00/day | F216: 338 | G216: 56785 | H216: 0.006 | I216: 0.65 | J216: 220.35 | K216: 1.4 | L216: 3 | M216: 73.45 | N216: 0.0089 | O216: 0 | P216: < 10%
C217: Content>Image | D217: $400.00/day | E217: Eligible | F217: 173 | G217: 39436 | H217: 0.0044 | I217: 0.4 | J217: 68.8 | K217: 1 | L217: 0 | M217: 0 | N217: 0 | O217: 0 | P217: < 10%
C221: Search>Core>Exact | D221: $400.00/day | E221: Eligible | F221: 49 | G221: 811 | H221: 0.0604 | I221: 1.4 | J221: 68.49 | K221: 1.4 | L221: 2 | M221: 34.24 | N221: 0.0408 | O221: 0 | P221: 1
C225: Search>Core>Phrase | D225: $150.00/day | E225: Eligible | F225: 32 | G225: 1816 | H225: 0.0176 | I225: 1.12 | J225: 35.98 | K225: 1.3 | L225: 0 | M225: 0 | N225: 0 | O225: 0 | P225: 0.9528
C229: Search>Core>Broad | D229: $150.00/day | E229: Eligible | F229: 37 | G229: 4404 | H229: 0.0084 | I229: 0.73 | J229: 27.02 | K229: 2.6 | L229: 1 | M229: 27.02 | N229: 0.027 | O229: 0 | P229: 0.2823
C233: Search>Mid Tail>Exact | D233: $150.00/day | E233: Eligible | F233: 15 | G233: 1319 | H233: 0.0114 | I233: 0.54 | J233: 8.06 | K233: 3 | L233: 0 | M233: 0 | N233: 0 | O233: 0 | P233: 0.6909
C237: Retargeting>Image | D237: $100.00/day | E237: Eligible | F237: 17 | G237: 2369 | H237: 0.0072 | I237: 0.41 | J237: 6.97 | K237: 1 | L237: 0 | M237: 0 | N237: 0 | O237: 0 | P237: < 10%
C241: Content>Text | D241: $90.00/day | E241: Eligible | F241: 5 | G241: 5831 | H241: 0.0009 | I241: 0.78 | J241: 3.88 | K241: 2.8 | L241: 0 | M241: 0 | N241: 0 | O241: 0 | P241: < 10%
C245: Search>Long Tail>Exact | D245: $150.00/day | E245: Eligible | F245: 10 | G245: 759 | H245: 0.0132 | I245: 0.12 | J245: 1.15 | K245: 3.6 | L245: 0 | M245: 0 | N245: 0 | O245: 0 | P245: 0.1856
C249: Content>UnderwaterAudio | D249: $20.00/day | E249: Paused | F249: 0 | G249: 0 | H249: 0 | I249: 0 | J249: 0 | K249: 0 | L249: 0 | M249: 0 | N249: 0 | O249: 0 | P249: --
C253: Search>UnderwaterAudio>Phrase | D253: $150.00/day | E253: Paused | F253: 0 | G253: 0 | H253: 0 | I253: 0 | J253: 0 | K253: 0 | L253: 0 | M253: 0 | N253: 0 | O253: 0 | P253: --
C257: Search>UnderwaterAudio>Broad | D257: $150.00/day | E257: Paused | F257: 0 | G257: 0 | H257: 0 | I257: 0 | J257: 0 | K257: 0 | L257: 0 | M257: 0 | N257: 0 | O257: 0 | P257: --
C261: Retargeting>Text | D261: $20.00/day | E261: Eligible | F261: 0 | G261: 40 | H261: 0 | I261: 0 | J261: 0 | K261: 2.5 | L261: 0 | M261: 0 | N261: 0 | O261: 0 | P261: < 10%
C265: Interest>Image | D265: $200.00/day | E265: Paused | F265: 0 | G265: 0 | H265: 0 | I265: 0 | J265: 0 | K265: 0 | L265: 0 | M265: 0 | N265: 0 | O265: 0 | P265: --
A270: Go to page: Show rows:
A274: 1 - 13 of 13
A276: Custom date range
A277: -
A279: Go
A280: 2012-03-31
A282: Reporting is not real-time. Clicks and impressions received in the last three hours may not be included here.
A283: There is a 24-hour delay in conversion tracking reporting. Time zone for all dates and times: (GMT-08:00) Pacific Time. Learn more
A285: 2012 Google | AdWords Home| Editorial Guidelines | Privacy Policy | Contact Us

Sheet Inventory
A1: Daily Inventory : Sheet1 Go to spreadsheet view Hide colors | B1: Rows per page:
B2: 1-7 of 7
A4: Row? | C4: Timestamp | D4: Date | E4: iPods | F4: Pyle | G4: Aquavibe | H4: Discovery
A6: Add new
A8: 1 | B8: Edit | C8: 2012-03-22T11:00:15 | D8: 2012-03-22 | E8: 150 | F8: 200 | G8: 150 | H8: 150
A9: 2 | B9: Edit | C9: 2012-03-22T14:43:43 | D9: 2012-03-20 | E9: 124 | F9: 300 | G9: 100 | H9: 42
A10: 3 | B10: Edit | C10: 2012-03-22T17:02:01 | D10: 2012-03-20 | E10: 124 | F10: 300 | G10: 100 | H10: 42
A11: 4 | B11: Edit | C11: 2012-04-02T14:21:10 | D11: 2012-03-31 | E11: 635.351087 | F11: 85 | G11: 7 | H11: 80
A12: 5 | B12: Edit
A13: 6 | B13: Edit | D13: 2012-03-22 | E13: 2 | F13: 2 | G13: 2 | H13: 2
A14: 7 | B14: Edit | D14: 2012-03-21 | E14: 3 | F14: 3 | G14: 3 | H14: 3
A15: Go to spreadsheet view Hide colors Powered by Google Docs Report Abuse | B15: Rows per page:
B16: 1-7 of 7

Sheet Paypal
A1: PayPal
A3: Search PayPalSearch
A4: Skip to main content
A6: Log Out
A7: Help
A8: Security and Protection
A10: My Account
A11: Overview
A12: Add Money
A13: Add Money from Bank Account
A14: Balance Manager
A15: Add Money from MoneyPak
A16: Withdraw
A17: Transfer to Bank Account
A18: Request a Check
A19: PayPal Debit MasterCard
A20: History
A21: Basic Search
A22: Advanced Search
A23: Download History
A24: Tax Documents
A25: Reports
A26: IPN History
A27: Resolution Center
A28: View Open Cases
A29: Tutorials
A30: Profile
A31: Add or Edit Email
A32: Add or Edit Bank Account
A33: Add or Edit Credit Card
A34: Add or Edit Street Address
A35: Add or Edit Phone Number
A36: More Options
A37: Send Money
A38: Request Money
A39: Merchant Services
A40: Products & Services
A42: Resolution Center: Open cases (2)
A44: History
A46: Recent ActivitySee your most recent transactions, transfers, and more.
A47: All activity
A48: Find a transactionSearch all of your transactions.
A50: Search
A52: Timeperiod
A54: Transactionoption
A56: SelectDateRange
A58: From
A60: to
A62: To
A64: View demo
A66: more
A67: Managing Transactions
A68: History
A69: Refunds
A70: Shipping and holds
A72: Filters
A74: Money withdrawn
A75: More filters
A76: Financial products and services
A77: Money added and withdrawn
A78: Payment Received to
A79: Payment Received via
A80: Shipping
A81: Subscriptions and agreements
A82: Pay list
A83: Recurring payments
A84: Reserves
A85: Payment Holds
A86: Payment Review Transaction
A88: In
A90: Money withdrawn - Mar 3, 2012 to Apr 2, 2012
A92: Print
A94: Displaying 20 results per page
A96: Next
A98: What's thisTransactions you Unarchive will be moved to your Recent Activity list.Payment status glossary
A99: checkboxSelect all recent | B99: Date | D99: flag columnWhen an icon appears next to one of your transactions, it means there is more information available or a note attached. Move your cursor over the icon to learn more about the transaction. | E99: Type | F99: Name/Email | G99: Payment status | H99: Details | I99: Order status/Actions | J99: Gross | K99: Fee | L99: Net amount
D100: When an icon appears next to one of your transactions, it means there is more information available or a note attached. Move your cursor over the icon to learn more about the transaction.
A101: Select record 0 | C101: 2012-04-01 | E101: Transfer To | F101: Bank Account | G101: PendingYou made a request to transfer money from your PayPal account to your bank account. The transfer will complete in 3-4 days. | H101: Details Transfer To Bank Account 8EB786162W3785526 | J101: -1274.34 | K101: 0 | L101: -$1,274.34 USD
G102: You made a request to transfer money from your PayPal account to your bank account. The transfer will complete in 3-4 days.
A103: Select record 1 | C103: 2012-03-31 | E103: Transfer To | F103: Bank Account | G103: Completed | H103: Details Transfer To Bank Account 00D42774B2055420D | J103: -1401.03 | K103: 0 | L103: -$1,401.03 USD
A104: Select record 2 | C104: 2012-03-30 | E104: Transfer To | F104: Bank Account | G104: Completed | H104: Details Transfer To Bank Account 2GG50815BS1448948 | J104: -2182.52 | K104: 0 | L104: -$2,182.52 USD
A105: Select record 3 | C105: 2012-03-29 | E105: Transfer To | F105: Bank Account | G105: Completed | H105: Details Transfer To Bank Account 8WR396523H705135S | J105: -2514.96 | K105: 0 | L105: -$2,514.96 USD
A106: Select record 4 | C106: 2012-03-28 | E106: Transfer To | F106: Bank Account | G106: Completed | H106: Details Transfer To Bank Account 0M200228K4922273H | J106: -1788.75 | K106: 0 | L106: -$1,788.75 USD
A107: Select record 5 | C107: 2012-03-27 | E107: Transfer To | F107: Bank Account | G107: Completed | H107: Details Transfer To Bank Account 0TF636989C625444N | J107: -1054.62 | K107: 0 | L107: -$1,054.62 USD
A108: Select record 6 | C108: 2012-03-26 | E108: Transfer To | F108: Bank Account | G108: Completed | H108: Details Transfer To Bank Account 2DE04423D52989135 | J108: -1224.22 | K108: 0 | L108: -$1,224.22 USD
A109: Select record 7 | C109: 2012-03-25 | E109: Transfer To | F109: Bank Account | G109: Completed | H109: Details Transfer To Bank Account 7C977007GV2956234 | J109: -2216.76 | K109: 0 | L109: -$2,216.76 USD
A110: Select record 8 | C110: 2012-03-24 | E110: Transfer To | F110: Bank Account | G110: Completed | H110: Details Transfer To Bank Account 86X94393G85420825 | J110: -858.05 | K110: 0 | L110: -$858.05 USD
A111: Select record 9 | C111: 2012-03-23 | E111: Transfer To | F111: Bank Account | G111: Completed | H111: Details Transfer To Bank Account 09864430P5479535W | J111: -2235.74 | K111: 0 | L111: -$2,235.74 USD
A112: Select record 10 | C112: 2012-03-22 | E112: Transfer To | F112: Bank Account | G112: Completed | H112: Details Transfer To Bank Account 5RD08159PU591664M | J112: -2047.23 | K112: 0 | L112: -$2,047.23 USD
A113: Select record 11 | C113: 2012-03-21 | E113: Transfer To | F113: Bank Account | G113: Completed | H113: Details Transfer To Bank Account 298366178M380664X | J113: -3637.2 | K113: 0 | L113: -$3,637.20 USD
A114: Select record 12 | C114: 2012-03-20 | E114: Transfer To | F114: Bank Account | G114: Completed | H114: Details Transfer To Bank Account 1C381835AT820421U | J114: -1428.66 | K114: 0 | L114: -$1,428.66 USD
A115: Select record 13 | C115: 2012-03-19 | E115: Transfer To | F115: Bank Account | G115: Completed | H115: Details Transfer To Bank Account 96R07906EA487010M | J115: -2484.97 | K115: 0 | L115: -$2,484.97 USD
A116: Select record 14 | C116: 2012-03-18 | E116: Transfer To | F116: Bank Account | G116: Completed | H116: Details Transfer To Bank Account 9T7099145U654792Y | J116: -1894.96 | K116: 0 | L116: -$1,894.96 USD
A117: Select record 15 | C117: 2012-03-17 | E117: Transfer To | F117: Bank Account | G117: Completed | H117: Details Transfer To Bank Account 0J235083WJ8245204 | J117: -1203.75 | K117: 0 | L117: -$1,203.75 USD
A118: Select record 16 | C118: 2012-03-17 | E118: Transfer To | F118: Bank Account | G118: Completed | H118: Details Transfer To Bank Account 65J452934G611162A | J118: -1837.58 | K118: 0 | L118: -$1,837.58 USD
A119: Select record 17 | C119: 2012-03-16 | E119: Transfer To | F119: Bank Account | G119: Completed | H119: Details Transfer To Bank Account 2U371458LN084380T | J119: -857.54 | K119: 0 | L119: -$857.54 USD
A120: Select record 18 | C120: 2012-03-14 | E120: Transfer To | F120: Bank Account | G120: Completed | H120: Details Transfer To Bank Account 084085230L833132A | J120: -543.17 | K120: 0 | L120: -$543.17 USD
A121: Select record 19 | C121: 2012-03-13 | E121: Transfer To | F121: Bank Account | G121: Completed | H121: Details Transfer To Bank Account 0BE853011E962142K | J121: -2321.95 | K121: 0 | L121: -$2,321.95 USD
A122: What's thisTransactions you Unarchive will be moved to your Recent Activity list.
A124: Displaying 20 results per page
A126: Next
A128: The most common payment statusesView more status types
A130: Canceled:
A131: The sender canceled this payment.
A132: Completed (referring to a bank withdrawal):
A133: Money is being transferred to your bank account. Allow up to 7 days for this transfer to complete.
A134: Completed (referring to a payment):
A135: Money has been successfully sent to the recipient.
A136: Denied:
A137: The recipient chose not to accept this payment.
A138: Held:
A139: Money is being temporarily held. The sender may be disputing this payment, or the payment may be under review by PayPal.
A141: Pending:
A142: This payment is being processed. Allow up to 4 days for it to complete.
A143: Returned:
A144: Money was returned to the sender because the payment was unclaimed for 30 days.
A145: Unclaimed:
A146: The recipient hasn't yet accepted this payment.
A148: About Us
A149: Contact Us
A150: Legal Agreements
A151: Privacy
A152: Fees
A153: Site Feedback Site Feedback
A155: Copyright 1999-2012 PayPal. All rights reserved.
A156: Information about FDIC pass-through insurance

Sheet Umpqua
A1: Umpqua Bank | B1: Locations & ATMs
B2: Help
B3: LOGOUT
A6: Accounts | B6: Account Activity | L6: Related Tasks & Links
A8: Overview | B8: Warning! Your Online Banking session will expire in 1075 seconds. | L8: Download Transaction History
A9: Summary | L9: Contact Us
A10: Account Activity | B10: Continue Banking Online | Logout | L10: Enroll in Paperless Statements
A11: Download | L11: Print Account Activity
A12: Statements | B12: Signing out... | L12: Help with this Page
L13: View Session Summary
B14: The pop-up window used to extend your session was blocked.
B15: Click here for information regarding pop-up blocking software, or copy and paste the following link into a new browser:
B16: http://www.microsoft.com/windowsxp/using/web/sp2_popupblocker.mspx
B18: Use the options below to select the transactions you want to see. You can sort by any column by clicking on the heading, such as Date or Credit. | C18: BUSINESS CHECKING
C19: Account Name: | D19: BUSINESS CHECKING
B20: Click on a check number to view the image, if applicable for the account type. | C20: Account Number: | D20: xxx6349
C21: As of Date: | D21: 2012-04-02
B22: Click on a transaction description if you want to assign a spending/income category or a descriptive memo for your records. | C22: Interest Rate: | D22: 0
C23: Interest Paid YTD: | D23: 0
C24: Available Balance: | D24: 24945.4
C25: Current Balance: | D25: 19047.95
B29: Account: | E29: Type: | F29: Category: | G29: From: | H29: To:
B31: Search For:
B34: Pending Transactions (Pending amounts may not represent final transaction amount)
B36: Date | E36: No. | F36: Type | G36: Description | H36: Category | I36: Debit | J36: Credit | K36: Inquiry
B37: 2012-04-02 | F37: Credit | G37: PROCESSING: PAYPAL TRANSFER 42Q225RCVHE9Y | J37: 2182.52 | K37: =D24+I37-J37 -> 22762.88
B38: 2012-04-02 | F38: Credit | G38: PROCESSING: PAYPAL TRANSFER 42Q225R6VZGTG | J38: 1788.75 | K38: =K37+I38-J38 -> 20974.13
B39: 2012-04-02 | F39: Credit | G39: PROCESSING: PAYPAL TRANSFER 42Q225R9YHF66 | J39: 2514.96 | K39: =K38+I39-J39 -> 18459.17
B40: 2012-04-02 | F40: Debit | G40: PROCESSING: AMERICAN EXPRESS ELEC REMIT 120331052917266 | I40: 142.98 | K40: 18602.15
B41: 2012-04-01 | F41: Debit | G41: PROCESSING: 4842 DDA PURCHASE UPS*1Z37393F0794649056 800-811-1648 GA UPS*1Z37393 | I41: 47.12 | K41: 18649.27
B42: 2012-04-01 | F42: Debit | G42: PROCESSING: 4975 DDA PURCHASE UPS*1Z37393F0791387264 800-811-1648 GA UPS*1Z37393 | I42: 98.56 | K42: 18747.83
B43: 2012-03-31 | F43: Debit | G43: PROCESSING: 24104 DDA PREAUTH UPS*INTERNETSHIPWAYBIL 800-811-1648 GA UPS*INTERNE | I43: 93.99 | K43: 18841.82
B44: 2012-03-31 | F44: Debit | G44: PROCESSING: 8726 DDA PURCHASE 1780 NE FOUR ACRE P CORVALLIS OR THE HOME DEPOT # | I44: 116.44 | K44: 18958.26
B45: 2012-03-31 | F45: Debit | G45: PROCESSING: 10020 DDA PURCHASE Staples Inc. CORVALLIS OR Staples Inc. | I45: 20.99 | K45: 18979.25
B46: 2012-03-31 | F46: Debit | G46: PROCESSING: 19639 DDA PREAUTH UPS*INTERNETSHIPWAYBIL 800-811-1648 GA UPS*INTERNE | I46: 32.66 | K46: 19011.91
B47: 2012-03-31 | F47: Debit | G47: PROCESSING: 24927 DDA PREAUTH UPS*INTERNETSHIPWAYBIL 800-811-1648 GA UPS*INTERNE | I47: 16.84 | K47: 19028.75
B48: 2012-03-31 | F48: Debit | G48: PROCESSING: 31022 DDA PURCHASE VZWRLSS*IVR VW 800-922-0204 NJ VZWRLSS*IVR VW | I48: 19.2 | K48: 19047.95
B51: Posted Transactions
B53: Date | E53: No. | F53: Type | G53: Description | H53: Category | I53: Debit | J53: Credit | K53: CurrentBalance | L53: Inquiry
B54: 2012-03-30 | F54: Other | G54: PAYPAL ECHECK 42Q225R6XZ6WA | I54: 168.88 | K54: 19047.95
B55: 2012-03-30 | F55: Direct Deposit | G55: PAYPAL TRANSFER 42Q225R3TFVCA | J55: 1054.62 | K55: 19216.83
B56: 2012-03-30 | F56: Transfer In | G56: 701367138 ONLINE TRANSFER FROM BUSINESS S 972566525 3/30 13:09 | J56: 7000 | K56: 18162.21
B57: 2012-03-29 | E57: 1124 | F57: Check | G57: Check | I57: 150 | K57: 11162.21
B58: 2012-03-29 | F58: Other | G58: CAPITAL PREMIUM INS. PMNT CAP-165348 | I58: 88.37 | K58: 11312.21
B59: 2012-03-29 | F59: Direct Deposit | G59: PAYPAL TRANSFER 42Q225QYPVSF6 | J59: 1224.22 | K59: 11400.58
B60: 2012-03-29 | F60: Direct Deposit | G60: Cash Back Reward Redemption OD3174895 | J60: 475 | K60: 10176.36
B61: 2012-03-28 | E61: 1099 | F61: Check | G61: Check | I61: 75 | K61: 9701.36
B62: 2012-03-28 | E62: 1098 | F62: Check | G62: Check | I62: 628.75 | K62: 9776.36
B63: 2012-03-28 | F63: Other | G63: CARDMEMBER SERV WEB PYMT 479851004580808 | I63: 7868.93 | K63: 10405.11
B64: 2012-03-28 | F64: Other | G64: CARDMEMBER SERV WEB PYMT 479851004580808 | I64: 7868.93 | K64: 18274.04
B65: 2012-03-28 | F65: Other | G65: CARDMEMBER SERV WEB PYMT 479851004580808 | I65: 7868.93 | K65: 26142.97
B66: 2012-03-28 | F66: Direct Deposit | G66: PAYPAL TRANSFER 42Q225QVAFXDU | J66: 2216.76 | K66: 34011.9
B67: 2012-03-27 | F67: Direct Deposit | G67: AMAZON.COM payments.amazon.com ID#W5MWXO2UD89DXY6 | J67: 9231.13 | K67: 31795.14
B68: 2012-03-27 | F68: Direct Deposit | G68: PAYPAL TRANSFER 42Q225QSUXY4U | J68: 858.05 | K68: 22564.01
B69: 2012-03-26 | F69: Direct Deposit | G69: PAYPAL TRANSFER 42Q225QJX8ZP6 | J69: 3637.2 | K69: 21705.96
B70: 2012-03-26 | F70: Direct Deposit | G70: PAYPAL TRANSFER 42Q225QQTLXN8 | J70: 2235.74 | K70: 18068.76
B71: 2012-03-26 | F71: Direct Deposit | G71: PAYPAL TRANSFER 42Q225QMYXUA4 | J71: 2047.23 | K71: 15833.02
B72: 2012-03-23 | E72: 1125 | F72: Check | G72: Check | I72: 547.5 | K72: 13785.79
B73: 2012-03-23 | F73: Payment | G73: ANDERTON ENTERPR ACH XFER | I73: 963.98 | K73: 14333.29
B74: 2012-03-23 | F74: Point of Sale | G74: POS 03/23/12 08:00 0253 FRED MEYER CORVALLIS OR 076755 KFM07076 | I74: 867.82 | K74: 15297.27
B75: 2012-03-23 | F75: Point of Sale | G75: POS 03/23/12 04:46 0253 AMERICAN DREAM AMERICAN D CORVALLIS OR 158142 30010342 | I75: 80.25 | K75: 16165.09
B76: 2012-03-23 | F76: Direct Deposit | G76: PAYPAL TRANSFER 42Q225QFQFZTC | J76: 1428.66 | K76: 16245.34
B77: 2012-03-22 | F77: Direct Deposit | G77: PAYPAL TRANSFER 42Q225QCHFLJY | J77: 2484.97 | K77: 14816.68
B78: 2012-03-21 | F78: Payment | G78: CARDMEMBER SERV WEB PYMT 479851004580808 | I78: 7065.97 | K78: 12331.71
B79: 2012-03-21 | F79: Payment | G79: CARDMEMBER SERV WEB PYMT 479851004580808 | I79: 4745.98 | K79: 19397.68
B80: 2012-03-21 | F80: Payment | G80: CARDMEMBER SERV WEB PYMT 479851004580808 | I80: 4745.98 | K80: 24143.66
B81: 2012-03-21 | F81: Payment | G81: CARDMEMBER SERV WEB PYMT 479851004580808 | I81: 4745.98 | K81: 28889.64
B82: 2012-03-21 | F82: Direct Deposit | G82: PAYPAL TRANSFER 42Q225Q8X6H9C | J82: 1894.96 | K82: 33635.62
B83: 2012-03-20 | F83: Direct Deposit | G83: PAYPAL TRANSFER 42Q225Q6C8MKE | J83: 1203.75 | K83: 31740.66
B84: 2012-03-19 | E84: 1089 | F84: Check | G84: Check | I84: 90 | K84: 30536.91
B85: 2012-03-19 | F85: Point of Sale | G85: POS 03/18/12 16:51 0253 UPS*1Z37393F449UPS*1Z3739 800-811-1648 GA 000639 6660570 | I85: 95.66 | K85: 30626.91
B86: 2012-03-19 | F86: Point of Sale | G86: POS 03/18/12 16:51 0253 UPS*1Z37393F139UPS*1Z3739 800-811-1648 GA 000639 6660570 | I86: 69.56 | K86: 30722.57
B87: 2012-03-19 | F87: Point of Sale | G87: POS 03/18/12 16:50 0253 UPS*1Z37393F129UPS*1Z3739 800-811-1648 GA 000639 6660570 | I87: 51.37 | K87: 30792.13
B88: 2012-03-19 | F88: Direct Deposit | G88: PAYPAL TRANSFER 42Q225Q4F6ZG6 | J88: 1837.58 | K88: 30843.5
B89: 2012-03-19 | F89: Direct Deposit | G89: PAYPAL TRANSFER 42Q225PZLZ7A8 | J89: 857.54 | K89: 29005.92
B90: 2012-03-19 | F90: Direct Deposit | G90: PAYPAL TRANSFER 42Q225PW6HB7Q | J90: 543.17 | K90: 28148.38
B91: 2012-03-16 | F91: Direct Deposit | G91: PAYPAL TRANSFER 42Q225PSZPYC8 | J91: 2321.95 | K91: 27605.21
B92: 2012-03-15 | E92: 1091 | F92: Check | G92: Check | I92: 25.47 | K92: 25283.26
B93: 2012-03-15 | F93: Direct Deposit | G93: PAYPAL TRANSFER 42Q225PPTM3JC | J93: 1720.46 | K93: 25308.73
B94: 2012-03-14 | E94: 1123 | F94: Check | G94: Check | I94: 597.5 | K94: 23588.27
B95: 2012-03-14 | F95: Payment | G95: CARDMEMBER SERV WEB PYMT 479851004580808 | I95: 11258.65 | K95: 24185.77
B96: 2012-03-14 | F96: Payment | G96: CARDMEMBER SERV WEB PYMT 479851004580808 | I96: 9850.22 | K96: 35444.42
B97: 2012-03-14 | F97: Direct Deposit | G97: PAYPAL TRANSFER 42Q225PL8BAF4 | J97: 1442.54 | K97: 45294.64
B98: 2012-03-13 | E98: 1162 | F98: Check | G98: Check | I98: 148.53 | K98: 43852.1
B99: 2012-03-13 | F99: Direct Deposit | G99: AMAZON.COM payments.amazon.com ID#RB1VRKNYDS0VXHS | J99: 15621.86 | K99: 44000.63
B100: 2012-03-13 | F100: Direct Deposit | G100: PAYPAL TRANSFER 42Q225PHRFZDA | J100: 1203.82 | K100: 28378.77
B101: 2012-03-12 | F101: Direct Deposit | G101: PAYPAL TRANSFER 42Q225PFM9M3U | J101: 2037.14 | K101: 27174.95
B102: 2012-03-12 | F102: Direct Deposit | G102: PAYPAL TRANSFER 42Q225PCPBYWJ | J102: 1909.57 | K102: 25137.81
B103: 2012-03-12 | F103: Direct Deposit | G103: PAYPAL TRANSFER 42Q225P9G85VW | J103: 1785.22 | K103: 23228.24
B104: 2012-03-09 | F104: Payment | G104: CARDMEMBER SERV WEB PYMT 479851004580808 | I104: 3199.08 | K104: 21443.02
B105: 2012-03-09 | F105: Direct Deposit | G105: PAYPAL TRANSFER 42Q225P65Q3EC | J105: 829.26 | K105: 24642.1
B106: 2012-03-08 | F106: Point of Sale | G106: POS 03/07/12 22:15 0253 THE HOME DEPOT # CORVALLIS OR 662726 00000058 | I106: 9.63 | K106: 23812.84
B107: 2012-03-08 | F107: Direct Deposit | G107: PAYPAL TRANSFER 42Q225P2QANJG | J107: 2303.23 | K107: 23822.47
B108: 2012-03-07 | F108: Direct Deposit | G108: PAYPAL TRANSFER 42Q225NWVFD28 | J108: 1711.41 | K108: 21519.24
B109: 2012-03-06 | F109: Service Charge | G109: USD-INTL WIRE FEE DDA9-201206600640 | I109: 50 | K109: 19807.83
B110: 2012-03-06 | F110: Direct Debit | G110: WIRE/OUT-201206600640;BNF EASTERN POWER (HK) LIMITED;OBI CONTACT HENRY SHUEXCELE | I110: 7576.25 | K110: 19857.83
B111: 2012-03-06 | F111: Direct Deposit | G111: PAYPAL TRANSFER 42Q225NU2LJR6 | J111: 539.52 | K111: 27434.08
B112: 2012-03-05 | F112: Payment | G112: ANDERTON ENTERPR ACH XFER | I112: 6945.85 | K112: 26894.56
B113: 2012-03-05 | F113: Point of Sale | G113: POS 03/04/12 15:38 0253 UPS*1Z37393F449UPS*1Z3739 800-811-1648 GA 000811 6660570 | I113: 87.24 | K113: 33840.41
B114: 2012-03-05 | F114: Point of Sale | G114: POS 03/04/12 15:38 0253 UPS*1Z37393F139UPS*1Z3739 800-811-1648 GA 000811 6660570 | I114: 57.53 | K114: 33927.65
B115: 2012-03-05 | F115: Point of Sale | G115: POS 03/04/12 15:37 0253 UPS*1Z66A471022UPS*1Z66A4 800-811-1648 GA 000808 6646150 | I115: 5 | K115: 33985.18
B116: 2012-03-05 | F116: Direct Deposit | G116: PAYPAL TRANSFER 42Q225NNKF66E | J116: 2090.25 | K116: 33990.18
B117: 2012-03-05 | F117: Direct Deposit | G117: PAYPAL TRANSFER 42Q225NRPTFX8 | J117: 1001.28 | K117: 31899.93
B118: 2012-03-05 | F118: Direct Deposit | G118: PAYPAL TRANSFER 42Q225NK8F76S | J118: 886.14 | K118: 30898.65
A119: 1-866-4UMPQUA(1-866-486-7782) www.umpquabank.com Privacy Policy Member FDIC Equal Housing Lender SBA Preferred Lender

Sheet OldSchoolData
A1: Date | B1: Facebook Spend | C1: Amazon Ads Spend | D1: adWords Search Spend | E1: Adwords Display Spend | F1: Adcenter Spend | G1: Total Ad Spend | H1: Facebook Conv. | I1: Amazon Ads Conv. | J1: Lava Conv. | K1: adWords Search Conv. | L1: adwords display Conv. | M1: adwords display view-through conv. | N1: Adcenter Conv. | O1: Adwords Content Spend | P1: Adwords Content Conv. | Q1: Adwords Content View Through | R1: Adwords Retargeting Spend | S1: Adwords Retargeting Conv. | T1: Amazon iPods Sold | U1: Amazon Pyle Sold | V1: Amazon Aquavibe Sold | W1: Amazon Discovery Sold | X1: Magento iPods Sold | Y1: Magento Pyle Sold | Z1: Magento Aquavibe Sold | AA1: Magento Discovery Sold | AB1: Total iPods sold | AC1: Amazon Revenue | AD1: Magento Revenue | AE1: Total Revenue | AF1: Estimated Profit | AG1: Paypal Amount Sent | AH1: Amazon Amount Sent | AI1: myAccountAccess Amount Sent | AJ1: Umpqua Balance | AK1: myAccountAccess Balance | AL1: Amazon Balance | AM1: Total Balance | AN1: Actual Balance | AO1: iPod inventory | AP1: Pyle | AQ1: Aquavibe | AR1: Discovery | AS1: Amazon iPod | AT1: Amazon Pyle | AU1: Amazon Aquavibe | AV1: Amazon Discovery | AW1: =IFERROR(VLOOKUP($A266,'1861740736.csv'!$A$11:$J$251,10,FALSE),0) | AX1: iPods Umpqua | AY1: iPods End of Year | AZ1: headphones End of Year | BA1: headphones myaccountaccess | BB1: iPods myaccountaccess | BC1: Yield Loss | BD1: Aquavibe purchased | BE1: Discovery Purchased | BF1: Missing iPods | BG1: Paypal Balance | BH1: Paypal Amount Sent before | BI1: Paypal Calculated stuff | BJ1: Amazon Amount | BK1: Amazon Calculated Stuff | BL1: MyAccountAccess | BN1: SwimBuds Inventory | BO1: Savings Balance | BP1: Estimated Profit (new way) | BQ1: =OFFSET(A1,0,'Cool Graph'!$H$1) -> Facebook Spend | BR1: =OFFSET(A1,0,'Cool Graph'!$I$1) -> Estimated Profit (new way)
A2: 2011-07-01 | B2: 0 | C2: 0 | D2: 0 | E2: 0 | F2: 0 | G2: 0 | H2: 0 | I2: 0 | J2: 0 | K2: 0 | L2: 0 | M2: 0 | N2: 0 | O2: 0 | P2: 0 | Q2: 0 | R2: 0 | S2: 0 | T2: 0 | U2: 0 | V2: 0 | W2: 0 | X2: 0 | Y2: 0 | Z2: 0 | AA2: 0 | AB2: =SUM(X2,T2) -> 0 | AC2: 0 | AD2: =IFERROR(VLOOKUP($A2,[1]Sheet1!$A$4:$B$219,2,FALSE),0) -> 0 | AE2: =SUM(AC2,AD2) -> 0 | AF2: =0 -> 0 | AG2: 0 | AH2: 0 | AI2: 0 | AJ2: =IFERROR(VLOOKUP($A2,'[2]export-1'!$A$2:$F$441,6,FALSE),0) -> 0 | AK2: 0 | AL2: =IFERROR(VLOOKUP($A2,'[3]TexttoColumn Amazon Balance'!$A$14:$B$30,2,FALSE),IF(AL3>0,AL3-50,0)) -> 0 | AM2: =AL2+AK2+AJ2-AI2+AH2+AG2+BG2 -> 0 | AN2: =AM2+(AO2*49)+(AP2*9.5)+(AQ2*5.25)+(AR2*7)+(AS2*49)+(AT2*9.5)+(AU2*5.25)+BO2 -> 490 | AO2: 10 | AP2: 0 | AQ2: =BD2-V2-Z2 -> 0 | AR2: =BE2-W2-AA2 -> 0 | AW2: 38260.25 | AX2: =IFERROR(VLOOKUP($A2,'[2]export-1'!$A$446:$G$451,7,FALSE),0) -> 0 | AY2: =IFERROR(VLOOKUP($A2,[3]Sheet4!$A$4:$B$56,2,FALSE),0) -> 0 | AZ2: =IFERROR(VLOOKUP($A2,'[3]headphones purchased'!$A$2:$G$27,6,FALSE),0) -> 0 | BA2: =ROUND(IFERROR(VLOOKUP($A2,'[4]download-1'!$A$471:$F$474,5,FALSE)/-9.5,0),0) -> 0 | BB2: =ROUND(IFERROR(VLOOKUP($A2,'[4]download-1'!$A$467:$F$469,5,FALSE)/-49,0),0) -> 0 | BC2: =IFERROR(VLOOKUP($A2,[5]Sheet8!$A$4:$B$89,2,FALSE),0) -> 0 | BF2: 0 | BG2: =IFERROR(VLOOKUP($A2,[3]Paypal!$A$2:$AA$1843,25,FALSE),0)-BH2 -> 0 | BH2: =IFERROR(VLOOKUP($A2,'[3]Paypal Money Sent Pivot'!$A$4:$B$97,2,FALSE),0) -> 0 | BI2: 0 | BJ2: =IFERROR(VLOOKUP($A1,'[3]TexttoColumn Amazon Balance'!$A$14:$B$30,2,FALSE),0) -> 0 | BK2: 0 | BL2: =IFERROR(VLOOKUP($A2,'[4]Payment Pivot'!$A$4:$B$29,2,FALSE),0) -> 0 | BM2: 0 | BO2: =IFERROR(VLOOKUP($A2,'[6]export-2'!$A$2:$F$15,6,FALSE),0) -> 0 | BP2: =($AG$286*AE2)-G2 -> 0 | BQ2: =OFFSET(A2,0,'Cool Graph'!$H$1) -> 0 | BR2: =OFFSET(A2,0,'Cool Graph'!$I$1) -> 0
A3: 2011-07-02 | B3: 0 | C3: 0 | D3: 0 | E3: 0 | F3: 0 | G3: 0 | H3: 0 | I3: 0 | J3: 0 | K3: 0 | L3: 0 | M3: 0 | N3: 0 | O3: 0 | P3: 0 | Q3: 0 | R3: 0 | S3: 0 | T3: 0 | U3: 0 | V3: 0 | W3: 0 | X3: 0 | Y3: 0 | Z3: 0 | AA3: 0 | AB3: =SUM(X3,T3) -> 0 | AC3: 0 | AD3: =IFERROR(VLOOKUP($A3,[1]Sheet1!$A$4:$B$219,2,FALSE),0) -> 0 | AE3: =SUM(AC3,AD3) -> 0 | AF3: =AN3-AN2 -> 49 | AG3: =$BH3+$BI2-IFERROR(VLOOKUP($A3,[2]Sheet2!$A$4:$B$82,2,FALSE),0) -> 0 | AH3: =$BJ2+$BK2-IFERROR(VLOOKUP($A3,[2]Amazon!$A$2:$F$17,5,FALSE),0) -> 0 | AI3: =$BL3+$BM2-IFERROR(VLOOKUP($A3,'[2]Myaccountaccess Pivot'!$A$4:$B$31,2,FALSE),0) -> 0 | AJ3: =IFERROR(VLOOKUP($A3,'[2]export-1'!$A$2:$F$441,6,FALSE),AJ2) -> 0 | AK3: =IFERROR(VLOOKUP($A3,'[7]download-1'!$A$2:$F$513,6,FALSE),AK2) -> 0 | AL3: =IFERROR(VLOOKUP($A3,'[3]TexttoColumn Amazon Balance'!$A$14:$B$30,2,FALSE),IF(AL4>0,AL4-50,0)) -> 0 | AM3: =AL3+AK3+AJ3-AI3+AH3+AG3+BG3 -> 0 | AN3: =AM3+(AO3*49)+(AP3*9.5)+(AQ3*5.25)+(AR3*7)+(AS3*49)+(AT3*9.5)+(AU3*5.25)+BO3 -> 539 | AO3: =AX3+AY3+AO2-AB3+BB3-BC3-AS3+BF3 -> 11 | AP3: =AP2+AZ3+BA3-Y3-U3 -> 0 | AQ3: =BD3-V3-Z3+AQ2-AU3 -> 0 | AR3: =BE3-W3-AA3+AR2 -> 0 | AX3: =IFERROR(VLOOKUP($A3,'[2]export-1'!$A$446:$G$451,7,FALSE),0) -> 0 | AY3: =IFERROR(VLOOKUP($A3,[3]Sheet4!$A$4:$B$56,2,FALSE),0) -> 0 | AZ3: =IFERROR(VLOOKUP($A3,'[3]headphones purchased'!$A$2:$G$27,6,FALSE),0) -> 0 | BA3: =ROUND(IFERROR(VLOOKUP($A3,'[4]download-1'!$A$471:$F$474,5,FALSE)/-9.5,0),0) -> 0 | BB3: =ROUND(IFERROR(VLOOKUP($A3,'[4]download-1'!$A$467:$F$469,5,FALSE)/-49,0),0) -> 0 | BC3: =IFERROR(VLOOKUP($A3,[5]Sheet8!$A$4:$B$89,2,FALSE),0) -> 0 | BF3: 1 | BG3: =IFERROR(VLOOKUP($A3,[3]Paypal!$A$2:$AA$1843,25,FALSE),0)-BH3 -> 0 | BH3: =IFERROR(VLOOKUP($A3,'[3]Paypal Money Sent Pivot'!$A$4:$B$97,2,FALSE),0) -> 0 | BI3: =$BH3+$BI2-IFERROR(VLOOKUP($A3,[2]Sheet2!$A$4:$B$82,2,FALSE),0) -> 0 | BJ3: =IFERROR(VLOOKUP($A3,'[3]TexttoColumn Amazon Balance'!$A$14:$B$30,2,FALSE),0) -> 0 | BK3: =$BJ2+$BK2-IFERROR(VLOOKUP($A3,[2]Amazon!$A$2:$F$17,5,FALSE),0) -> 0 | BL3: =IFERROR(VLOOKUP($A3,'[4]Payment Pivot'!$A$4:$B$29,2,FALSE),0) -> 0 | BM3: =$BL3+$BM2-IFERROR(VLOOKUP($A3,'[2]Myaccountaccess Pivot'!$A$4:$B$31,2,FALSE),0) -> 0 | BO3: =IFERROR(VLOOKUP($A3,'[6]export-2'!$A$2:$F$15,6,FALSE),BO2) -> 0 | BP3: 0 | BQ3: =OFFSET(A3,0,'Cool Graph'!$H$1) -> 0 | BR3: =OFFSET(A3,0,'Cool Graph'!$I$1) -> 0
A4: 2011-07-03 | B4: 0 | C4: 0 | D4: 0 | E4: 0 | F4: 0 | G4: 0 | H4: 0 | I4: 0 | J4: 0 | K4: 0 | L4: 0 | M4: 0 | N4: 0 | O4: 0 | P4: 0 | Q4: 0 | R4: 0 | S4: 0 | T4: 0 | U4: 0 | V4: 0 | W4: 0 | X4: 0 | Y4: 0 | Z4: 0 | AA4: 0 | AB4: 0 | AC4: 0 | AD4: =IFERROR(VLOOKUP($A4,[1]Sheet1!$A$4:$B$219,2,FALSE),0) -> 0 | AE4: 0 | AF4: =AN4-AN3 -> 0 | AG4: =$BH4+$BI3-IFERROR(VLOOKUP($A4,[2]Sheet2!$A$4:$B$82,2,FALSE),0) -> 0 | AH4: =$BJ3+$BK3-IFERROR(VLOOKUP($A4,[2]Amazon!$A$2:$F$17,5,FALSE),0) -> 0 | AI4: =$BL4+$BM3-IFERROR(VLOOKUP($A4,'[2]Myaccountaccess Pivot'!$A$4:$B$31,2,FALSE),0) -> 0 | AJ4: =IFERROR(VLOOKUP($A4,'[2]export-1'!$A$2:$F$441,6,FALSE),AJ3) -> 0 | AK4: =IFERROR(VLOOKUP($A4,'[7]download-1'!$A$2:$F$513,6,FALSE),AK3) -> 0 | AL4: =IFERROR(VLOOKUP($A4,'[3]TexttoColumn Amazon Balance'!$A$14:$B$30,2,FALSE),IF(AL5>0,AL5-50,0)) -> 0 | AM4: 0 | AN4: 539 | AO4: =AX4+AY4+AO3-AB4+BB4-BC4-AS4+BF4 -> 11 | AP4: =AP3+AZ4+BA4-Y4-U4 -> 0 | AQ4: =BD4-V4-Z4+AQ3-AU4 -> 0 | AR4: =BE4-W4-AA4+AR3 -> 0 | AX4: =IFERROR(VLOOKUP($A4,'[2]export-1'!$A$446:$G$451,7,FALSE),0) -> 0 | AY4: =IFERROR(VLOOKUP($A4,[3]Sheet4!$A$4:$B$56,2,FALSE),0) -> 0 | AZ4: =IFERROR(VLOOKUP($A4,'[3]headphones purchased'!$A$2:$G$27,6,FALSE),0) -> 0 | BA4: =ROUND(IFERROR(VLOOKUP($A4,'[4]download-1'!$A$471:$F$474,5,FALSE)/-9.5,0),0) -> 0 | BB4: =ROUND(IFERROR(VLOOKUP($A4,'[4]download-1'!$A$467:$F$469,5,FALSE)/-49,0),0) -> 0 | BC4: =IFERROR(VLOOKUP($A4,[5]Sheet8!$A$4:$B$89,2,FALSE),0) -> 0 | BF4: 0 | BG4: =IFERROR(VLOOKUP($A4,[3]Paypal!$A$2:$AA$1843,25,FALSE),0)-BH4 -> 0 | BH4: =IFERROR(VLOOKUP($A4,'[3]Paypal Money Sent Pivot'!$A$4:$B$97,2,FALSE),0) -> 0 | BI4: =$BH4+$BI3-IFERROR(VLOOKUP($A4,[2]Sheet2!$A$4:$B$82,2,FALSE),0) -> 0 | BJ4: =IFERROR(VLOOKUP($A4,'[3]TexttoColumn Amazon Balance'!$A$14:$B$30,2,FALSE),0) -> 0 | BK4: =$BJ3+$BK3-IFERROR(VLOOKUP($A4,[2]Amazon!$A$2:$F$17,5,FALSE),0) -> 0 | BL4: =IFERROR(VLOOKUP($A4,'[4]Payment Pivot'!$A$4:$B$29,2,FALSE),0) -> 0 | BM4: =$BL4+$BM3-IFERROR(VLOOKUP($A4,'[2]Myaccountaccess Pivot'!$A$4:$B$31,2,FALSE),0) -> 0 | BO4: =IFERROR(VLOOKUP($A4,'[6]export-2'!$A$2:$F$15,6,FALSE),BO3) -> 0 | BP4: 0 | BQ4: =OFFSET(A4,0,'Cool Graph'!$H$1) -> 0 | BR4: =OFFSET(A4,0,'Cool Graph'!$I$1) -> 0
A5: 2011-07-04 | B5: 0 | C5: 0 | D5: 0 | E5: 0 | F5: 0 | G5: 0 | H5: 0 | I5: 0 | J5: 0 | K5: 0 | L5: 0 | M5: 0 | N5: 0 | O5: 0 | P5: 0 | Q5: 0 | R5: 0 | S5: 0 | T5: 0 | U5: 0 | V5: 0 | W5: 0 | X5: 0 | Y5: 0 | Z5: 0 | AA5: 0 | AB5: 0 | AC5: 0 | AD5: =IFERROR(VLOOKUP($A5,[1]Sheet1!$A$4:$B$219,2,FALSE),0) -> 0 | AE5: 0 | AF5: 49 | AG5: =$BH5+$BI4-IFERROR(VLOOKUP($A5,[2]Sheet2!$A$4:$B$82,2,FALSE),0) -> 0 | AH5: =$BJ4+$BK4-IFERROR(VLOOKUP($A5,[2]Amazon!$A$2:$F$17,5,FALSE),0) -> 0 | AI5: =$BL5+$BM4-IFERROR(VLOOKUP($A5,'[2]Myaccountaccess Pivot'!$A$4:$B$31,2,FALSE),0) -> 0 | AJ5: =IFERROR(VLOOKUP($A5,'[2]export-1'!$A$2:$F$441,6,FALSE),AJ4) -> 0 | AK5: =IFERROR(VLOOKUP($A5,'[7]download-1'!$A$2:$F$513,6,FALSE),AK4) -> 0 | AL5: =IFERROR(VLOOKUP($A5,'[3]TexttoColumn Amazon Balance'!$A$14:$B$30,2,FALSE),IF(AL6>0,AL6-50,0)) -> 0 | AM5: 0 | AN5: 588 | AO5: 12 | AP5: =AP4+AZ5+BA5-Y5-U5-AT5 -> 0 | AQ5: 0 | AR5: 0 | AX5: =IFERROR(VLOOKUP($A5,'[2]export-1'!$A$446:$G$451,7,FALSE),0) -> 0 | AY5: =IFERROR(VLOOKUP($A5,[3]Sheet4!$A$4:$B$56,2,FALSE),0) -> 0 | AZ5: =IFERROR(VLOOKUP($A5,'[3]headphones purchased'!$A$2:$G$27,6,FALSE),0) -> 0 | BA5: =ROUND(IFERROR(VLOOKUP($A5,'[4]download-1'!$A$471:$F$474,5,FALSE)/-9.5,0),0) -> 0 | BB5: =ROUND(IFERROR(VLOOKUP($A5,'[4]download-1'!$A$467:$F$469,5,FALSE)/-49,0),0) -> 0 | BC5: =IFERROR(VLOOKUP($A5,[5]Sheet8!$A$4:$B$89,2,FALSE),0) -> 0 | BF5: 1 | BG5: =IFERROR(VLOOKUP($A5,[3]Paypal!$A$2:$AA$1843,25,FALSE),0)-BH5 -> 0 | BH5: =IFERROR(VLOOKUP($A5,'[3]Paypal Money Sent Pivot'!$A$4:$B$97,2,FALSE),0) -> 0 | BI5: =$BH5+$BI4-IFERROR(VLOOKUP($A5,[2]Sheet2!$A$4:$B$82,2,FALSE),0) -> 0 | BJ5: =IFERROR(VLOOKUP($A5,'[3]TexttoColumn Amazon Balance'!$A$14:$B$30,2,FALSE),0) -> 0 | BK5: =$BJ4+$BK4-IFERROR(VLOOKUP($A5,[2]Amazon!$A$2:$F$17,5,FALSE),0) -> 0 | BL5: =IFERROR(VLOOKUP($A5,'[4]Payment Pivot'!$A$4:$B$29,2,FALSE),0) -> 0 | BM5: =$BL5+$BM4-IFERROR(VLOOKUP($A5,'[2]Myaccountaccess Pivot'!$A$4:$B$31,2,FALSE),0) -> 0 | BO5: =IFERROR(VLOOKUP($A5,'[6]export-2'!$A$2:$F$15,6,FALSE),BO4) -> 0 | BP5: 0 | BQ5: =OFFSET(A5,0,'Cool Graph'!$H$1) -> 0 | BR5: =OFFSET(A5,0,'Cool Graph'!$I$1) -> 0
A6: 2011-07-05 | B6: 0 | C6: 0 | D6: 0 | E6: 0 | F6: 0 | G6: 0 | H6: 0 | I6: 0 | J6: 0 | K6: 0 | L6: 0 | M6: 0 | N6: 0 | O6: 0 | P6: 0 | Q6: 0 | R6: 0 | S6: 0 | T6: 0 | U6: 0 | V6: 0 | W6: 0 | X6: 0 | Y6: 0 | Z6: 0 | AA6: 0 | AB6: 0 | AC6: 0 | AD6: =IFERROR(VLOOKUP($A6,[1]Sheet1!$A$4:$B$219,2,FALSE),0) -> 0 | AE6: 0 | AF6: 123.5 | AG6: =$BH6+$BI5-IFERROR(VLOOKUP($A6,[2]Sheet2!$A$4:$B$82,2,FALSE),0) -> 0 | AH6: =$BJ5+$BK5-IFERROR(VLOOKUP($A6,[2]Amazon!$A$2:$F$17,5,FALSE),0) -> 0 | AI6: =$BL6+$BM5-IFERROR(VLOOKUP($A6,'[2]Myaccountaccess Pivot'!$A$4:$B$31,2,FALSE),0) -> 0 | AJ6: =IFERROR(VLOOKUP($A6,'[2]export-1'!$A$2:$F$441,6,FALSE),AJ5) -> 0 | AK6: =IFERROR(VLOOKUP($A6,'[7]download-1'!$A$2:$F$513,6,FALSE),AK5) -> 0 | AL6: =IFERROR(VLOOKUP($A6,'[3]TexttoColumn Amazon Balance'!$A$14:$B$30,2,FALSE),IF(AL7>0,AL7-50,0)) -> 0 | AM6: 0 | AN6: 711.5 | AO6: 12 | AP6: =AP5+AZ6+BA6-Y6-U6-AT6 -> 13 | AQ6: 0 | AR6: 0 | AX6: =IFERROR(VLOOKUP($A6,'[2]export-1'!$A$446:$G$451,7,FALSE),0) -> 0 | AY6: =IFERROR(VLOOKUP($A6,[3]Sheet4!$A$4:$B$56,2,FALSE),0) -> 0 | AZ6: =IFERROR(VLOOKUP($A6,'[3]headphones purchased'!$A$2:$G$27,6,FALSE),0) -> 13 | BA6: =ROUND(IFERROR(VLOOKUP($A6,'[4]download-1'!$A$471:$F$474,5,FALSE)/-9.5,0),0) -> 0 | BB6: =ROUND(IFERROR(VLOOKUP($A6,'[4]download-1'!$A$467:$F$469,5,FALSE)/-49,0),0) -> 0 | BC6: =IFERROR(VLOOKUP($A6,[5]Sheet8!$A$4:$B$89,2,FALSE),0) -> 0 | BF6: 0 | BG6: =IFERROR(VLOOKUP($A6,[3]Paypal!$A$2:$AA$1843,25,FALSE),0)-BH6 -> 0 | BH6: =IFERROR(VLOOKUP($A6,'[3]Paypal Money Sent Pivot'!$A$4:$B$97,2,FALSE),0) -> 0 | BI6: =$BH6+$BI5-IFERROR(VLOOKUP($A6,[2]Sheet2!$A$4:$B$82,2,FALSE),0) -> 0 | BJ6: =IFERROR(VLOOKUP($A6,'[3]TexttoColumn Amazon Balance'!$A$14:$B$30,2,FALSE),0) -> 0 | BK6: =$BJ5+$BK5-IFERROR(VLOOKUP($A6,[2]Amazon!$A$2:$F$17,5,FALSE),0) -> 0 | BL6: =IFERROR(VLOOKUP($A6,'[4]Payment Pivot'!$A$4:$B$29,2,FALSE),0) -> 0 | BM6: =$BL6+$BM5-IFERROR(VLOOKUP($A6,'[2]Myaccountaccess Pivot'!$A$4:$B$31,2,FALSE),0) -> 0 | BO6: =IFERROR(VLOOKUP($A6,'[6]export-2'!$A$2:$F$15,6,FALSE),BO5) -> 0 | BP6: 0 | BQ6: =OFFSET(A6,0,'Cool Graph'!$H$1) -> 0 | BR6: =OFFSET(A6,0,'Cool Graph'!$I$1) -> 0
A7: 2011-07-06 | B7: 0 | C7: 0 | D7: 0 | E7: 0 | F7: 0 | G7: 0 | H7: 0 | I7: 0 | J7: 0 | K7: 0 | L7: 0 | M7: 0 | N7: 0 | O7: 0 | P7: 0 | Q7: 0 | R7: 0 | S7: 0 | T7: 0 | U7: 0 | V7: 0 | W7: 0 | X7: 0 | Y7: 0 | Z7: 0 | AA7: 0 | AB7: 0 | AC7: 0 | AD7: =IFERROR(VLOOKUP($A7,[1]Sheet1!$A$4:$B$219,2,FALSE),0) -> 0 | AE7: 0 | AF7: 2549 | AG7: =$BH7+$BI6-IFERROR(VLOOKUP($A7,[2]Sheet2!$A$4:$B$82,2,FALSE),0) -> 0 | AH7: =$BJ6+$BK6-IFERROR(VLOOKUP($A7,[2]Amazon!$A$2:$F$17,5,FALSE),0) -> 0 | AI7: =$BL7+$BM6-IFERROR(VLOOKUP($A7,'[2]Myaccountaccess Pivot'!$A$4:$B$31,2,FALSE),0) -> 0 | AJ7: =IFERROR(VLOOKUP($A7,'[2]export-1'!$A$2:$F$441,6,FALSE),AJ6) -> 2500 | AK7: =IFERROR(VLOOKUP($A7,'[7]download-1'!$A$2:$F$513,6,FALSE),AK6) -> 0 | AL7: =IFERROR(VLOOKUP($A7,'[3]TexttoColumn Amazon Balance'!$A$14:$B$30,2,FALSE),IF(AL8>0,AL8-50,0)) -> 0 | AM7: 2500 | AN7: 3260.5 | AO7: 13 | AP7: 13 | AQ7: 0 | AR7: 0 | AX7: =IFERROR(VLOOKUP($A7,'[2]export-1'!$A$446:$G$451,7,FALSE),0) -> 0 | AY7: =IFERROR(VLOOKUP($A7,[3]Sheet4!$A$4:$B$56,2,FALSE),0) -> 0 | AZ7: =IFERROR(VLOOKUP($A7,'[3]headphones purchased'!$A$2:$G$27,6,FALSE),0) -> 0 | BA7: =ROUND(IFERROR(VLOOKUP($A7,'[4]download-1'!$A$471:$F$474,5,FALSE)/-9.5,0),0) -> 0 | BB7: =ROUND(IFERROR(VLOOKUP($A7,'[4]download-1'!$A$467:$F$469,5,FALSE)/-49,0),0) -> 0 | BC7: =IFERROR(VLOOKUP($A7,[5]Sheet8!$A$4:$B$89,2,FALSE),0) -> 0 | BF7: 1 | BG7: =IFERROR(VLOOKUP($A7,[3]Paypal!$A$2:$AA$1843,25,FALSE),0)-BH7 -> 0 | BH7: =IFERROR(VLOOKUP($A7,'[3]Paypal Money Sent Pivot'!$A$4:$B$97,2,FALSE),0) -> 0 | BI7: =$BH7+$BI6-IFERROR(VLOOKUP($A7,[2]Sheet2!$A$4:$B$82,2,FALSE),0) -> 0 | BJ7: =IFERROR(VLOOKUP($A7,'[3]TexttoColumn Amazon Balance'!$A$14:$B$30,2,FALSE),0) -> 0 | BK7: =$BJ6+$BK6-IFERROR(VLOOKUP($A7,[2]Amazon!$A$2:$F$17,5,FALSE),0) -> 0 | BL7: =IFERROR(VLOOKUP($A7,'[4]Payment Pivot'!$A$4:$B$29,2,FALSE),0) -> 0 | BM7: =$BL7+$BM6-IFERROR(VLOOKUP($A7,'[2]Myaccountaccess Pivot'!$A$4:$B$31,2,FALSE),0) -> 0 | BO7: =IFERROR(VLOOKUP($A7,'[6]export-2'!$A$2:$F$15,6,FALSE),BO6) -> 0 | BP7: 0 | BQ7: =OFFSET(A7,0,'Cool Graph'!$H$1) -> 0 | BR7: =OFFSET(A7,0,'Cool Graph'!$I$1) -> 0
A8: 2011-07-07 | B8: 0 | C8: 0 | D8: 0 | E8: 0 | F8: 0 | G8: 0 | H8: 0 | I8: 0 | J8: 0 | K8: 0 | L8: 0 | M8: 0 | N8: 0 | O8: 0 | P8: 0 | Q8: 0 | R8: 0 | S8: 0 | T8: 0 | U8: 0 | V8: 0 | W8: 0 | X8: 0 | Y8: 0 | Z8: 0 | AA8: 0 | AB8: 0 | AC8: 0 | AD8: =IFERROR(VLOOKUP($A8,[1]Sheet1!$A$4:$B$219,2,FALSE),0) -> 0 | AE8: 0 | AF8: 0 | AG8: =$BH8+$BI7-IFERROR(VLOOKUP($A8,[2]Sheet2!$A$4:$B$82,2,FALSE),0) -> 0 | AH8: =$BJ7+$BK7-IFERROR(VLOOKUP($A8,[2]Amazon!$A$2:$F$17,5,FALSE),0) -> 0 | AI8: =$BL8+$BM7-IFERROR(VLOOKUP($A8,'[2]Myaccountaccess Pivot'!$A$4:$B$31,2,FALSE),0) -> 0 | AJ8: =IFERROR(VLOOKUP($A8,'[2]export-1'!$A$2:$F$441,6,FALSE),AJ7) -> 2500 | AK8: =IFERROR(VLOOKUP($A8,'[7]download-1'!$A$2:$F$513,6,FALSE),AK7) -> 0 | AL8: =IFERROR(VLOOKUP($A8,'[3]TexttoColumn Amazon Balance'!$A$14:$B$30,2,FALSE),IF(AL9>0,AL9-50,0)) -> 0 | AM8: 2500 | AN8: 3260.5 | AO8: 13 | AP8: 13 | AQ8: 0 | AR8: 0 | AX8: =IFERROR(VLOOKUP($A8,'[2]export-1'!$A$446:$G$451,7,FALSE),0) -> 0 | AY8: =IFERROR(VLOOKUP($A8,[3]Sheet4!$A$4:$B$56,2,FALSE),0) -> 0 | AZ8: =IFERROR(VLOOKUP($A8,'[3]headphones purchased'!$A$2:$G$27,6,FALSE),0) -> 0 | BA8: =ROUND(IFERROR(VLOOKUP($A8,'[4]download-1'!$A$471:$F$474,5,FALSE)/-9.5,0),0) -> 0 | BB8: =ROUND(IFERROR(VLOOKUP($A8,'[4]download-1'!$A$467:$F$469,5,FALSE)/-49,0),0) -> 0 | BC8: =IFERROR(VLOOKUP($A8,[5]Sheet8!$A$4:$B$89,2,FALSE),0) -> 0 | BF8: 0 | BG8: =IFERROR(VLOOKUP($A8,[3]Paypal!$A$2:$AA$1843,25,FALSE),0)-BH8 -> 0 | BH8: =IFERROR(VLOOKUP($A8,'[3]Paypal Money Sent Pivot'!$A$4:$B$97,2,FALSE),0) -> 0 | BI8: =$BH8+$BI7-IFERROR(VLOOKUP($A8,[2]Sheet2!$A$4:$B$82,2,FALSE),0) -> 0 | BJ8: =IFERROR(VLOOKUP($A8,'[3]TexttoColumn Amazon Balance'!$A$14:$B$30,2,FALSE),0) -> 0 | BK8: =$BJ7+$BK7-IFERROR(VLOOKUP($A8,[2]Amazon!$A$2:$F$17,5,FALSE),0) -> 0 | BL8: =IFERROR(VLOOKUP($A8,'[4]Payment Pivot'!$A$4:$B$29,2,FALSE),0) -> 0 | BM8: =$BL8+$BM7-IFERROR(VLOOKUP($A8,'[2]Myaccountaccess Pivot'!$A$4:$B$31,2,FALSE),0) -> 0 | BO8: =IFERROR(VLOOKUP($A8,'[6]export-2'!$A$2:$F$15,6,FALSE),BO7) -> 0 | BP8: 0 | BQ8: =OFFSET(A8,0,'Cool Graph'!$H$1) -> 0 | BR8: =OFFSET(A8,0,'Cool Graph'!$I$1) -> 0
A9: 2011-07-08 | B9: 0 | C9: 0 | D9: 0 | E9: 0 | F9: 0 | G9: 0 | H9: 0 | I9: 0 | J9: 0 | K9: 0 | L9: 0 | M9: 0 | N9: 0 | O9: 0 | P9: 0 | Q9: 0 | R9: 0 | S9: 0 | T9: 0 | U9: 0 | V9: 0 | W9: 0 | X9: 0 | Y9: 0 | Z9: 0 | AA9: 0 | AB9: 0 | AC9: 0 | AD9: =IFERROR(VLOOKUP($A9,[1]Sheet1!$A$4:$B$219,2,FALSE),0) -> 0 | AE9: 0 | AF9: 0 | AG9: =$BH9+$BI8-IFERROR(VLOOKUP($A9,[2]Sheet2!$A$4:$B$82,2,FALSE),0) -> 0 | AH9: =$BJ8+$BK8-IFERROR(VLOOKUP($A9,[2]Amazon!$A$2:$F$17,5,FALSE),0) -> 0 | AI9: =$BL9+$BM8-IFERROR(VLOOKUP($A9,'[2]Myaccountaccess Pivot'!$A$4:$B$31,2,FALSE),0) -> 0 | AJ9: =IFERROR(VLOOKUP($A9,'[2]export-1'!$A$2:$F$441,6,FALSE),AJ8) -> 2500 | AK9: =IFERROR(VLOOKUP($A9,'[7]download-1'!$A$2:$F$513,6,FALSE),AK8) -> 0 | AL9: =IFERROR(VLOOKUP($A9,'[3]TexttoColumn Amazon Balance'!$A$14:$B$30,2,FALSE),IF(AL10>0,AL10-50,0)) -> 0 | AM9: 2500 | AN9: 3260.5 | AO9: 13 | AP9: 13 | AQ9: 0 | AR9: 0 | AX9: =IFERROR(VLOOKUP($A9,'[2]export-1'!$A$446:$G$451,7,FALSE),0) -> 0 | AY9: =IFERROR(VLOOKUP($A9,[3]Sheet4!$A$4:$B$56,2,FALSE),0) -> 0 | AZ9: =IFERROR(VLOOKUP($A9,'[3]headphones purchased'!$A$2:$G$27,6,FALSE),0) -> 0 | BA9: =ROUND(IFERROR(VLOOKUP($A9,'[4]download-1'!$A$471:$F$474,5,FALSE)/-9.5,0),0) -> 0 | BB9: =ROUND(IFERROR(VLOOKUP($A9,'[4]download-1'!$A$467:$F$469,5,FALSE)/-49,0),0) -> 0 | BC9: =IFERROR(VLOOKUP($A9,[5]Sheet8!$A$4:$B$89,2,FALSE),0) -> 1 | BF9: 1 | BG9: =IFERROR(VLOOKUP($A9,[3]Paypal!$A$2:$AA$1843,25,FALSE),0)-BH9 -> 0 | BH9: =IFERROR(VLOOKUP($A9,'[3]Paypal Money Sent Pivot'!$A$4:$B$97,2,FALSE),0) -> 0 | BI9: =$BH9+$BI8-IFERROR(VLOOKUP($A9,[2]Sheet2!$A$4:$B$82,2,FALSE),0) -> 0 | BJ9: =IFERROR(VLOOKUP($A9,'[3]TexttoColumn Amazon Balance'!$A$14:$B$30,2,FALSE),0) -> 0 | BK9: =$BJ8+$BK8-IFERROR(VLOOKUP($A9,[2]Amazon!$A$2:$F$17,5,FALSE),0) -> 0 | BL9: =IFERROR(VLOOKUP($A9,'[4]Payment Pivot'!$A$4:$B$29,2,FALSE),0) -> 0 | BM9: =$BL9+$BM8-IFERROR(VLOOKUP($A9,'[2]Myaccountaccess Pivot'!$A$4:$B$31,2,FALSE),0) -> 0 | BO9: =IFERROR(VLOOKUP($A9,'[6]export-2'!$A$2:$F$15,6,FALSE),BO8) -> 0 | BP9: 0 | BQ9: =OFFSET(A9,0,'Cool Graph'!$H$1) -> 0 | BR9: =OFFSET(A9,0,'Cool Graph'!$I$1) -> 0
A10: 2011-07-09 | B10: 0 | C10: 0 | D10: 0 | E10: 0 | F10: 0 | G10: 0 | H10: 0 | I10: 0 | J10: 0 | K10: 0 | L10: 0 | M10: 0 | N10: 0 | O10: 0 | P10: 0 | Q10: 0 | R10: 0 | S10: 0 | T10: 0 | U10: 0 | V10: 0 | W10: 0 | X10: 0 | Y10: 0 | Z10: 0 | AA10: 0 | AB10: 0 | AC10: 0 | AD10: =IFERROR(VLOOKUP($A10,[1]Sheet1!$A$4:$B$219,2,FALSE),0) -> 0 | AE10: 0 | AF10: 0 | AG10: =$BH10+$BI9-IFERROR(VLOOKUP($A10,[2]Sheet2!$A$4:$B$82,2,FALSE),0) -> 0 | AH10: =$BJ9+$BK9-IFERROR(VLOOKUP($A10,[2]Amazon!$A$2:$F$17,5,FALSE),0) -> 0 | AI10: =$BL10+$BM9-IFERROR(VLOOKUP($A10,'[2]Myaccountaccess Pivot'!$A$4:$B$31,2,FALSE),0) -> 0 | AJ10: =IFERROR(VLOOKUP($A10,'[2]export-1'!$A$2:$F$441,6,FALSE),AJ9) -> 2500 | AK10: =IFERROR(VLOOKUP($A10,'[7]download-1'!$A$2:$F$513,6,FALSE),AK9) -> 0 | AL10: =IFERROR(VLOOKUP($A10,'[3]TexttoColumn Amazon Balance'!$A$14:$B$30,2,FALSE),IF(AL11>0,AL11-50,0)) -> 0 | AM10: 2500 | AN10: 3260.5 | AO10: 13 | AP10: 13 | AQ10: 0 | AR10: 0 | AX10: =IFERROR(VLOOKUP($A10,'[2]export-1'!$A$446:$G$451,7,FALSE),0) -> 0 | AY10: =IFERROR(VLOOKUP($A10,[3]Sheet4!$A$4:$B$56,2,FALSE),0) -> 0 | AZ10: =IFERROR(VLOOKUP($A10,'[3]headphones purchased'!$A$2:$G$27,6,FALSE),0) -> 0 | BA10: =ROUND(IFERROR(VLOOKUP($A10,'[4]download-1'!$A$471:$F$474,5,FALSE)/-9.5,0),0) -> 0 | BB10: =ROUND(IFERROR(VLOOKUP($A10,'[4]download-1'!$A$467:$F$469,5,FALSE)/-49,0),0) -> 0 | BC10: =IFERROR(VLOOKUP($A10,[5]Sheet8!$A$4:$B$89,2,FALSE),0) -> 0 | BF10: 0 | BG10: =IFERROR(VLOOKUP($A10,[3]Paypal!$A$2:$AA$1843,25,FALSE),0)-BH10 -> 0 | BH10: =IFERROR(VLOOKUP($A10,'[3]Paypal Money Sent Pivot'!$A$4:$B$97,2,FALSE),0) -> 0 | BI10: =$BH10+$BI9-IFERROR(VLOOKUP($A10,[2]Sheet2!$A$4:$B$82,2,FALSE),0) -> 0 | BJ10: =IFERROR(VLOOKUP($A10,'[3]TexttoColumn Amazon Balance'!$A$14:$B$30,2,FALSE),0) -> 0 | BK10: =$BJ9+$BK9-IFERROR(VLOOKUP($A10,[2]Amazon!$A$2:$F$17,5,FALSE),0) -> 0 | BL10: =IFERROR(VLOOKUP($A10,'[4]Payment Pivot'!$A$4:$B$29,2,FALSE),0) -> 0 | BM10: =$BL10+$BM9-IFERROR(VLOOKUP($A10,'[2]Myaccountaccess Pivot'!$A$4:$B$31,2,FALSE),0) -> 0 | BO10: =IFERROR(VLOOKUP($A10,'[6]export-2'!$A$2:$F$15,6,FALSE),BO9) -> 0 | BP10: 0 | BQ10: =OFFSET(A10,0,'Cool Graph'!$H$1) -> 0 | BR10: =OFFSET(A10,0,'Cool Graph'!$I$1) -> 0
A11: 2011-07-10 | B11: 0 | C11: 0 | D11: 0 | E11: 0 | F11: 0 | G11: 0 | H11: 0 | I11: 0 | J11: 0 | K11: 0 | L11: 0 | M11: 0 | N11: 0 | O11: 0 | P11: 0 | Q11: 0 | R11: 0 | S11: 0 | T11: 0 | U11: 0 | V11: 0 | W11: 0 | X11: 0 | Y11: 0 | Z11: 0 | AA11: 0 | AB11: 0 | AC11: 0 | AD11: =IFERROR(VLOOKUP($A11,[1]Sheet1!$A$4:$B$219,2,FALSE),0) -> 0 | AE11: 0 | AF11: 49 | AG11: =$BH11+$BI10-IFERROR(VLOOKUP($A11,[2]Sheet2!$A$4:$B$82,2,FALSE),0) -> 0 | AH11: =$BJ10+$BK10-IFERROR(VLOOKUP($A11,[2]Amazon!$A$2:$F$17,5,FALSE),0) -> 0 | AI11: =$BL11+$BM10-IFERROR(VLOOKUP($A11,'[2]Myaccountaccess Pivot'!$A$4:$B$31,2,FALSE),0) -> 0 | AJ11: =IFERROR(VLOOKUP($A11,'[2]export-1'!$A$2:$F$441,6,FALSE),AJ10) -> 2500 | AK11: =IFERROR(VLOOKUP($A11,'[7]download-1'!$A$2:$F$513,6,FALSE),AK10) -> 0 | AL11: =IFERROR(VLOOKUP($A11,'[3]TexttoColumn Amazon Balance'!$A$14:$B$30,2,FALSE),IF(AL12>0,AL12-50,0)) -> 0 | AM11: 2500 | AN11: 3309.5 | AO11: 14 | AP11: 13 | AQ11: 0 | AR11: 0 | AX11: =IFERROR(VLOOKUP($A11,'[2]export-1'!$A$446:$G$451,7,FALSE),0) -> 0 | AY11: =IFERROR(VLOOKUP($A11,[3]Sheet4!$A$4:$B$56,2,FALSE),0) -> 0 | AZ11: =IFERROR(VLOOKUP($A11,'[3]headphones purchased'!$A$2:$G$27,6,FALSE),0) -> 0 | BA11: =ROUND(IFERROR(VLOOKUP($A11,'[4]download-1'!$A$471:$F$474,5,FALSE)/-9.5,0),0) -> 0 | BB11: =ROUND(IFERROR(VLOOKUP($A11,'[4]download-1'!$A$467:$F$469,5,FALSE)/-49,0),0) -> 0 | BC11: =IFERROR(VLOOKUP($A11,[5]Sheet8!$A$4:$B$89,2,FALSE),0) -> 0 | BF11: 1 | BG11: =IFERROR(VLOOKUP($A11,[3]Paypal!$A$2:$AA$1843,25,FALSE),0)-BH11 -> 0 | BH11: =IFERROR(VLOOKUP($A11,'[3]Paypal Money Sent Pivot'!$A$4:$B$97,2,FALSE),0) -> 0 | BI11: =$BH11+$BI10-IFERROR(VLOOKUP($A11,[2]Sheet2!$A$4:$B$82,2,FALSE),0) -> 0 | BJ11: =IFERROR(VLOOKUP($A11,'[3]TexttoColumn Amazon Balance'!$A$14:$B$30,2,FALSE),0) -> 0 | BK11: =$BJ10+$BK10-IFERROR(VLOOKUP($A11,[2]Amazon!$A$2:$F$17,5,FALSE),0) -> 0 | BL11: =IFERROR(VLOOKUP($A11,'[4]Payment Pivot'!$A$4:$B$29,2,FALSE),0) -> 0 | BM11: =$BL11+$BM10-IFERROR(VLOOKUP($A11,'[2]Myaccountaccess Pivot'!$A$4:$B$31,2,FALSE),0) -> 0 | BO11: =IFERROR(VLOOKUP($A11,'[6]export-2'!$A$2:$F$15,6,FALSE),BO10) -> 0 | BP11: 0 | BQ11: =OFFSET(A11,0,'Cool Graph'!$H$1) -> 0 | BR11: =OFFSET(A11,0,'Cool Graph'!$I$1) -> 0
A12: 2011-07-11 | B12: 0 | C12: 0 | D12: 0 | E12: 0 | F12: 0 | G12: 0 | H12: 0 | I12: 0 | J12: 0 | K12: 0 | L12: 0 | M12: 0 | N12: 0 | O12: 0 | P12: 0 | Q12: 0 | R12: 0 | S12: 0 | T12: 0 | U12: 0 | V12: 0 | W12: 0 | X12: 0 | Y12: 0 | Z12: 0 | AA12: 0 | AB12: 0 | AC12: 0 | AD12: =IFERROR(VLOOKUP($A12,[1]Sheet1!$A$4:$B$219,2,FALSE),0) -> 0 | AE12: 0 | AF12: 0 | AG12: =$BH12+$BI11-IFERROR(VLOOKUP($A12,[2]Sheet2!$A$4:$B$82,2,FALSE),0) -> 0 | AH12: =$BJ11+$BK11-IFERROR(VLOOKUP($A12,[2]Amazon!$A$2:$F$17,5,FALSE),0) -> 0 | AI12: =$BL12+$BM11-IFERROR(VLOOKUP($A12,'[2]Myaccountaccess Pivot'!$A$4:$B$31,2,FALSE),0) -> 0 | AJ12: =IFERROR(VLOOKUP($A12,'[2]export-1'!$A$2:$F$441,6,FALSE),AJ11) -> 2500 | AK12: =IFERROR(VLOOKUP($A12,'[7]download-1'!$A$2:$F$513,6,FALSE),AK11) -> 0 | AL12: =IFERROR(VLOOKUP($A12,'[3]TexttoColumn Amazon Balance'!$A$14:$B$30,2,FALSE),IF(AL13>0,AL13-50,0)) -> 0 | AM12: 2500 | AN12: 3309.5 | AO12: 14 | AP12: 13 | AQ12: 0 | AR12: 0 | AX12: =IFERROR(VLOOKUP($A12,'[2]export-1'!$A$446:$G$451,7,FALSE),0) -> 0 | AY12: =IFERROR(VLOOKUP($A12,[3]Sheet4!$A$4:$B$56,2,FALSE),0) -> 0 | AZ12: =IFERROR(VLOOKUP($A12,'[3]headphones purchased'!$A$2:$G$27,6,FALSE),0) -> 0 | BA12: =ROUND(IFERROR(VLOOKUP($A12,'[4]download-1'!$A$471:$F$474,5,FALSE)/-9.5,0),0) -> 0 | BB12: =ROUND(IFERROR(VLOOKUP($A12,'[4]download-1'!$A$467:$F$469,5,FALSE)/-49,0),0) -> 0 | BC12: =IFERROR(VLOOKUP($A12,[5]Sheet8!$A$4:$B$89,2,FALSE),0) -> 0 | BF12: 0 | BG12: =IFERROR(VLOOKUP($A12,[3]Paypal!$A$2:$AA$1843,25,FALSE),0)-BH12 -> 0 | BH12: =IFERROR(VLOOKUP($A12,'[3]Paypal Money Sent Pivot'!$A$4:$B$97,2,FALSE),0) -> 0 | BI12: =$BH12+$BI11-IFERROR(VLOOKUP($A12,[2]Sheet2!$A$4:$B$82,2,FALSE),0) -> 0 | BJ12: =IFERROR(VLOOKUP($A12,'[3]TexttoColumn Amazon Balance'!$A$14:$B$30,2,FALSE),0) -> 0 | BK12: =$BJ11+$BK11-IFERROR(VLOOKUP($A12,[2]Amazon!$A$2:$F$17,5,FALSE),0) -> 0 | BL12: =IFERROR(VLOOKUP($A12,'[4]Payment Pivot'!$A$4:$B$29,2,FALSE),0) -> 0 | BM12: =$BL12+$BM11-IFERROR(VLOOKUP($A12,'[2]Myaccountaccess Pivot'!$A$4:$B$31,2,FALSE),0) -> 0 | BO12: =IFERROR(VLOOKUP($A12,'[6]export-2'!$A$2:$F$15,6,FALSE),BO11) -> 0 | BP12: 0 | BQ12: =OFFSET(A12,0,'Cool Graph'!$H$1) -> 0 | BR12: =OFFSET(A12,0,'Cool Graph'!$I$1) -> 0
A13: 2011-07-12 | B13: 0 | C13: 0 | D13: 0 | E13: 0 | F13: 0 | G13: 0 | H13: 0 | I13: 0 | J13: 0 | K13: 0 | L13: 0 | M13: 0 | N13: 0 | O13: 0 | P13: 0 | Q13: 0 | R13: 0 | S13: 0 | T13: 0 | U13: 0 | V13: 0 | W13: 0 | X13: 0 | Y13: 0 | Z13: 0 | AA13: 0 | AB13: 0 | AC13: 0 | AD13: =IFERROR(VLOOKUP($A13,[1]Sheet1!$A$4:$B$219,2,FALSE),0) -> 0 | AE13: 0 | AF13: -147 | AG13: =$BH13+$BI12-IFERROR(VLOOKUP($A13,[2]Sheet2!$A$4:$B$82,2,FALSE),0) -> 0 | AH13: =$BJ12+$BK12-IFERROR(VLOOKUP($A13,[2]Amazon!$A$2:$F$17,5,FALSE),0) -> 0 | AI13: =$BL13+$BM12-IFERROR(VLOOKUP($A13,'[2]Myaccountaccess Pivot'!$A$4:$B$31,2,FALSE),0) -> 0 | AJ13: =IFERROR(VLOOKUP($A13,'[2]export-1'!$A$2:$F$441,6,FALSE),AJ12) -> 2304 | AK13: =IFERROR(VLOOKUP($A13,'[7]download-1'!$A$2:$F$513,6,FALSE),AK12) -> 0 | AL13: =IFERROR(VLOOKUP($A13,'[3]TexttoColumn Amazon Balance'!$A$14:$B$30,2,FALSE),IF(AL14>0,AL14-50,0)) -> 0 | AM13: 2304 | AN13: 3162.5 | AO13: 15 | AP13: 13 | AQ13: 0 | AR13: 0 | AX13: =IFERROR(VLOOKUP($A13,'[2]export-1'!$A$446:$G$451,7,FALSE),0) -> 0 | AY13: =IFERROR(VLOOKUP($A13,[3]Sheet4!$A$4:$B$56,2,FALSE),0) -> 0 | AZ13: =IFERROR(VLOOKUP($A13,'[3]headphones purchased'!$A$2:$G$27,6,FALSE),0) -> 0 | BA13: =ROUND(IFERROR(VLOOKUP($A13,'[4]download-1'!$A$471:$F$474,5,FALSE)/-9.5,0),0) -> 0 | BB13: =ROUND(IFERROR(VLOOKUP($A13,'[4]download-1'!$A$467:$F$469,5,FALSE)/-49,0),0) -> 0 | BC13: =IFERROR(VLOOKUP($A13,[5]Sheet8!$A$4:$B$89,2,FALSE),0) -> 0 | BF13: 1 | BG13: =IFERROR(VLOOKUP($A13,[3]Paypal!$A$2:$AA$1843,25,FALSE),0)-BH13 -> 0 | BH13: =IFERROR(VLOOKUP($A13,'[3]Paypal Money Sent Pivot'!$A$4:$B$97,2,FALSE),0) -> 0 | BI13: =$BH13+$BI12-IFERROR(VLOOKUP($A13,[2]Sheet2!$A$4:$B$82,2,FALSE),0) -> 0 | BJ13: =IFERROR(VLOOKUP($A13,'[3]TexttoColumn Amazon Balance'!$A$14:$B$30,2,FALSE),0) -> 0 | BK13: =$BJ12+$BK12-IFERROR(VLOOKUP($A13,[2]Amazon!$A$2:$F$17,5,FALSE),0) -> 0 | BL13: =IFERROR(VLOOKUP($A13,'[4]Payment Pivot'!$A$4:$B$29,2,FALSE),0) -> 0 | BM13: =$BL13+$BM12-IFERROR(VLOOKUP($A13,'[2]Myaccountaccess Pivot'!$A$4:$B$31,2,FALSE),0) -> 0 | BO13: =IFERROR(VLOOKUP($A13,'[6]export-2'!$A$2:$F$15,6,FALSE),BO12) -> 0 | BP13: 0 | BQ13: =OFFSET(A13,0,'Cool Graph'!$H$1) -> 0 | BR13: =OFFSET(A13,0,'Cool Graph'!$I$1) -> 0
A14: 2011-07-13 | B14: 0 | C14: 0 | D14: 0 | E14: 0 | F14: 0 | G14: 0 | H14: 0 | I14: 0 | J14: 0 | K14: 0 | L14: 0 | M14: 0 | N14: 0 | O14: 0 | P14: 0 | Q14: 0 | R14: 0 | S14: 0 | T14: 0 | U14: 0 | V14: 0 | W14: 0 | X14: 0 | Y14: 0 | Z14: 0 | AA14: 0 | AB14: 0 | AC14: 0 | AD14: =IFERROR(VLOOKUP($A14,[1]Sheet1!$A$4:$B$219,2,FALSE),0) -> 0 | AE14: 0 | AF14: 0 | AG14: =$BH14+$BI13-IFERROR(VLOOKUP($A14,[2]Sheet2!$A$4:$B$82,2,FALSE),0) -> 0 | AH14: =$BJ13+$BK13-IFERROR(VLOOKUP($A14,[2]Amazon!$A$2:$F$17,5,FALSE),0) -> 0 | AI14: =$BL14+$BM13-IFERROR(VLOOKUP($A14,'[2]Myaccountaccess Pivot'!$A$4:$B$31,2,FALSE),0) -> 0 | AJ14: =IFERROR(VLOOKUP($A14,'[2]export-1'!$A$2:$F$441,6,FALSE),AJ13) -> 2304 | AK14: =IFERROR(VLOOKUP($A14,'[7]download-1'!$A$2:$F$513,6,FALSE),AK13) -> 0 | AL14: =IFERROR(VLOOKUP($A14,'[3]TexttoColumn Amazon Balance'!$A$14:$B$30,2,FALSE),IF(AL15>0,AL15-50,0)) -> 0 | AM14: 2304 | AN14: 3162.5 | AO14: 15 | AP14: 13 | AQ14: 0 | AR14: 0 | AX14: =IFERROR(VLOOKUP($A14,'[2]export-1'!$A$446:$G$451,7,FALSE),0) -> 0 | AY14: =IFERROR(VLOOKUP($A14,[3]Sheet4!$A$4:$B$56,2,FALSE),0) -> 0 | AZ14: =IFERROR(VLOOKUP($A14,'[3]headphones purchased'!$A$2:$G$27,6,FALSE),0) -> 0 | BA14: =ROUND(IFERROR(VLOOKUP($A14,'[4]download-1'!$A$471:$F$474,5,FALSE)/-9.5,0),0) -> 0 | BB14: =ROUND(IFERROR(VLOOKUP($A14,'[4]download-1'!$A$467:$F$469,5,FALSE)/-49,0),0) -> 0 | BC14: =IFERROR(VLOOKUP($A14,[5]Sheet8!$A$4:$B$89,2,FALSE),0) -> 0 | BF14: 0 | BG14: =IFERROR(VLOOKUP($A14,[3]Paypal!$A$2:$AA$1843,25,FALSE),0)-BH14 -> 0 | BH14: =IFERROR(VLOOKUP($A14,'[3]Paypal Money Sent Pivot'!$A$4:$B$97,2,FALSE),0) -> 0 | BI14: =$BH14+$BI13-IFERROR(VLOOKUP($A14,[2]Sheet2!$A$4:$B$82,2,FALSE),0) -> 0 | BJ14: =IFERROR(VLOOKUP($A14,'[3]TexttoColumn Amazon Balance'!$A$14:$B$30,2,FALSE),0) -> 0 | BK14: =$BJ13+$BK13-IFERROR(VLOOKUP($A14,[2]Amazon!$A$2:$F$17,5,FALSE),0) -> 0 | BL14: =IFERROR(VLOOKUP($A14,'[4]Payment Pivot'!$A$4:$B$29,2,FALSE),0) -> 0 | BM14: =$BL14+$BM13-IFERROR(VLOOKUP($A14,'[2]Myaccountaccess Pivot'!$A$4:$B$31,2,FALSE),0) -> 0 | BO14: =IFERROR(VLOOKUP($A14,'[6]export-2'!$A$2:$F$15,6,FALSE),BO13) -> 0 | BP14: 0 | BQ14: =OFFSET(A14,0,'Cool Graph'!$H$1) -> 0 | BR14: =OFFSET(A14,0,'Cool Graph'!$I$1) -> 0
A15: 2011-07-14 | B15: 0 | C15: 0 | D15: 0 | E15: 0 | F15: 0 | G15: 0 | H15: 0 | I15: 0 | J15: 0 | K15: 0 | L15: 0 | M15: 0 | N15: 0 | O15: 0 | P15: 0 | Q15: 0 | R15: 0 | S15: 0 | T15: 0 | U15: 0 | V15: 0 | W15: 0 | X15: 0 | Y15: 0 | Z15: 0 | AA15: 0 | AB15: 0 | AC15: 0 | AD15: =IFERROR(VLOOKUP($A15,[1]Sheet1!$A$4:$B$219,2,FALSE),0) -> 0 | AE15: 0 | AF15: -120 | AG15: =$BH15+$BI14-IFERROR(VLOOKUP($A15,[2]Sheet2!$A$4:$B$82,2,FALSE),0) -> -0.18 | AH15: =$BJ14+$BK14-IFERROR(VLOOKUP($A15,[2]Amazon!$A$2:$F$17,5,FALSE),0) -> 0 | AI15: =$BL15+$BM14-IFERROR(VLOOKUP($A15,'[2]Myaccountaccess Pivot'!$A$4:$B$31,2,FALSE),0) -> 0 | AJ15: =IFERROR(VLOOKUP($A15,'[2]export-1'!$A$2:$F$441,6,FALSE),AJ14) -> 2135.18 | AK15: =IFERROR(VLOOKUP($A15,'[7]download-1'!$A$2:$F$513,6,FALSE),AK14) -> 0 | AL15: =IFERROR(VLOOKUP($A15,'[3]TexttoColumn Amazon Balance'!$A$14:$B$30,2,FALSE),IF(AL16>0,AL16-50,0)) -> 0 | AM15: 2135 | AN15: 3042.5 | AO15: 16 | AP15: 13 | AQ15: 0 | AR15: 0 | AX15: =IFERROR(VLOOKUP($A15,'[2]export-1'!$A$446:$G$451,7,FALSE),0) -> 0 | AY15: =IFERROR(VLOOKUP($A15,[3]Sheet4!$A$4:$B$56,2,FALSE),0) -> 0 | AZ15: =IFERROR(VLOOKUP($A15,'[3]headphones purchased'!$A$2:$G$27,6,FALSE),0) -> 0 | BA15: =ROUND(IFERROR(VLOOKUP($A15,'[4]download-1'!$A$471:$F$474,5,FALSE)/-9.5,0),0) -> 0 | BB15: =ROUND(IFERROR(VLOOKUP($A15,'[4]download-1'!$A$467:$F$469,5,FALSE)/-49,0),0) -> 0 | BC15: =IFERROR(VLOOKUP($A15,[5]Sheet8!$A$4:$B$89,2,FALSE),0) -> 0 | BF15: 1 | BG15: =IFERROR(VLOOKUP($A15,[3]Paypal!$A$2:$AA$1843,25,FALSE),0)-BH15 -> 0 | BH15: =IFERROR(VLOOKUP($A15,'[3]Paypal Money Sent Pivot'!$A$4:$B$97,2,FALSE),0) -> 0 | BI15: =$BH15+$BI14-IFERROR(VLOOKUP($A15,[2]Sheet2!$A$4:$B$82,2,FALSE),0) -> -0.18 | BJ15: =IFERROR(VLOOKUP($A15,'[3]TexttoColumn Amazon Balance'!$A$14:$B$30,2,FALSE),0) -> 0 | BK15: =$BJ14+$BK14-IFERROR(VLOOKUP($A15,[2]Amazon!$A$2:$F$17,5,FALSE),0) -> 0 | BL15: =IFERROR(VLOOKUP($A15,'[4]Payment Pivot'!$A$4:$B$29,2,FALSE),0) -> 0 | BM15: =$BL15+$BM14-IFERROR(VLOOKUP($A15,'[2]Myaccountaccess Pivot'!$A$4:$B$31,2,FALSE),0) -> 0 | BO15: =IFERROR(VLOOKUP($A15,'[6]export-2'!$A$2:$F$15,6,FALSE),BO14) -> 0 | BP15: 0 | BQ15: =OFFSET(A15,0,'Cool Graph'!$H$1) -> 0 | BR15: =OFFSET(A15,0,'Cool Graph'!$I$1) -> 0
A16: 2011-07-15 | B16: 0 | C16: 0 | D16: 0 | E16: 0 | F16: 0 | G16: 0 | H16: 0 | I16: 0 | J16: 0 | K16: 0 | L16: 0 | M16: 0 | N16: 0 | O16: 0 | P16: 0 | Q16: 0 | R16: 0 | S16: 0 | T16: 0 | U16: 0 | V16: 0 | W16: 0 | X16: 0 | Y16: 0 | Z16: 0 | AA16: 0 | AB16: 0 | AC16: 0 | AD16: =IFERROR(VLOOKUP($A16,[1]Sheet1!$A$4:$B$219,2,FALSE),0) -> 0 | AE16: 0 | AF16: 0.11 | AG16: =$BH16+$BI15-IFERROR(VLOOKUP($A16,[2]Sheet2!$A$4:$B$82,2,FALSE),0) -> -0.18 | AH16: =$BJ15+$BK15-IFERROR(VLOOKUP($A16,[2]Amazon!$A$2:$F$17,5,FALSE),0) -> 0 | AI16: =$BL16+$BM15-IFERROR(VLOOKUP($A16,'[2]Myaccountaccess Pivot'!$A$4:$B$31,2,FALSE),0) -> 0 | AJ16: =IFERROR(VLOOKUP($A16,'[2]export-1'!$A$2:$F$441,6,FALSE),AJ15) -> 2135.29 | AK16: =IFERROR(VLOOKUP($A16,'[7]download-1'!$A$2:$F$513,6,FALSE),AK15) -> 0 | AL16: =IFERROR(VLOOKUP($A16,'[3]TexttoColumn Amazon Balance'!$A$14:$B$30,2,FALSE),IF(AL17>0,AL17-50,0)) -> 0 | AM16: 2135.11 | AN16: 3042.61 | AO16: 16 | AP16: 13 | AQ16: 0 | AR16: 0 | AX16: =IFERROR(VLOOKUP($A16,'[2]export-1'!$A$446:$G$451,7,FALSE),0) -> 0 | AY16: =IFERROR(VLOOKUP($A16,[3]Sheet4!$A$4:$B$56,2,FALSE),0) -> 0 | AZ16: =IFERROR(VLOOKUP($A16,'[3]headphones purchased'!$A$2:$G$27,6,FALSE),0) -> 0 | BA16: =ROUND(IFERROR(VLOOKUP($A16,'[4]download-1'!$A$471:$F$474,5,FALSE)/-9.5,0),0) -> 0 | BB16: =ROUND(IFERROR(VLOOKUP($A16,'[4]download-1'!$A$467:$F$469,5,FALSE)/-49,0),0) -> 0 | BC16: =IFERROR(VLOOKUP($A16,[5]Sheet8!$A$4:$B$89,2,FALSE),0) -> 0 | BF16: 0 | BG16: =IFERROR(VLOOKUP($A16,[3]Paypal!$A$2:$AA$1843,25,FALSE),0)-BH16 -> 0 | BH16: =IFERROR(VLOOKUP($A16,'[3]Paypal Money Sent Pivot'!$A$4:$B$97,2,FALSE),0) -> 0 | BI16: =$BH16+$BI15-IFERROR(VLOOKUP($A16,[2]Sheet2!$A$4:$B$82,2,FALSE),0) -> -0.18 | BJ16: =IFERROR(VLOOKUP($A16,'[3]TexttoColumn Amazon Balance'!$A$14:$B$30,2,FALSE),0) -> 0 | BK16: =$BJ15+$BK15-IFERROR(VLOOKUP($A16,[2]Amazon!$A$2:$F$17,5,FALSE),0) -> 0 | BL16: =IFERROR(VLOOKUP($A16,'[4]Payment Pivot'!$A$4:$B$29,2,FALSE),0) -> 0 | BM16: =$BL16+$BM15-IFERROR(VLOOKUP($A16,'[2]Myaccountaccess Pivot'!$A$4:$B$31,2,FALSE),0) -> 0 | BO16: =IFERROR(VLOOKUP($A16,'[6]export-2'!$A$2:$F$15,6,FALSE),BO15) -> 0 | BP16: 0 | BQ16: =OFFSET(A16,0,'Cool Graph'!$H$1) -> 0 | BR16: =OFFSET(A16,0,'Cool Graph'!$I$1) -> 0
A17: 2011-07-16 | B17: 0 | C17: 0 | D17: 54.46 | E17: 0 | F17: 0 | G17: 54.46 | H17: 0 | I17: 0 | J17: 0 | K17: 2 | L17: 0 | M17: 0 | N17: 0 | O17: 0 | P17: 0 | Q17: 0 | R17: 0 | S17: 0 | T17: 0 | U17: 0 | V17: 0 | W17: 0 | X17: 0 | Y17: 0 | Z17: 0 | AA17: 0 | AB17: 0 | AC17: 0 | AD17: =IFERROR(VLOOKUP($A17,[1]Sheet1!$A$4:$B$219,2,FALSE),0) -> 0 | AE17: 0 | AF17: 48.7 | AG17: =$BH17+$BI16-IFERROR(VLOOKUP($A17,[2]Sheet2!$A$4:$B$82,2,FALSE),0) -> -0.18 | AH17: =$BJ16+$BK16-IFERROR(VLOOKUP($A17,[2]Amazon!$A$2:$F$17,5,FALSE),0) -> 0 | AI17: =$BL17+$BM16-IFERROR(VLOOKUP($A17,'[2]Myaccountaccess Pivot'!$A$4:$B$31,2,FALSE),0) -> 0 | AJ17: =IFERROR(VLOOKUP($A17,'[2]export-1'!$A$2:$F$441,6,FALSE),AJ16) -> 2135.29 | AK17: =IFERROR(VLOOKUP($A17,'[7]download-1'!$A$2:$F$513,6,FALSE),AK16) -> 0 | AL17: =IFERROR(VLOOKUP($A17,'[3]TexttoColumn Amazon Balance'!$A$14:$B$30,2,FALSE),IF(AL18>0,AL18-50,0)) -> 0 | AM17: 2134.81 | AN17: 3091.31 | AO17: 17 | AP17: 13 | AQ17: 0 | AR17: 0 | AX17: =IFERROR(VLOOKUP($A17,'[2]export-1'!$A$446:$G$451,7,FALSE),0) -> 0 | AY17: =IFERROR(VLOOKUP($A17,[3]Sheet4!$A$4:$B$56,2,FALSE),0) -> 0 | AZ17: =IFERROR(VLOOKUP($A17,'[3]headphones purchased'!$A$2:$G$27,6,FALSE),0) -> 0 | BA17: =ROUND(IFERROR(VLOOKUP($A17,'[4]download-1'!$A$471:$F$474,5,FALSE)/-9.5,0),0) -> 0 | BB17: =ROUND(IFERROR(VLOOKUP($A17,'[4]download-1'!$A$467:$F$469,5,FALSE)/-49,0),0) -> 0 | BC17: =IFERROR(VLOOKUP($A17,[5]Sheet8!$A$4:$B$89,2,FALSE),0) -> 0 | BF17: 1 | BG17: =IFERROR(VLOOKUP($A17,[3]Paypal!$A$2:$AA$1843,25,FALSE),0)-BH17 -> -0.3 | BH17: =IFERROR(VLOOKUP($A17,'[3]Paypal Money Sent Pivot'!$A$4:$B$97,2,FALSE),0) -> 0 | BI17: =$BH17+$BI16-IFERROR(VLOOKUP($A17,[2]Sheet2!$A$4:$B$82,2,FALSE),0) -> -0.18 | BJ17: =IFERROR(VLOOKUP($A17,'[3]TexttoColumn Amazon Balance'!$A$14:$B$30,2,FALSE),0) -> 0 | BK17: =$BJ16+$BK16-IFERROR(VLOOKUP($A17,[2]Amazon!$A$2:$F$17,5,FALSE),0) -> 0 | BL17: =IFERROR(VLOOKUP($A17,'[4]Payment Pivot'!$A$4:$B$29,2,FALSE),0) -> 0 | BM17: =$BL17+$BM16-IFERROR(VLOOKUP($A17,'[2]Myaccountaccess Pivot'!$A$4:$B$31,2,FALSE),0) -> 0 | BO17: =IFERROR(VLOOKUP($A17,'[6]export-2'!$A$2:$F$15,6,FALSE),BO16) -> 0 | BP17: -54.46 | BQ17: =OFFSET(A17,0,'Cool Graph'!$H$1) -> 0 | BR17: =OFFSET(A17,0,'Cool Graph'!$I$1) -> -54.46
A18: 2011-07-17 | B18: 0 | C18: 0 | D18: 24.31 | E18: 0 | F18: 0 | G18: 24.31 | H18: 0 | I18: 0 | J18: 0 | K18: 0 | L18: 0 | M18: 0 | N18: 0 | O18: 0 | P18: 0 | Q18: 0 | R18: 0 | S18: 0 | T18: 0 | U18: 0 | V18: 0 | W18: 0 | X18: 0 | Y18: 0 | Z18: 0 | AA18: 0 | AB18: 0 | AC18: 0 | AD18: =IFERROR(VLOOKUP($A18,[1]Sheet1!$A$4:$B$219,2,FALSE),0) -> 0 | AE18: 0 | AF18: 0.3 | AG18: =$BH18+$BI17-IFERROR(VLOOKUP($A18,[2]Sheet2!$A$4:$B$82,2,FALSE),0) -> -0.18 | AH18: =$BJ17+$BK17-IFERROR(VLOOKUP($A18,[2]Amazon!$A$2:$F$17,5,FALSE),0) -> 0 | AI18: =$BL18+$BM17-IFERROR(VLOOKUP($A18,'[2]Myaccountaccess Pivot'!$A$4:$B$31,2,FALSE),0) -> 0 | AJ18: =IFERROR(VLOOKUP($A18,'[2]export-1'!$A$2:$F$441,6,FALSE),AJ17) -> 2135.29 | AK18: =IFERROR(VLOOKUP($A18,'[7]download-1'!$A$2:$F$513,6,FALSE),AK17) -> 0 | AL18: =IFERROR(VLOOKUP($A18,'[3]TexttoColumn Amazon Balance'!$A$14:$B$30,2,FALSE),IF(AL19>0,AL19-50,0)) -> 0 | AM18: 2135.11 | AN18: 3091.61 | AO18: 17 | AP18: 13 | AQ18: 0 | AR18: 0 | AX18: =IFERROR(VLOOKUP($A18,'[2]export-1'!$A$446:$G$451,7,FALSE),0) -> 0 | AY18: =IFERROR(VLOOKUP($A18,[3]Sheet4!$A$4:$B$56,2,FALSE),0) -> 0 | AZ18: =IFERROR(VLOOKUP($A18,'[3]headphones purchased'!$A$2:$G$27,6,FALSE),0) -> 0 | BA18: =ROUND(IFERROR(VLOOKUP($A18,'[4]download-1'!$A$471:$F$474,5,FALSE)/-9.5,0),0) -> 0 | BB18: =ROUND(IFERROR(VLOOKUP($A18,'[4]download-1'!$A$467:$F$469,5,FALSE)/-49,0),0) -> 0 | BC18: =IFERROR(VLOOKUP($A18,[5]Sheet8!$A$4:$B$89,2,FALSE),0) -> 0 | BF18: 0 | BG18: =IFERROR(VLOOKUP($A18,[3]Paypal!$A$2:$AA$1843,25,FALSE),0)-BH18 -> 0 | BH18: =IFERROR(VLOOKUP($A18,'[3]Paypal Money Sent Pivot'!$A$4:$B$97,2,FALSE),0) -> 0 | BI18: =$BH18+$BI17-IFERROR(VLOOKUP($A18,[2]Sheet2!$A$4:$B$82,2,FALSE),0) -> -0.18 | BJ18: =IFERROR(VLOOKUP($A18,'[3]TexttoColumn Amazon Balance'!$A$14:$B$30,2,FALSE),0) -> 0 | BK18: =$BJ17+$BK17-IFERROR(VLOOKUP($A18,[2]Amazon!$A$2:$F$17,5,FALSE),0) -> 0 | BL18: =IFERROR(VLOOKUP($A18,'[4]Payment Pivot'!$A$4:$B$29,2,FALSE),0) -> 0 | BM18: =$BL18+$BM17-IFERROR(VLOOKUP($A18,'[2]Myaccountaccess Pivot'!$A$4:$B$31,2,FALSE),0) -> 0 | BO18: =IFERROR(VLOOKUP($A18,'[6]export-2'!$A$2:$F$15,6,FALSE),BO17) -> 0 | BP18: -24.31 | BQ18: =OFFSET(A18,0,'Cool Graph'!$H$1) -> 0 | BR18: =OFFSET(A18,0,'Cool Graph'!$I$1) -> -24.31
A19: 2011-07-18 | B19: 0 | C19: 0 | D19: 93.06 | E19: 21.35 | F19: 0 | G19: 114.41 | H19: 0 | I19: 0 | J19: 0 | K19: 0 | L19: 2 | M19: 0 | N19: 0 | O19: 21.35 | P19: 2 | Q19: 0 | R19: 0 | S19: 0 | T19: 0 | U19: 0 | V19: 0 | W19: 0 | X19: 1 | Y19: 1 | Z19: 0 | AA19: 0 | AB19: 1 | AC19: 0 | AD19: =IFERROR(VLOOKUP($A19,[1]Sheet1!$A$4:$B$219,2,FALSE),0) -> 165 | AE19: 165 | AF19: 114.97 | AG19: =$BH19+$BI18-IFERROR(VLOOKUP($A19,[2]Sheet2!$A$4:$B$82,2,FALSE),0) -> -0.18 | AH19: =$BJ18+$BK18-IFERROR(VLOOKUP($A19,[2]Amazon!$A$2:$F$17,5,FALSE),0) -> 0 | AI19: =$BL19+$BM18-IFERROR(VLOOKUP($A19,'[2]Myaccountaccess Pivot'!$A$4:$B$31,2,FALSE),0) -> 0 | AJ19: =IFERROR(VLOOKUP($A19,'[2]export-1'!$A$2:$F$441,6,FALSE),AJ18) -> 2105.98 | AK19: =IFERROR(VLOOKUP($A19,'[7]download-1'!$A$2:$F$513,6,FALSE),AK18) -> 0 | AL19: =IFERROR(VLOOKUP($A19,'[3]TexttoColumn Amazon Balance'!$A$14:$B$30,2,FALSE),IF(AL20>0,AL20-50,0)) -> 0 | AM19: 2259.58 | AN19: 3206.58 | AO19: 17 | AP19: 12 | AQ19: 0 | AR19: 0 | AX19: =IFERROR(VLOOKUP($A19,'[2]export-1'!$A$446:$G$451,7,FALSE),0) -> 0 | AY19: =IFERROR(VLOOKUP($A19,[3]Sheet4!$A$4:$B$56,2,FALSE),0) -> 0 | AZ19: =IFERROR(VLOOKUP($A19,'[3]headphones purchased'!$A$2:$G$27,6,FALSE),0) -> 0 | BA19: =ROUND(IFERROR(VLOOKUP($A19,'[4]download-1'!$A$471:$F$474,5,FALSE)/-9.5,0),0) -> 0 | BB19: =ROUND(IFERROR(VLOOKUP($A19,'[4]download-1'!$A$467:$F$469,5,FALSE)/-49,0),0) -> 0 | BC19: =IFERROR(VLOOKUP($A19,[5]Sheet8!$A$4:$B$89,2,FALSE),0) -> 0 | BF19: 1 | BG19: =IFERROR(VLOOKUP($A19,[3]Paypal!$A$2:$AA$1843,25,FALSE),0)-BH19 -> 153.78 | BH19: =IFERROR(VLOOKUP($A19,'[3]Paypal Money Sent Pivot'!$A$4:$B$97,2,FALSE),0) -> 0 | BI19: =$BH19+$BI18-IFERROR(VLOOKUP($A19,[2]Sheet2!$A$4:$B$82,2,FALSE),0) -> -0.18 | BJ19: =IFERROR(VLOOKUP($A19,'[3]TexttoColumn Amazon Balance'!$A$14:$B$30,2,FALSE),0) -> 0 | BK19: =$BJ18+$BK18-IFERROR(VLOOKUP($A19,[2]Amazon!$A$2:$F$17,5,FALSE),0) -> 0 | BL19: =IFERROR(VLOOKUP($A19,'[4]Payment Pivot'!$A$4:$B$29,2,FALSE),0) -> 0 | BM19: =$BL19+$BM18-IFERROR(VLOOKUP($A19,'[2]Myaccountaccess Pivot'!$A$4:$B$31,2,FALSE),0) -> 0 | BO19: =IFERROR(VLOOKUP($A19,'[6]export-2'!$A$2:$F$15,6,FALSE),BO18) -> 0 | BP19: -44.54006308 | BQ19: =OFFSET(A19,0,'Cool Graph'!$H$1) -> 0 | BR19: =OFFSET(A19,0,'Cool Graph'!$I$1) -> -44.54006308
A20: 2011-07-19 | B20: 0 | C20: 0 | D20: 57.19 | E20: 3.64 | F20: 0 | G20: 60.83 | H20: 0 | I20: 0 | J20: 0 | K20: 2 | L20: 0 | M20: 0 | N20: 0 | O20: 3.64 | P20: 0 | Q20: 0 | R20: 0 | S20: 0 | T20: 0 | U20: 0 | V20: 0 | W20: 0 | X20: 3 | Y20: 3 | Z20: 0 | AA20: 0 | AB20: 3 | AC20: 0 | AD20: =IFERROR(VLOOKUP($A20,[1]Sheet1!$A$4:$B$219,2,FALSE),0) -> 495 | AE20: 495 | AF20: 304.23 | AG20: =$BH20+$BI19-IFERROR(VLOOKUP($A20,[2]Sheet2!$A$4:$B$82,2,FALSE),0) -> -0.18 | AH20: =$BJ19+$BK19-IFERROR(VLOOKUP($A20,[2]Amazon!$A$2:$F$17,5,FALSE),0) -> 0 | AI20: =$BL20+$BM19-IFERROR(VLOOKUP($A20,'[2]Myaccountaccess Pivot'!$A$4:$B$31,2,FALSE),0) -> 0 | AJ20: =IFERROR(VLOOKUP($A20,'[2]export-1'!$A$2:$F$441,6,FALSE),AJ19) -> 2105.98 | AK20: =IFERROR(VLOOKUP($A20,'[7]download-1'!$A$2:$F$513,6,FALSE),AK19) -> 0 | AL20: =IFERROR(VLOOKUP($A20,'[3]TexttoColumn Amazon Balance'!$A$14:$B$30,2,FALSE),IF(AL21>0,AL21-50,0)) -> 0 | AM20: 2739.31 | AN20: 3510.81 | AO20: 14 | AP20: 9 | AQ20: 0 | AR20: 0 | AX20: =IFERROR(VLOOKUP($A20,'[2]export-1'!$A$446:$G$451,7,FALSE),0) -> 0 | AY20: =IFERROR(VLOOKUP($A20,[3]Sheet4!$A$4:$B$56,2,FALSE),0) -> 0 | AZ20: =IFERROR(VLOOKUP($A20,'[3]headphones purchased'!$A$2:$G$27,6,FALSE),0) -> 0 | BA20: =ROUND(IFERROR(VLOOKUP($A20,'[4]download-1'!$A$471:$F$474,5,FALSE)/-9.5,0),0) -> 0 | BB20: =ROUND(IFERROR(VLOOKUP($A20,'[4]download-1'!$A$467:$F$469,5,FALSE)/-49,0),0) -> 0 | BC20: =IFERROR(VLOOKUP($A20,[5]Sheet8!$A$4:$B$89,2,FALSE),0) -> 0 | BF20: 0 | BG20: =IFERROR(VLOOKUP($A20,[3]Paypal!$A$2:$AA$1843,25,FALSE),0)-BH20 -> 633.51 | BH20: =IFERROR(VLOOKUP($A20,'[3]Paypal Money Sent Pivot'!$A$4:$B$97,2,FALSE),0) -> 0 | BI20: =$BH20+$BI19-IFERROR(VLOOKUP($A20,[2]Sheet2!$A$4:$B$82,2,FALSE),0) -> -0.18 | BJ20: =IFERROR(VLOOKUP($A20,'[3]TexttoColumn Amazon Balance'!$A$14:$B$30,2,FALSE),0) -> 0 | BK20: =$BJ19+$BK19-IFERROR(VLOOKUP($A20,[2]Amazon!$A$2:$F$17,5,FALSE),0) -> 0 | BL20: =IFERROR(VLOOKUP($A20,'[4]Payment Pivot'!$A$4:$B$29,2,FALSE),0) -> 0 | BM20: =$BL20+$BM19-IFERROR(VLOOKUP($A20,'[2]Myaccountaccess Pivot'!$A$4:$B$31,2,FALSE),0) -> 0 | BO20: =IFERROR(VLOOKUP($A20,'[6]export-2'!$A$2:$F$15,6,FALSE),BO19) -> 0 | BP20: 148.7798108 | BQ20: =OFFSET(A20,0,'Cool Graph'!$H$1) -> 0 | BR20: =OFFSET(A20,0,'Cool Graph'!$I$1) -> 148.7798108
A21: 2011-07-20 | B21: 0 | C21: 0 | D21: 55.79 | E21: 7.29 | F21: 0 | G21: 63.08 | H21: 0 | I21: 0 | J21: 0 | K21: 1 | L21: 0 | M21: 0 | N21: 0 | O21: 7.29 | P21: 0 | Q21: 0 | R21: 0 | S21: 0 | T21: 0 | U21: 0 | V21: 0 | W21: 0 | X21: 0 | Y21: 0 | Z21: 0 | AA21: 0 | AB21: 0 | AC21: 0 | AD21: =IFERROR(VLOOKUP($A21,[1]Sheet1!$A$4:$B$219,2,FALSE),0) -> 0 | AE21: 0 | AF21: 72.36 | AG21: =$BH21+$BI20-IFERROR(VLOOKUP($A21,[2]Sheet2!$A$4:$B$82,2,FALSE),0) -> -0.18 | AH21: =$BJ20+$BK20-IFERROR(VLOOKUP($A21,[2]Amazon!$A$2:$F$17,5,FALSE),0) -> 0 | AI21: =$BL21+$BM20-IFERROR(VLOOKUP($A21,'[2]Myaccountaccess Pivot'!$A$4:$B$31,2,FALSE),0) -> 0 | AJ21: =IFERROR(VLOOKUP($A21,'[2]export-1'!$A$2:$F$441,6,FALSE),AJ20) -> 2081.78 | AK21: =IFERROR(VLOOKUP($A21,'[7]download-1'!$A$2:$F$513,6,FALSE),AK20) -> -50 | AL21: =IFERROR(VLOOKUP($A21,'[3]TexttoColumn Amazon Balance'!$A$14:$B$30,2,FALSE),IF(AL22>0,AL22-50,0)) -> 0 | AM21: 2664.67 | AN21: 3583.17 | AO21: 17 | AP21: 9 | AQ21: 0 | AR21: 0 | AX21: =IFERROR(VLOOKUP($A21,'[2]export-1'!$A$446:$G$451,7,FALSE),0) -> 0 | AY21: =IFERROR(VLOOKUP($A21,[3]Sheet4!$A$4:$B$56,2,FALSE),0) -> 3 | AZ21: =IFERROR(VLOOKUP($A21,'[3]headphones purchased'!$A$2:$G$27,6,FALSE),0) -> 0 | BA21: =ROUND(IFERROR(VLOOKUP($A21,'[4]download-1'!$A$471:$F$474,5,FALSE)/-9.5,0),0) -> 0 | BB21: =ROUND(IFERROR(VLOOKUP($A21,'[4]download-1'!$A$467:$F$469,5,FALSE)/-49,0),0) -> 0 | BC21: =IFERROR(VLOOKUP($A21,[5]Sheet8!$A$4:$B$89,2,FALSE),0) -> 1 | BF21: 1 | BG21: =IFERROR(VLOOKUP($A21,[3]Paypal!$A$2:$AA$1843,25,FALSE),0)-BH21 -> 633.07 | BH21: =IFERROR(VLOOKUP($A21,'[3]Paypal Money Sent Pivot'!$A$4:$B$97,2,FALSE),0) -> 0 | BI21: =$BH21+$BI20-IFERROR(VLOOKUP($A21,[2]Sheet2!$A$4:$B$82,2,FALSE),0) -> -0.18 | BJ21: =IFERROR(VLOOKUP($A21,'[3]TexttoColumn Amazon Balance'!$A$14:$B$30,2,FALSE),0) -> 0 | BK21: =$BJ20+$BK20-IFERROR(VLOOKUP($A21,[2]Amazon!$A$2:$F$17,5,FALSE),0) -> 0 | BL21: =IFERROR(VLOOKUP($A21,'[4]Payment Pivot'!$A$4:$B$29,2,FALSE),0) -> 0 | BM21: =$BL21+$BM20-IFERROR(VLOOKUP($A21,'[2]Myaccountaccess Pivot'!$A$4:$B$31,2,FALSE),0) -> 0 | BO21: =IFERROR(VLOOKUP($A21,'[6]export-2'!$A$2:$F$15,6,FALSE),BO20) -> 0 | BP21: -63.08 | BQ21: =OFFSET(A21,0,'Cool Graph'!$H$1) -> 0 | BR21: =OFFSET(A21,0,'Cool Graph'!$I$1) -> -63.08
A22: 2011-07-21 | B22: 0 | C22: 0 | D22: 44.32 | E22: 0 | F22: 0 | G22: 44.32 | H22: 0 | I22: 0 | J22: 0 | K22: 0 | L22: 0 | M22: 0 | N22: 0 | O22: 0 | P22: 0 | Q22: 0 | R22: 0 | S22: 0 | T22: 0 | U22: 0 | V22: 0 | W22: 0 | X22: 0 | Y22: 0 | Z22: 0 | AA22: 0 | AB22: 0 | AC22: 0 | AD22: =IFERROR(VLOOKUP($A22,[1]Sheet1!$A$4:$B$219,2,FALSE),0) -> 0 | AE22: 0 | AF22: -927.06 | AG22: =$BH22+$BI21-IFERROR(VLOOKUP($A22,[2]Sheet2!$A$4:$B$82,2,FALSE),0) -> -0.18 | AH22: =$BJ21+$BK21-IFERROR(VLOOKUP($A22,[2]Amazon!$A$2:$F$17,5,FALSE),0) -> 0 | AI22: =$BL22+$BM21-IFERROR(VLOOKUP($A22,'[2]Myaccountaccess Pivot'!$A$4:$B$31,2,FALSE),0) -> 0 | AJ22: =IFERROR(VLOOKUP($A22,'[2]export-1'!$A$2:$F$441,6,FALSE),AJ21) -> 1787.79 | AK22: =IFERROR(VLOOKUP($A22,'[7]download-1'!$A$2:$F$513,6,FALSE),AK21) -> -50 | AL22: =IFERROR(VLOOKUP($A22,'[3]TexttoColumn Amazon Balance'!$A$14:$B$30,2,FALSE),IF(AL23>0,AL23-50,0)) -> 0 | AM22: 1737.61 | AN22: 2656.11 | AO22: 17 | AP22: 9 | AQ22: 0 | AR22: 0 | AX22: =IFERROR(VLOOKUP($A22,'[2]export-1'!$A$446:$G$451,7,FALSE),0) -> 0 | AY22: =IFERROR(VLOOKUP($A22,[3]Sheet4!$A$4:$B$56,2,FALSE),0) -> 0 | AZ22: =IFERROR(VLOOKUP($A22,'[3]headphones purchased'!$A$2:$G$27,6,FALSE),0) -> 0 | BA22: =ROUND(IFERROR(VLOOKUP($A22,'[4]download-1'!$A$471:$F$474,5,FALSE)/-9.5,0),0) -> 0 | BB22: =ROUND(IFERROR(VLOOKUP($A22,'[4]download-1'!$A$467:$F$469,5,FALSE)/-49,0),0) -> 0 | BC22: =IFERROR(VLOOKUP($A22,[5]Sheet8!$A$4:$B$89,2,FALSE),0) -> 0 | BF22: 0 | BG22: =IFERROR(VLOOKUP($A22,[3]Paypal!$A$2:$AA$1843,25,FALSE),0)-BH22 -> 0 | BH22: =IFERROR(VLOOKUP($A22,'[3]Paypal Money Sent Pivot'!$A$4:$B$97,2,FALSE),0) -> 0 | BI22: =$BH22+$BI21-IFERROR(VLOOKUP($A22,[2]Sheet2!$A$4:$B$82,2,FALSE),0) -> -0.18 | BJ22: =IFERROR(VLOOKUP($A22,'[3]TexttoColumn Amazon Balance'!$A$14:$B$30,2,FALSE),0) -> 0 | BK22: =$BJ21+$BK21-IFERROR(VLOOKUP($A22,[2]Amazon!$A$2:$F$17,5,FALSE),0) -> 0 | BL22: =IFERROR(VLOOKUP($A22,'[4]Payment Pivot'!$A$4:$B$29,2,FALSE),0) -> 0 | BM22: =$BL22+$BM21-IFERROR(VLOOKUP($A22,'[2]Myaccountaccess Pivot'!$A$4:$B$31,2,FALSE),0) -> 0 | BO22: =IFERROR(VLOOKUP($A22,'[6]export-2'!$A$2:$F$15,6,FALSE),BO21) -> 0 | BP22: -44.32 | BQ22: =OFFSET(A22,0,'Cool Graph'!$H$1) -> 0 | BR22: =OFFSET(A22,0,'Cool Graph'!$I$1) -> -44.32
A23: 2011-07-22 | B23: 0 | C23: 0 | D23: 70.02 | E23: 0 | F23: 0 | G23: 70.02 | H23: 0 | I23: 0 | J23: 0 | K23: 2 | L23: 0 | M23: 0 | N23: 0 | O23: 0 | P23: 0 | Q23: 0 | R23: 0 | S23: 0 | T23: 0 | U23: 0 | V23: 0 | W23: 0 | X23: 3 | Y23: 3 | Z23: 0 | AA23: 0 | AB23: 3 | AC23: 0 | AD23: =IFERROR(VLOOKUP($A23,[1]Sheet1!$A$4:$B$219,2,FALSE),0) -> 495 | AE23: 495 | AF23: 825.57 | AG23: =$BH23+$BI22-IFERROR(VLOOKUP($A23,[2]Sheet2!$A$4:$B$82,2,FALSE),0) -> -0.18 | AH23: =$BJ22+$BK22-IFERROR(VLOOKUP($A23,[2]Amazon!$A$2:$F$17,5,FALSE),0) -> 0 | AI23: =$BL23+$BM22-IFERROR(VLOOKUP($A23,'[2]Myaccountaccess Pivot'!$A$4:$B$31,2,FALSE),0) -> 0 | AJ23: =IFERROR(VLOOKUP($A23,'[2]export-1'!$A$2:$F$441,6,FALSE),AJ22) -> 1787.79 | AK23: =IFERROR(VLOOKUP($A23,'[7]download-1'!$A$2:$F$513,6,FALSE),AK22) -> -50 | AL23: =IFERROR(VLOOKUP($A23,'[3]TexttoColumn Amazon Balance'!$A$14:$B$30,2,FALSE),IF(AL24>0,AL24-50,0)) -> 0 | AM23: 2591.68 | AN23: 3481.68 | AO23: 17 | AP23: 6 | AQ23: 0 | AR23: 0 | AX23: =IFERROR(VLOOKUP($A23,'[2]export-1'!$A$446:$G$451,7,FALSE),0) -> 0 | AY23: =IFERROR(VLOOKUP($A23,[3]Sheet4!$A$4:$B$56,2,FALSE),0) -> 3 | AZ23: =IFERROR(VLOOKUP($A23,'[3]headphones purchased'!$A$2:$G$27,6,FALSE),0) -> 0 | BA23: =ROUND(IFERROR(VLOOKUP($A23,'[4]download-1'!$A$471:$F$474,5,FALSE)/-9.5,0),0) -> 0 | BB23: =ROUND(IFERROR(VLOOKUP($A23,'[4]download-1'!$A$467:$F$469,5,FALSE)/-49,0),0) -> 0 | BC23: =IFERROR(VLOOKUP($A23,[5]Sheet8!$A$4:$B$89,2,FALSE),0) -> 1 | BF23: 1 | BG23: =IFERROR(VLOOKUP($A23,[3]Paypal!$A$2:$AA$1843,25,FALSE),0)-BH23 -> 854.07 | BH23: =IFERROR(VLOOKUP($A23,'[3]Paypal Money Sent Pivot'!$A$4:$B$97,2,FALSE),0) -> 0 | BI23: =$BH23+$BI22-IFERROR(VLOOKUP($A23,[2]Sheet2!$A$4:$B$82,2,FALSE),0) -> -0.18 | BJ23: =IFERROR(VLOOKUP($A23,'[3]TexttoColumn Amazon Balance'!$A$14:$B$30,2,FALSE),0) -> 0 | BK23: =$BJ22+$BK22-IFERROR(VLOOKUP($A23,[2]Amazon!$A$2:$F$17,5,FALSE),0) -> 0 | BL23: =IFERROR(VLOOKUP($A23,'[4]Payment Pivot'!$A$4:$B$29,2,FALSE),0) -> 0 | BM23: =$BL23+$BM22-IFERROR(VLOOKUP($A23,'[2]Myaccountaccess Pivot'!$A$4:$B$31,2,FALSE),0) -> 0 | BO23: =IFERROR(VLOOKUP($A23,'[6]export-2'!$A$2:$F$15,6,FALSE),BO22) -> 0 | BP23: 139.5898108 | BQ23: =OFFSET(A23,0,'Cool Graph'!$H$1) -> 0 | BR23: =OFFSET(A23,0,'Cool Graph'!$I$1) -> 139.5898108
A24: 2011-07-23 | B24: 0 | C24: 0 | D24: 51.29 | E24: 0 | F24: 0 | G24: 51.29 | H24: 0 | I24: 0 | J24: 0 | K24: 0 | L24: 0 | M24: 0 | N24: 0 | O24: 0 | P24: 0 | Q24: 0 | R24: 0 | S24: 0 | T24: 0 | U24: 0 | V24: 0 | W24: 0 | X24: 0 | Y24: 0 | Z24: 0 | AA24: 0 | AB24: 0 | AC24: 0 | AD24: =IFERROR(VLOOKUP($A24,[1]Sheet1!$A$4:$B$219,2,FALSE),0) -> 0 | AE24: 0 | AF24: -903.07 | AG24: =$BH24+$BI23-IFERROR(VLOOKUP($A24,[2]Sheet2!$A$4:$B$82,2,FALSE),0) -> -0.18 | AH24: =$BJ23+$BK23-IFERROR(VLOOKUP($A24,[2]Amazon!$A$2:$F$17,5,FALSE),0) -> 0 | AI24: =$BL24+$BM23-IFERROR(VLOOKUP($A24,'[2]Myaccountaccess Pivot'!$A$4:$B$31,2,FALSE),0) -> 0 | AJ24: =IFERROR(VLOOKUP($A24,'[2]export-1'!$A$2:$F$441,6,FALSE),AJ23) -> 1787.79 | AK24: =IFERROR(VLOOKUP($A24,'[7]download-1'!$A$2:$F$513,6,FALSE),AK23) -> -50 | AL24: =IFERROR(VLOOKUP($A24,'[3]TexttoColumn Amazon Balance'!$A$14:$B$30,2,FALSE),IF(AL25>0,AL25-50,0)) -> 0 | AM24: 1737.61 | AN24: 2578.61 | AO24: 16 | AP24: 6 | AQ24: 0 | AR24: 0 | AX24: =IFERROR(VLOOKUP($A24,'[2]export-1'!$A$446:$G$451,7,FALSE),0) -> 0 | AY24: =IFERROR(VLOOKUP($A24,[3]Sheet4!$A$4:$B$56,2,FALSE),0) -> 0 | AZ24: =IFERROR(VLOOKUP($A24,'[3]headphones purchased'!$A$2:$G$27,6,FALSE),0) -> 0 | BA24: =ROUND(IFERROR(VLOOKUP($A24,'[4]download-1'!$A$471:$F$474,5,FALSE)/-9.5,0),0) -> 0 | BB24: =ROUND(IFERROR(VLOOKUP($A24,'[4]download-1'!$A$467:$F$469,5,FALSE)/-49,0),0) -> 0 | BC24: =IFERROR(VLOOKUP($A24,[5]Sheet8!$A$4:$B$89,2,FALSE),0) -> 1 | BF24: 0 | BG24: =IFERROR(VLOOKUP($A24,[3]Paypal!$A$2:$AA$1843,25,FALSE),0)-BH24 -> 0 | BH24: =IFERROR(VLOOKUP($A24,'[3]Paypal Money Sent Pivot'!$A$4:$B$97,2,FALSE),0) -> 0 | BI24: =$BH24+$BI23-IFERROR(VLOOKUP($A24,[2]Sheet2!$A$4:$B$82,2,FALSE),0) -> -0.18 | BJ24: =IFERROR(VLOOKUP($A24,'[3]TexttoColumn Amazon Balance'!$A$14:$B$30,2,FALSE),0) -> 0 | BK24: =$BJ23+$BK23-IFERROR(VLOOKUP($A24,[2]Amazon!$A$2:$F$17,5,FALSE),0) -> 0 | BL24: =IFERROR(VLOOKUP($A24,'[4]Payment Pivot'!$A$4:$B$29,2,FALSE),0) -> 0 | BM24: =$BL24+$BM23-IFERROR(VLOOKUP($A24,'[2]Myaccountaccess Pivot'!$A$4:$B$31,2,FALSE),0) -> 0 | BO24: =IFERROR(VLOOKUP($A24,'[6]export-2'!$A$2:$F$15,6,FALSE),BO23) -> 0 | BP24: -51.29 | BQ24: =OFFSET(A24,0,'Cool Graph'!$H$1) -> 0 | BR24: =OFFSET(A24,0,'Cool Graph'!$I$1) -> -51.29
A25: 2011-07-24 | B25: 0 | C25: 0 | D25: 21.55 | E25: 0 | F25: 0 | G25: 21.55 | H25: 0 | I25: 0 | J25: 0 | K25: 0 | L25: 0 | M25: 0 | N25: 0 | O25: 0 | P25: 0 | Q25: 0 | R25: 0 | S25: 0 | T25: 0 | U25: 0 | V25: 0 | W25: 0 | X25: 0 | Y25: 0 | Z25: 0 | AA25: 0 | AB25: 0 | AC25: 0 | AD25: =IFERROR(VLOOKUP($A25,[1]Sheet1!$A$4:$B$219,2,FALSE),0) -> 0 | AE25: 0 | AF25: 49 | AG25: =$BH25+$BI24-IFERROR(VLOOKUP($A25,[2]Sheet2!$A$4:$B$82,2,FALSE),0) -> -0.18 | AH25: =$BJ24+$BK24-IFERROR(VLOOKUP($A25,[2]Amazon!$A$2:$F$17,5,FALSE),0) -> 0 | AI25: =$BL25+$BM24-IFERROR(VLOOKUP($A25,'[2]Myaccountaccess Pivot'!$A$4:$B$31,2,FALSE),0) -> 0 | AJ25: =IFERROR(VLOOKUP($A25,'[2]export-1'!$A$2:$F$441,6,FALSE),AJ24) -> 1787.79 | AK25: =IFERROR(VLOOKUP($A25,'[7]download-1'!$A$2:$F$513,6,FALSE),AK24) -> -50 | AL25: =IFERROR(VLOOKUP($A25,'[3]TexttoColumn Amazon Balance'!$A$14:$B$30,2,FALSE),IF(AL26>0,AL26-50,0)) -> 0 | AM25: 1737.61 | AN25: 2627.61 | AO25: 17 | AP25: 6 | AQ25: 0 | AR25: 0 | AX25: =IFERROR(VLOOKUP($A25,'[2]export-1'!$A$446:$G$451,7,FALSE),0) -> 0 | AY25: =IFERROR(VLOOKUP($A25,[3]Sheet4!$A$4:$B$56,2,FALSE),0) -> 0 | AZ25: =IFERROR(VLOOKUP($A25,'[3]headphones purchased'!$A$2:$G$27,6,FALSE),0) -> 0 | BA25: =ROUND(IFERROR(VLOOKUP($A25,'[4]download-1'!$A$471:$F$474,5,FALSE)/-9.5,0),0) -> 0 | BB25: =ROUND(IFERROR(VLOOKUP($A25,'[4]download-1'!$A$467:$F$469,5,FALSE)/-49,0),0) -> 0 | BC25: =IFERROR(VLOOKUP($A25,[5]Sheet8!$A$4:$B$89,2,FALSE),0) -> 0 | BF25: 1 | BG25: =IFERROR(VLOOKUP($A25,[3]Paypal!$A$2:$AA$1843,25,FALSE),0)-BH25 -> 0 | BH25: =IFERROR(VLOOKUP($A25,'[3]Paypal Money Sent Pivot'!$A$4:$B$97,2,FALSE),0) -> 0 | BI25: =$BH25+$BI24-IFERROR(VLOOKUP($A25,[2]Sheet2!$A$4:$B$82,2,FALSE),0) -> -0.18 | BJ25: =IFERROR(VLOOKUP($A25,'[3]TexttoColumn Amazon Balance'!$A$14:$B$30,2,FALSE),0) -> 0 | BK25: =$BJ24+$BK24-IFERROR(VLOOKUP($A25,[2]Amazon!$A$2:$F$17,5,FALSE),0) -> 0 | BL25: =IFERROR(VLOOKUP($A25,'[4]Payment Pivot'!$A$4:$B$29,2,FALSE),0) -> 0 | BM25: =$BL25+$BM24-IFERROR(VLOOKUP($A25,'[2]Myaccountaccess Pivot'!$A$4:$B$31,2,FALSE),0) -> 0 | BO25: =IFERROR(VLOOKUP($A25,'[6]export-2'!$A$2:$F$15,6,FALSE),BO24) -> 0 | BP25: -21.55 | BQ25: =OFFSET(A25,0,'Cool Graph'!$H$1) -> 0 | BR25: =OFFSET(A25,0,'Cool Graph'!$I$1) -> -21.55
A26: 2011-07-25 | B26: 0 | C26: 0 | D26: 113.04 | E26: 0 | F26: 0.3 | G26: 113.34 | H26: 0 | I26: 0 | J26: 0 | K26: 1 | L26: 0 | M26: 0 | N26: 0 | O26: 0 | P26: 0 | Q26: 0 | R26: 0 | S26: 0 | T26: 0 | U26: 0 | V26: 0 | W26: 0 | X26: 0 | Y26: 0 | Z26: 0 | AA26: 0 | AB26: 0 | AC26: 0 | AD26: =IFERROR(VLOOKUP($A26,[1]Sheet1!$A$4:$B$219,2,FALSE),0) -> 0 | AE26: 0 | AF26: -275 | AG26: =$BH26+$BI25-IFERROR(VLOOKUP($A26,[2]Sheet2!$A$4:$B$82,2,FALSE),0) -> -0.18 | AH26: =$BJ25+$BK25-IFERROR(VLOOKUP($A26,[2]Amazon!$A$2:$F$17,5,FALSE),0) -> 0 | AI26: =$BL26+$BM25-IFERROR(VLOOKUP($A26,'[2]Myaccountaccess Pivot'!$A$4:$B$31,2,FALSE),0) -> 0 | AJ26: =IFERROR(VLOOKUP($A26,'[2]export-1'!$A$2:$F$441,6,FALSE),AJ25) -> 1787.79 | AK26: =IFERROR(VLOOKUP($A26,'[7]download-1'!$A$2:$F$513,6,FALSE),AK25) -> -325 | AL26: =IFERROR(VLOOKUP($A26,'[3]TexttoColumn Amazon Balance'!$A$14:$B$30,2,FALSE),IF(AL27>0,AL27-50,0)) -> 0 | AM26: 1462.61 | AN26: 2352.61 | AO26: 17 | AP26: 6 | AQ26: 0 | AR26: 0 | AX26: =IFERROR(VLOOKUP($A26,'[2]export-1'!$A$446:$G$451,7,FALSE),0) -> 0 | AY26: =IFERROR(VLOOKUP($A26,[3]Sheet4!$A$4:$B$56,2,FALSE),0) -> 0 | AZ26: =IFERROR(VLOOKUP($A26,'[3]headphones purchased'!$A$2:$G$27,6,FALSE),0) -> 0 | BA26: =ROUND(IFERROR(VLOOKUP($A26,'[4]download-1'!$A$471:$F$474,5,FALSE)/-9.5,0),0) -> 0 | BB26: =ROUND(IFERROR(VLOOKUP($A26,'[4]download-1'!$A$467:$F$469,5,FALSE)/-49,0),0) -> 0 | BC26: =IFERROR(VLOOKUP($A26,[5]Sheet8!$A$4:$B$89,2,FALSE),0) -> 0 | BF26: 0 | BG26: =IFERROR(VLOOKUP($A26,[3]Paypal!$A$2:$AA$1843,25,FALSE),0)-BH26 -> 0 | BH26: =IFERROR(VLOOKUP($A26,'[3]Paypal Money Sent Pivot'!$A$4:$B$97,2,FALSE),0) -> 0 | BI26: =$BH26+$BI25-IFERROR(VLOOKUP($A26,[2]Sheet2!$A$4:$B$82,2,FALSE),0) -> -0.18 | BJ26: =IFERROR(VLOOKUP($A26,'[3]TexttoColumn Amazon Balance'!$A$14:$B$30,2,FALSE),0) -> 0 | BK26: =$BJ25+$BK25-IFERROR(VLOOKUP($A26,[2]Amazon!$A$2:$F$17,5,FALSE),0) -> 0 | BL26: =IFERROR(VLOOKUP($A26,'[4]Payment Pivot'!$A$4:$B$29,2,FALSE),0) -> 0 | BM26: =$BL26+$BM25-IFERROR(VLOOKUP($A26,'[2]Myaccountaccess Pivot'!$A$4:$B$31,2,FALSE),0) -> 0 | BO26: =IFERROR(VLOOKUP($A26,'[6]export-2'!$A$2:$F$15,6,FALSE),BO25) -> 0 | BP26: -113.34 | BQ26: =OFFSET(A26,0,'Cool Graph'!$H$1) -> 0 | BR26: =OFFSET(A26,0,'Cool Graph'!$I$1) -> -113.34
A27: 2011-07-26 | B27: 0 | C27: 0 | D27: 72.34 | E27: 0 | F27: 4.46 | G27: 76.8 | H27: 0 | I27: 0 | J27: 0 | K27: 2 | L27: 0 | M27: 0 | N27: 0 | O27: 0 | P27: 0 | Q27: 0 | R27: 0 | S27: 0 | T27: 0 | U27: 0 | V27: 0 | W27: 0 | X27: 2 | Y27: 2 | Z27: 0 | AA27: 0 | AB27: 2 | AC27: 0 | AD27: =IFERROR(VLOOKUP($A27,[1]Sheet1!$A$4:$B$219,2,FALSE),0) -> 330 | AE27: 330 | AF27: 1126.96 | AG27: =$BH27+$BI26-IFERROR(VLOOKUP($A27,[2]Sheet2!$A$4:$B$82,2,FALSE),0) -> -0.18 | AH27: =$BJ26+$BK26-IFERROR(VLOOKUP($A27,[2]Amazon!$A$2:$F$17,5,FALSE),0) -> 0 | AI27: =$BL27+$BM26-IFERROR(VLOOKUP($A27,'[2]Myaccountaccess Pivot'!$A$4:$B$31,2,FALSE),0) -> 0 | AJ27: =IFERROR(VLOOKUP($A27,'[2]export-1'!$A$2:$F$441,6,FALSE),AJ26) -> 1537.8 | AK27: =IFERROR(VLOOKUP($A27,'[7]download-1'!$A$2:$F$513,6,FALSE),AK26) -> -325 | AL27: =IFERROR(VLOOKUP($A27,'[3]TexttoColumn Amazon Balance'!$A$14:$B$30,2,FALSE),IF(AL28>0,AL28-50,0)) -> 0 | AM27: 2314.57 | AN27: 3479.57 | AO27: 23 | AP27: 4 | AQ27: 0 | AR27: 0 | AX27: =IFERROR(VLOOKUP($A27,'[2]export-1'!$A$446:$G$451,7,FALSE),0) -> 0 | AY27: =IFERROR(VLOOKUP($A27,[3]Sheet4!$A$4:$B$56,2,FALSE),0) -> 7 | AZ27: =IFERROR(VLOOKUP($A27,'[3]headphones purchased'!$A$2:$G$27,6,FALSE),0) -> 0 | BA27: =ROUND(IFERROR(VLOOKUP($A27,'[4]download-1'!$A$471:$F$474,5,FALSE)/-9.5,0),0) -> 0 | BB27: =ROUND(IFERROR(VLOOKUP($A27,'[4]download-1'!$A$467:$F$469,5,FALSE)/-49,0),0) -> 0 | BC27: =IFERROR(VLOOKUP($A27,[5]Sheet8!$A$4:$B$89,2,FALSE),0) -> 0 | BF27: 1 | BG27: =IFERROR(VLOOKUP($A27,[3]Paypal!$A$2:$AA$1843,25,FALSE),0)-BH27 -> 1101.95 | BH27: =IFERROR(VLOOKUP($A27,'[3]Paypal Money Sent Pivot'!$A$4:$B$97,2,FALSE),0) -> 0 | BI27: =$BH27+$BI26-IFERROR(VLOOKUP($A27,[2]Sheet2!$A$4:$B$82,2,FALSE),0) -> -0.18 | BJ27: =IFERROR(VLOOKUP($A27,'[3]TexttoColumn Amazon Balance'!$A$14:$B$30,2,FALSE),0) -> 0 | BK27: =$BJ26+$BK26-IFERROR(VLOOKUP($A27,[2]Amazon!$A$2:$F$17,5,FALSE),0) -> 0 | BL27: =IFERROR(VLOOKUP($A27,'[4]Payment Pivot'!$A$4:$B$39,2,FALSE),0) -> 0 | BM27: =$BL27+$BM26-IFERROR(VLOOKUP($A27,'[2]Myaccountaccess Pivot'!$A$4:$B$31,2,FALSE),0) -> 0 | BO27: =IFERROR(VLOOKUP($A27,'[6]export-2'!$A$2:$F$15,6,FALSE),BO26) -> 0 | BP27: 62.93987383 | BQ27: =OFFSET(A27,0,'Cool Graph'!$H$1) -> 0 | BR27: =OFFSET(A27,0,'Cool Graph'!$I$1) -> 62.93987383
A28: 2011-07-27 | B28: 0 | C28: 0 | D28: 54.28 | E28: 0 | F28: 3.99 | G28: 58.27 | H28: 0 | I28: 0 | J28: 0 | K28: 0 | L28: 0 | M28: 0 | N28: 0 | O28: 0 | P28: 0 | Q28: 0 | R28: 0 | S28: 0 | T28: 0 | U28: 0 | V28: 0 | W28: 0 | X28: 0 | Y28: 0 | Z28: 0 | AA28: 0 | AB28: 0 | AC28: 0 | AD28: =IFERROR(VLOOKUP($A28,[1]Sheet1!$A$4:$B$219,2,FALSE),0) -> 0 | AE28: 0 | AF28: -21.03 | AG28: =$BH28+$BI27-IFERROR(VLOOKUP($A28,[2]Sheet2!$A$4:$B$82,2,FALSE),0) -> 799.82 | AH28: =$BJ27+$BK27-IFERROR(VLOOKUP($A28,[2]Amazon!$A$2:$F$17,5,FALSE),0) -> 0 | AI28: =$BL28+$BM27-IFERROR(VLOOKUP($A28,'[2]Myaccountaccess Pivot'!$A$4:$B$31,2,FALSE),0) -> 0 | AJ28: =IFERROR(VLOOKUP($A28,'[2]export-1'!$A$2:$F$441,6,FALSE),AJ27) -> 1537.8 | AK28: =IFERROR(VLOOKUP($A28,'[7]download-1'!$A$2:$F$513,6,FALSE),AK27) -> -325 | AL28: =IFERROR(VLOOKUP($A28,'[3]TexttoColumn Amazon Balance'!$A$14:$B$30,2,FALSE),IF(AL29>0,AL29-50,0)) -> 0 | AM28: 2293.54 | AN28: 3458.54 | AO28: 23 | AP28: 4 | AQ28: 0 | AR28: 0 | AX28: =IFERROR(VLOOKUP($A28,'[2]export-1'!$A$446:$G$451,7,FALSE),0) -> 0 | AY28: =IFERROR(VLOOKUP($A28,[3]Sheet4!$A$4:$B$56,2,FALSE),0) -> 0 | AZ28: =IFERROR(VLOOKUP($A28,'[3]headphones purchased'!$A$2:$G$27,6,FALSE),0) -> 0 | BA28: =ROUND(IFERROR(VLOOKUP($A28,'[4]download-1'!$A$471:$F$474,5,FALSE)/-9.5,0),0) -> 0 | BB28: =ROUND(IFERROR(VLOOKUP($A28,'[4]download-1'!$A$467:$F$469,5,FALSE)/-49,0),0) -> 0 | BC28: =IFERROR(VLOOKUP($A28,[5]Sheet8!$A$4:$B$89,2,FALSE),0) -> 0 | BF28: 0 | BG28: =IFERROR(VLOOKUP($A28,[3]Paypal!$A$2:$AA$1843,25,FALSE),0) -> 280.92 | BH28: =IFERROR(VLOOKUP($A28,'[3]Paypal Money Sent Pivot'!$A$4:$B$97,2,FALSE),0) -> 800 | BI28: =$BH28+$BI27-IFERROR(VLOOKUP($A28,[2]Sheet2!$A$4:$B$82,2,FALSE),0) -> 799.82 | BJ28: =IFERROR(VLOOKUP($A28,'[3]TexttoColumn Amazon Balance'!$A$14:$B$30,2,FALSE),0) -> 0 | BK28: =$BJ27+$BK27-IFERROR(VLOOKUP($A28,[2]Amazon!$A$2:$F$17,5,FALSE),0) -> 0 | BL28: =IFERROR(VLOOKUP($A28,'[4]Payment Pivot'!$A$4:$B$39,2,FALSE),0) -> 0 | BM28: =$BL28+$BM27-IFERROR(VLOOKUP($A28,'[2]Myaccountaccess Pivot'!$A$4:$B$31,2,FALSE),0) -> 0 | BO28: =IFERROR(VLOOKUP($A28,'[6]export-2'!$A$2:$F$15,6,FALSE),BO27) -> 0 | BP28: -58.27 | BQ28: =OFFSET(A28,0,'Cool Graph'!$H$1) -> 0 | BR28: =OFFSET(A28,0,'Cool Graph'!$I$1) -> -58.27
A29: 2011-07-28 | B29: 0 | C29: 0 | D29: 100.48 | E29: 0 | F29: 3.75 | G29: 104.23 | H29: 0 | I29: 0 | J29: 0 | K29: 0 | L29: 0 | M29: 0 | N29: 0 | O29: 0 | P29: 0 | Q29: 0 | R29: 0 | S29: 0 | T29: 0 | U29: 0 | V29: 0 | W29: 0 | X29: 0 | Y29: 0 | Z29: 0 | AA29: 0 | AB29: 0 | AC29: 0 | AD29: =IFERROR(VLOOKUP($A29,[1]Sheet1!$A$4:$B$219,2,FALSE),0) -> 0 | AE29: 0 | AF29: -305.97 | AG29: =$BH29+$BI28-IFERROR(VLOOKUP($A29,[2]Sheet2!$A$4:$B$82,2,FALSE),0) -> 799.82 | AH29: =$BJ28+$BK28-IFERROR(VLOOKUP($A29,[2]Amazon!$A$2:$F$17,5,FALSE),0) -> 0 | AI29: =$BL29+$BM28-IFERROR(VLOOKUP($A29,'[2]Myaccountaccess Pivot'!$A$4:$B$31,2,FALSE),0) -> 0 | AJ29: =IFERROR(VLOOKUP($A29,'[2]export-1'!$A$2:$F$441,6,FALSE),AJ28) -> 1199.93 | AK29: =IFERROR(VLOOKUP($A29,'[7]download-1'!$A$2:$F$513,6,FALSE),AK28) -> -675 | AL29: =IFERROR(VLOOKUP($A29,'[3]TexttoColumn Amazon Balance'!$A$14:$B$30,2,FALSE),IF(AL30>0,AL30-50,0)) -> 0 | AM29: 1449.57 | AN29: 3152.57 | AO29: 27 | AP29: 40 | AQ29: 0 | AR29: 0 | AX29: =IFERROR(VLOOKUP($A29,'[2]export-1'!$A$446:$G$451,7,FALSE),0) -> 0 | AY29: =IFERROR(VLOOKUP($A29,[3]Sheet4!$A$4:$B$56,2,FALSE),0) -> 3 | AZ29: =IFERROR(VLOOKUP($A29,'[3]headphones purchased'!$A$2:$G$27,6,FALSE),0) -> 36 | BA29: =ROUND(IFERROR(VLOOKUP($A29,'[4]download-1'!$A$471:$F$474,5,FALSE)/-9.5,0),0) -> 0 | BB29: =ROUND(IFERROR(VLOOKUP($A29,'[4]download-1'!$A$467:$F$469,5,FALSE)/-49,0),0) -> 0 | BC29: =IFERROR(VLOOKUP($A29,[5]Sheet8!$A$4:$B$89,2,FALSE),0) -> 0 | BF29: 1 | BG29: =IFERROR(VLOOKUP($A29,[3]Paypal!$A$2:$AA$1843,25,FALSE),0)-BH29 -> 124.82 | BH29: =IFERROR(VLOOKUP($A29,'[3]Paypal Money Sent Pivot'!$A$4:$B$97,2,FALSE),0) -> 0 | BI29: =$BH29+$BI28-IFERROR(VLOOKUP($A29,[2]Sheet2!$A$4:$B$82,2,FALSE),0) -> 799.82 | BJ29: =IFERROR(VLOOKUP($A29,'[3]TexttoColumn Amazon Balance'!$A$14:$B$30,2,FALSE),0) -> 0 | BK29: =$BJ28+$BK28-IFERROR(VLOOKUP($A29,[2]Amazon!$A$2:$F$17,5,FALSE),0) -> 0 | BL29: =IFERROR(VLOOKUP($A29,'[4]Payment Pivot'!$A$4:$B$39,2,FALSE),0) -> 0 | BM29: =$BL29+$BM28-IFERROR(VLOOKUP($A29,'[2]Myaccountaccess Pivot'!$A$4:$B$31,2,FALSE),0) -> 0 | BO29: =IFERROR(VLOOKUP($A29,'[6]export-2'!$A$2:$F$15,6,FALSE),BO28) -> 0 | BP29: -104.23 | BQ29: =OFFSET(A29,0,'Cool Graph'!$H$1) -> 0 | BR29: =OFFSET(A29,0,'Cool Graph'!$I$1) -> -104.23
A30: 2011-07-29 | B30: 0 | C30: 0 | D30: 73.44 | E30: 0 | F30: 4.56 | G30: 78 | H30: 0 | I30: 0 | J30: 0 | K30: 0 | L30: 0 | M30: 0 | N30: 0 | O30: 0 | P30: 0 | Q30: 0 | R30: 0 | S30: 0 | T30: 0 | U30: 0 | V30: 0 | W30: 0 | X30: 3 | Y30: 3 | Z30: 0 | AA30: 0 | AB30: 3 | AC30: 0 | AD30: =IFERROR(VLOOKUP($A30,[1]Sheet1!$A$4:$B$219,2,FALSE),0) -> 495 | AE30: 495 | AF30: 293.21 | AG30: =$BH30+$BI29-IFERROR(VLOOKUP($A30,[2]Sheet2!$A$4:$B$82,2,FALSE),0) -> -0.18 | AH30: =$BJ29+$BK29-IFERROR(VLOOKUP($A30,[2]Amazon!$A$2:$F$17,5,FALSE),0) -> 0 | AI30: =$BL30+$BM29-IFERROR(VLOOKUP($A30,'[2]Myaccountaccess Pivot'!$A$4:$B$31,2,FALSE),0) -> 0 | AJ30: =IFERROR(VLOOKUP($A30,'[2]export-1'!$A$2:$F$441,6,FALSE),AJ29) -> 1999.93 | AK30: =IFERROR(VLOOKUP($A30,'[7]download-1'!$A$2:$F$513,6,FALSE),AK29) -> -675 | AL30: =IFERROR(VLOOKUP($A30,'[3]TexttoColumn Amazon Balance'!$A$14:$B$30,2,FALSE),IF(AL31>0,AL31-50,0)) -> 0 | AM30: 1918.28 | AN30: 3445.78 | AO30: 24 | AP30: 37 | AQ30: 0 | AR30: 0 | AX30: =IFERROR(VLOOKUP($A30,'[2]export-1'!$A$446:$G$451,7,FALSE),0) -> 0 | AY30: =IFERROR(VLOOKUP($A30,[3]Sheet4!$A$4:$B$56,2,FALSE),0) -> 0 | AZ30: =IFERROR(VLOOKUP($A30,'[3]headphones purchased'!$A$2:$G$27,6,FALSE),0) -> 0 | BA30: =ROUND(IFERROR(VLOOKUP($A30,'[4]download-1'!$A$471:$F$474,5,FALSE)/-9.5,0),0) -> 0 | BB30: =ROUND(IFERROR(VLOOKUP($A30,'[4]download-1'!$A$467:$F$469,5,FALSE)/-49,0),0) -> 0 | BC30: =IFERROR(VLOOKUP($A30,[5]Sheet8!$A$4:$B$89,2,FALSE),0) -> 0 | BF30: 0 | BG30: =IFERROR(VLOOKUP($A30,[3]Paypal!$A$2:$AA$1843,25,FALSE),0) -> 593.53 | BH30: =IFERROR(VLOOKUP($A30,'[3]Paypal Money Sent Pivot'!$A$4:$B$97,2,FALSE),0) -> 0 | BI30: =$BH30+$BI29-IFERROR(VLOOKUP($A30,[2]Sheet2!$A$4:$B$82,2,FALSE),0) -> -0.18 | BJ30: =IFERROR(VLOOKUP($A30,'[3]TexttoColumn Amazon Balance'!$A$14:$B$30,2,FALSE),0) -> 0 | BK30: =$BJ29+$BK29-IFERROR(VLOOKUP($A30,[2]Amazon!$A$2:$F$17,5,FALSE),0) -> 0 | BL30: =IFERROR(VLOOKUP($A30,'[4]Payment Pivot'!$A$4:$B$39,2,FALSE),0) -> 0 | BM30: =$BL30+$BM29-IFERROR(VLOOKUP($A30,'[2]Myaccountaccess Pivot'!$A$4:$B$31,2,FALSE),0) -> 0 | BO30: =IFERROR(VLOOKUP($A30,'[6]export-2'!$A$2:$F$15,6,FALSE),BO29) -> 0 | BP30: 131.6098108 | BQ30: =OFFSET(A30,0,'Cool Graph'!$H$1) -> 0 | BR30: =OFFSET(A30,0,'Cool Graph'!$I$1) -> 131.6098108
A31: 2011-07-30 | B31: 0 | C31: 0 | D31: 54.06 | E31: 0 | F31: 3.86 | G31: 57.92 | H31: 0 | I31: 0 | J31: 0 | K31: 1 | L31: 0 | M31: 0 | N31: 0 | O31: 0 | P31: 0 | Q31: 0 | R31: 0 | S31: 0 | T31: 2 | U31: 0 | V31: 0 | W31: 0 | X31: 0 | Y31: 0 | Z31: 0 | AA31: 0 | AB31: 2 | AC31: 339.24 | AD31: =IFERROR(VLOOKUP($A31,[1]Sheet1!$A$4:$B$219,2,FALSE),0) -> 0 | AE31: 339.24 | AF31: 105.08 | AG31: =$BH31+$BI30-IFERROR(VLOOKUP($A31,[2]Sheet2!$A$4:$B$82,2,FALSE),0) -> -0.18 | AH31: =$BJ30+$BK30-IFERROR(VLOOKUP($A31,[2]Amazon!$A$2:$F$17,5,FALSE),0) -> 0 | AI31: =$BL31+$BM30-IFERROR(VLOOKUP($A31,'[2]Myaccountaccess Pivot'!$A$4:$B$31,2,FALSE),0) -> 0 | AJ31: =IFERROR(VLOOKUP($A31,'[2]export-1'!$A$2:$F$441,6,FALSE),AJ30) -> 1999.93 | AK31: =IFERROR(VLOOKUP($A31,'[7]download-1'!$A$2:$F$513,6,FALSE),AK30) -> -675 | AL31: =IFERROR(VLOOKUP($A31,'[3]TexttoColumn Amazon Balance'!$A$14:$B$30,2,FALSE),IF(AL32>0,AL32-50,0)) -> 0 | AM31: 2072.36 | AN31: 3550.86 | AO31: 23 | AP31: 37 | AQ31: 0 | AR31: 0 | AX31: =IFERROR(VLOOKUP($A31,'[2]export-1'!$A$446:$G$451,7,FALSE),0) -> 0 | AY31: =IFERROR(VLOOKUP($A31,[3]Sheet4!$A$4:$B$56,2,FALSE),0) -> 0 | AZ31: =IFERROR(VLOOKUP($A31,'[3]headphones purchased'!$A$2:$G$27,6,FALSE),0) -> 0 | BA31: =ROUND(IFERROR(VLOOKUP($A31,'[4]download-1'!$A$471:$F$474,5,FALSE)/-9.5,0),0) -> 0 | BB31: =ROUND(IFERROR(VLOOKUP($A31,'[4]download-1'!$A$467:$F$469,5,FALSE)/-49,0),0) -> 0 | BC31: =IFERROR(VLOOKUP($A31,[5]Sheet8!$A$4:$B$89,2,FALSE),0) -> 0 | BF31: 1 | BG31: =IFERROR(VLOOKUP($A31,[3]Paypal!$A$2:$AA$1843,25,FALSE),0) -> 747.61 | BH31: =IFERROR(VLOOKUP($A31,'[3]Paypal Money Sent Pivot'!$A$4:$B$97,2,FALSE),0) -> 0 | BI31: =$BH31+$BI30-IFERROR(VLOOKUP($A31,[2]Sheet2!$A$4:$B$82,2,FALSE),0) -> -0.18 | BJ31: =IFERROR(VLOOKUP($A31,'[3]TexttoColumn Amazon Balance'!$A$14:$B$30,2,FALSE),0) -> 0 | BK31: =$BJ30+$BK30-IFERROR(VLOOKUP($A31,[2]Amazon!$A$2:$F$17,5,FALSE),0) -> 0 | BL31: =IFERROR(VLOOKUP($A31,'[4]Payment Pivot'!$A$4:$B$39,2,FALSE),0) -> 0 | BM31: =$BL31+$BM30-IFERROR(VLOOKUP($A31,'[2]Myaccountaccess Pivot'!$A$4:$B$31,2,FALSE),0) -> 0 | BO31: =IFERROR(VLOOKUP($A31,'[6]export-2'!$A$2:$F$15,6,FALSE),BO30) -> 0 | BP31: 85.7325903 | BQ31: =OFFSET(A31,0,'Cool Graph'!$H$1) -> 0 | BR31: =OFFSET(A31,0,'Cool Graph'!$I$1) -> 85.7325903
A32: 2011-07-31 | B32: 0 | C32: 0 | D32: 50.42 | E32: 0 | F32: 0 | G32: 50.42 | H32: 0 | I32: 0 | J32: 0 | K32: 0 | L32: 0 | M32: 0 | N32: 0 | O32: 0 | P32: 0 | Q32: 0 | R32: 0 | S32: 0 | T32: 0 | U32: 0 | V32: 0 | W32: 0 | X32: 4 | Y32: 4 | Z32: 0 | AA32: 0 | AB32: 4 | AC32: 0 | AD32: =IFERROR(VLOOKUP($A32,[1]Sheet1!$A$4:$B$219,2,FALSE),0) -> 660 | AE32: 660 | AF32: 365.18 | AG32: =$BH32+$BI31-IFERROR(VLOOKUP($A32,[2]Sheet2!$A$4:$B$82,2,FALSE),0) -> -0.18 | AH32: =$BJ31+$BK31-IFERROR(VLOOKUP($A32,[2]Amazon!$A$2:$F$17,5,FALSE),0) -> 0 | AI32: =$BL32+$BM31-IFERROR(VLOOKUP($A32,'[2]Myaccountaccess Pivot'!$A$4:$B$31,2,FALSE),0) -> 0 | AJ32: =IFERROR(VLOOKUP($A32,'[2]export-1'!$A$2:$F$441,6,FALSE),AJ31) -> 1999.93 | AK32: =IFERROR(VLOOKUP($A32,'[7]download-1'!$A$2:$F$513,6,FALSE),AK31) -> -675 | AL32: =IFERROR(VLOOKUP($A32,'[3]TexttoColumn Amazon Balance'!$A$14:$B$30,2,FALSE),IF(AL33>0,AL33-50,0)) -> -41.07 | AM32: 2671.54 | AN32: 3916.04 | AO32: 19 | AP32: 33 | AQ32: 0 | AR32: 0 | AX32: =IFERROR(VLOOKUP($A32,'[2]export-1'!$A$446:$G$451,7,FALSE),0) -> 0 | AY32: =IFERROR(VLOOKUP($A32,[3]Sheet4!$A$4:$B$56,2,FALSE),0) -> 0 | AZ32: =IFERROR(VLOOKUP($A32,'[3]headphones purchased'!$A$2:$G$27,6,FALSE),0) -> 0 | BA32: =ROUND(IFERROR(VLOOKUP($A32,'[4]download-1'!$A$471:$F$474,5,FALSE)/-9.5,0),0) -> 0 | BB32: =ROUND(IFERROR(VLOOKUP($A32,'[4]download-1'!$A$467:$F$469,5,FALSE)/-49,0),0) -> 0 | BC32: =IFERROR(VLOOKUP($A32,[5]Sheet8!$A$4:$B$89,2,FALSE),0) -> 0 | BF32: 0 | BG32: =IFERROR(VLOOKUP($A32,[3]Paypal!$A$2:$AA$1843,25,FALSE),0) -> 1387.86 | BH32: =IFERROR(VLOOKUP($A32,'[3]Paypal Money Sent Pivot'!$A$4:$B$97,2,FALSE),0) -> 0 | BI32: =$BH32+$BI31-IFERROR(VLOOKUP($A32,[2]Sheet2!$A$4:$B$82,2,FALSE),0) -> -0.18 | BJ32: =IFERROR(VLOOKUP($A32,'[3]TexttoColumn Amazon Balance'!$A$14:$B$30,2,FALSE),0) -> 0 | BK32: =$BJ31+$BK31-IFERROR(VLOOKUP($A32,[2]Amazon!$A$2:$F$17,5,FALSE),0) -> 0 | BL32: =IFERROR(VLOOKUP($A32,'[4]Payment Pivot'!$A$4:$B$39,2,FALSE),0) -> 0 | BM32: =$BL32+$BM31-IFERROR(VLOOKUP($A32,'[2]Myaccountaccess Pivot'!$A$4:$B$31,2,FALSE),0) -> 0 | BO32: =IFERROR(VLOOKUP($A32,'[6]export-2'!$A$2:$F$15,6,FALSE),BO31) -> 0 | BP32: 229.0597477 | BQ32: =OFFSET(A32,0,'Cool Graph'!$H$1) -> 0 | BR32: =OFFSET(A32,0,'Cool Graph'!$I$1) -> 229.0597477
A33: 2011-08-01 | B33: 0 | C33: 0 | D33: 99.45 | E33: 0 | F33: 0.14 | G33: 99.59 | H33: 0 | I33: 0 | J33: 0 | K33: 0 | L33: 0 | M33: 0 | N33: 0 | O33: 0 | P33: 0 | Q33: 0 | R33: 0 | S33: 0 | T33: 0 | U33: 0 | V33: 0 | W33: 0 | X33: 0 | Y33: 0 | Z33: 0 | AA33: 0 | AB33: 0 | AC33: 0 | AD33: =IFERROR(VLOOKUP($A33,[1]Sheet1!$A$4:$B$219,2,FALSE),0) -> 0 | AE33: 0 | AF33: -127.92 | AG33: =$BH33+$BI32-IFERROR(VLOOKUP($A33,[2]Sheet2!$A$4:$B$82,2,FALSE),0) -> -0.18 | AH33: =$BJ32+$BK32-IFERROR(VLOOKUP($A33,[2]Amazon!$A$2:$F$17,5,FALSE),0) -> 0 | AI33: =$BL33+$BM32-IFERROR(VLOOKUP($A33,'[2]Myaccountaccess Pivot'!$A$4:$B$31,2,FALSE),0) -> 625 | AJ33: =IFERROR(VLOOKUP($A33,'[2]export-1'!$A$2:$F$441,6,FALSE),AJ32) -> 1899.95 | AK33: =IFERROR(VLOOKUP($A33,'[7]download-1'!$A$2:$F$513,6,FALSE),AK32) -> -70.29 | AL33: =IFERROR(VLOOKUP($A33,'[3]TexttoColumn Amazon Balance'!$A$14:$B$30,2,FALSE),IF(AL34>0,AL34-50,0)) -> 8.93 | AM33: 2102.62 | AN33: 3788.12 | AO33: 28 | AP33: 33 | AQ33: 0 | AR33: 0 | AX33: =IFERROR(VLOOKUP($A33,'[2]export-1'!$A$446:$G$451,7,FALSE),0) -> 0 | AY33: =IFERROR(VLOOKUP($A33,[3]Sheet4!$A$4:$B$56,2,FALSE),0) -> 10 | AZ33: =IFERROR(VLOOKUP($A33,'[3]headphones purchased'!$A$2:$G$27,6,FALSE),0) -> 0 | BA33: =ROUND(IFERROR(VLOOKUP($A33,'[4]download-1'!$A$471:$F$474,5,FALSE)/-9.5,0),0) -> 0 | BB33: =ROUND(IFERROR(VLOOKUP($A33,'[4]download-1'!$A$467:$F$469,5,FALSE)/-49,0),0) -> 0 | BC33: =IFERROR(VLOOKUP($A33,[5]Sheet8!$A$4:$B$89,2,FALSE),0) -> 2 | BF33: 1 | BG33: =IFERROR(VLOOKUP($A33,[3]Paypal!$A$2:$AA$1843,25,FALSE),0) -> 889.21 | BH33: =IFERROR(VLOOKUP($A33,'[3]Paypal Money Sent Pivot'!$A$4:$B$97,2,FALSE),0) -> 0 | BI33: =$BH33+$BI32-IFERROR(VLOOKUP($A33,[2]Sheet2!$A$4:$B$82,2,FALSE),0) -> -0.18 | BJ33: =IFERROR(VLOOKUP($A33,'[3]TexttoColumn Amazon Balance'!$A$14:$B$30,2,FALSE),0) -> 0 | BK33: =$BJ32+$BK32-IFERROR(VLOOKUP($A33,[2]Amazon!$A$2:$F$17,5,FALSE),0) -> 0 | BL33: =IFERROR(VLOOKUP($A33,'[4]Payment Pivot'!$A$4:$B$39,2,FALSE),0) -> 625 | BM33: =$BL33+$BM32-IFERROR(VLOOKUP($A33,'[2]Myaccountaccess Pivot'!$A$4:$B$31,2,FALSE),0) -> 625 | BO33: =IFERROR(VLOOKUP($A33,'[6]export-2'!$A$2:$F$15,6,FALSE),BO32) -> 0 | BP33: -99.59 | BQ33: =OFFSET(A33,0,'Cool Graph'!$H$1) -> 0 | BR33: =OFFSET(A33,0,'Cool Graph'!$I$1) -> -99.59
A34: 2011-08-02 | B34: 0 | C34: 0.55 | D34: 111.41 | E34: 0 | F34: 6.92 | G34: 118.88 | H34: 0 | I34: 0 | J34: 0 | K34: 0 | L34: 0 | M34: 0 | N34: 0 | O34: 0 | P34: 0 | Q34: 0 | R34: 0 | S34: 0 | T34: 1 | U34: 0 | V34: 0 | W34: 0 | X34: 0 | Y34: 0 | Z34: 0 | AA34: 0 | AB34: 1 | AC34: 169.62 | AD34: =IFERROR(VLOOKUP($A34,[1]Sheet1!$A$4:$B$219,2,FALSE),0) -> 0 | AE34: 169.62 | AF34: -437.23 | AG34: =$BH34+$BI33-IFERROR(VLOOKUP($A34,[2]Sheet2!$A$4:$B$82,2,FALSE),0) -> -0.18 | AH34: =$BJ33+$BK33-IFERROR(VLOOKUP($A34,[2]Amazon!$A$2:$F$17,5,FALSE),0) -> 0 | AI34: =$BL34+$BM33-IFERROR(VLOOKUP($A34,'[2]Myaccountaccess Pivot'!$A$4:$B$31,2,FALSE),0) -> 0 | AJ34: =IFERROR(VLOOKUP($A34,'[2]export-1'!$A$2:$F$441,6,FALSE),AJ33) -> 1009.2 | AK34: =IFERROR(VLOOKUP($A34,'[7]download-1'!$A$2:$F$513,6,FALSE),AK33) -> -70.29 | AL34: =IFERROR(VLOOKUP($A34,'[3]TexttoColumn Amazon Balance'!$A$14:$B$30,2,FALSE),IF(AL35>0,AL35-50,0)) -> 58.93 | AM34: 1714.39 | AN34: 3350.89 | AO34: 27 | AP34: 33 | AQ34: 0 | AR34: 0 | AX34: =IFERROR(VLOOKUP($A34,'[2]export-1'!$A$446:$G$451,7,FALSE),0) -> 0 | AY34: =IFERROR(VLOOKUP($A34,[3]Sheet4!$A$4:$B$56,2,FALSE),0) -> 0 | AZ34: =IFERROR(VLOOKUP($A34,'[3]headphones purchased'!$A$2:$G$27,6,FALSE),0) -> 0 | BA34: =ROUND(IFERROR(VLOOKUP($A34,'[4]download-1'!$A$471:$F$474,5,FALSE)/-9.5,0),0) -> 0 | BB34: =ROUND(IFERROR(VLOOKUP($A34,'[4]download-1'!$A$467:$F$469,5,FALSE)/-49,0),0) -> 0 | BC34: =IFERROR(VLOOKUP($A34,[5]Sheet8!$A$4:$B$89,2,FALSE),0) -> 0 | BF34: 0 | BG34: =IFERROR(VLOOKUP($A34,[3]Paypal!$A$2:$AA$1843,25,FALSE),0) -> 716.73 | BH34: =IFERROR(VLOOKUP($A34,'[3]Paypal Money Sent Pivot'!$A$4:$B$97,2,FALSE),0) -> 0 | BI34: =$BH34+$BI33-IFERROR(VLOOKUP($A34,[2]Sheet2!$A$4:$B$82,2,FALSE),0) -> -0.18 | BJ34: =IFERROR(VLOOKUP($A34,'[3]TexttoColumn Amazon Balance'!$A$14:$B$30,2,FALSE),0) -> 0 | BK34: =$BJ33+$BK33-IFERROR(VLOOKUP($A34,[2]Amazon!$A$2:$F$17,5,FALSE),0) -> 0 | BL34: =IFERROR(VLOOKUP($A34,'[4]Payment Pivot'!$A$4:$B$39,2,FALSE),0) -> 0 | BM34: =$BL34+$BM33-IFERROR(VLOOKUP($A34,'[2]Myaccountaccess Pivot'!$A$4:$B$31,2,FALSE),0) -> 0 | BO34: =IFERROR(VLOOKUP($A34,'[6]export-2'!$A$2:$F$15,6,FALSE),BO33) -> 0 | BP34: -47.05370485 | BQ34: =OFFSET(A34,0,'Cool Graph'!$H$1) -> 0 | BR34: =OFFSET(A34,0,'Cool Graph'!$I$1) -> -47.05370485
A35: 2011-08-03 | B35: 0 | C35: 4.17 | D35: 83.23 | E35: 0 | F35: 6.05 | G35: 93.45 | H35: 0 | I35: 0 | J35: 0 | K35: 1 | L35: 0 | M35: 0 | N35: 0 | O35: 0 | P35: 0 | Q35: 0 | R35: 0 | S35: 0 | T35: 0 | U35: 0 | V35: 0 | W35: 0 | X35: 6 | Y35: 6 | Z35: 0 | AA35: 0 | AB35: 6 | AC35: 0 | AD35: =IFERROR(VLOOKUP($A35,[1]Sheet1!$A$4:$B$219,2,FALSE),0) -> 990 | AE35: 990 | AF35: 207.22 | AG35: =$BH35+$BI34-IFERROR(VLOOKUP($A35,[2]Sheet2!$A$4:$B$82,2,FALSE),0) -> -0.18 | AH35: =$BJ34+$BK34-IFERROR(VLOOKUP($A35,[2]Amazon!$A$2:$F$17,5,FALSE),0) -> 0 | AI35: =$BL35+$BM34-IFERROR(VLOOKUP($A35,'[2]Myaccountaccess Pivot'!$A$4:$B$31,2,FALSE),0) -> 0 | AJ35: =IFERROR(VLOOKUP($A35,'[2]export-1'!$A$2:$F$441,6,FALSE),AJ34) -> 1009.2 | AK35: =IFERROR(VLOOKUP($A35,'[7]download-1'!$A$2:$F$513,6,FALSE),AK34) -> -70.29 | AL35: =IFERROR(VLOOKUP($A35,'[3]TexttoColumn Amazon Balance'!$A$14:$B$30,2,FALSE),IF(AL36>0,AL36-50,0)) -> 108.93 | AM35: 1635.61 | AN35: 3558.11 | AO35: 34 | AP35: 27 | AQ35: 0 | AR35: 0 | AX35: =IFERROR(VLOOKUP($A35,'[2]export-1'!$A$446:$G$451,7,FALSE),0) -> 0 | AY35: =IFERROR(VLOOKUP($A35,[3]Sheet4!$A$4:$B$56,2,FALSE),0) -> 12 | AZ35: =IFERROR(VLOOKUP($A35,'[3]headphones purchased'!$A$2:$G$27,6,FALSE),0) -> 0 | BA35: =ROUND(IFERROR(VLOOKUP($A35,'[4]download-1'!$A$471:$F$474,5,FALSE)/-9.5,0),0) -> 0 | BB35: =ROUND(IFERROR(VLOOKUP($A35,'[4]download-1'!$A$467:$F$469,5,FALSE)/-49,0),0) -> 0 | BC35: =IFERROR(VLOOKUP($A35,[5]Sheet8!$A$4:$B$89,2,FALSE),0) -> 0 | BF35: 1 | BG35: =IFERROR(VLOOKUP($A35,[3]Paypal!$A$2:$AA$1843,25,FALSE),0) -> 587.95 | BH35: =IFERROR(VLOOKUP($A35,'[3]Paypal Money Sent Pivot'!$A$4:$B$97,2,FALSE),0) -> 0 | BI35: =$BH35+$BI34-IFERROR(VLOOKUP($A35,[2]Sheet2!$A$4:$B$82,2,FALSE),0) -> -0.18 | BJ35: =IFERROR(VLOOKUP($A35,'[3]TexttoColumn Amazon Balance'!$A$14:$B$30,2,FALSE),0) -> 0 | BK35: =$BJ34+$BK34-IFERROR(VLOOKUP($A35,[2]Amazon!$A$2:$F$17,5,FALSE),0) -> 0 | BL35: =IFERROR(VLOOKUP($A35,'[4]Payment Pivot'!$A$4:$B$39,2,FALSE),0) -> 0 | BM35: =$BL35+$BM34-IFERROR(VLOOKUP($A35,'[2]Myaccountaccess Pivot'!$A$4:$B$31,2,FALSE),0) -> 0 | BO35: =IFERROR(VLOOKUP($A35,'[6]export-2'!$A$2:$F$15,6,FALSE),BO34) -> 0 | BP35: 325.7696215 | BQ35: =OFFSET(A35,0,'Cool Graph'!$H$1) -> 0 | BR35: =OFFSET(A35,0,'Cool Graph'!$I$1) -> 325.7696215
A36: 2011-08-04 | B36: 0 | C36: 7.41 | D36: 58.4 | E36: 0 | F36: 6.63 | G36: 72.44 | H36: 0 | I36: 0 | J36: 0 | K36: 1 | L36: 0 | M36: 0 | N36: 0 | O36: 0 | P36: 0 | Q36: 0 | R36: 0 | S36: 0 | T36: 0 | U36: 0 | V36: 0 | W36: 0 | X36: 1 | Y36: 1 | Z36: 0 | AA36: 0 | AB36: 1 | AC36: 0 | AD36: =IFERROR(VLOOKUP($A36,[1]Sheet1!$A$4:$B$219,2,FALSE),0) -> 165 | AE36: 165 | AF36: -609.74 | AG36: =$BH36+$BI35-IFERROR(VLOOKUP($A36,[2]Sheet2!$A$4:$B$82,2,FALSE),0) -> -0.18 | AH36: =$BJ35+$BK35-IFERROR(VLOOKUP($A36,[2]Amazon!$A$2:$F$17,5,FALSE),0) -> 0 | AI36: =$BL36+$BM35-IFERROR(VLOOKUP($A36,'[2]Myaccountaccess Pivot'!$A$4:$B$31,2,FALSE),0) -> 0 | AJ36: =IFERROR(VLOOKUP($A36,'[2]export-1'!$A$2:$F$441,6,FALSE),AJ35) -> 926.57 | AK36: =IFERROR(VLOOKUP($A36,'[7]download-1'!$A$2:$F$513,6,FALSE),AK35) -> -571.75 | AL36: =IFERROR(VLOOKUP($A36,'[3]TexttoColumn Amazon Balance'!$A$14:$B$30,2,FALSE),IF(AL37>0,AL37-50,0)) -> 158.93 | AM36: 1084.37 | AN36: 2948.37 | AO36: 33 | AP36: 26 | AQ36: 0 | AR36: 0 | AX36: =IFERROR(VLOOKUP($A36,'[2]export-1'!$A$446:$G$451,7,FALSE),0) -> 0 | AY36: =IFERROR(VLOOKUP($A36,[3]Sheet4!$A$4:$B$56,2,FALSE),0) -> 0 | AZ36: =IFERROR(VLOOKUP($A36,'[3]headphones purchased'!$A$2:$G$27,6,FALSE),0) -> 0 | BA36: =ROUND(IFERROR(VLOOKUP($A36,'[4]download-1'!$A$471:$F$474,5,FALSE)/-9.5,0),0) -> 0 | BB36: =ROUND(IFERROR(VLOOKUP($A36,'[4]download-1'!$A$467:$F$469,5,FALSE)/-49,0),0) -> 0 | BC36: =IFERROR(VLOOKUP($A36,[5]Sheet8!$A$4:$B$89,2,FALSE),0) -> 0 | BF36: 0 | BG36: =IFERROR(VLOOKUP($A36,[3]Paypal!$A$2:$AA$1843,25,FALSE),0) -> 570.8 | BH36: =IFERROR(VLOOKUP($A36,'[3]Paypal Money Sent Pivot'!$A$4:$B$97,2,FALSE),0) -> 0 | BI36: =$BH36+$BI35-IFERROR(VLOOKUP($A36,[2]Sheet2!$A$4:$B$82,2,FALSE),0) -> -0.18 | BJ36: =IFERROR(VLOOKUP($A36,'[3]TexttoColumn Amazon Balance'!$A$14:$B$30,2,FALSE),0) -> 0 | BK36: =$BJ35+$BK35-IFERROR(VLOOKUP($A36,[2]Amazon!$A$2:$F$17,5,FALSE),0) -> 0 | BL36: =IFERROR(VLOOKUP($A36,'[4]Payment Pivot'!$A$4:$B$39,2,FALSE),0) -> 0 | BM36: =$BL36+$BM35-IFERROR(VLOOKUP($A36,'[2]Myaccountaccess Pivot'!$A$4:$B$31,2,FALSE),0) -> 0 | BO36: =IFERROR(VLOOKUP($A36,'[6]export-2'!$A$2:$F$15,6,FALSE),BO35) -> 0 | BP36: -2.570063083 | BQ36: =OFFSET(A36,0,'Cool Graph'!$H$1) -> 0 | BR36: =OFFSET(A36,0,'Cool Graph'!$I$1) -> -2.570063083
A37: 2011-08-05 | B37: 0 | C37: 6.3 | D37: 45.02 | E37: 0 | F37: 5.69 | G37: 57.01 | H37: 0 | I37: 0 | J37: 0 | K37: 2 | L37: 0 | M37: 0 | N37: 0 | O37: 0 | P37: 0 | Q37: 0 | R37: 0 | S37: 0 | T37: 1 | U37: 0 | V37: 0 | W37: 0 | X37: 0 | Y37: 0 | Z37: 0 | AA37: 0 | AB37: 1 | AC37: 165 | AD37: =IFERROR(VLOOKUP($A37,[1]Sheet1!$A$4:$B$219,2,FALSE),0) -> 0 | AE37: 165 | AF37: 209.91 | AG37: =$BH37+$BI36-IFERROR(VLOOKUP($A37,[2]Sheet2!$A$4:$B$82,2,FALSE),0) -> -0.18 | AH37: =$BJ36+$BK36-IFERROR(VLOOKUP($A37,[2]Amazon!$A$2:$F$17,5,FALSE),0) -> 0 | AI37: =$BL37+$BM36-IFERROR(VLOOKUP($A37,'[2]Myaccountaccess Pivot'!$A$4:$B$31,2,FALSE),0) -> 0 | AJ37: =IFERROR(VLOOKUP($A37,'[2]export-1'!$A$2:$F$441,6,FALSE),AJ36) -> 926.57 | AK37: =IFERROR(VLOOKUP($A37,'[7]download-1'!$A$2:$F$513,6,FALSE),AK36) -> -571.75 | AL37: =IFERROR(VLOOKUP($A37,'[3]TexttoColumn Amazon Balance'!$A$14:$B$30,2,FALSE),IF(AL38>0,AL38-50,0)) -> 208.93 | AM37: 1294.28 | AN37: 3158.28 | AO37: 33 | AP37: 26 | AQ37: 0 | AR37: 0 | AX37: =IFERROR(VLOOKUP($A37,'[2]export-1'!$A$446:$G$451,7,FALSE),0) -> 0 | AY37: =IFERROR(VLOOKUP($A37,[3]Sheet4!$A$4:$B$56,2,FALSE),0) -> 0 | AZ37: =IFERROR(VLOOKUP($A37,'[3]headphones purchased'!$A$2:$G$27,6,FALSE),0) -> 0 | BA37: =ROUND(IFERROR(VLOOKUP($A37,'[4]download-1'!$A$471:$F$474,5,FALSE)/-9.5,0),0) -> 0 | BB37: =ROUND(IFERROR(VLOOKUP($A37,'[4]download-1'!$A$467:$F$469,5,FALSE)/-49,0),0) -> 0 | BC37: =IFERROR(VLOOKUP($A37,[5]Sheet8!$A$4:$B$89,2,FALSE),0) -> 0 | BF37: 1 | BG37: =IFERROR(VLOOKUP($A37,[3]Paypal!$A$2:$AA$1843,25,FALSE),0) -> 730.71 | BH37: =IFERROR(VLOOKUP($A37,'[3]Paypal Money Sent Pivot'!$A$4:$B$97,2,FALSE),0) -> 0 | BI37: =$BH37+$BI36-IFERROR(VLOOKUP($A37,[2]Sheet2!$A$4:$B$82,2,FALSE),0) -> -0.18 | BJ37: =IFERROR(VLOOKUP($A37,'[3]TexttoColumn Amazon Balance'!$A$14:$B$30,2,FALSE),0) -> 0 | BK37: =$BJ36+$BK36-IFERROR(VLOOKUP($A37,[2]Amazon!$A$2:$F$17,5,FALSE),0) -> 0 | BL37: =IFERROR(VLOOKUP($A37,'[4]Payment Pivot'!$A$4:$B$39,2,FALSE),0) -> 0 | BM37: =$BL37+$BM36-IFERROR(VLOOKUP($A37,'[2]Myaccountaccess Pivot'!$A$4:$B$31,2,FALSE),0) -> 0 | BO37: =IFERROR(VLOOKUP($A37,'[6]export-2'!$A$2:$F$15,6,FALSE),BO36) -> 0 | BP37: 12.85993692 | BQ37: =OFFSET(A37,0,'Cool Graph'!$H$1) -> 0 | BR37: =OFFSET(A37,0,'Cool Graph'!$I$1) -> 12.85993692
A38: 2011-08-06 | B38: 0 | C38: 3.37 | D38: 44.28 | E38: 0 | F38: 1.99 | G38: 49.64 | H38: 0 | I38: 0 | J38: 0 | K38: 0 | L38: 0 | M38: 0 | N38: 0 | O38: 0 | P38: 0 | Q38: 0 | R38: 0 | S38: 0 | T38: 0 | U38: 0 | V38: 0 | W38: 0 | X38: 2 | Y38: 2 | Z38: 0 | AA38: 0 | AB38: 2 | AC38: 0 | AD38: =IFERROR(VLOOKUP($A38,[1]Sheet1!$A$4:$B$219,2,FALSE),0) -> 330 | AE38: 330 | AF38: 237.93 | AG38: =$BH38+$BI37-IFERROR(VLOOKUP($A38,[2]Sheet2!$A$4:$B$82,2,FALSE),0) -> -0.18 | AH38: =$BJ37+$BK37-IFERROR(VLOOKUP($A38,[2]Amazon!$A$2:$F$17,5,FALSE),0) -> 0 | AI38: =$BL38+$BM37-IFERROR(VLOOKUP($A38,'[2]Myaccountaccess Pivot'!$A$4:$B$31,2,FALSE),0) -> 0 | AJ38: =IFERROR(VLOOKUP($A38,'[2]export-1'!$A$2:$F$441,6,FALSE),AJ37) -> 926.57 | AK38: =IFERROR(VLOOKUP($A38,'[7]download-1'!$A$2:$F$513,6,FALSE),AK37) -> -571.75 | AL38: =IFERROR(VLOOKUP($A38,'[3]TexttoColumn Amazon Balance'!$A$14:$B$30,2,FALSE),IF(AL39>0,AL39-50,0)) -> 258.93 | AM38: 1649.21 | AN38: 3396.21 | AO38: 31 | AP38: 24 | AQ38: 0 | AR38: 0 | AX38: =IFERROR(VLOOKUP($A38,'[2]export-1'!$A$446:$G$451,7,FALSE),0) -> 0 | AY38: =IFERROR(VLOOKUP($A38,[3]Sheet4!$A$4:$B$56,2,FALSE),0) -> 0 | AZ38: =IFERROR(VLOOKUP($A38,'[3]headphones purchased'!$A$2:$G$27,6,FALSE),0) -> 0 | BA38: =ROUND(IFERROR(VLOOKUP($A38,'[4]download-1'!$A$471:$F$474,5,FALSE)/-9.5,0),0) -> 0 | BB38: =ROUND(IFERROR(VLOOKUP($A38,'[4]download-1'!$A$467:$F$469,5,FALSE)/-49,0),0) -> 0 | BC38: =IFERROR(VLOOKUP($A38,[5]Sheet8!$A$4:$B$89,2,FALSE),0) -> 0 | BF38: 0 | BG38: =IFERROR(VLOOKUP($A38,[3]Paypal!$A$2:$AA$1843,25,FALSE),0) -> 1035.64 | BH38: =IFERROR(VLOOKUP($A38,'[3]Paypal Money Sent Pivot'!$A$4:$B$97,2,FALSE),0) -> 0 | BI38: =$BH38+$BI37-IFERROR(VLOOKUP($A38,[2]Sheet2!$A$4:$B$82,2,FALSE),0) -> -0.18 | BJ38: =IFERROR(VLOOKUP($A38,'[3]TexttoColumn Amazon Balance'!$A$14:$B$30,2,FALSE),0) -> 0 | BK38: =$BJ37+$BK37-IFERROR(VLOOKUP($A38,[2]Amazon!$A$2:$F$17,5,FALSE),0) -> 0 | BL38: =IFERROR(VLOOKUP($A38,'[4]Payment Pivot'!$A$4:$B$39,2,FALSE),0) -> 0 | BM38: =$BL38+$BM37-IFERROR(VLOOKUP($A38,'[2]Myaccountaccess Pivot'!$A$4:$B$31,2,FALSE),0) -> 0 | BO38: =IFERROR(VLOOKUP($A38,'[6]export-2'!$A$2:$F$15,6,FALSE),BO37) -> 0 | BP38: 90.09987383 | BQ38: =OFFSET(A38,0,'Cool Graph'!$H$1) -> 0 | BR38: =OFFSET(A38,0,'Cool Graph'!$I$1) -> 90.09987383
A39: 2011-08-07 | B39: 0 | C39: 8.42 | D39: 75.05 | E39: 0 | F39: 0 | G39: 83.47 | H39: 0 | I39: 0 | J39: 0 | K39: 1 | L39: 0 | M39: 0 | N39: 0 | O39: 0 | P39: 0 | Q39: 0 | R39: 0 | S39: 0 | T39: 0 | U39: 0 | V39: 0 | W39: 0 | X39: 1 | Y39: 1 | Z39: 0 | AA39: 0 | AB39: 1 | AC39: 0 | AD39: =IFERROR(VLOOKUP($A39,[1]Sheet1!$A$4:$B$219,2,FALSE),0) -> 165 | AE39: 165 | AF39: 520.23 | AG39: =$BH39+$BI38-IFERROR(VLOOKUP($A39,[2]Sheet2!$A$4:$B$82,2,FALSE),0) -> -0.18 | AH39: =$BJ38+$BK38-IFERROR(VLOOKUP($A39,[2]Amazon!$A$2:$F$17,5,FALSE),0) -> 0 | AI39: =$BL39+$BM38-IFERROR(VLOOKUP($A39,'[2]Myaccountaccess Pivot'!$A$4:$B$31,2,FALSE),0) -> 0 | AJ39: =IFERROR(VLOOKUP($A39,'[2]export-1'!$A$2:$F$441,6,FALSE),AJ38) -> 926.57 | AK39: =IFERROR(VLOOKUP($A39,'[7]download-1'!$A$2:$F$513,6,FALSE),AK38) -> -571.75 | AL39: =IFERROR(VLOOKUP($A39,'[3]TexttoColumn Amazon Balance'!$A$14:$B$30,2,FALSE),IF(AL40>0,AL40-50,0)) -> 308.93 | AM39: 2178.94 | AN39: 3916.44 | AO39: 31 | AP39: 23 | AQ39: 0 | AR39: 0 | AX39: =IFERROR(VLOOKUP($A39,'[2]export-1'!$A$446:$G$451,7,FALSE),0) -> 0 | AY39: =IFERROR(VLOOKUP($A39,[3]Sheet4!$A$4:$B$56,2,FALSE),0) -> 0 | AZ39: =IFERROR(VLOOKUP($A39,'[3]headphones purchased'!$A$2:$G$27,6,FALSE),0) -> 0 | BA39: =ROUND(IFERROR(VLOOKUP($A39,'[4]download-1'!$A$471:$F$474,5,FALSE)/-9.5,0),0) -> 0 | BB39: =ROUND(IFERROR(VLOOKUP($A39,'[4]download-1'!$A$467:$F$469,5,FALSE)/-49,0),0) -> 0 | BC39: =IFERROR(VLOOKUP($A39,[5]Sheet8!$A$4:$B$89,2,FALSE),0) -> 0 | BF39: 1 | BG39: =IFERROR(VLOOKUP($A39,[3]Paypal!$A$2:$AA$1843,25,FALSE),0) -> 1515.37 | BH39: =IFERROR(VLOOKUP($A39,'[3]Paypal Money Sent Pivot'!$A$4:$B$97,2,FALSE),0) -> 0 | BI39: =$BH39+$BI38-IFERROR(VLOOKUP($A39,[2]Sheet2!$A$4:$B$82,2,FALSE),0) -> -0.18 | BJ39: =IFERROR(VLOOKUP($A39,'[3]TexttoColumn Amazon Balance'!$A$14:$B$30,2,FALSE),0) -> 0 | BK39: =$BJ38+$BK38-IFERROR(VLOOKUP($A39,[2]Amazon!$A$2:$F$17,5,FALSE),0) -> 0 | BL39: =IFERROR(VLOOKUP($A39,'[4]Payment Pivot'!$A$4:$B$39,2,FALSE),0) -> 0 | BM39: =$BL39+$BM38-IFERROR(VLOOKUP($A39,'[2]Myaccountaccess Pivot'!$A$4:$B$31,2,FALSE),0) -> 0 | BO39: =IFERROR(VLOOKUP($A39,'[6]export-2'!$A$2:$F$15,6,FALSE),BO38) -> 0 | BP39: -13.60006308 | BQ39: =OFFSET(A39,0,'Cool Graph'!$H$1) -> 0 | BR39: =OFFSET(A39,0,'Cool Graph'!$I$1) -> -13.60006308
A40: 2011-08-08 | B40: 0 | C40: 3.85 | D40: 73.22 | E40: 0 | F40: 0 | G40: 77.07 | H40: 0 | I40: 0 | J40: 0 | K40: 3 | L40: 0 | M40: 0 | N40: 0 | O40: 0 | P40: 0 | Q40: 0 | R40: 0 | S40: 0 | T40: 0 | U40: 0 | V40: 0 | W40: 0 | X40: 3 | Y40: 3 | Z40: 0 | AA40: 0 | AB40: 3 | AC40: 0 | AD40: =IFERROR(VLOOKUP($A40,[1]Sheet1!$A$4:$B$219,2,FALSE),0) -> 495 | AE40: 495 | AF40: 358.23 | AG40: =$BH40+$BI39-IFERROR(VLOOKUP($A40,[2]Sheet2!$A$4:$B$82,2,FALSE),0) -> -0.18 | AH40: =$BJ39+$BK39-IFERROR(VLOOKUP($A40,[2]Amazon!$A$2:$F$17,5,FALSE),0) -> 0 | AI40: =$BL40+$BM39-IFERROR(VLOOKUP($A40,'[2]Myaccountaccess Pivot'!$A$4:$B$31,2,FALSE),0) -> 0 | AJ40: =IFERROR(VLOOKUP($A40,'[2]export-1'!$A$2:$F$441,6,FALSE),AJ39) -> 793.52 | AK40: =IFERROR(VLOOKUP($A40,'[7]download-1'!$A$2:$F$513,6,FALSE),AK39) -> -571.75 | AL40: =IFERROR(VLOOKUP($A40,'[3]TexttoColumn Amazon Balance'!$A$14:$B$30,2,FALSE),IF(AL41>0,AL41-50,0)) -> 358.93 | AM40: 2418.67 | AN40: 4274.67 | AO40: 34 | AP40: 20 | AQ40: 0 | AR40: 0 | AX40: =IFERROR(VLOOKUP($A40,'[2]export-1'!$A$446:$G$451,7,FALSE),0) -> 0 | AY40: =IFERROR(VLOOKUP($A40,[3]Sheet4!$A$4:$B$56,2,FALSE),0) -> 6 | AZ40: =IFERROR(VLOOKUP($A40,'[3]headphones purchased'!$A$2:$G$27,6,FALSE),0) -> 0 | BA40: =ROUND(IFERROR(VLOOKUP($A40,'[4]download-1'!$A$471:$F$474,5,FALSE)/-9.5,0),0) -> 0 | BB40: =ROUND(IFERROR(VLOOKUP($A40,'[4]download-1'!$A$467:$F$469,5,FALSE)/-49,0),0) -> 0 | BC40: =IFERROR(VLOOKUP($A40,[5]Sheet8!$A$4:$B$89,2,FALSE),0) -> 0 | BF40: 0 | BG40: =IFERROR(VLOOKUP($A40,[3]Paypal!$A$2:$AA$1843,25,FALSE),0) -> 1838.15 | BH40: =IFERROR(VLOOKUP($A40,'[3]Paypal Money Sent Pivot'!$A$4:$B$97,2,FALSE),0) -> 0 | BI40: =$BH40+$BI39-IFERROR(VLOOKUP($A40,[2]Sheet2!$A$4:$B$82,2,FALSE),0) -> -0.18 | BJ40: =IFERROR(VLOOKUP($A40,'[3]TexttoColumn Amazon Balance'!$A$14:$B$30,2,FALSE),0) -> 0 | BK40: =$BJ39+$BK39-IFERROR(VLOOKUP($A40,[2]Amazon!$A$2:$F$17,5,FALSE),0) -> 0 | BL40: =IFERROR(VLOOKUP($A40,'[4]Payment Pivot'!$A$4:$B$39,2,FALSE),0) -> 0 | BM40: =$BL40+$BM39-IFERROR(VLOOKUP($A40,'[2]Myaccountaccess Pivot'!$A$4:$B$31,2,FALSE),0) -> 0 | BO40: =IFERROR(VLOOKUP($A40,'[6]export-2'!$A$2:$F$15,6,FALSE),BO39) -> 0 | BP40: 132.5398108 | BQ40: =OFFSET(A40,0,'Cool Graph'!$H$1) -> 0 | BR40: =OFFSET(A40,0,'Cool Graph'!$I$1) -> 132.5398108
A41: 2011-08-09 | B41: 0 | C41: 9.61 | D41: 75.99 | E41: 0 | F41: 4.7 | G41: 90.3 | H41: 0 | I41: 0 | J41: 0 | K41: 1 | L41: 0 | M41: 0 | N41: 0 | O41: 0 | P41: 0 | Q41: 0 | R41: 0 | S41: 0 | T41: 0 | U41: 0 | V41: 0 | W41: 0 | X41: 6 | Y41: 6 | Z41: 0 | AA41: 0 | AB41: 6 | AC41: 0 | AD41: =IFERROR(VLOOKUP($A41,[1]Sheet1!$A$4:$B$219,2,FALSE),0) -> 990 | AE41: 990 | AF41: 376.62 | AG41: =$BH41+$BI40-IFERROR(VLOOKUP($A41,[2]Sheet2!$A$4:$B$82,2,FALSE),0) -> -0.18 | AH41: =$BJ40+$BK40-IFERROR(VLOOKUP($A41,[2]Amazon!$A$2:$F$17,5,FALSE),0) -> 0 | AI41: =$BL41+$BM40-IFERROR(VLOOKUP($A41,'[2]Myaccountaccess Pivot'!$A$4:$B$31,2,FALSE),0) -> 0 | AJ41: =IFERROR(VLOOKUP($A41,'[2]export-1'!$A$2:$F$441,6,FALSE),AJ40) -> 793.52 | AK41: =IFERROR(VLOOKUP($A41,'[7]download-1'!$A$2:$F$513,6,FALSE),AK40) -> -571.75 | AL41: =IFERROR(VLOOKUP($A41,'[3]TexttoColumn Amazon Balance'!$A$14:$B$30,2,FALSE),IF(AL42>0,AL42-50,0)) -> 408.93 | AM41: 3097.29 | AN41: 4651.29 | AO41: 29 | AP41: 14 | AQ41: 0 | AR41: 0 | AX41: =IFERROR(VLOOKUP($A41,'[2]export-1'!$A$446:$G$451,7,FALSE),0) -> 0 | AY41: =IFERROR(VLOOKUP($A41,[3]Sheet4!$A$4:$B$56,2,FALSE),0) -> 0 | AZ41: =IFERROR(VLOOKUP($A41,'[3]headphones purchased'!$A$2:$G$27,6,FALSE),0) -> 0 | BA41: =ROUND(IFERROR(VLOOKUP($A41,'[4]download-1'!$A$471:$F$474,5,FALSE)/-9.5,0),0) -> 0 | BB41: =ROUND(IFERROR(VLOOKUP($A41,'[4]download-1'!$A$467:$F$469,5,FALSE)/-49,0),0) -> 0 | BC41: =IFERROR(VLOOKUP($A41,[5]Sheet8!$A$4:$B$89,2,FALSE),0) -> 0 | BF41: 1 | BG41: =IFERROR(VLOOKUP($A41,[3]Paypal!$A$2:$AA$1843,25,FALSE),0) -> 2466.77 | BH41: =IFERROR(VLOOKUP($A41,'[3]Paypal Money Sent Pivot'!$A$4:$B$97,2,FALSE),0) -> 0 | BI41: =$BH41+$BI40-IFERROR(VLOOKUP($A41,[2]Sheet2!$A$4:$B$82,2,FALSE),0) -> -0.18 | BJ41: =IFERROR(VLOOKUP($A41,'[3]TexttoColumn Amazon Balance'!$A$14:$B$30,2,FALSE),0) -> 0 | BK41: =$BJ40+$BK40-IFERROR(VLOOKUP($A41,[2]Amazon!$A$2:$F$17,5,FALSE),0) -> 0 | BL41: =IFERROR(VLOOKUP($A41,'[4]Payment Pivot'!$A$4:$B$39,2,FALSE),0) -> 0 | BM41: =$BL41+$BM40-IFERROR(VLOOKUP($A41,'[2]Myaccountaccess Pivot'!$A$4:$B$31,2,FALSE),0) -> 0 | BO41: =IFERROR(VLOOKUP($A41,'[6]export-2'!$A$2:$F$15,6,FALSE),BO40) -> 0 | BP41: 328.9196215 | BQ41: =OFFSET(A41,0,'Cool Graph'!$H$1) -> 0 | BR41: =OFFSET(A41,0,'Cool Graph'!$I$1) -> 328.9196215
A42: 2011-08-10 | B42: 0 | C42: 6.79 | D42: 82.63 | E42: 0 | F42: 3.79 | G42: 93.21 | H42: 0 | I42: 0 | J42: 0 | K42: 2 | L42: 0 | M42: 0 | N42: 0 | O42: 0 | P42: 0 | Q42: 0 | R42: 0 | S42: 0 | T42: 0 | U42: 0 | V42: 0 | W42: 0 | X42: 1 | Y42: 1 | Z42: 0 | AA42: 0 | AB42: 1 | AC42: 0 | AD42: =IFERROR(VLOOKUP($A42,[1]Sheet1!$A$4:$B$219,2,FALSE),0) -> 165 | AE42: 165 | AF42: 222.47 | AG42: =$BH42+$BI41-IFERROR(VLOOKUP($A42,[2]Sheet2!$A$4:$B$82,2,FALSE),0) -> -0.18 | AH42: =$BJ41+$BK41-IFERROR(VLOOKUP($A42,[2]Amazon!$A$2:$F$17,5,FALSE),0) -> 0 | AI42: =$BL42+$BM41-IFERROR(VLOOKUP($A42,'[2]Myaccountaccess Pivot'!$A$4:$B$31,2,FALSE),0) -> 0 | AJ42: =IFERROR(VLOOKUP($A42,'[2]export-1'!$A$2:$F$441,6,FALSE),AJ41) -> 573.52 | AK42: =IFERROR(VLOOKUP($A42,'[7]download-1'!$A$2:$F$513,6,FALSE),AK41) -> -571.75 | AL42: =IFERROR(VLOOKUP($A42,'[3]TexttoColumn Amazon Balance'!$A$14:$B$30,2,FALSE),IF(AL43>0,AL43-50,0)) -> 458.93 | AM42: 2643.26 | AN42: 4873.76 | AO42: 43 | AP42: 13 | AQ42: 0 | AR42: 0 | AX42: =IFERROR(VLOOKUP($A42,'[2]export-1'!$A$446:$G$451,7,FALSE),0) -> 0 | AY42: =IFERROR(VLOOKUP($A42,[3]Sheet4!$A$4:$B$56,2,FALSE),0) -> 15 | AZ42: =IFERROR(VLOOKUP($A42,'[3]headphones purchased'!$A$2:$G$27,6,FALSE),0) -> 0 | BA42: =ROUND(IFERROR(VLOOKUP($A42,'[4]download-1'!$A$471:$F$474,5,FALSE)/-9.5,0),0) -> 0 | BB42: =ROUND(IFERROR(VLOOKUP($A42,'[4]download-1'!$A$467:$F$469,5,FALSE)/-49,0),0) -> 0 | BC42: =IFERROR(VLOOKUP($A42,[5]Sheet8!$A$4:$B$89,2,FALSE),0) -> 0 | BF42: 0 | BG42: =IFERROR(VLOOKUP($A42,[3]Paypal!$A$2:$AA$1843,25,FALSE),0) -> 2182.74 | BH42: =IFERROR(VLOOKUP($A42,'[3]Paypal Money Sent Pivot'!$A$4:$B$97,2,FALSE),0) -> 0 | BI42: =$BH42+$BI41-IFERROR(VLOOKUP($A42,[2]Sheet2!$A$4:$B$82,2,FALSE),0) -> -0.18 | BJ42: =IFERROR(VLOOKUP($A42,'[3]TexttoColumn Amazon Balance'!$A$14:$B$30,2,FALSE),0) -> 0 | BK42: =$BJ41+$BK41-IFERROR(VLOOKUP($A42,[2]Amazon!$A$2:$F$17,5,FALSE),0) -> 0 | BL42: =IFERROR(VLOOKUP($A42,'[4]Payment Pivot'!$A$4:$B$39,2,FALSE),0) -> 0 | BM42: =$BL42+$BM41-IFERROR(VLOOKUP($A42,'[2]Myaccountaccess Pivot'!$A$4:$B$31,2,FALSE),0) -> 0 | BO42: =IFERROR(VLOOKUP($A42,'[6]export-2'!$A$2:$F$15,6,FALSE),BO41) -> 0 | BP42: -23.34006308 | BQ42: =OFFSET(A42,0,'Cool Graph'!$H$1) -> 0 | BR42: =OFFSET(A42,0,'Cool Graph'!$I$1) -> -23.34006308
A43: 2011-08-11 | B43: 0 | C43: 7.38 | D43: 62.85 | E43: 0 | F43: 1.62 | G43: 71.85 | H43: 0 | I43: 0 | J43: 0 | K43: 0 | L43: 0 | M43: 0 | N43: 1 | O43: 0 | P43: 0 | Q43: 0 | R43: 0 | S43: 0 | T43: 0 | U43: 0 | V43: 0 | W43: 0 | X43: 1 | Y43: 1 | Z43: 0 | AA43: 0 | AB43: 1 | AC43: 0 | AD43: =IFERROR(VLOOKUP($A43,[1]Sheet1!$A$4:$B$219,2,FALSE),0) -> 165 | AE43: 165 | AF43: -315.95 | AG43: =$BH43+$BI42-IFERROR(VLOOKUP($A43,[2]Sheet2!$A$4:$B$82,2,FALSE),0) -> -0.18 | AH43: =$BJ42+$BK42-IFERROR(VLOOKUP($A43,[2]Amazon!$A$2:$F$17,5,FALSE),0) -> 0 | AI43: =$BL43+$BM42-IFERROR(VLOOKUP($A43,'[2]Myaccountaccess Pivot'!$A$4:$B$31,2,FALSE),0) -> 0 | AJ43: =IFERROR(VLOOKUP($A43,'[2]export-1'!$A$2:$F$441,6,FALSE),AJ42) -> 573.52 | AK43: =IFERROR(VLOOKUP($A43,'[7]download-1'!$A$2:$F$513,6,FALSE),AK42) -> -1071.75 | AL43: =IFERROR(VLOOKUP($A43,'[3]TexttoColumn Amazon Balance'!$A$14:$B$30,2,FALSE),IF(AL44>0,AL44-50,0)) -> 508.93 | AM43: 2336.81 | AN43: 4557.81 | AO43: 43 | AP43: 12 | AQ43: 0 | AR43: 0 | AX43: =IFERROR(VLOOKUP($A43,'[2]export-1'!$A$446:$G$451,7,FALSE),0) -> 0 | AY43: =IFERROR(VLOOKUP($A43,[3]Sheet4!$A$4:$B$56,2,FALSE),0) -> 0 | AZ43: =IFERROR(VLOOKUP($A43,'[3]headphones purchased'!$A$2:$G$27,6,FALSE),0) -> 0 | BA43: =ROUND(IFERROR(VLOOKUP($A43,'[4]download-1'!$A$471:$F$474,5,FALSE)/-9.5,0),0) -> 0 | BB43: =ROUND(IFERROR(VLOOKUP($A43,'[4]download-1'!$A$467:$F$469,5,FALSE)/-49,0),0) -> 0 | BC43: =IFERROR(VLOOKUP($A43,[5]Sheet8!$A$4:$B$89,2,FALSE),0) -> 0 | BF43: 1 | BG43: =IFERROR(VLOOKUP($A43,[3]Paypal!$A$2:$AA$1843,25,FALSE),0) -> 2326.29 | BH43: =IFERROR(VLOOKUP($A43,'[3]Paypal Money Sent Pivot'!$A$4:$B$97,2,FALSE),0) -> 0 | BI43: =$BH43+$BI42-IFERROR(VLOOKUP($A43,[2]Sheet2!$A$4:$B$82,2,FALSE),0) -> -0.18 | BJ43: =IFERROR(VLOOKUP($A43,'[3]TexttoColumn Amazon Balance'!$A$14:$B$30,2,FALSE),0) -> 0 | BK43: =$BJ42+$BK42-IFERROR(VLOOKUP($A43,[2]Amazon!$A$2:$F$17,5,FALSE),0) -> 0 | BL43: =IFERROR(VLOOKUP($A43,'[4]Payment Pivot'!$A$4:$B$39,2,FALSE),0) -> 0 | BM43: =$BL43+$BM42-IFERROR(VLOOKUP($A43,'[2]Myaccountaccess Pivot'!$A$4:$B$31,2,FALSE),0) -> 0 | BO43: =IFERROR(VLOOKUP($A43,'[6]export-2'!$A$2:$F$15,6,FALSE),BO42) -> 0 | BP43: -1.980063083 | BQ43: =OFFSET(A43,0,'Cool Graph'!$H$1) -> 0 | BR43: =OFFSET(A43,0,'Cool Graph'!$I$1) -> -1.980063083
A44: 2011-08-12 | B44: 0 | C44: 5.59 | D44: 73.69 | E44: 12.42 | F44: 4.25 | G44: 95.95 | H44: 0 | I44: 0 | J44: 0 | K44: 2 | L44: 0 | M44: 0 | N44: 0 | O44: 12.42 | P44: 0 | Q44: 0 | R44: 0 | S44: 0 | T44: 0 | U44: 0 | V44: 0 | W44: 0 | X44: 3 | Y44: 3 | Z44: 0 | AA44: 0 | AB44: 3 | AC44: 0 | AD44: =IFERROR(VLOOKUP($A44,[1]Sheet1!$A$4:$B$219,2,FALSE),0) -> 495 | AE44: 495 | AF44: 785.55 | AG44: =$BH44+$BI43-IFERROR(VLOOKUP($A44,[2]Sheet2!$A$4:$B$82,2,FALSE),0) -> 999.82 | AH44: =$BJ43+$BK43-IFERROR(VLOOKUP($A44,[2]Amazon!$A$2:$F$17,5,FALSE),0) -> 0 | AI44: =$BL44+$BM43-IFERROR(VLOOKUP($A44,'[2]Myaccountaccess Pivot'!$A$4:$B$31,2,FALSE),0) -> 0 | AJ44: =IFERROR(VLOOKUP($A44,'[2]export-1'!$A$2:$F$441,6,FALSE),AJ43) -> 494.49 | AK44: =IFERROR(VLOOKUP($A44,'[7]download-1'!$A$2:$F$513,6,FALSE),AK43) -> -1071.75 | AL44: =IFERROR(VLOOKUP($A44,'[3]TexttoColumn Amazon Balance'!$A$14:$B$30,2,FALSE),IF(AL45>0,AL45-50,0)) -> 558.93 | AM44: 2765.86 | AN44: 5343.36 | AO44: 40 | AP44: 65 | AQ44: 0 | AR44: 0 | AX44: =IFERROR(VLOOKUP($A44,'[2]export-1'!$A$446:$G$451,7,FALSE),0) -> 0 | AY44: =IFERROR(VLOOKUP($A44,[3]Sheet4!$A$4:$B$56,2,FALSE),0) -> 0 | AZ44: =IFERROR(VLOOKUP($A44,'[3]headphones purchased'!$A$2:$G$27,6,FALSE),0) -> 56 | BA44: =ROUND(IFERROR(VLOOKUP($A44,'[4]download-1'!$A$471:$F$474,5,FALSE)/-9.5,0),0) -> 0 | BB44: =ROUND(IFERROR(VLOOKUP($A44,'[4]download-1'!$A$467:$F$469,5,FALSE)/-49,0),0) -> 0 | BC44: =IFERROR(VLOOKUP($A44,[5]Sheet8!$A$4:$B$89,2,FALSE),0) -> 0 | BF44: 0 | BG44: =IFERROR(VLOOKUP($A44,[3]Paypal!$A$2:$AA$1843,25,FALSE),0) -> 1784.37 | BH44: =IFERROR(VLOOKUP($A44,'[3]Paypal Money Sent Pivot'!$A$4:$B$97,2,FALSE),0) -> 1000 | BI44: =$BH44+$BI43-IFERROR(VLOOKUP($A44,[2]Sheet2!$A$4:$B$82,2,FALSE),0) -> 999.82 | BJ44: =IFERROR(VLOOKUP($A44,'[3]TexttoColumn Amazon Balance'!$A$14:$B$30,2,FALSE),0) -> 0 | BK44: =$BJ43+$BK43-IFERROR(VLOOKUP($A44,[2]Amazon!$A$2:$F$17,5,FALSE),0) -> 0 | BL44: =IFERROR(VLOOKUP($A44,'[4]Payment Pivot'!$A$4:$B$39,2,FALSE),0) -> 0 | BM44: =$BL44+$BM43-IFERROR(VLOOKUP($A44,'[2]Myaccountaccess Pivot'!$A$4:$B$31,2,FALSE),0) -> 0 | BO44: =IFERROR(VLOOKUP($A44,'[6]export-2'!$A$2:$F$15,6,FALSE),BO43) -> 0 | BP44: 113.6598108 | BQ44: =OFFSET(A44,0,'Cool Graph'!$H$1) -> 0 | BR44: =OFFSET(A44,0,'Cool Graph'!$I$1) -> 113.6598108
A45: 2011-08-13 | B45: 0 | C45: 6.5 | D45: 39.65 | E45: 18.87 | F45: 5.63 | G45: 70.65 | H45: 0 | I45: 0 | J45: 0 | K45: 1 | L45: 0 | M45: 0 | N45: 0 | O45: 18.87 | P45: 0 | Q45: 0 | R45: 0 | S45: 0 | T45: 1 | U45: 0 | V45: 0 | W45: 0 | X45: 1 | Y45: 1 | Z45: 0 | AA45: 0 | AB45: 2 | AC45: 165 | AD45: =IFERROR(VLOOKUP($A45,[1]Sheet1!$A$4:$B$219,2,FALSE),0) -> 165 | AE45: 330 | AF45: 151.41 | AG45: =$BH45+$BI44-IFERROR(VLOOKUP($A45,[2]Sheet2!$A$4:$B$82,2,FALSE),0) -> 999.82 | AH45: =$BJ44+$BK44-IFERROR(VLOOKUP($A45,[2]Amazon!$A$2:$F$17,5,FALSE),0) -> 0 | AI45: =$BL45+$BM44-IFERROR(VLOOKUP($A45,'[2]Myaccountaccess Pivot'!$A$4:$B$31,2,FALSE),0) -> 0 | AJ45: =IFERROR(VLOOKUP($A45,'[2]export-1'!$A$2:$F$441,6,FALSE),AJ44) -> 494.49 | AK45: =IFERROR(VLOOKUP($A45,'[7]download-1'!$A$2:$F$513,6,FALSE),AK44) -> -1071.75 | AL45: =IFERROR(VLOOKUP($A45,'[3]TexttoColumn Amazon Balance'!$A$14:$B$30,2,FALSE),IF(AL46>0,AL46-50,0)) -> 608.93 | AM45: 2975.77 | AN45: 5494.77 | AO45: 39 | AP45: 64 | AQ45: 0 | AR45: 0 | AX45: =IFERROR(VLOOKUP($A45,'[2]export-1'!$A$446:$G$451,7,FALSE),0) -> 0 | AY45: =IFERROR(VLOOKUP($A45,[3]Sheet4!$A$4:$B$56,2,FALSE),0) -> 0 | AZ45: =IFERROR(VLOOKUP($A45,'[3]headphones purchased'!$A$2:$G$27,6,FALSE),0) -> 0 | BA45: =ROUND(IFERROR(VLOOKUP($A45,'[4]download-1'!$A$471:$F$474,5,FALSE)/-9.5,0),0) -> 0 | BB45: =ROUND(IFERROR(VLOOKUP($A45,'[4]download-1'!$A$467:$F$469,5,FALSE)/-49,0),0) -> 0 | BC45: =IFERROR(VLOOKUP($A45,[5]Sheet8!$A$4:$B$89,2,FALSE),0) -> 0 | BF45: 1 | BG45: =IFERROR(VLOOKUP($A45,[3]Paypal!$A$2:$AA$1843,25,FALSE),0) -> 1944.28 | BH45: =IFERROR(VLOOKUP($A45,'[3]Paypal Money Sent Pivot'!$A$4:$B$97,2,FALSE),0) -> 0 | BI45: =$BH45+$BI44-IFERROR(VLOOKUP($A45,[2]Sheet2!$A$4:$B$82,2,FALSE),0) -> 999.82 | BJ45: =IFERROR(VLOOKUP($A45,'[3]TexttoColumn Amazon Balance'!$A$14:$B$30,2,FALSE),0) -> 608.93 | BK45: =$BJ44+$BK44-IFERROR(VLOOKUP($A45,[2]Amazon!$A$2:$F$17,5,FALSE),0) -> 0 | BL45: =IFERROR(VLOOKUP($A45,'[4]Payment Pivot'!$A$4:$B$39,2,FALSE),0) -> 0 | BM45: =$BL45+$BM44-IFERROR(VLOOKUP($A45,'[2]Myaccountaccess Pivot'!$A$4:$B$31,2,FALSE),0) -> 0 | BO45: =IFERROR(VLOOKUP($A45,'[6]export-2'!$A$2:$F$15,6,FALSE),BO44) -> 0 | BP45: 69.08987383 | BQ45: =OFFSET(A45,0,'Cool Graph'!$H$1) -> 0 | BR45: =OFFSET(A45,0,'Cool Graph'!$I$1) -> 69.08987383
A46: 2011-08-14 | B46: 0 | C46: 10.48 | D46: 64.15 | E46: 4.54 | F46: 0 | G46: 79.17 | H46: 0 | I46: 0 | J46: 0 | K46: 1 | L46: 0 | M46: 0 | N46: 0 | O46: 4.54 | P46: 0 | Q46: 0 | R46: 0 | S46: 0 | T46: 1 | U46: 0 | V46: 0 | W46: 0 | X46: 1 | Y46: 1 | Z46: 0 | AA46: 0 | AB46: 2 | AC46: 165 | AD46: =IFERROR(VLOOKUP($A46,[1]Sheet1!$A$4:$B$219,2,FALSE),0) -> 165 | AE46: 330 | AF46: 1177.44 | AG46: =$BH46+$BI45-IFERROR(VLOOKUP($A46,[2]Sheet2!$A$4:$B$82,2,FALSE),0) -> 999.82 | AH46: =$BJ45+$BK45-IFERROR(VLOOKUP($A46,[2]Amazon!$A$2:$F$17,5,FALSE),0) -> 608.93 | AI46: =$BL46+$BM45-IFERROR(VLOOKUP($A46,'[2]Myaccountaccess Pivot'!$A$4:$B$31,2,FALSE),0) -> 0 | AJ46: =IFERROR(VLOOKUP($A46,'[2]export-1'!$A$2:$F$441,6,FALSE),AJ45) -> 494.49 | AK46: =IFERROR(VLOOKUP($A46,'[7]download-1'!$A$2:$F$513,6,FALSE),AK45) -> -1071.75 | AL46: =IFERROR(VLOOKUP($A46,'[3]TexttoColumn Amazon Balance'!$A$14:$B$30,2,FALSE),IF(AL47>0,AL47-50,0)) -> 965.12 | AM46: 4260.71 | AN46: 6672.21 | AO46: 37 | AP46: 63 | AQ46: 0 | AR46: 0 | AX46: =IFERROR(VLOOKUP($A46,'[2]export-1'!$A$446:$G$451,7,FALSE),0) -> 0 | AY46: =IFERROR(VLOOKUP($A46,[3]Sheet4!$A$4:$B$56,2,FALSE),0) -> 0 | AZ46: =IFERROR(VLOOKUP($A46,'[3]headphones purchased'!$A$2:$G$27,6,FALSE),0) -> 0 | BA46: =ROUND(IFERROR(VLOOKUP($A46,'[4]download-1'!$A$471:$F$474,5,FALSE)/-9.5,0),0) -> 0 | BB46: =ROUND(IFERROR(VLOOKUP($A46,'[4]download-1'!$A$467:$F$469,5,FALSE)/-49,0),0) -> 0 | BC46: =IFERROR(VLOOKUP($A46,[5]Sheet8!$A$4:$B$89,2,FALSE),0) -> 0 | BF46: 0 | BG46: =IFERROR(VLOOKUP($A46,[3]Paypal!$A$2:$AA$1843,25,FALSE),0) -> 2264.1 | BH46: =IFERROR(VLOOKUP($A46,'[3]Paypal Money Sent Pivot'!$A$4:$B$97,2,FALSE),0) -> 0 | BI46: =$BH46+$BI45-IFERROR(VLOOKUP($A46,[2]Sheet2!$A$4:$B$82,2,FALSE),0) -> 999.82 | BJ46: =IFERROR(VLOOKUP($A46,'[3]TexttoColumn Amazon Balance'!$A$14:$B$30,2,FALSE),0) -> 0 | BK46: =$BJ45+$BK45-IFERROR(VLOOKUP($A46,[2]Amazon!$A$2:$F$17,5,FALSE),0) -> 608.93 | BL46: =IFERROR(VLOOKUP($A46,'[4]Payment Pivot'!$A$4:$B$39,2,FALSE),0) -> 0 | BM46: =$BL46+$BM45-IFERROR(VLOOKUP($A46,'[2]Myaccountaccess Pivot'!$A$4:$B$31,2,FALSE),0) -> 0 | BO46: =IFERROR(VLOOKUP($A46,'[6]export-2'!$A$2:$F$15,6,FALSE),BO45) -> 0 | BP46: 60.56987383 | BQ46: =OFFSET(A46,0,'Cool Graph'!$H$1) -> 0 | BR46: =OFFSET(A46,0,'Cool Graph'!$I$1) -> 60.56987383
A47: 2011-08-15 | B47: 0 | C47: 8.47 | D47: 66.88 | E47: 3.87 | F47: 0 | G47: 79.22 | H47: 0 | I47: 0 | J47: 0 | K47: 1 | L47: 0 | M47: 0 | N47: 0 | O47: 3.87 | P47: 0 | Q47: 0 | R47: 0 | S47: 0 | T47: 1 | U47: 0 | V47: 0 | W47: 0 | X47: 1 | Y47: 1 | Z47: 0 | AA47: 0 | AB47: 2 | AC47: 165 | AD47: =IFERROR(VLOOKUP($A47,[1]Sheet1!$A$4:$B$219,2,FALSE),0) -> 165 | AE47: 330 | AF47: -182.36 | AG47: =$BH47+$BI46-IFERROR(VLOOKUP($A47,[2]Sheet2!$A$4:$B$82,2,FALSE),0) -> -0.18 | AH47: =$BJ46+$BK46-IFERROR(VLOOKUP($A47,[2]Amazon!$A$2:$F$17,5,FALSE),0) -> 608.93 | AI47: =$BL47+$BM46-IFERROR(VLOOKUP($A47,'[2]Myaccountaccess Pivot'!$A$4:$B$31,2,FALSE),0) -> 0 | AJ47: =IFERROR(VLOOKUP($A47,'[2]export-1'!$A$2:$F$441,6,FALSE),AJ46) -> 1173.7 | AK47: =IFERROR(VLOOKUP($A47,'[7]download-1'!$A$2:$F$513,6,FALSE),AK46) -> -1083.7 | AL47: =IFERROR(VLOOKUP($A47,'[3]TexttoColumn Amazon Balance'!$A$14:$B$30,2,FALSE),IF(AL48>0,AL48-50,0)) -> 1015.12 | AM47: 3548.85 | AN47: 6489.85 | AO47: 48 | AP47: 62 | AQ47: 0 | AR47: 0 | AX47: =IFERROR(VLOOKUP($A47,'[2]export-1'!$A$446:$G$451,7,FALSE),0) -> 0 | AY47: =IFERROR(VLOOKUP($A47,[3]Sheet4!$A$4:$B$56,2,FALSE),0) -> 12 | AZ47: =IFERROR(VLOOKUP($A47,'[3]headphones purchased'!$A$2:$G$27,6,FALSE),0) -> 0 | BA47: =ROUND(IFERROR(VLOOKUP($A47,'[4]download-1'!$A$471:$F$474,5,FALSE)/-9.5,0),0) -> 0 | BB47: =ROUND(IFERROR(VLOOKUP($A47,'[4]download-1'!$A$467:$F$469,5,FALSE)/-49,0),0) -> 0 | BC47: =IFERROR(VLOOKUP($A47,[5]Sheet8!$A$4:$B$89,2,FALSE),0) -> 0 | BF47: 1 | BG47: =IFERROR(VLOOKUP($A47,[3]Paypal!$A$2:$AA$1843,25,FALSE),0) -> 1834.98 | BH47: =IFERROR(VLOOKUP($A47,'[3]Paypal Money Sent Pivot'!$A$4:$B$97,2,FALSE),0) -> 0 | BI47: =$BH47+$BI46-IFERROR(VLOOKUP($A47,[2]Sheet2!$A$4:$B$82,2,FALSE),0) -> -0.18 | BJ47: =IFERROR(VLOOKUP($A47,'[3]TexttoColumn Amazon Balance'!$A$14:$B$30,2,FALSE),0) -> 0 | BK47: =$BJ46+$BK46-IFERROR(VLOOKUP($A47,[2]Amazon!$A$2:$F$17,5,FALSE),0) -> 608.93 | BL47: =IFERROR(VLOOKUP($A47,'[4]Payment Pivot'!$A$4:$B$39,2,FALSE),0) -> 0 | BM47: =$BL47+$BM46-IFERROR(VLOOKUP($A47,'[2]Myaccountaccess Pivot'!$A$4:$B$31,2,FALSE),0) -> 0 | BO47: =IFERROR(VLOOKUP($A47,'[6]export-2'!$A$2:$F$15,6,FALSE),BO46) -> 0 | BP47: 60.51987383 | BQ47: =OFFSET(A47,0,'Cool Graph'!$H$1) -> 0 | BR47: =OFFSET(A47,0,'Cool Graph'!$I$1) -> 60.51987383
A48: 2011-08-16 | B48: 0 | C48: 4.56 | D48: 76.73 | E48: 4.36 | F48: 4.71 | G48: 90.36 | H48: 0 | I48: 0 | J48: 0 | K48: 0 | L48: 0 | M48: 0 | N48: 0 | O48: 4.36 | P48: 0 | Q48: 0 | R48: 0 | S48: 0 | T48: 0 | U48: 0 | V48: 0 | W48: 0 | X48: 1 | Y48: 1 | Z48: 0 | AA48: 0 | AB48: 1 | AC48: 0 | AD48: =IFERROR(VLOOKUP($A48,[1]Sheet1!$A$4:$B$219,2,FALSE),0) -> 165 | AE48: 165 | AF48: 250.53 | AG48: =$BH48+$BI47-IFERROR(VLOOKUP($A48,[2]Sheet2!$A$4:$B$82,2,FALSE),0) -> -0.18 | AH48: =$BJ47+$BK47-IFERROR(VLOOKUP($A48,[2]Amazon!$A$2:$F$17,5,FALSE),0) -> 0 | AI48: =$BL48+$BM47-IFERROR(VLOOKUP($A48,'[2]Myaccountaccess Pivot'!$A$4:$B$31,2,FALSE),0) -> 0 | AJ48: =IFERROR(VLOOKUP($A48,'[2]export-1'!$A$2:$F$441,6,FALSE),AJ47) -> 1782.63 | AK48: =IFERROR(VLOOKUP($A48,'[7]download-1'!$A$2:$F$513,6,FALSE),AK47) -> -1083.7 | AL48: =IFERROR(VLOOKUP($A48,'[3]TexttoColumn Amazon Balance'!$A$14:$B$30,2,FALSE),IF(AL49>0,AL49-50,0)) -> 1065.12 | AM48: 3612.88 | AN48: 6740.38 | AO48: 52 | AP48: 61 | AQ48: 0 | AR48: 0 | AX48: =IFERROR(VLOOKUP($A48,'[2]export-1'!$A$446:$G$451,7,FALSE),0) -> 0 | AY48: =IFERROR(VLOOKUP($A48,[3]Sheet4!$A$4:$B$56,2,FALSE),0) -> 6 | AZ48: =IFERROR(VLOOKUP($A48,'[3]headphones purchased'!$A$2:$G$27,6,FALSE),0) -> 0 | BA48: =ROUND(IFERROR(VLOOKUP($A48,'[4]download-1'!$A$471:$F$474,5,FALSE)/-9.5,0),0) -> 0 | BB48: =ROUND(IFERROR(VLOOKUP($A48,'[4]download-1'!$A$467:$F$469,5,FALSE)/-49,0),0) -> 0 | BC48: =IFERROR(VLOOKUP($A48,[5]Sheet8!$A$4:$B$89,2,FALSE),0) -> 1 | BF48: 0 | BG48: =IFERROR(VLOOKUP($A48,[3]Paypal!$A$2:$AA$1843,25,FALSE),0) -> 1849.01 | BH48: =IFERROR(VLOOKUP($A48,'[3]Paypal Money Sent Pivot'!$A$4:$B$97,2,FALSE),0) -> 0 | BI48: =$BH48+$BI47-IFERROR(VLOOKUP($A48,[2]Sheet2!$A$4:$B$82,2,FALSE),0) -> -0.18 | BJ48: =IFERROR(VLOOKUP($A48,'[3]TexttoColumn Amazon Balance'!$A$14:$B$30,2,FALSE),0) -> 0 | BK48: =$BJ47+$BK47-IFERROR(VLOOKUP($A48,[2]Amazon!$A$2:$F$17,5,FALSE),0) -> 0 | BL48: =IFERROR(VLOOKUP($A48,'[4]Payment Pivot'!$A$4:$B$39,2,FALSE),0) -> 0 | BM48: =$BL48+$BM47-IFERROR(VLOOKUP($A48,'[2]Myaccountaccess Pivot'!$A$4:$B$31,2,FALSE),0) -> 0 | BO48: =IFERROR(VLOOKUP($A48,'[6]export-2'!$A$2:$F$15,6,FALSE),BO47) -> 0 | BP48: -20.49006308 | BQ48: =OFFSET(A48,0,'Cool Graph'!$H$1) -> 0 | BR48: =OFFSET(A48,0,'Cool Graph'!$I$1) -> -20.49006308
A49: 2011-08-17 | B49: 0 | C49: 12.62 | D49: 67.03 | E49: 4.08 | F49: 2.34 | G49: 86.07 | H49: 0 | I49: 0 | J49: 0 | K49: 0 | L49: 0 | M49: 0 | N49: 0 | O49: 4.08 | P49: 0 | Q49: 0 | R49: 0 | S49: 0 | T49: 0 | U49: 0 | V49: 0 | W49: 0 | X49: 0 | Y49: 0 | Z49: 0 | AA49: 0 | AB49: 0 | AC49: 0 | AD49: =IFERROR(VLOOKUP($A49,[1]Sheet1!$A$4:$B$219,2,FALSE),0) -> 0 | AE49: 0 | AF49: -1617.55 | AG49: =$BH49+$BI48-IFERROR(VLOOKUP($A49,[2]Sheet2!$A$4:$B$82,2,FALSE),0) -> -0.18 | AH49: =$BJ48+$BK48-IFERROR(VLOOKUP($A49,[2]Amazon!$A$2:$F$17,5,FALSE),0) -> 0 | AI49: =$BL49+$BM48-IFERROR(VLOOKUP($A49,'[2]Myaccountaccess Pivot'!$A$4:$B$31,2,FALSE),0) -> 0 | AJ49: =IFERROR(VLOOKUP($A49,'[2]export-1'!$A$2:$F$441,6,FALSE),AJ48) -> 1682.63 | AK49: =IFERROR(VLOOKUP($A49,'[7]download-1'!$A$2:$F$513,6,FALSE),AK48) -> -1133.86 | AL49: =IFERROR(VLOOKUP($A49,'[3]TexttoColumn Amazon Balance'!$A$14:$B$30,2,FALSE),IF(AL50>0,AL50-50,0)) -> 1115.12 | AM49: 1995.33 | AN49: 5122.83 | AO49: 52 | AP49: 61 | AQ49: 0 | AR49: 0 | AX49: =IFERROR(VLOOKUP($A49,'[2]export-1'!$A$446:$G$451,7,FALSE),0) -> 0 | AY49: =IFERROR(VLOOKUP($A49,[3]Sheet4!$A$4:$B$56,2,FALSE),0) -> 0 | AZ49: =IFERROR(VLOOKUP($A49,'[3]headphones purchased'!$A$2:$G$27,6,FALSE),0) -> 0 | BA49: =ROUND(IFERROR(VLOOKUP($A49,'[4]download-1'!$A$471:$F$474,5,FALSE)/-9.5,0),0) -> 0 | BB49: =ROUND(IFERROR(VLOOKUP($A49,'[4]download-1'!$A$467:$F$469,5,FALSE)/-49,0),0) -> 0 | BC49: =IFERROR(VLOOKUP($A49,[5]Sheet8!$A$4:$B$89,2,FALSE),0) -> 1 | BF49: 1 | BG49: =IFERROR(VLOOKUP($A49,[3]Paypal!$A$2:$AA$1843,25,FALSE),0) -> 331.62 | BH49: =IFERROR(VLOOKUP($A49,'[3]Paypal Money Sent Pivot'!$A$4:$B$97,2,FALSE),0) -> 0 | BI49: =$BH49+$BI48-IFERROR(VLOOKUP($A49,[2]Sheet2!$A$4:$B$82,2,FALSE),0) -> -0.18 | BJ49: =IFERROR(VLOOKUP($A49,'[3]TexttoColumn Amazon Balance'!$A$14:$B$30,2,FALSE),0) -> 0 | BK49: =$BJ48+$BK48-IFERROR(VLOOKUP($A49,[2]Amazon!$A$2:$F$17,5,FALSE),0) -> 0 | BL49: =IFERROR(VLOOKUP($A49,'[4]Payment Pivot'!$A$4:$B$39,2,FALSE),0) -> 0 | BM49: =$BL49+$BM48-IFERROR(VLOOKUP($A49,'[2]Myaccountaccess Pivot'!$A$4:$B$31,2,FALSE),0) -> 0 | BO49: =IFERROR(VLOOKUP($A49,'[6]export-2'!$A$2:$F$15,6,FALSE),BO48) -> 0 | BP49: -86.07 | BQ49: =OFFSET(A49,0,'Cool Graph'!$H$1) -> 0 | BR49: =OFFSET(A49,0,'Cool Graph'!$I$1) -> -86.07
A50: 2011-08-18 | B50: 0 | C50: 9.11 | D50: 77.89 | E50: 3.34 | F50: 2.85 | G50: 93.19 | H50: 0 | I50: 0 | J50: 0 | K50: 2 | L50: 0 | M50: 0 | N50: 0 | O50: 3.34 | P50: 0 | Q50: 0 | R50: 0 | S50: 0 | T50: 4 | U50: 0 | V50: 0 | W50: 0 | X50: 0 | Y50: 0 | Z50: 0 | AA50: 0 | AB50: 4 | AC50: 660 | AD50: =IFERROR(VLOOKUP($A50,[1]Sheet1!$A$4:$B$219,2,FALSE),0) -> 0 | AE50: 660 | AF50: 778.51 | AG50: =$BH50+$BI49-IFERROR(VLOOKUP($A50,[2]Sheet2!$A$4:$B$82,2,FALSE),0) -> 1489.82 | AH50: =$BJ49+$BK49-IFERROR(VLOOKUP($A50,[2]Amazon!$A$2:$F$17,5,FALSE),0) -> 0 | AI50: =$BL50+$BM49-IFERROR(VLOOKUP($A50,'[2]Myaccountaccess Pivot'!$A$4:$B$31,2,FALSE),0) -> 0 | AJ50: =IFERROR(VLOOKUP($A50,'[2]export-1'!$A$2:$F$441,6,FALSE),AJ49) -> 1622.63 | AK50: =IFERROR(VLOOKUP($A50,'[7]download-1'!$A$2:$F$513,6,FALSE),AK49) -> -1633.86 | AL50: =IFERROR(VLOOKUP($A50,'[3]TexttoColumn Amazon Balance'!$A$14:$B$30,2,FALSE),IF(AL51>0,AL51-50,0)) -> 1165.12 | AM50: 2969.84 | AN50: 5901.34 | AO50: 48 | AP50: 61 | AQ50: 0 | AR50: 0 | AX50: =IFERROR(VLOOKUP($A50,'[2]export-1'!$A$446:$G$451,7,FALSE),0) -> 0 | AY50: =IFERROR(VLOOKUP($A50,[3]Sheet4!$A$4:$B$56,2,FALSE),0) -> 0 | AZ50: =IFERROR(VLOOKUP($A50,'[3]headphones purchased'!$A$2:$G$27,6,FALSE),0) -> 0 | BA50: =ROUND(IFERROR(VLOOKUP($A50,'[4]download-1'!$A$471:$F$474,5,FALSE)/-9.5,0),0) -> 0 | BB50: =ROUND(IFERROR(VLOOKUP($A50,'[4]download-1'!$A$467:$F$469,5,FALSE)/-49,0),0) -> 0 | BC50: =IFERROR(VLOOKUP($A50,[5]Sheet8!$A$4:$B$89,2,FALSE),0) -> 0 | BF50: 0 | BG50: =IFERROR(VLOOKUP($A50,[3]Paypal!$A$2:$AA$1843,25,FALSE),0) -> 326.13 | BH50: =IFERROR(VLOOKUP($A50,'[3]Paypal Money Sent Pivot'!$A$4:$B$97,2,FALSE),0) -> 1490 | BI50: =$BH50+$BI49-IFERROR(VLOOKUP($A50,[2]Sheet2!$A$4:$B$82,2,FALSE),0) -> 1489.82 | BJ50: =IFERROR(VLOOKUP($A50,'[3]TexttoColumn Amazon Balance'!$A$14:$B$30,2,FALSE),0) -> 0 | BK50: =$BJ49+$BK49-IFERROR(VLOOKUP($A50,[2]Amazon!$A$2:$F$17,5,FALSE),0) -> 0 | BL50: =IFERROR(VLOOKUP($A50,'[4]Payment Pivot'!$A$4:$B$39,2,FALSE),0) -> 0 | BM50: =$BL50+$BM49-IFERROR(VLOOKUP($A50,'[2]Myaccountaccess Pivot'!$A$4:$B$31,2,FALSE),0) -> 0 | BO50: =IFERROR(VLOOKUP($A50,'[6]export-2'!$A$2:$F$15,6,FALSE),BO49) -> 0 | BP50: 186.2897477 | BQ50: =OFFSET(A50,0,'Cool Graph'!$H$1) -> 0 | BR50: =OFFSET(A50,0,'Cool Graph'!$I$1) -> 186.2897477
A51: 2011-08-19 | B51: 0 | C51: 9.12 | D51: 43.87 | E51: 2.68 | F51: 2.85 | G51: 58.52 | H51: 0 | I51: 1 | J51: 0 | K51: 1 | L51: 0 | M51: 0 | N51: 0 | O51: 2.68 | P51: 0 | Q51: 0 | R51: 0 | S51: 0 | T51: 2 | U51: 0 | V51: 0 | W51: 0 | X51: 6 | Y51: 6 | Z51: 0 | AA51: 0 | AB51: 8 | AC51: 330 | AD51: =IFERROR(VLOOKUP($A51,[1]Sheet1!$A$4:$B$219,2,FALSE),0) -> 990 | AE51: 1320 | AF51: 437.3 | AG51: =$BH51+$BI50-IFERROR(VLOOKUP($A51,[2]Sheet2!$A$4:$B$82,2,FALSE),0) -> 1489.82 | AH51: =$BJ50+$BK50-IFERROR(VLOOKUP($A51,[2]Amazon!$A$2:$F$17,5,FALSE),0) -> 0 | AI51: =$BL51+$BM50-IFERROR(VLOOKUP($A51,'[2]Myaccountaccess Pivot'!$A$4:$B$31,2,FALSE),0) -> 0 | AJ51: =IFERROR(VLOOKUP($A51,'[2]export-1'!$A$2:$F$441,6,FALSE),AJ50) -> 1622.63 | AK51: =IFERROR(VLOOKUP($A51,'[7]download-1'!$A$2:$F$513,6,FALSE),AK50) -> -1633.86 | AL51: =IFERROR(VLOOKUP($A51,'[3]TexttoColumn Amazon Balance'!$A$14:$B$30,2,FALSE),IF(AL52>0,AL52-50,0)) -> 1215.12 | AM51: 3807.14 | AN51: 6338.64 | AO51: 41 | AP51: 55 | AQ51: 0 | AR51: 0 | AX51: =IFERROR(VLOOKUP($A51,'[2]export-1'!$A$446:$G$451,7,FALSE),0) -> 0 | AY51: =IFERROR(VLOOKUP($A51,[3]Sheet4!$A$4:$B$56,2,FALSE),0) -> 0 | AZ51: =IFERROR(VLOOKUP($A51,'[3]headphones purchased'!$A$2:$G$27,6,FALSE),0) -> 0 | BA51: =ROUND(IFERROR(VLOOKUP($A51,'[4]download-1'!$A$471:$F$474,5,FALSE)/-9.5,0),0) -> 0 | BB51: =ROUND(IFERROR(VLOOKUP($A51,'[4]download-1'!$A$467:$F$469,5,FALSE)/-49,0),0) -> 0 | BC51: =IFERROR(VLOOKUP($A51,[5]Sheet8!$A$4:$B$89,2,FALSE),0) -> 0 | BF51: 1 | BG51: =IFERROR(VLOOKUP($A51,[3]Paypal!$A$2:$AA$1843,25,FALSE),0) -> 1113.43 | BH51: =IFERROR(VLOOKUP($A51,'[3]Paypal Money Sent Pivot'!$A$4:$B$97,2,FALSE),0) -> 0 | BI51: =$BH51+$BI50-IFERROR(VLOOKUP($A51,[2]Sheet2!$A$4:$B$82,2,FALSE),0) -> 1489.82 | BJ51: =IFERROR(VLOOKUP($A51,'[3]TexttoColumn Amazon Balance'!$A$14:$B$30,2,FALSE),0) -> 0 | BK51: =$BJ50+$BK50-IFERROR(VLOOKUP($A51,[2]Amazon!$A$2:$F$17,5,FALSE),0) -> 0 | BL51: =IFERROR(VLOOKUP($A51,'[4]Payment Pivot'!$A$4:$B$39,2,FALSE),0) -> 0 | BM51: =$BL51+$BM50-IFERROR(VLOOKUP($A51,'[2]Myaccountaccess Pivot'!$A$4:$B$31,2,FALSE),0) -> 0 | BO51: =IFERROR(VLOOKUP($A51,'[6]export-2'!$A$2:$F$15,6,FALSE),BO50) -> 0 | BP51: 500.4394953 | BQ51: =OFFSET(A51,0,'Cool Graph'!$H$1) -> 0 | BR51: =OFFSET(A51,0,'Cool Graph'!$I$1) -> 500.4394953
A52: 2011-08-20 | B52: 0 | C52: 4.38 | D52: 59.42 | E52: 3 | F52: 2.43 | G52: 69.23 | H52: 0 | I52: 0 | J52: 0 | K52: 2 | L52: 0 | M52: 0 | N52: 0 | O52: 3 | P52: 0 | Q52: 0 | R52: 0 | S52: 0 | T52: 0 | U52: 0 | V52: 0 | W52: 0 | X52: 2 | Y52: 2 | Z52: 0 | AA52: 0 | AB52: 2 | AC52: 0 | AD52: =IFERROR(VLOOKUP($A52,[1]Sheet1!$A$4:$B$219,2,FALSE),0) -> 330 | AE52: 330 | AF52: 252.52 | AG52: =$BH52+$BI51-IFERROR(VLOOKUP($A52,[2]Sheet2!$A$4:$B$82,2,FALSE),0) -> 1489.82 | AH52: =$BJ51+$BK51-IFERROR(VLOOKUP($A52,[2]Amazon!$A$2:$F$17,5,FALSE),0) -> 0 | AI52: =$BL52+$BM51-IFERROR(VLOOKUP($A52,'[2]Myaccountaccess Pivot'!$A$4:$B$31,2,FALSE),0) -> 0 | AJ52: =IFERROR(VLOOKUP($A52,'[2]export-1'!$A$2:$F$441,6,FALSE),AJ51) -> 1622.63 | AK52: =IFERROR(VLOOKUP($A52,'[7]download-1'!$A$2:$F$513,6,FALSE),AK51) -> -1633.86 | AL52: =IFERROR(VLOOKUP($A52,'[3]TexttoColumn Amazon Balance'!$A$14:$B$30,2,FALSE),IF(AL53>0,AL53-50,0)) -> 1265.12 | AM52: 4176.66 | AN52: 6591.16 | AO52: 39 | AP52: 53 | AQ52: 0 | AR52: 0 | AX52: =IFERROR(VLOOKUP($A52,'[2]export-1'!$A$446:$G$451,7,FALSE),0) -> 0 | AY52: =IFERROR(VLOOKUP($A52,[3]Sheet4!$A$4:$B$56,2,FALSE),0) -> 0 | AZ52: =IFERROR(VLOOKUP($A52,'[3]headphones purchased'!$A$2:$G$27,6,FALSE),0) -> 0 | BA52: =ROUND(IFERROR(VLOOKUP($A52,'[4]download-1'!$A$471:$F$474,5,FALSE)/-9.5,0),0) -> 0 | BB52: =ROUND(IFERROR(VLOOKUP($A52,'[4]download-1'!$A$467:$F$469,5,FALSE)/-49,0),0) -> 0 | BC52: =IFERROR(VLOOKUP($A52,[5]Sheet8!$A$4:$B$89,2,FALSE),0) -> 0 | BF52: 0 | BG52: =IFERROR(VLOOKUP($A52,[3]Paypal!$A$2:$AA$1843,25,FALSE),0) -> 1432.95 | BH52: =IFERROR(VLOOKUP($A52,'[3]Paypal Money Sent Pivot'!$A$4:$B$97,2,FALSE),0) -> 0 | BI52: =$BH52+$BI51-IFERROR(VLOOKUP($A52,[2]Sheet2!$A$4:$B$82,2,FALSE),0) -> 1489.82 | BJ52: =IFERROR(VLOOKUP($A52,'[3]TexttoColumn Amazon Balance'!$A$14:$B$30,2,FALSE),0) -> 0 | BK52: =$BJ51+$BK51-IFERROR(VLOOKUP($A52,[2]Amazon!$A$2:$F$17,5,FALSE),0) -> 0 | BL52: =IFERROR(VLOOKUP($A52,'[4]Payment Pivot'!$A$4:$B$39,2,FALSE),0) -> 0 | BM52: =$BL52+$BM51-IFERROR(VLOOKUP($A52,'[2]Myaccountaccess Pivot'!$A$4:$B$31,2,FALSE),0) -> 0 | BO52: =IFERROR(VLOOKUP($A52,'[6]export-2'!$A$2:$F$15,6,FALSE),BO51) -> 0 | BP52: 70.50987383 | BQ52: =OFFSET(A52,0,'Cool Graph'!$H$1) -> 0 | BR52: =OFFSET(A52,0,'Cool Graph'!$I$1) -> 70.50987383
A53: 2011-08-21 | B53: 0 | C53: 15.39 | D53: 93 | E53: 1.51 | F53: 0 | G53: 109.9 | H53: 0 | I53: 0 | J53: 0 | K53: 3 | L53: 0 | M53: 0 | N53: 0 | O53: 1.51 | P53: 0 | Q53: 0 | R53: 0 | S53: 0 | T53: 0 | U53: 0 | V53: 0 | W53: 0 | X53: 3 | Y53: 3 | Z53: 0 | AA53: 0 | AB53: 3 | AC53: 0 | AD53: =IFERROR(VLOOKUP($A53,[1]Sheet1!$A$4:$B$219,2,FALSE),0) -> 495 | AE53: 495 | AF53: 402.29 | AG53: =$BH53+$BI52-IFERROR(VLOOKUP($A53,[2]Sheet2!$A$4:$B$82,2,FALSE),0) -> 2589.82 | AH53: =$BJ52+$BK52-IFERROR(VLOOKUP($A53,[2]Amazon!$A$2:$F$17,5,FALSE),0) -> 0 | AI53: =$BL53+$BM52-IFERROR(VLOOKUP($A53,'[2]Myaccountaccess Pivot'!$A$4:$B$31,2,FALSE),0) -> 0 | AJ53: =IFERROR(VLOOKUP($A53,'[2]export-1'!$A$2:$F$441,6,FALSE),AJ52) -> 1622.63 | AK53: =IFERROR(VLOOKUP($A53,'[7]download-1'!$A$2:$F$513,6,FALSE),AK52) -> -1633.86 | AL53: =IFERROR(VLOOKUP($A53,'[3]TexttoColumn Amazon Balance'!$A$14:$B$30,2,FALSE),IF(AL54>0,AL54-50,0)) -> 1315.12 | AM53: 4411.45 | AN53: 6993.45 | AO53: 43 | AP53: 50 | AQ53: 0 | AR53: 0 | AX53: =IFERROR(VLOOKUP($A53,'[2]export-1'!$A$446:$G$451,7,FALSE),0) -> 0 | AY53: =IFERROR(VLOOKUP($A53,[3]Sheet4!$A$4:$B$56,2,FALSE),0) -> 6 | AZ53: =IFERROR(VLOOKUP($A53,'[3]headphones purchased'!$A$2:$G$27,6,FALSE),0) -> 0 | BA53: =ROUND(IFERROR(VLOOKUP($A53,'[4]download-1'!$A$471:$F$474,5,FALSE)/-9.5,0),0) -> 0 | BB53: =ROUND(IFERROR(VLOOKUP($A53,'[4]download-1'!$A$467:$F$469,5,FALSE)/-49,0),0) -> 0 | BC53: =IFERROR(VLOOKUP($A53,[5]Sheet8!$A$4:$B$89,2,FALSE),0) -> 0 | BF53: 1 | BG53: =IFERROR(VLOOKUP($A53,[3]Paypal!$A$2:$AA$1843,25,FALSE),0) -> 517.74 | BH53: =IFERROR(VLOOKUP($A53,'[3]Paypal Money Sent Pivot'!$A$4:$B$97,2,FALSE),0) -> 1100 | BI53: =$BH53+$BI52-IFERROR(VLOOKUP($A53,[2]Sheet2!$A$4:$B$82,2,FALSE),0) -> 2589.82 | BJ53: =IFERROR(VLOOKUP($A53,'[3]TexttoColumn Amazon Balance'!$A$14:$B$30,2,FALSE),0) -> 0 | BK53: =$BJ52+$BK52-IFERROR(VLOOKUP($A53,[2]Amazon!$A$2:$F$17,5,FALSE),0) -> 0 | BL53: =IFERROR(VLOOKUP($A53,'[4]Payment Pivot'!$A$4:$B$39,2,FALSE),0) -> 0 | BM53: =$BL53+$BM52-IFERROR(VLOOKUP($A53,'[2]Myaccountaccess Pivot'!$A$4:$B$31,2,FALSE),0) -> 0 | BO53: =IFERROR(VLOOKUP($A53,'[6]export-2'!$A$2:$F$15,6,FALSE),BO52) -> 0 | BP53: 99.70981075 | BQ53: =OFFSET(A53,0,'Cool Graph'!$H$1) -> 0 | BR53: =OFFSET(A53,0,'Cool Graph'!$I$1) -> 99.70981075
A54: 2011-08-22 | B54: 0 | C54: 24 | D54: 69.56 | E54: 2.09 | F54: 0.23 | G54: 95.88 | H54: 0 | I54: 0 | J54: 0 | K54: 4 | L54: 0 | M54: 0 | N54: 0 | O54: 2.09 | P54: 0 | Q54: 0 | R54: 0 | S54: 0 | T54: 0 | U54: 0 | V54: 0 | W54: 0 | X54: 2 | Y54: 2 | Z54: 0 | AA54: 0 | AB54: 2 | AC54: 0 | AD54: =IFERROR(VLOOKUP($A54,[1]Sheet1!$A$4:$B$219,2,FALSE),0) -> 330 | AE54: 330 | AF54: 174.22 | AG54: =$BH54+$BI53-IFERROR(VLOOKUP($A54,[2]Sheet2!$A$4:$B$82,2,FALSE),0) -> 1099.82 | AH54: =$BJ53+$BK53-IFERROR(VLOOKUP($A54,[2]Amazon!$A$2:$F$17,5,FALSE),0) -> 0 | AI54: =$BL54+$BM53-IFERROR(VLOOKUP($A54,'[2]Myaccountaccess Pivot'!$A$4:$B$31,2,FALSE),0) -> 0 | AJ54: =IFERROR(VLOOKUP($A54,'[2]export-1'!$A$2:$F$441,6,FALSE),AJ53) -> 3112.63 | AK54: =IFERROR(VLOOKUP($A54,'[7]download-1'!$A$2:$F$513,6,FALSE),AK53) -> -1684.41 | AL54: =IFERROR(VLOOKUP($A54,'[3]TexttoColumn Amazon Balance'!$A$14:$B$30,2,FALSE),IF(AL55>0,AL55-50,0)) -> 1365.12 | AM54: 4408.67 | AN54: 7167.67 | AO54: 47 | AP54: 48 | AQ54: 0 | AR54: 0 | AX54: =IFERROR(VLOOKUP($A54,'[2]export-1'!$A$446:$G$451,7,FALSE),0) -> 0 | AY54: =IFERROR(VLOOKUP($A54,[3]Sheet4!$A$4:$B$56,2,FALSE),0) -> 6 | AZ54: =IFERROR(VLOOKUP($A54,'[3]headphones purchased'!$A$2:$G$27,6,FALSE),0) -> 0 | BA54: =ROUND(IFERROR(VLOOKUP($A54,'[4]download-1'!$A$471:$F$474,5,FALSE)/-9.5,0),0) -> 0 | BB54: =ROUND(IFERROR(VLOOKUP($A54,'[4]download-1'!$A$467:$F$469,5,FALSE)/-49,0),0) -> 0 | BC54: =IFERROR(VLOOKUP($A54,[5]Sheet8!$A$4:$B$89,2,FALSE),0) -> 0 | BF54: 0 | BG54: =IFERROR(VLOOKUP($A54,[3]Paypal!$A$2:$AA$1843,25,FALSE),0) -> 515.51 | BH54: =IFERROR(VLOOKUP($A54,'[3]Paypal Money Sent Pivot'!$A$4:$B$97,2,FALSE),0) -> 0 | BI54: =$BH54+$BI53-IFERROR(VLOOKUP($A54,[2]Sheet2!$A$4:$B$82,2,FALSE),0) -> 1099.82 | BJ54: =IFERROR(VLOOKUP($A54,'[3]TexttoColumn Amazon Balance'!$A$14:$B$30,2,FALSE),0) -> 0 | BK54: =$BJ53+$BK53-IFERROR(VLOOKUP($A54,[2]Amazon!$A$2:$F$17,5,FALSE),0) -> 0 | BL54: =IFERROR(VLOOKUP($A54,'[4]Payment Pivot'!$A$4:$B$39,2,FALSE),0) -> 0 | BM54: =$BL54+$BM53-IFERROR(VLOOKUP($A54,'[2]Myaccountaccess Pivot'!$A$4:$B$31,2,FALSE),0) -> 0 | BO54: =IFERROR(VLOOKUP($A54,'[6]export-2'!$A$2:$F$15,6,FALSE),BO53) -> 0 | BP54: 43.85987383 | BQ54: =OFFSET(A54,0,'Cool Graph'!$H$1) -> 0 | BR54: =OFFSET(A54,0,'Cool Graph'!$I$1) -> 43.85987383
A55: 2011-08-23 | B55: 0 | C55: 6.19 | D55: 57.04 | E55: 2.99 | F55: 4.83 | G55: 71.05 | H55: 0 | I55: 0 | J55: 0 | K55: 2 | L55: 0 | M55: 0 | N55: 0 | O55: 2.99 | P55: 0 | Q55: 0 | R55: 0 | S55: 0 | T55: 1 | U55: 1 | V55: 0 | W55: 0 | X55: 2 | Y55: 2 | Z55: 0 | AA55: 0 | AB55: 3 | AC55: 330 | AD55: =IFERROR(VLOOKUP($A55,[1]Sheet1!$A$4:$B$219,2,FALSE),0) -> 348.87 | AE55: 678.87 | AF55: 142.92 | AG55: =$BH55+$BI54-IFERROR(VLOOKUP($A55,[2]Sheet2!$A$4:$B$82,2,FALSE),0) -> -0.18 | AH55: =$BJ54+$BK54-IFERROR(VLOOKUP($A55,[2]Amazon!$A$2:$F$17,5,FALSE),0) -> 0 | AI55: =$BL55+$BM54-IFERROR(VLOOKUP($A55,'[2]Myaccountaccess Pivot'!$A$4:$B$31,2,FALSE),0) -> 0 | AJ55: =IFERROR(VLOOKUP($A55,'[2]export-1'!$A$2:$F$441,6,FALSE),AJ54) -> 4139.37 | AK55: =IFERROR(VLOOKUP($A55,'[7]download-1'!$A$2:$F$513,6,FALSE),AK54) -> -1684.41 | AL55: =IFERROR(VLOOKUP($A55,'[3]TexttoColumn Amazon Balance'!$A$14:$B$30,2,FALSE),IF(AL56>0,AL56-50,0)) -> 1415.12 | AM55: 4090.09 | AN55: 7310.59 | AO55: 57 | AP55: 45 | AQ55: 0 | AR55: 0 | AX55: =IFERROR(VLOOKUP($A55,'[2]export-1'!$A$446:$G$451,7,FALSE),0) -> 0 | AY55: =IFERROR(VLOOKUP($A55,[3]Sheet4!$A$4:$B$56,2,FALSE),0) -> 12 | AZ55: =IFERROR(VLOOKUP($A55,'[3]headphones purchased'!$A$2:$G$27,6,FALSE),0) -> 0 | BA55: =ROUND(IFERROR(VLOOKUP($A55,'[4]download-1'!$A$471:$F$474,5,FALSE)/-9.5,0),0) -> 0 | BB55: =ROUND(IFERROR(VLOOKUP($A55,'[4]download-1'!$A$467:$F$469,5,FALSE)/-49,0),0) -> 0 | BC55: =IFERROR(VLOOKUP($A55,[5]Sheet8!$A$4:$B$89,2,FALSE),0) -> 0 | BF55: 1 | BG55: =IFERROR(VLOOKUP($A55,[3]Paypal!$A$2:$AA$1843,25,FALSE),0) -> 220.19 | BH55: =IFERROR(VLOOKUP($A55,'[3]Paypal Money Sent Pivot'!$A$4:$B$97,2,FALSE),0) -> 0 | BI55: =$BH55+$BI54-IFERROR(VLOOKUP($A55,[2]Sheet2!$A$4:$B$82,2,FALSE),0) -> -0.18 | BJ55: =IFERROR(VLOOKUP($A55,'[3]TexttoColumn Amazon Balance'!$A$14:$B$30,2,FALSE),0) -> 0 | BK55: =$BJ54+$BK54-IFERROR(VLOOKUP($A55,[2]Amazon!$A$2:$F$17,5,FALSE),0) -> 0 | BL55: =IFERROR(VLOOKUP($A55,'[4]Payment Pivot'!$A$4:$B$39,2,FALSE),0) -> 0 | BM55: =$BL55+$BM54-IFERROR(VLOOKUP($A55,'[2]Myaccountaccess Pivot'!$A$4:$B$31,2,FALSE),0) -> 0 | BO55: =IFERROR(VLOOKUP($A55,'[6]export-2'!$A$2:$F$15,6,FALSE),BO54) -> 0 | BP55: 216.4203277 | BQ55: =OFFSET(A55,0,'Cool Graph'!$H$1) -> 0 | BR55: =OFFSET(A55,0,'Cool Graph'!$I$1) -> 216.4203277
A56: 2011-08-24 | B56: 0 | C56: 0 | D56: 69.12 | E56: 3.83 | F56: 1.75 | G56: 74.7 | H56: 0 | I56: 0 | J56: 0 | K56: 2 | L56: 1 | M56: 0 | N56: 0 | O56: 3.83 | P56: 1 | Q56: 0 | R56: 0 | S56: 0 | T56: 0 | U56: 0 | V56: 0 | W56: 0 | X56: 5 | Y56: 5 | Z56: 0 | AA56: 0 | AB56: 5 | AC56: 0 | AD56: =IFERROR(VLOOKUP($A56,[1]Sheet1!$A$4:$B$219,2,FALSE),0) -> 825 | AE56: 825 | AF56: -203.65 | AG56: =$BH56+$BI55-IFERROR(VLOOKUP($A56,[2]Sheet2!$A$4:$B$82,2,FALSE),0) -> -0.18 | AH56: =$BJ55+$BK55-IFERROR(VLOOKUP($A56,[2]Amazon!$A$2:$F$17,5,FALSE),0) -> 0 | AI56: =$BL56+$BM55-IFERROR(VLOOKUP($A56,'[2]Myaccountaccess Pivot'!$A$4:$B$31,2,FALSE),0) -> 0 | AJ56: =IFERROR(VLOOKUP($A56,'[2]export-1'!$A$2:$F$441,6,FALSE),AJ55) -> 3411.58 | AK56: =IFERROR(VLOOKUP($A56,'[7]download-1'!$A$2:$F$513,6,FALSE),AK55) -> -1684.41 | AL56: =IFERROR(VLOOKUP($A56,'[3]TexttoColumn Amazon Balance'!$A$14:$B$30,2,FALSE),IF(AL57>0,AL57-50,0)) -> 1465.12 | AM56: 3296.94 | AN56: 7106.94 | AO56: 70 | AP56: 40 | AQ56: 0 | AR56: 0 | AX56: =IFERROR(VLOOKUP($A56,'[2]export-1'!$A$446:$G$451,7,FALSE),0) -> 0 | AY56: =IFERROR(VLOOKUP($A56,[3]Sheet4!$A$4:$B$56,2,FALSE),0) -> 18 | AZ56: =IFERROR(VLOOKUP($A56,'[3]headphones purchased'!$A$2:$G$27,6,FALSE),0) -> 0 | BA56: =ROUND(IFERROR(VLOOKUP($A56,'[4]download-1'!$A$471:$F$474,5,FALSE)/-9.5,0),0) -> 0 | BB56: =ROUND(IFERROR(VLOOKUP($A56,'[4]download-1'!$A$467:$F$469,5,FALSE)/-49,0),0) -> 0 | BC56: =IFERROR(VLOOKUP($A56,[5]Sheet8!$A$4:$B$89,2,FALSE),0) -> 0 | BF56: 0 | BG56: =IFERROR(VLOOKUP($A56,[3]Paypal!$A$2:$AA$1843,25,FALSE),0) -> 104.83 | BH56: =IFERROR(VLOOKUP($A56,'[3]Paypal Money Sent Pivot'!$A$4:$B$97,2,FALSE),0) -> 0 | BI56: =$BH56+$BI55-IFERROR(VLOOKUP($A56,[2]Sheet2!$A$4:$B$82,2,FALSE),0) -> -0.18 | BJ56: =IFERROR(VLOOKUP($A56,'[3]TexttoColumn Amazon Balance'!$A$14:$B$30,2,FALSE),0) -> 0 | BK56: =$BJ55+$BK55-IFERROR(VLOOKUP($A56,[2]Amazon!$A$2:$F$17,5,FALSE),0) -> 0 | BL56: =IFERROR(VLOOKUP($A56,'[4]Payment Pivot'!$A$4:$B$39,2,FALSE),0) -> 0 | BM56: =$BL56+$BM55-IFERROR(VLOOKUP($A56,'[2]Myaccountaccess Pivot'!$A$4:$B$31,2,FALSE),0) -> 0 | BO56: =IFERROR(VLOOKUP($A56,'[6]export-2'!$A$2:$F$15,6,FALSE),BO55) -> 0 | BP56: 274.6496846 | BQ56: =OFFSET(A56,0,'Cool Graph'!$H$1) -> 0 | BR56: =OFFSET(A56,0,'Cool Graph'!$I$1) -> 274.6496846
A57: 2011-08-25 | B57: 0 | C57: 3.2 | D57: 68.23 | E57: 2.24 | F57: 2.84 | G57: 76.51 | H57: 0 | I57: 0 | J57: 0 | K57: 1 | L57: 0 | M57: 0 | N57: 0 | O57: 2.24 | P57: 0 | Q57: 0 | R57: 0 | S57: 0 | T57: 0 | U57: 0 | V57: 0 | W57: 0 | X57: 1 | Y57: 1 | Z57: 0 | AA57: 0 | AB57: 1 | AC57: 0 | AD57: =IFERROR(VLOOKUP($A57,[1]Sheet1!$A$4:$B$219,2,FALSE),0) -> 165 | AE57: 165 | AF57: -303.62 | AG57: =$BH57+$BI56-IFERROR(VLOOKUP($A57,[2]Sheet2!$A$4:$B$82,2,FALSE),0) -> -0.18 | AH57: =$BJ56+$BK56-IFERROR(VLOOKUP($A57,[2]Amazon!$A$2:$F$17,5,FALSE),0) -> 0 | AI57: =$BL57+$BM56-IFERROR(VLOOKUP($A57,'[2]Myaccountaccess Pivot'!$A$4:$B$31,2,FALSE),0) -> 0 | AJ57: =IFERROR(VLOOKUP($A57,'[2]export-1'!$A$2:$F$441,6,FALSE),AJ56) -> 3411.58 | AK57: =IFERROR(VLOOKUP($A57,'[7]download-1'!$A$2:$F$513,6,FALSE),AK56) -> -2184.41 | AL57: =IFERROR(VLOOKUP($A57,'[3]TexttoColumn Amazon Balance'!$A$14:$B$30,2,FALSE),IF(AL58>0,AL58-50,0)) -> 1515.12 | AM57: 2974.32 | AN57: 6803.32 | AO57: 70 | AP57: 42 | AQ57: 0 | AR57: 0 | AX57: =IFERROR(VLOOKUP($A57,'[2]export-1'!$A$446:$G$451,7,FALSE),0) -> 0 | AY57: =IFERROR(VLOOKUP($A57,[3]Sheet4!$A$4:$B$56,2,FALSE),0) -> 0 | AZ57: =IFERROR(VLOOKUP($A57,'[3]headphones purchased'!$A$2:$G$27,6,FALSE),0) -> 3 | BA57: =ROUND(IFERROR(VLOOKUP($A57,'[4]download-1'!$A$471:$F$474,5,FALSE)/-9.5,0),0) -> 0 | BB57: =ROUND(IFERROR(VLOOKUP($A57,'[4]download-1'!$A$467:$F$469,5,FALSE)/-49,0),0) -> 0 | BC57: =IFERROR(VLOOKUP($A57,[5]Sheet8!$A$4:$B$89,2,FALSE),0) -> 0 | BF57: 1 | BG57: =IFERROR(VLOOKUP($A57,[3]Paypal!$A$2:$AA$1843,25,FALSE),0) -> 232.21 | BH57: =IFERROR(VLOOKUP($A57,'[3]Paypal Money Sent Pivot'!$A$4:$B$97,2,FALSE),0) -> 0 | BI57: =$BH57+$BI56-IFERROR(VLOOKUP($A57,[2]Sheet2!$A$4:$B$82,2,FALSE),0) -> -0.18 | BJ57: =IFERROR(VLOOKUP($A57,'[3]TexttoColumn Amazon Balance'!$A$14:$B$30,2,FALSE),0) -> 0 | BK57: =$BJ56+$BK56-IFERROR(VLOOKUP($A57,[2]Amazon!$A$2:$F$17,5,FALSE),0) -> 0 | BL57: =IFERROR(VLOOKUP($A57,'[4]Payment Pivot'!$A$4:$B$39,2,FALSE),0) -> 0 | BM57: =$BL57+$BM56-IFERROR(VLOOKUP($A57,'[2]Myaccountaccess Pivot'!$A$4:$B$31,2,FALSE),0) -> 0 | BO57: =IFERROR(VLOOKUP($A57,'[6]export-2'!$A$2:$F$15,6,FALSE),BO56) -> 0 | BP57: -6.640063083 | BQ57: =OFFSET(A57,0,'Cool Graph'!$H$1) -> 0 | BR57: =OFFSET(A57,0,'Cool Graph'!$I$1) -> -6.640063083
A58: 2011-08-26 | B58: 0 | C58: 9.6 | D58: 44.62 | E58: 0.67 | F58: 1.58 | G58: 56.47 | H58: 0 | I58: 0 | J58: 0 | K58: 1 | L58: 0 | M58: 0 | N58: 0 | O58: 0.67 | P58: 0 | Q58: 0 | R58: 0 | S58: 0 | T58: 0 | U58: 0 | V58: 0 | W58: 0 | X58: 3 | Y58: 3 | Z58: 0 | AA58: 0 | AB58: 3 | AC58: 0 | AD58: =IFERROR(VLOOKUP($A58,[1]Sheet1!$A$4:$B$219,2,FALSE),0) -> 495 | AE58: 495 | AF58: 246.4 | AG58: =$BH58+$BI57-IFERROR(VLOOKUP($A58,[2]Sheet2!$A$4:$B$82,2,FALSE),0) -> -0.18 | AH58: =$BJ57+$BK57-IFERROR(VLOOKUP($A58,[2]Amazon!$A$2:$F$17,5,FALSE),0) -> 0 | AI58: =$BL58+$BM57-IFERROR(VLOOKUP($A58,'[2]Myaccountaccess Pivot'!$A$4:$B$31,2,FALSE),0) -> 0 | AJ58: =IFERROR(VLOOKUP($A58,'[2]export-1'!$A$2:$F$441,6,FALSE),AJ57) -> 1882.55 | AK58: =IFERROR(VLOOKUP($A58,'[7]download-1'!$A$2:$F$513,6,FALSE),AK57) -> -2264.41 | AL58: =IFERROR(VLOOKUP($A58,'[3]TexttoColumn Amazon Balance'!$A$14:$B$30,2,FALSE),IF(AL59>0,AL59-50,0)) -> 1565.12 | AM58: 1864.22 | AN58: 7049.72 | AO58: 67 | AP58: 95 | AQ58: 0 | AR58: 0 | AX58: =IFERROR(VLOOKUP($A58,'[2]export-1'!$A$446:$G$451,7,FALSE),0) -> 0 | AY58: =IFERROR(VLOOKUP($A58,[3]Sheet4!$A$4:$B$56,2,FALSE),0) -> 0 | AZ58: =IFERROR(VLOOKUP($A58,'[3]headphones purchased'!$A$2:$G$27,6,FALSE),0) -> 56 | BA58: =ROUND(IFERROR(VLOOKUP($A58,'[4]download-1'!$A$471:$F$474,5,FALSE)/-9.5,0),0) -> 0 | BB58: =ROUND(IFERROR(VLOOKUP($A58,'[4]download-1'!$A$467:$F$469,5,FALSE)/-49,0),0) -> 0 | BC58: =IFERROR(VLOOKUP($A58,[5]Sheet8!$A$4:$B$89,2,FALSE),0) -> 0 | BF58: 0 | BG58: =IFERROR(VLOOKUP($A58,[3]Paypal!$A$2:$AA$1843,25,FALSE),0) -> 681.14 | BH58: =IFERROR(VLOOKUP($A58,'[3]Paypal Money Sent Pivot'!$A$4:$B$97,2,FALSE),0) -> 0 | BI58: =$BH58+$BI57-IFERROR(VLOOKUP($A58,[2]Sheet2!$A$4:$B$82,2,FALSE),0) -> -0.18 | BJ58: =IFERROR(VLOOKUP($A58,'[3]TexttoColumn Amazon Balance'!$A$14:$B$30,2,FALSE),0) -> 0 | BK58: =$BJ57+$BK57-IFERROR(VLOOKUP($A58,[2]Amazon!$A$2:$F$17,5,FALSE),0) -> 0 | BL58: =IFERROR(VLOOKUP($A58,'[4]Payment Pivot'!$A$4:$B$39,2,FALSE),0) -> 0 | BM58: =$BL58+$BM57-IFERROR(VLOOKUP($A58,'[2]Myaccountaccess Pivot'!$A$4:$B$31,2,FALSE),0) -> 0 | BO58: =IFERROR(VLOOKUP($A58,'[6]export-2'!$A$2:$F$15,6,FALSE),BO57) -> 1000 | BP58: 153.1398108 | BQ58: =OFFSET(A58,0,'Cool Graph'!$H$1) -> 0 | BR58: =OFFSET(A58,0,'Cool Graph'!$I$1) -> 153.1398108
A59: 2011-08-27 | B59: 0 | C59: 13.6 | D59: 52.63 | E59: 2.59 | F59: 3.5 | G59: 72.32 | H59: 0 | I59: 0 | J59: 0 | K59: 1 | L59: 0 | M59: 0 | N59: 0 | O59: 2.59 | P59: 0 | Q59: 0 | R59: 0 | S59: 0 | T59: 0 | U59: 0 | V59: 0 | W59: 0 | X59: 1 | Y59: 1 | Z59: 0 | AA59: 0 | AB59: 1 | AC59: 0 | AD59: =IFERROR(VLOOKUP($A59,[1]Sheet1!$A$4:$B$219,2,FALSE),0) -> 165 | AE59: 165 | AF59: 200.41 | AG59: =$BH59+$BI58-IFERROR(VLOOKUP($A59,[2]Sheet2!$A$4:$B$82,2,FALSE),0) -> -0.18 | AH59: =$BJ58+$BK58-IFERROR(VLOOKUP($A59,[2]Amazon!$A$2:$F$17,5,FALSE),0) -> 0 | AI59: =$BL59+$BM58-IFERROR(VLOOKUP($A59,'[2]Myaccountaccess Pivot'!$A$4:$B$31,2,FALSE),0) -> 0 | AJ59: =IFERROR(VLOOKUP($A59,'[2]export-1'!$A$2:$F$441,6,FALSE),AJ58) -> 1882.55 | AK59: =IFERROR(VLOOKUP($A59,'[7]download-1'!$A$2:$F$513,6,FALSE),AK58) -> -2264.41 | AL59: =IFERROR(VLOOKUP($A59,'[3]TexttoColumn Amazon Balance'!$A$14:$B$30,2,FALSE),IF(AL60>0,AL60-50,0)) -> 1615.12 | AM59: 2074.13 | AN59: 7250.13 | AO59: 67 | AP59: 94 | AQ59: 0 | AR59: 0 | AX59: =IFERROR(VLOOKUP($A59,'[2]export-1'!$A$446:$G$451,7,FALSE),0) -> 0 | AY59: =IFERROR(VLOOKUP($A59,[3]Sheet4!$A$4:$B$56,2,FALSE),0) -> 0 | AZ59: =IFERROR(VLOOKUP($A59,'[3]headphones purchased'!$A$2:$G$27,6,FALSE),0) -> 0 | BA59: =ROUND(IFERROR(VLOOKUP($A59,'[4]download-1'!$A$471:$F$474,5,FALSE)/-9.5,0),0) -> 0 | BB59: =ROUND(IFERROR(VLOOKUP($A59,'[4]download-1'!$A$467:$F$469,5,FALSE)/-49,0),0) -> 0 | BC59: =IFERROR(VLOOKUP($A59,[5]Sheet8!$A$4:$B$89,2,FALSE),0) -> 0 | BF59: 1 | BG59: =IFERROR(VLOOKUP($A59,[3]Paypal!$A$2:$AA$1843,25,FALSE),0) -> 841.05 | BH59: =IFERROR(VLOOKUP($A59,'[3]Paypal Money Sent Pivot'!$A$4:$B$97,2,FALSE),0) -> 0 | BI59: =$BH59+$BI58-IFERROR(VLOOKUP($A59,[2]Sheet2!$A$4:$B$82,2,FALSE),0) -> -0.18 | BJ59: =IFERROR(VLOOKUP($A59,'[3]TexttoColumn Amazon Balance'!$A$14:$B$30,2,FALSE),0) -> 1615.12 | BK59: =$BJ58+$BK58-IFERROR(VLOOKUP($A59,[2]Amazon!$A$2:$F$17,5,FALSE),0) -> 0 | BL59: =IFERROR(VLOOKUP($A59,'[4]Payment Pivot'!$A$4:$B$39,2,FALSE),0) -> 0 | BM59: =$BL59+$BM58-IFERROR(VLOOKUP($A59,'[2]Myaccountaccess Pivot'!$A$4:$B$31,2,FALSE),0) -> 0 | BO59: =IFERROR(VLOOKUP($A59,'[6]export-2'!$A$2:$F$15,6,FALSE),BO58) -> 1000 | BP59: -2.450063083 | BQ59: =OFFSET(A59,0,'Cool Graph'!$H$1) -> 0 | BR59: =OFFSET(A59,0,'Cool Graph'!$I$1) -> -2.450063083
A60: 2011-08-28 | B60: 0 | C60: 14.4 | D60: 57.97 | E60: 3.51 | F60: 0 | G60: 75.88 | H60: 0 | I60: 0 | J60: 0 | K60: 0 | L60: 0 | M60: 0 | N60: 0 | O60: 3.51 | P60: 0 | Q60: 0 | R60: 0 | S60: 0 | T60: 0 | U60: 0 | V60: 0 | W60: 0 | X60: 0 | Y60: 0 | Z60: 0 | AA60: 0 | AB60: 0 | AC60: 0 | AD60: =IFERROR(VLOOKUP($A60,[1]Sheet1!$A$4:$B$219,2,FALSE),0) -> 0 | AE60: 0 | AF60: -218.36 | AG60: =$BH60+$BI59-IFERROR(VLOOKUP($A60,[2]Sheet2!$A$4:$B$82,2,FALSE),0) -> -0.18 | AH60: =$BJ59+$BK59-IFERROR(VLOOKUP($A60,[2]Amazon!$A$2:$F$17,5,FALSE),0) -> 1615.12 | AI60: =$BL60+$BM59-IFERROR(VLOOKUP($A60,'[2]Myaccountaccess Pivot'!$A$4:$B$31,2,FALSE),0) -> 0 | AJ60: =IFERROR(VLOOKUP($A60,'[2]export-1'!$A$2:$F$441,6,FALSE),AJ59) -> 1882.55 | AK60: =IFERROR(VLOOKUP($A60,'[7]download-1'!$A$2:$F$513,6,FALSE),AK59) -> -2264.41 | AL60: =IFERROR(VLOOKUP($A60,'[3]TexttoColumn Amazon Balance'!$A$14:$B$30,2,FALSE),IF(AL61>0,AL61-50,0)) -> 622.69 | AM60: 1855.77 | AN60: 7031.77 | AO60: 67 | AP60: 94 | AQ60: 0 | AR60: 0 | AX60: =IFERROR(VLOOKUP($A60,'[2]export-1'!$A$446:$G$451,7,FALSE),0) -> 0 | AY60: =IFERROR(VLOOKUP($A60,[3]Sheet4!$A$4:$B$56,2,FALSE),0) -> 0 | AZ60: =IFERROR(VLOOKUP($A60,'[3]headphones purchased'!$A$2:$G$27,6,FALSE),0) -> 0 | BA60: =ROUND(IFERROR(VLOOKUP($A60,'[4]download-1'!$A$471:$F$474,5,FALSE)/-9.5,0),0) -> 0 | BB60: =ROUND(IFERROR(VLOOKUP($A60,'[4]download-1'!$A$467:$F$469,5,FALSE)/-49,0),0) -> 0 | BC60: =IFERROR(VLOOKUP($A60,[5]Sheet8!$A$4:$B$89,2,FALSE),0) -> 0 | BF60: 0 | BG60: =IFERROR(VLOOKUP($A60,[3]Paypal!$A$2:$AA$1843,25,FALSE),0) -> 0 | BH60: =IFERROR(VLOOKUP($A60,'[3]Paypal Money Sent Pivot'!$A$4:$B$97,2,FALSE),0) -> 0 | BI60: =$BH60+$BI59-IFERROR(VLOOKUP($A60,[2]Sheet2!$A$4:$B$82,2,FALSE),0) -> -0.18 | BJ60: =IFERROR(VLOOKUP($A60,'[3]TexttoColumn Amazon Balance'!$A$14:$B$30,2,FALSE),0) -> 0 | BK60: =$BJ59+$BK59-IFERROR(VLOOKUP($A60,[2]Amazon!$A$2:$F$17,5,FALSE),0) -> 1615.12 | BL60: =IFERROR(VLOOKUP($A60,'[4]Payment Pivot'!$A$4:$B$39,2,FALSE),0) -> 0 | BM60: =$BL60+$BM59-IFERROR(VLOOKUP($A60,'[2]Myaccountaccess Pivot'!$A$4:$B$31,2,FALSE),0) -> 0 | BO60: =IFERROR(VLOOKUP($A60,'[6]export-2'!$A$2:$F$15,6,FALSE),BO59) -> 1000 | BP60: -75.88 | BQ60: =OFFSET(A60,0,'Cool Graph'!$H$1) -> 0 | BR60: =OFFSET(A60,0,'Cool Graph'!$I$1) -> -75.88
A61: 2011-08-29 | B61: 0 | C61: 34.4 | D61: 71.61 | E61: 4.01 | F61: 0 | G61: 110.02 | H61: 0 | I61: 0 | J61: 0 | K61: 2 | L61: 0 | M61: 0 | N61: 0 | O61: 4.01 | P61: 0 | Q61: 0 | R61: 0 | S61: 0 | T61: 0 | U61: 0 | V61: 0 | W61: 0 | X61: 2 | Y61: 2 | Z61: 0 | AA61: 0 | AB61: 2 | AC61: 0 | AD61: =IFERROR(VLOOKUP($A61,[1]Sheet1!$A$4:$B$219,2,FALSE),0) -> 330 | AE61: 330 | AF61: 59.78 | AG61: =$BH61+$BI60-IFERROR(VLOOKUP($A61,[2]Sheet2!$A$4:$B$82,2,FALSE),0) -> -0.18 | AH61: =$BJ60+$BK60-IFERROR(VLOOKUP($A61,[2]Amazon!$A$2:$F$17,5,FALSE),0) -> 1615.12 | AI61: =$BL61+$BM60-IFERROR(VLOOKUP($A61,'[2]Myaccountaccess Pivot'!$A$4:$B$31,2,FALSE),0) -> 500 | AJ61: =IFERROR(VLOOKUP($A61,'[2]export-1'!$A$2:$F$441,6,FALSE),AJ60) -> 1036.79 | AK61: =IFERROR(VLOOKUP($A61,'[7]download-1'!$A$2:$F$513,6,FALSE),AK60) -> -1764.41 | AL61: =IFERROR(VLOOKUP($A61,'[3]TexttoColumn Amazon Balance'!$A$14:$B$30,2,FALSE),IF(AL62>0,AL62-50,0)) -> 672.69 | AM61: 1444.55 | AN61: 7091.55 | AO61: 77 | AP61: 92 | AQ61: 0 | AR61: 0 | AX61: =IFERROR(VLOOKUP($A61,'[2]export-1'!$A$446:$G$451,7,FALSE),0) -> 0 | AY61: =IFERROR(VLOOKUP($A61,[3]Sheet4!$A$4:$B$56,2,FALSE),0) -> 12 | AZ61: =IFERROR(VLOOKUP($A61,'[3]headphones purchased'!$A$2:$G$27,6,FALSE),0) -> 0 | BA61: =ROUND(IFERROR(VLOOKUP($A61,'[4]download-1'!$A$471:$F$474,5,FALSE)/-9.5,0),0) -> 0 | BB61: =ROUND(IFERROR(VLOOKUP($A61,'[4]download-1'!$A$467:$F$469,5,FALSE)/-49,0),0) -> 0 | BC61: =IFERROR(VLOOKUP($A61,[5]Sheet8!$A$4:$B$89,2,FALSE),0) -> 1 | BF61: 1 | BG61: =IFERROR(VLOOKUP($A61,[3]Paypal!$A$2:$AA$1843,25,FALSE),0) -> 384.54 | BH61: =IFERROR(VLOOKUP($A61,'[3]Paypal Money Sent Pivot'!$A$4:$B$97,2,FALSE),0) -> 0 | BI61: =$BH61+$BI60-IFERROR(VLOOKUP($A61,[2]Sheet2!$A$4:$B$82,2,FALSE),0) -> -0.18 | BJ61: =IFERROR(VLOOKUP($A61,'[3]TexttoColumn Amazon Balance'!$A$14:$B$30,2,FALSE),0) -> 0 | BK61: =$BJ60+$BK60-IFERROR(VLOOKUP($A61,[2]Amazon!$A$2:$F$17,5,FALSE),0) -> 1615.12 | BL61: =IFERROR(VLOOKUP($A61,'[4]Payment Pivot'!$A$4:$B$39,2,FALSE),0) -> 500 | BM61: =$BL61+$BM60-IFERROR(VLOOKUP($A61,'[2]Myaccountaccess Pivot'!$A$4:$B$31,2,FALSE),0) -> 500 | BO61: =IFERROR(VLOOKUP($A61,'[6]export-2'!$A$2:$F$15,6,FALSE),BO60) -> 1000 | BP61: 29.71987383 | BQ61: =OFFSET(A61,0,'Cool Graph'!$H$1) -> 0 | BR61: =OFFSET(A61,0,'Cool Graph'!$I$1) -> 29.71987383
A62: 2011-08-30 | B62: 0 | C62: 17.6 | D62: 52.89 | E62: 2.92 | F62: 5.61 | G62: 79.02 | H62: 1 | I62: 0 | J62: 0 | K62: 0 | L62: 0 | M62: 0 | N62: 0 | O62: 2.92 | P62: 0 | Q62: 0 | R62: 0 | S62: 0 | T62: 0 | U62: 0 | V62: 0 | W62: 0 | X62: 2 | Y62: 2 | Z62: 0 | AA62: 0 | AB62: 2 | AC62: 0 | AD62: =IFERROR(VLOOKUP($A62,[1]Sheet1!$A$4:$B$219,2,FALSE),0) -> 330 | AE62: 330 | AF62: 351.71 | AG62: =$BH62+$BI61-IFERROR(VLOOKUP($A62,[2]Sheet2!$A$4:$B$82,2,FALSE),0) -> -0.18 | AH62: =$BJ61+$BK61-IFERROR(VLOOKUP($A62,[2]Amazon!$A$2:$F$17,5,FALSE),0) -> 0 | AI62: =$BL62+$BM61-IFERROR(VLOOKUP($A62,'[2]Myaccountaccess Pivot'!$A$4:$B$31,2,FALSE),0) -> 0 | AJ62: =IFERROR(VLOOKUP($A62,'[2]export-1'!$A$2:$F$441,6,FALSE),AJ61) -> 2101.91 | AK62: =IFERROR(VLOOKUP($A62,'[7]download-1'!$A$2:$F$513,6,FALSE),AK61) -> -1764.41 | AL62: =IFERROR(VLOOKUP($A62,'[3]TexttoColumn Amazon Balance'!$A$14:$B$30,2,FALSE),IF(AL63>0,AL63-50,0)) -> 722.69 | AM62: 1913.26 | AN62: 7443.26 | AO62: 75 | AP62: 90 | AQ62: 0 | AR62: 0 | AX62: =IFERROR(VLOOKUP($A62,'[2]export-1'!$A$446:$G$451,7,FALSE),0) -> 0 | AY62: =IFERROR(VLOOKUP($A62,[3]Sheet4!$A$4:$B$56,2,FALSE),0) -> 0 | AZ62: =IFERROR(VLOOKUP($A62,'[3]headphones purchased'!$A$2:$G$27,6,FALSE),0) -> 0 | BA62: =ROUND(IFERROR(VLOOKUP($A62,'[4]download-1'!$A$471:$F$474,5,FALSE)/-9.5,0),0) -> 0 | BB62: =ROUND(IFERROR(VLOOKUP($A62,'[4]download-1'!$A$467:$F$469,5,FALSE)/-49,0),0) -> 0 | BC62: =IFERROR(VLOOKUP($A62,[5]Sheet8!$A$4:$B$89,2,FALSE),0) -> 0 | BF62: 0 | BG62: =IFERROR(VLOOKUP($A62,[3]Paypal!$A$2:$AA$1843,25,FALSE),0) -> 853.25 | BH62: =IFERROR(VLOOKUP($A62,'[3]Paypal Money Sent Pivot'!$A$4:$B$97,2,FALSE),0) -> 0 | BI62: =$BH62+$BI61-IFERROR(VLOOKUP($A62,[2]Sheet2!$A$4:$B$82,2,FALSE),0) -> -0.18 | BJ62: =IFERROR(VLOOKUP($A62,'[3]TexttoColumn Amazon Balance'!$A$14:$B$30,2,FALSE),0) -> 0 | BK62: =$BJ61+$BK61-IFERROR(VLOOKUP($A62,[2]Amazon!$A$2:$F$17,5,FALSE),0) -> 0 | BL62: =IFERROR(VLOOKUP($A62,'[4]Payment Pivot'!$A$4:$B$39,2,FALSE),0) -> 0 | BM62: =$BL62+$BM61-IFERROR(VLOOKUP($A62,'[2]Myaccountaccess Pivot'!$A$4:$B$31,2,FALSE),0) -> 0 | BO62: =IFERROR(VLOOKUP($A62,'[6]export-2'!$A$2:$F$15,6,FALSE),BO61) -> 1000 | BP62: 60.71987383 | BQ62: =OFFSET(A62,0,'Cool Graph'!$H$1) -> 0 | BR62: =OFFSET(A62,0,'Cool Graph'!$I$1) -> 60.71987383
A63: 2011-08-31 | B63: 0 | C63: 16 | D63: 48.83 | E63: 2.51 | F63: 4.61 | G63: 71.95 | H63: 0 | I63: 0 | J63: 0 | K63: 1 | L63: 0 | M63: 0 | N63: 0 | O63: 2.51 | P63: 0 | Q63: 0 | R63: 0 | S63: 0 | T63: 1 | U63: 0 | V63: 0 | W63: 0 | X63: 2 | Y63: 2 | Z63: 0 | AA63: 0 | AB63: 3 | AC63: 165 | AD63: =IFERROR(VLOOKUP($A63,[1]Sheet1!$A$4:$B$219,2,FALSE),0) -> 330 | AE63: 495 | AF63: 124.24 | AG63: =$BH63+$BI62-IFERROR(VLOOKUP($A63,[2]Sheet2!$A$4:$B$82,2,FALSE),0) -> -0.18 | AH63: =$BJ62+$BK62-IFERROR(VLOOKUP($A63,[2]Amazon!$A$2:$F$17,5,FALSE),0) -> 0 | AI63: =$BL63+$BM62-IFERROR(VLOOKUP($A63,'[2]Myaccountaccess Pivot'!$A$4:$B$31,2,FALSE),0) -> 0 | AJ63: =IFERROR(VLOOKUP($A63,'[2]export-1'!$A$2:$F$441,6,FALSE),AJ62) -> 1996.91 | AK63: =IFERROR(VLOOKUP($A63,'[7]download-1'!$A$2:$F$513,6,FALSE),AK62) -> -1764.41 | AL63: =IFERROR(VLOOKUP($A63,'[3]TexttoColumn Amazon Balance'!$A$14:$B$30,2,FALSE),IF(AL64>0,AL64-50,0)) -> 772.69 | AM63: 2154.5 | AN63: 7567.5 | AO63: 73 | AP63: 88 | AQ63: 0 | AR63: 0 | AX63: =IFERROR(VLOOKUP($A63,'[2]export-1'!$A$446:$G$451,7,FALSE),0) -> 0 | AY63: =IFERROR(VLOOKUP($A63,[3]Sheet4!$A$4:$B$56,2,FALSE),0) -> 0 | AZ63: =IFERROR(VLOOKUP($A63,'[3]headphones purchased'!$A$2:$G$27,6,FALSE),0) -> 0 | BA63: =ROUND(IFERROR(VLOOKUP($A63,'[4]download-1'!$A$471:$F$474,5,FALSE)/-9.5,0),0) -> 0 | BB63: =ROUND(IFERROR(VLOOKUP($A63,'[4]download-1'!$A$467:$F$469,5,FALSE)/-49,0),0) -> 0 | BC63: =IFERROR(VLOOKUP($A63,[5]Sheet8!$A$4:$B$89,2,FALSE),0) -> 0 | BF63: 1 | BG63: =IFERROR(VLOOKUP($A63,[3]Paypal!$A$2:$AA$1843,25,FALSE),0) -> 1149.49 | BH63: =IFERROR(VLOOKUP($A63,'[3]Paypal Money Sent Pivot'!$A$4:$B$97,2,FALSE),0) -> 0 | BI63: =$BH63+$BI62-IFERROR(VLOOKUP($A63,[2]Sheet2!$A$4:$B$82,2,FALSE),0) -> -0.18 | BJ63: =IFERROR(VLOOKUP($A63,'[3]TexttoColumn Amazon Balance'!$A$14:$B$30,2,FALSE),0) -> 0 | BK63: =$BJ62+$BK62-IFERROR(VLOOKUP($A63,[2]Amazon!$A$2:$F$17,5,FALSE),0) -> 0 | BL63: =IFERROR(VLOOKUP($A63,'[4]Payment Pivot'!$A$4:$B$39,2,FALSE),0) -> 0 | BM63: =$BL63+$BM62-IFERROR(VLOOKUP($A63,'[2]Myaccountaccess Pivot'!$A$4:$B$31,2,FALSE),0) -> 0 | BO63: =IFERROR(VLOOKUP($A63,'[6]export-2'!$A$2:$F$15,6,FALSE),BO62) -> 1000 | BP63: 137.6598108 | BQ63: =OFFSET(A63,0,'Cool Graph'!$H$1) -> 0 | BR63: =OFFSET(A63,0,'Cool Graph'!$I$1) -> 137.6598108
A64: 2011-09-01 | B64: 0 | C64: 10.15 | D64: 44.49 | E64: 2.69 | F64: 4.57 | G64: 61.9 | H64: 0 | I64: 1 | J64: 0 | K64: 0 | L64: 0 | M64: 0 | N64: 0 | O64: 2.69 | P64: 0 | Q64: 0 | R64: 0 | S64: 0 | T64: 0 | U64: 0 | V64: 0 | W64: 0 | X64: 1 | Y64: 1 | Z64: 0 | AA64: 0 | AB64: 1 | AC64: 0 | AD64: =IFERROR(VLOOKUP($A64,[1]Sheet1!$A$4:$B$219,2,FALSE),0) -> 165 | AE64: 165 | AF64: -10.7 | AG64: =$BH64+$BI63-IFERROR(VLOOKUP($A64,[2]Sheet2!$A$4:$B$82,2,FALSE),0) -> -0.18 | AH64: =$BJ63+$BK63-IFERROR(VLOOKUP($A64,[2]Amazon!$A$2:$F$17,5,FALSE),0) -> 0 | AI64: =$BL64+$BM63-IFERROR(VLOOKUP($A64,'[2]Myaccountaccess Pivot'!$A$4:$B$31,2,FALSE),0) -> 0 | AJ64: =IFERROR(VLOOKUP($A64,'[2]export-1'!$A$2:$F$441,6,FALSE),AJ63) -> 1846.46 | AK64: =IFERROR(VLOOKUP($A64,'[7]download-1'!$A$2:$F$513,6,FALSE),AK63) -> -1764.41 | AL64: =IFERROR(VLOOKUP($A64,'[3]TexttoColumn Amazon Balance'!$A$14:$B$30,2,FALSE),IF(AL65>0,AL65-50,0)) -> 822.69 | AM64: 2202.3 | AN64: 7556.8 | AO64: 72 | AP64: 87 | AQ64: 0 | AR64: 0 | AX64: =IFERROR(VLOOKUP($A64,'[2]export-1'!$A$446:$G$451,7,FALSE),0) -> 0 | AY64: =IFERROR(VLOOKUP($A64,[3]Sheet4!$A$4:$B$56,2,FALSE),0) -> 0 | AZ64: =IFERROR(VLOOKUP($A64,'[3]headphones purchased'!$A$2:$G$27,6,FALSE),0) -> 0 | BA64: =ROUND(IFERROR(VLOOKUP($A64,'[4]download-1'!$A$471:$F$474,5,FALSE)/-9.5,0),0) -> 0 | BB64: =ROUND(IFERROR(VLOOKUP($A64,'[4]download-1'!$A$467:$F$469,5,FALSE)/-49,0),0) -> 0 | BC64: =IFERROR(VLOOKUP($A64,[5]Sheet8!$A$4:$B$89,2,FALSE),0) -> 0 | BF64: 0 | BG64: =IFERROR(VLOOKUP($A64,[3]Paypal!$A$2:$AA$1843,25,FALSE),0) -> 1297.74 | BH64: =IFERROR(VLOOKUP($A64,'[3]Paypal Money Sent Pivot'!$A$4:$B$97,2,FALSE),0) -> 0 | BI64: =$BH64+$BI63-IFERROR(VLOOKUP($A64,[2]Sheet2!$A$4:$B$82,2,FALSE),0) -> -0.18 | BJ64: =IFERROR(VLOOKUP($A64,'[3]TexttoColumn Amazon Balance'!$A$14:$B$30,2,FALSE),0) -> 0 | BK64: =$BJ63+$BK63-IFERROR(VLOOKUP($A64,[2]Amazon!$A$2:$F$17,5,FALSE),0) -> 0 | BL64: =IFERROR(VLOOKUP($A64,'[4]Payment Pivot'!$A$4:$B$39,2,FALSE),0) -> 0 | BM64: =$BL64+$BM63-IFERROR(VLOOKUP($A64,'[2]Myaccountaccess Pivot'!$A$4:$B$31,2,FALSE),0) -> 0 | BO64: =IFERROR(VLOOKUP($A64,'[6]export-2'!$A$2:$F$15,6,FALSE),BO63) -> 1000 | BP64: 7.969936917 | BQ64: =OFFSET(A64,0,'Cool Graph'!$H$1) -> 0 | BR64: =OFFSET(A64,0,'Cool Graph'!$I$1) -> 7.969936917
A65: 2011-09-02 | B65: 0 | C65: 13.6 | D65: 37.49 | E65: 7.55 | F65: 5.4 | G65: 64.04 | H65: 0 | I65: 0 | J65: 0 | K65: 1 | L65: 0 | M65: 0 | N65: 0 | O65: 3.45 | P65: 0 | Q65: 0 | R65: 4.1 | S65: 0 | T65: 0 | U65: 0 | V65: 0 | W65: 0 | X65: 5 | Y65: 5 | Z65: 0 | AA65: 0 | AB65: 5 | AC65: 0 | AD65: =IFERROR(VLOOKUP($A65,[1]Sheet1!$A$4:$B$219,2,FALSE),0) -> 825 | AE65: 825 | AF65: 612.06 | AG65: =$BH65+$BI64-IFERROR(VLOOKUP($A65,[2]Sheet2!$A$4:$B$82,2,FALSE),0) -> 999.82 | AH65: =$BJ64+$BK64-IFERROR(VLOOKUP($A65,[2]Amazon!$A$2:$F$17,5,FALSE),0) -> 0 | AI65: =$BL65+$BM64-IFERROR(VLOOKUP($A65,'[2]Myaccountaccess Pivot'!$A$4:$B$31,2,FALSE),0) -> 0 | AJ65: =IFERROR(VLOOKUP($A65,'[2]export-1'!$A$2:$F$441,6,FALSE),AJ64) -> 767.05 | AK65: =IFERROR(VLOOKUP($A65,'[7]download-1'!$A$2:$F$513,6,FALSE),AK64) -> -1.875832822e-12 | AL65: =IFERROR(VLOOKUP($A65,'[3]TexttoColumn Amazon Balance'!$A$14:$B$30,2,FALSE),IF(AL66>0,AL66-50,0)) -> 872.69 | AM65: 2975.86 | AN65: 8168.86 | AO65: 86 | AP65: 82 | AQ65: 0 | AR65: 0 | AX65: =IFERROR(VLOOKUP($A65,'[2]export-1'!$A$446:$G$451,7,FALSE),0) -> 0 | AY65: =IFERROR(VLOOKUP($A65,[3]Sheet4!$A$4:$B$56,2,FALSE),0) -> 18 | AZ65: =IFERROR(VLOOKUP($A65,'[3]headphones purchased'!$A$2:$G$27,6,FALSE),0) -> 0 | BA65: =ROUND(IFERROR(VLOOKUP($A65,'[4]download-1'!$A$471:$F$474,5,FALSE)/-9.5,0),0) -> 0 | BB65: =ROUND(IFERROR(VLOOKUP($A65,'[4]download-1'!$A$467:$F$469,5,FALSE)/-49,0),0) -> 0 | BC65: =IFERROR(VLOOKUP($A65,[5]Sheet8!$A$4:$B$89,2,FALSE),0) -> 0 | BF65: 1 | BG65: =IFERROR(VLOOKUP($A65,[3]Paypal!$A$2:$AA$1843,25,FALSE),0) -> 336.3 | BH65: =IFERROR(VLOOKUP($A65,'[3]Paypal Money Sent Pivot'!$A$4:$B$97,2,FALSE),0) -> 1000 | BI65: =$BH65+$BI64-IFERROR(VLOOKUP($A65,[2]Sheet2!$A$4:$B$82,2,FALSE),0) -> 999.82 | BJ65: =IFERROR(VLOOKUP($A65,'[3]TexttoColumn Amazon Balance'!$A$14:$B$30,2,FALSE),0) -> 0 | BK65: =$BJ64+$BK64-IFERROR(VLOOKUP($A65,[2]Amazon!$A$2:$F$17,5,FALSE),0) -> 0 | BL65: =IFERROR(VLOOKUP($A65,'[4]Payment Pivot'!$A$4:$B$39,2,FALSE),0) -> 1764.41 | BM65: =$BL65+$BM64-IFERROR(VLOOKUP($A65,'[2]Myaccountaccess Pivot'!$A$4:$B$31,2,FALSE),0) -> 0 | BO65: =IFERROR(VLOOKUP($A65,'[6]export-2'!$A$2:$F$15,6,FALSE),BO64) -> 200 | BP65: 285.3096846 | BQ65: =OFFSET(A65,0,'Cool Graph'!$H$1) -> 0 | BR65: =OFFSET(A65,0,'Cool Graph'!$I$1) -> 285.3096846
A66: 2011-09-03 | B66: 0 | C66: 1.6 | D66: 68.04 | E66: 11.73 | F66: 1.51 | G66: 82.88 | H66: 0 | I66: 0 | J66: 0 | K66: 1 | L66: 0 | M66: 0 | N66: 0 | O66: 3.06 | P66: 0 | Q66: 0 | R66: 8.67 | S66: 0 | T66: 1 | U66: 0 | V66: 0 | W66: 0 | X66: 2 | Y66: 2 | Z66: 0 | AA66: 0 | AB66: 3 | AC66: 165.06 | AD66: =IFERROR(VLOOKUP($A66,[1]Sheet1!$A$4:$B$219,2,FALSE),0) -> 330 | AE66: 495.06 | AF66: 192.16 | AG66: =$BH66+$BI65-IFERROR(VLOOKUP($A66,[2]Sheet2!$A$4:$B$82,2,FALSE),0) -> 999.82 | AH66: =$BJ65+$BK65-IFERROR(VLOOKUP($A66,[2]Amazon!$A$2:$F$17,5,FALSE),0) -> 0 | AI66: =$BL66+$BM65-IFERROR(VLOOKUP($A66,'[2]Myaccountaccess Pivot'!$A$4:$B$31,2,FALSE),0) -> 0 | AJ66: =IFERROR(VLOOKUP($A66,'[2]export-1'!$A$2:$F$441,6,FALSE),AJ65) -> 767.05 | AK66: =IFERROR(VLOOKUP($A66,'[7]download-1'!$A$2:$F$513,6,FALSE),AK65) -> -1.875832822e-12 | AL66: =IFERROR(VLOOKUP($A66,'[3]TexttoColumn Amazon Balance'!$A$14:$B$30,2,FALSE),IF(AL67>0,AL67-50,0)) -> 922.69 | AM66: 3334.02 | AN66: 8361.02 | AO66: 83 | AP66: 80 | AQ66: 0 | AR66: 0 | AX66: =IFERROR(VLOOKUP($A66,'[2]export-1'!$A$446:$G$451,7,FALSE),0) -> 0 | AY66: =IFERROR(VLOOKUP($A66,[3]Sheet4!$A$4:$B$56,2,FALSE),0) -> 0 | AZ66: =IFERROR(VLOOKUP($A66,'[3]headphones purchased'!$A$2:$G$27,6,FALSE),0) -> 0 | BA66: =ROUND(IFERROR(VLOOKUP($A66,'[4]download-1'!$A$471:$F$474,5,FALSE)/-9.5,0),0) -> 0 | BB66: =ROUND(IFERROR(VLOOKUP($A66,'[4]download-1'!$A$467:$F$469,5,FALSE)/-49,0),0) -> 0 | BC66: =IFERROR(VLOOKUP($A66,[5]Sheet8!$A$4:$B$89,2,FALSE),0) -> 0 | BF66: 0 | BG66: =IFERROR(VLOOKUP($A66,[3]Paypal!$A$2:$AA$1843,25,FALSE),0) -> 644.46 | BH66: =IFERROR(VLOOKUP($A66,'[3]Paypal Money Sent Pivot'!$A$4:$B$97,2,FALSE),0) -> 0 | BI66: =$BH66+$BI65-IFERROR(VLOOKUP($A66,[2]Sheet2!$A$4:$B$82,2,FALSE),0) -> 999.82 | BJ66: =IFERROR(VLOOKUP($A66,'[3]TexttoColumn Amazon Balance'!$A$14:$B$30,2,FALSE),0) -> 0 | BK66: =$BJ65+$BK65-IFERROR(VLOOKUP($A66,[2]Amazon!$A$2:$F$17,5,FALSE),0) -> 0 | BL66: =IFERROR(VLOOKUP($A66,'[4]Payment Pivot'!$A$4:$B$39,2,FALSE),0) -> 0 | BM66: =$BL66+$BM65-IFERROR(VLOOKUP($A66,'[2]Myaccountaccess Pivot'!$A$4:$B$31,2,FALSE),0) -> 0 | BO66: =IFERROR(VLOOKUP($A66,'[6]export-2'!$A$2:$F$15,6,FALSE),BO65) -> 200 | BP66: =($AG$286*AE66)-G66 -> 126.755218 | BQ66: =OFFSET(A66,0,'Cool Graph'!$H$1) -> 0 | BR66: =OFFSET(A66,0,'Cool Graph'!$I$1) -> 126.755218
A67: 2011-09-04 | B67: 0 | C67: 0 | D67: 48.32 | E67: 24.63 | F67: 0 | G67: 72.95 | H67: 0 | I67: 0 | J67: 0 | K67: 0 | L67: 0 | M67: 0 | N67: 0 | O67: 9.55 | P67: 0 | Q67: 0 | R67: 15.08 | S67: 0 | T67: 0 | U67: 0 | V67: 0 | W67: 0 | X67: 2 | Y67: 2 | Z67: 0 | AA67: 0 | AB67: =SUM(X67,T67) -> 2 | AC67: 0 | AD67: =IFERROR(VLOOKUP($A67,[1]Sheet1!$A$4:$B$219,2,FALSE),0) -> 330 | AE67: =SUM(AC67,AD67) -> 330 | AF67: 461.73 | AG67: =$BH67+$BI66-IFERROR(VLOOKUP($A67,[2]Sheet2!$A$4:$B$82,2,FALSE),0) -> 999.82 | AH67: =$BJ66+$BK66-IFERROR(VLOOKUP($A67,[2]Amazon!$A$2:$F$17,5,FALSE),0) -> 0 | AI67: =$BL67+$BM66-IFERROR(VLOOKUP($A67,'[2]Myaccountaccess Pivot'!$A$4:$B$31,2,FALSE),0) -> 0 | AJ67: =IFERROR(VLOOKUP($A67,'[2]export-1'!$A$2:$F$441,6,FALSE),AJ66) -> 767.05 | AK67: =IFERROR(VLOOKUP($A67,'[7]download-1'!$A$2:$F$513,6,FALSE),AK66) -> -1.875832822e-12 | AL67: =IFERROR(VLOOKUP($A67,'[3]TexttoColumn Amazon Balance'!$A$14:$B$30,2,FALSE),IF(AL68>0,AL68-50,0)) -> 972.69 | AM67: =AL67+AK67+AJ67-AI67+AH67+AG67+BG67 -> 3863.75 | AN67: =AM67+(AO67*49)+(AP67*9.5)+(AQ67*5.25)+(AR67*7)+(AS67*49)+(AT67*9.5)+(AU67*5.25)+BO67 -> 8822.75 | AO67: 82 | AP67: 78 | AQ67: 0 | AR67: 0 | AX67: =IFERROR(VLOOKUP($A67,'[2]export-1'!$A$446:$G$451,7,FALSE),0) -> 0 | AY67: =IFERROR(VLOOKUP($A67,[3]Sheet4!$A$4:$B$56,2,FALSE),0) -> 0 | AZ67: =IFERROR(VLOOKUP($A67,'[3]headphones purchased'!$A$2:$G$27,6,FALSE),0) -> 0 | BA67: =ROUND(IFERROR(VLOOKUP($A67,'[4]download-1'!$A$471:$F$474,5,FALSE)/-9.5,0),0) -> 0 | BB67: =ROUND(IFERROR(VLOOKUP($A67,'[4]download-1'!$A$467:$F$469,5,FALSE)/-49,0),0) -> 0 | BC67: =IFERROR(VLOOKUP($A67,[5]Sheet8!$A$4:$B$89,2,FALSE),0) -> 0 | BF67: 1 | BG67: =IFERROR(VLOOKUP($A67,[3]Paypal!$A$2:$AA$1843,25,FALSE),0) -> 1124.19 | BH67: =IFERROR(VLOOKUP($A67,'[3]Paypal Money Sent Pivot'!$A$4:$B$97,2,FALSE),0) -> 0 | BI67: =$BH67+$BI66-IFERROR(VLOOKUP($A67,[2]Sheet2!$A$4:$B$82,2,FALSE),0) -> 999.82 | BJ67: =IFERROR(VLOOKUP($A67,'[3]TexttoColumn Amazon Balance'!$A$14:$B$30,2,FALSE),0) -> 0 | BK67: =$BJ66+$BK66-IFERROR(VLOOKUP($A67,[2]Amazon!$A$2:$F$17,5,FALSE),0) -> 0 | BL67: =IFERROR(VLOOKUP($A67,'[4]Payment Pivot'!$A$4:$B$39,2,FALSE),0) -> 0 | BM67: =$BL67+$BM66-IFERROR(VLOOKUP($A67,'[2]Myaccountaccess Pivot'!$A$4:$B$31,2,FALSE),0) -> 0 | BO67: =IFERROR(VLOOKUP($A67,'[6]export-2'!$A$2:$F$15,6,FALSE),BO66) -> 200 | BP67: 66.78987383 | BQ67: =OFFSET(A67,0,'Cool Graph'!$H$1) -> 0 | BR67: =OFFSET(A67,0,'Cool Graph'!$I$1) -> 66.78987383
A68: 2011-09-05 | B68: 0 | C68: 0 | D68: 65.63 | E68: 44.89 | F68: 0 | G68: 110.52 | H68: 0 | I68: 0 | J68: 0 | K68: 2 | L68: 0 | M68: 0 | N68: 0 | O68: 22.5 | P68: 0 | Q68: 0 | R68: 22.39 | S68: 0 | T68: 0 | U68: 0 | V68: 0 | W68: 0 | X68: 4 | Y68: 4 | Z68: 0 | AA68: 0 | AB68: 4 | AC68: 0 | AD68: =IFERROR(VLOOKUP($A68,[1]Sheet1!$A$4:$B$219,2,FALSE),0) -> 660 | AE68: 660 | AF68: =AN68-AN67 -> 401.74 | AG68: =$BH68+$BI67-IFERROR(VLOOKUP($A68,[2]Sheet2!$A$4:$B$82,2,FALSE),0) -> 1799.82 | AH68: =$BJ67+$BK67-IFERROR(VLOOKUP($A68,[2]Amazon!$A$2:$F$17,5,FALSE),0) -> 0 | AI68: =$BL68+$BM67-IFERROR(VLOOKUP($A68,'[2]Myaccountaccess Pivot'!$A$4:$B$31,2,FALSE),0) -> 0 | AJ68: =IFERROR(VLOOKUP($A68,'[2]export-1'!$A$2:$F$441,6,FALSE),AJ67) -> 767.05 | AK68: =IFERROR(VLOOKUP($A68,'[7]download-1'!$A$2:$F$513,6,FALSE),AK67) -> -1.875832822e-12 | AL68: =IFERROR(VLOOKUP($A68,'[3]TexttoColumn Amazon Balance'!$A$14:$B$30,2,FALSE),IF(AL69>0,AL69-50,0)) -> 1022.69 | AM68: 3617.49 | AN68: 9224.49 | AO68: =AX68+AY68+AO67-AB68+BB68-BC68-AS68+BF68 -> 96 | AP68: 74 | AQ68: =BD68-V68-Z68+AQ67-AU68 -> 0 | AR68: =BE68-W68-AA68+AR67 -> 0 | AX68: =IFERROR(VLOOKUP($A68,'[2]export-1'!$A$446:$G$451,7,FALSE),0) -> 0 | AY68: =IFERROR(VLOOKUP($A68,[3]Sheet4!$A$4:$B$56,2,FALSE),0) -> 18 | AZ68: =IFERROR(VLOOKUP($A68,'[3]headphones purchased'!$A$2:$G$27,6,FALSE),0) -> 0 | BA68: =ROUND(IFERROR(VLOOKUP($A68,'[4]download-1'!$A$471:$F$474,5,FALSE)/-9.5,0),0) -> 0 | BB68: =ROUND(IFERROR(VLOOKUP($A68,'[4]download-1'!$A$467:$F$469,5,FALSE)/-49,0),0) -> 0 | BC68: =IFERROR(VLOOKUP($A68,[5]Sheet8!$A$4:$B$89,2,FALSE),0) -> 0 | BF68: 0 | BG68: =IFERROR(VLOOKUP($A68,[3]Paypal!$A$2:$AA$1843,25,FALSE),0) -> 27.93 | BH68: =IFERROR(VLOOKUP($A68,'[3]Paypal Money Sent Pivot'!$A$4:$B$97,2,FALSE),0) -> 800 | BI68: =$BH68+$BI67-IFERROR(VLOOKUP($A68,[2]Sheet2!$A$4:$B$82,2,FALSE),0) -> 1799.82 | BJ68: =IFERROR(VLOOKUP($A68,'[3]TexttoColumn Amazon Balance'!$A$14:$B$30,2,FALSE),0) -> 0 | BK68: =$BJ67+$BK67-IFERROR(VLOOKUP($A68,[2]Amazon!$A$2:$F$17,5,FALSE),0) -> 0 | BL68: =IFERROR(VLOOKUP($A68,'[4]Payment Pivot'!$A$4:$B$39,2,FALSE),0) -> 0 | BM68: =$BL68+$BM67-IFERROR(VLOOKUP($A68,'[2]Myaccountaccess Pivot'!$A$4:$B$31,2,FALSE),0) -> 0 | BO68: =IFERROR(VLOOKUP($A68,'[6]export-2'!$A$2:$F$15,6,FALSE),BO67) -> 200 | BP68: 168.9597477 | BQ68: =OFFSET(A68,0,'Cool Graph'!$H$1) -> 0 | BR68: =OFFSET(A68,0,'Cool Graph'!$I$1) -> 168.9597477
A69: 2011-09-06 | B69: 0 | C69: 3.86 | D69: 68.3 | E69: 22.67 | F69: 2.82 | G69: 97.65 | H69: 0 | I69: 0 | J69: 0 | K69: 4 | L69: 1 | M69: 1 | N69: 0 | O69: 16.92 | P69: 1 | Q69: 0 | R69: 5.75 | S69: 0 | T69: 1 | U69: 0 | V69: 0 | W69: 0 | X69: 4 | Y69: 4 | Z69: 0 | AA69: 0 | AB69: 5 | AC69: 163.99 | AD69: =IFERROR(VLOOKUP($A69,[1]Sheet1!$A$4:$B$219,2,FALSE),0) -> 660 | AE69: 823.99 | AF69: -292.91 | AG69: =$BH69+$BI68-IFERROR(VLOOKUP($A69,[2]Sheet2!$A$4:$B$82,2,FALSE),0) -> 799.82 | AH69: =$BJ68+$BK68-IFERROR(VLOOKUP($A69,[2]Amazon!$A$2:$F$17,5,FALSE),0) -> 0 | AI69: =$BL69+$BM68-IFERROR(VLOOKUP($A69,'[2]Myaccountaccess Pivot'!$A$4:$B$31,2,FALSE),0) -> 0 | AJ69: =IFERROR(VLOOKUP($A69,'[2]export-1'!$A$2:$F$441,6,FALSE),AJ68) -> 1037.74 | AK69: =IFERROR(VLOOKUP($A69,'[7]download-1'!$A$2:$F$513,6,FALSE),AK68) -> -200 | AL69: =IFERROR(VLOOKUP($A69,'[3]TexttoColumn Amazon Balance'!$A$14:$B$30,2,FALSE),IF(AL70>0,AL70-50,0)) -> 1072.69 | AM69: 3520.58 | AN69: 8931.58 | AO69: 92 | AP69: 74 | AQ69: 0 | AR69: 0 | AX69: =IFERROR(VLOOKUP($A69,'[2]export-1'!$A$446:$G$451,7,FALSE),0) -> 0 | AY69: =IFERROR(VLOOKUP($A69,[3]Sheet4!$A$4:$B$56,2,FALSE),0) -> 0 | AZ69: =IFERROR(VLOOKUP($A69,'[3]headphones purchased'!$A$2:$G$27,6,FALSE),0) -> 4 | BA69: =ROUND(IFERROR(VLOOKUP($A69,'[4]download-1'!$A$471:$F$474,5,FALSE)/-9.5,0),0) -> 0 | BB69: =ROUND(IFERROR(VLOOKUP($A69,'[4]download-1'!$A$467:$F$469,5,FALSE)/-49,0),0) -> 0 | BC69: =IFERROR(VLOOKUP($A69,[5]Sheet8!$A$4:$B$89,2,FALSE),0) -> 0 | BF69: 1 | BG69: =IFERROR(VLOOKUP($A69,[3]Paypal!$A$2:$AA$1843,25,FALSE),0) -> 810.33 | BH69: =IFERROR(VLOOKUP($A69,'[3]Paypal Money Sent Pivot'!$A$4:$B$97,2,FALSE),0) -> 0 | BI69: =$BH69+$BI68-IFERROR(VLOOKUP($A69,[2]Sheet2!$A$4:$B$82,2,FALSE),0) -> 799.82 | BJ69: =IFERROR(VLOOKUP($A69,'[3]TexttoColumn Amazon Balance'!$A$14:$B$30,2,FALSE),0) -> 0 | BK69: =$BJ68+$BK68-IFERROR(VLOOKUP($A69,[2]Amazon!$A$2:$F$17,5,FALSE),0) -> 0 | BL69: =IFERROR(VLOOKUP($A69,'[4]Payment Pivot'!$A$4:$B$39,2,FALSE),0) -> 0 | BM69: =$BL69+$BM68-IFERROR(VLOOKUP($A69,'[2]Myaccountaccess Pivot'!$A$4:$B$31,2,FALSE),0) -> 0 | BO69: =IFERROR(VLOOKUP($A69,'[6]export-2'!$A$2:$F$15,6,FALSE),BO68) -> 200 | BP69: 251.2719959 | BQ69: =OFFSET(A69,0,'Cool Graph'!$H$1) -> 0 | BR69: =OFFSET(A69,0,'Cool Graph'!$I$1) -> 251.2719959
A70: 2011-09-07 | B70: 0 | C70: 8.69 | D70: 47.9 | E70: 15.13 | F70: 5.59 | G70: 77.31 | H70: 0 | I70: 0 | J70: 0 | K70: 2 | L70: 0 | M70: 0 | N70: 0 | O70: 8.45 | P70: 0 | Q70: 0 | R70: 6.68 | S70: 0 | T70: 0 | U70: 0 | V70: 0 | W70: 0 | X70: 2 | Y70: 2 | Z70: 0 | AA70: 0 | AB70: 2 | AC70: 0 | AD70: =IFERROR(VLOOKUP($A70,[1]Sheet1!$A$4:$B$219,2,FALSE),0) -> 330 | AE70: 330 | AF70: 147.81 | AG70: =$BH70+$BI69-IFERROR(VLOOKUP($A70,[2]Sheet2!$A$4:$B$82,2,FALSE),0) -> 1599.82 | AH70: =$BJ69+$BK69-IFERROR(VLOOKUP($A70,[2]Amazon!$A$2:$F$17,5,FALSE),0) -> 0 | AI70: =$BL70+$BM69-IFERROR(VLOOKUP($A70,'[2]Myaccountaccess Pivot'!$A$4:$B$31,2,FALSE),0) -> 0 | AJ70: =IFERROR(VLOOKUP($A70,'[2]export-1'!$A$2:$F$441,6,FALSE),AJ69) -> 1017.74 | AK70: =IFERROR(VLOOKUP($A70,'[7]download-1'!$A$2:$F$513,6,FALSE),AK69) -> -250.67 | AL70: =IFERROR(VLOOKUP($A70,'[3]TexttoColumn Amazon Balance'!$A$14:$B$30,2,FALSE),IF(AL71>0,AL71-50,0)) -> 1122.69 | AM70: 3785.39 | AN70: 9079.39 | AO70: 90 | AP70: =AP69+AZ70+BA70-Y70-U70-AT70 -> 72 | AQ70: 0 | AR70: 0 | AX70: =IFERROR(VLOOKUP($A70,'[2]export-1'!$A$446:$G$451,7,FALSE),0) -> 0 | AY70: =IFERROR(VLOOKUP($A70,[3]Sheet4!$A$4:$B$56,2,FALSE),0) -> 0 | AZ70: =IFERROR(VLOOKUP($A70,'[3]headphones purchased'!$A$2:$G$27,6,FALSE),0) -> 0 | BA70: =ROUND(IFERROR(VLOOKUP($A70,'[4]download-1'!$A$471:$F$474,5,FALSE)/-9.5,0),0) -> 0 | BB70: =ROUND(IFERROR(VLOOKUP($A70,'[4]download-1'!$A$467:$F$469,5,FALSE)/-49,0),0) -> 0 | BC70: =IFERROR(VLOOKUP($A70,[5]Sheet8!$A$4:$B$89,2,FALSE),0) -> 0 | BF70: 0 | BG70: =IFERROR(VLOOKUP($A70,[3]Paypal!$A$2:$AA$1843,25,FALSE),0) -> 295.81 | BH70: =IFERROR(VLOOKUP($A70,'[3]Paypal Money Sent Pivot'!$A$4:$B$97,2,FALSE),0) -> 800 | BI70: =$BH70+$BI69-IFERROR(VLOOKUP($A70,[2]Sheet2!$A$4:$B$82,2,FALSE),0) -> 1599.82 | BJ70: =IFERROR(VLOOKUP($A70,'[3]TexttoColumn Amazon Balance'!$A$14:$B$30,2,FALSE),0) -> 0 | BK70: =$BJ69+$BK69-IFERROR(VLOOKUP($A70,[2]Amazon!$A$2:$F$17,5,FALSE),0) -> 0 | BL70: =IFERROR(VLOOKUP($A70,'[4]Payment Pivot'!$A$4:$B$39,2,FALSE),0) -> 0 | BM70: =$BL70+$BM69-IFERROR(VLOOKUP($A70,'[2]Myaccountaccess Pivot'!$A$4:$B$31,2,FALSE),0) -> 0 | BO70: =IFERROR(VLOOKUP($A70,'[6]export-2'!$A$2:$F$15,6,FALSE),BO69) -> 200 | BP70: 62.42987383 | BQ70: =OFFSET(A70,0,'Cool Graph'!$H$1) -> 0 | BR70: =OFFSET(A70,0,'Cool Graph'!$I$1) -> 62.42987383
A71: 2011-09-08 | B71: 0 | C71: 11.16 | D71: 54.05 | E71: 15.15 | F71: 1.42 | G71: 81.78 | H71: 0 | I71: 1 | J71: 0 | K71: 1 | L71: 0 | M71: 0 | N71: 0 | O71: 10.01 | P71: 0 | Q71: 0 | R71: 5.14 | S71: 0 | T71: 4 | U71: 2 | V71: 0 | W71: 0 | X71: 8 | Y71: 8 | Z71: 0 | AA71: 0 | AB71: 12 | AC71: 985.43 | AD71: =IFERROR(VLOOKUP($A71,[1]Sheet1!$A$4:$B$219,2,FALSE),0) -> 1320 | AE71: 2305.43 | AF71: -512.19 | AG71: =$BH71+$BI70-IFERROR(VLOOKUP($A71,[2]Sheet2!$A$4:$B$82,2,FALSE),0) -> 1389.82 | AH71: =$BJ70+$BK70-IFERROR(VLOOKUP($A71,[2]Amazon!$A$2:$F$17,5,FALSE),0) -> 0 | AI71: =$BL71+$BM70-IFERROR(VLOOKUP($A71,'[2]Myaccountaccess Pivot'!$A$4:$B$31,2,FALSE),0) -> 0 | AJ71: =IFERROR(VLOOKUP($A71,'[2]export-1'!$A$2:$F$441,6,FALSE),AJ70) -> 1279.24 | AK71: =IFERROR(VLOOKUP($A71,'[7]download-1'!$A$2:$F$513,6,FALSE),AK70) -> -250.67 | AL71: =IFERROR(VLOOKUP($A71,'[3]TexttoColumn Amazon Balance'!$A$14:$B$30,2,FALSE),IF(AL72>0,AL72-50,0)) -> 1172.69 | AM71: 3613.2 | AN71: 8567.2 | AO71: 85 | AP71: 62 | AQ71: 0 | AR71: 0 | AX71: =IFERROR(VLOOKUP($A71,'[2]export-1'!$A$446:$G$451,7,FALSE),0) -> 0 | AY71: =IFERROR(VLOOKUP($A71,[3]Sheet4!$A$4:$B$56,2,FALSE),0) -> 6 | AZ71: =IFERROR(VLOOKUP($A71,'[3]headphones purchased'!$A$2:$G$27,6,FALSE),0) -> 0 | BA71: =ROUND(IFERROR(VLOOKUP($A71,'[4]download-1'!$A$471:$F$474,5,FALSE)/-9.5,0),0) -> 0 | BB71: =ROUND(IFERROR(VLOOKUP($A71,'[4]download-1'!$A$467:$F$469,5,FALSE)/-49,0),0) -> 0 | BC71: =IFERROR(VLOOKUP($A71,[5]Sheet8!$A$4:$B$89,2,FALSE),0) -> 0 | BF71: 1 | BG71: =IFERROR(VLOOKUP($A71,[3]Paypal!$A$2:$AA$1843,25,FALSE),0) -> 22.12 | BH71: =IFERROR(VLOOKUP($A71,'[3]Paypal Money Sent Pivot'!$A$4:$B$97,2,FALSE),0) -> 590 | BI71: =$BH71+$BI70-IFERROR(VLOOKUP($A71,[2]Sheet2!$A$4:$B$82,2,FALSE),0) -> 1389.82 | BJ71: =IFERROR(VLOOKUP($A71,'[3]TexttoColumn Amazon Balance'!$A$14:$B$30,2,FALSE),0) -> 0 | BK71: =$BJ70+$BK70-IFERROR(VLOOKUP($A71,[2]Amazon!$A$2:$F$17,5,FALSE),0) -> 0 | BL71: =IFERROR(VLOOKUP($A71,'[4]Payment Pivot'!$A$4:$B$39,2,FALSE),0) -> 0 | BM71: =$BL71+$BM70-IFERROR(VLOOKUP($A71,'[2]Myaccountaccess Pivot'!$A$4:$B$31,2,FALSE),0) -> 0 | BO71: =IFERROR(VLOOKUP($A71,'[6]export-2'!$A$2:$F$15,6,FALSE),BO70) -> 200 | BP71: 894.4639313 | BQ71: =OFFSET(A71,0,'Cool Graph'!$H$1) -> 0 | BR71: =OFFSET(A71,0,'Cool Graph'!$I$1) -> 894.4639313
A72: 2011-09-09 | B72: 0 | C72: 18.53 | D72: 41.22 | E72: 14.29 | F72: 6.69 | G72: 80.73 | H72: 0 | I72: 0 | J72: 0 | K72: 2 | L72: 1 | M72: 0 | N72: 0 | O72: 11.38 | P72: 1 | Q72: 0 | R72: 2.91 | S72: 0 | T72: 1 | U72: 0 | V72: 0 | W72: 0 | X72: 3 | Y72: 3 | Z72: 0 | AA72: 0 | AB72: 4 | AC72: 160 | AD72: =IFERROR(VLOOKUP($A72,[1]Sheet1!$A$4:$B$219,2,FALSE),0) -> 495 | AE72: 655 | AF72: 177.44 | AG72: =$BH72+$BI71-IFERROR(VLOOKUP($A72,[2]Sheet2!$A$4:$B$82,2,FALSE),0) -> 589.82 | AH72: =$BJ71+$BK71-IFERROR(VLOOKUP($A72,[2]Amazon!$A$2:$F$17,5,FALSE),0) -> 0 | AI72: =$BL72+$BM71-IFERROR(VLOOKUP($A72,'[2]Myaccountaccess Pivot'!$A$4:$B$31,2,FALSE),0) -> 0 | AJ72: =IFERROR(VLOOKUP($A72,'[2]export-1'!$A$2:$F$441,6,FALSE),AJ71) -> 2079.24 | AK72: =IFERROR(VLOOKUP($A72,'[7]download-1'!$A$2:$F$513,6,FALSE),AK71) -> -899.63 | AL72: =IFERROR(VLOOKUP($A72,'[3]TexttoColumn Amazon Balance'!$A$14:$B$30,2,FALSE),IF(AL73>0,AL73-50,0)) -> 1222.69 | AM72: 3483.14 | AN72: 8744.64 | AO72: 81 | AP72: 115 | AQ72: 0 | AR72: 0 | AX72: =IFERROR(VLOOKUP($A72,'[2]export-1'!$A$446:$G$451,7,FALSE),0) -> 0 | AY72: =IFERROR(VLOOKUP($A72,[3]Sheet4!$A$4:$B$56,2,FALSE),0) -> 0 | AZ72: =IFERROR(VLOOKUP($A72,'[3]headphones purchased'!$A$2:$G$27,6,FALSE),0) -> 56 | BA72: =ROUND(IFERROR(VLOOKUP($A72,'[4]download-1'!$A$471:$F$474,5,FALSE)/-9.5,0),0) -> 0 | BB72: =ROUND(IFERROR(VLOOKUP($A72,'[4]download-1'!$A$467:$F$469,5,FALSE)/-49,0),0) -> 0 | BC72: =IFERROR(VLOOKUP($A72,[5]Sheet8!$A$4:$B$89,2,FALSE),0) -> 0 | BF72: 0 | BG72: =IFERROR(VLOOKUP($A72,[3]Paypal!$A$2:$AA$1843,25,FALSE),0) -> 491.02 | BH72: =IFERROR(VLOOKUP($A72,'[3]Paypal Money Sent Pivot'!$A$4:$B$97,2,FALSE),0) -> 0 | BI72: =$BH72+$BI71-IFERROR(VLOOKUP($A72,[2]Sheet2!$A$4:$B$82,2,FALSE),0) -> 589.82 | BJ72: =IFERROR(VLOOKUP($A72,'[3]TexttoColumn Amazon Balance'!$A$14:$B$30,2,FALSE),0) -> 0 | BK72: =$BJ71+$BK71-IFERROR(VLOOKUP($A72,[2]Amazon!$A$2:$F$17,5,FALSE),0) -> 0 | BL72: =IFERROR(VLOOKUP($A72,'[4]Payment Pivot'!$A$4:$B$39,2,FALSE),0) -> 0 | BM72: =$BL72+$BM71-IFERROR(VLOOKUP($A72,'[2]Myaccountaccess Pivot'!$A$4:$B$31,2,FALSE),0) -> 0 | BO72: =IFERROR(VLOOKUP($A72,'[6]export-2'!$A$2:$F$15,6,FALSE),BO71) -> 200 | BP72: 196.6324769 | BQ72: =OFFSET(A72,0,'Cool Graph'!$H$1) -> 0 | BR72: =OFFSET(A72,0,'Cool Graph'!$I$1) -> 196.6324769
A73: 2011-09-10 | B73: 0 | C73: 10.7 | D73: 32.24 | E73: 24.44 | F73: 5.15 | G73: 72.53 | H73: 0 | I73: 0 | J73: 0 | K73: 0 | L73: 0 | M73: 0 | N73: 0 | O73: 22.22 | P73: 0 | Q73: 0 | R73: 2.22 | S73: 0 | T73: 2 | U73: 0 | V73: 0 | W73: 0 | X73: 0 | Y73: 0 | Z73: 0 | AA73: 0 | AB73: 2 | AC73: 339.11 | AD73: =IFERROR(VLOOKUP($A73,[1]Sheet1!$A$4:$B$219,2,FALSE),0) -> 0 | AE73: 339.11 | AF73: -490.02 | AG73: =$BH73+$BI72-IFERROR(VLOOKUP($A73,[2]Sheet2!$A$4:$B$82,2,FALSE),0) -> 589.82 | AH73: =$BJ72+$BK72-IFERROR(VLOOKUP($A73,[2]Amazon!$A$2:$F$17,5,FALSE),0) -> 0 | AI73: =$BL73+$BM72-IFERROR(VLOOKUP($A73,'[2]Myaccountaccess Pivot'!$A$4:$B$31,2,FALSE),0) -> 0 | AJ73: =IFERROR(VLOOKUP($A73,'[2]export-1'!$A$2:$F$441,6,FALSE),AJ72) -> 2079.24 | AK73: =IFERROR(VLOOKUP($A73,'[7]download-1'!$A$2:$F$513,6,FALSE),AK72) -> -899.63 | AL73: =IFERROR(VLOOKUP($A73,'[3]TexttoColumn Amazon Balance'!$A$14:$B$30,2,FALSE),IF(AL74>0,AL74-50,0)) -> 1272.69 | AM73: 3042.12 | AN73: 8254.62 | AO73: 80 | AP73: 115 | AQ73: 0 | AR73: 0 | AX73: =IFERROR(VLOOKUP($A73,'[2]export-1'!$A$446:$G$451,7,FALSE),0) -> 0 | AY73: =IFERROR(VLOOKUP($A73,[3]Sheet4!$A$4:$B$56,2,FALSE),0) -> 0 | AZ73: =IFERROR(VLOOKUP($A73,'[3]headphones purchased'!$A$2:$G$27,6,FALSE),0) -> 0 | BA73: =ROUND(IFERROR(VLOOKUP($A73,'[4]download-1'!$A$471:$F$474,5,FALSE)/-9.5,0),0) -> 0 | BB73: =ROUND(IFERROR(VLOOKUP($A73,'[4]download-1'!$A$467:$F$469,5,FALSE)/-49,0),0) -> 0 | BC73: =IFERROR(VLOOKUP($A73,[5]Sheet8!$A$4:$B$89,2,FALSE),0) -> 0 | BF73: 1 | BG73: =IFERROR(VLOOKUP($A73,[3]Paypal!$A$2:$AA$1843,25,FALSE),0) -> 0 | BH73: =IFERROR(VLOOKUP($A73,'[3]Paypal Money Sent Pivot'!$A$4:$B$97,2,FALSE),0) -> 0 | BI73: =$BH73+$BI72-IFERROR(VLOOKUP($A73,[2]Sheet2!$A$4:$B$82,2,FALSE),0) -> 589.82 | BJ73: =IFERROR(VLOOKUP($A73,'[3]TexttoColumn Amazon Balance'!$A$14:$B$30,2,FALSE),0) -> 1272.69 | BK73: =$BJ72+$BK72-IFERROR(VLOOKUP($A73,[2]Amazon!$A$2:$F$17,5,FALSE),0) -> 0 | BL73: =IFERROR(VLOOKUP($A73,'[4]Payment Pivot'!$A$4:$B$39,2,FALSE),0) -> 0 | BM73: =$BL73+$BM72-IFERROR(VLOOKUP($A73,'[2]Myaccountaccess Pivot'!$A$4:$B$31,2,FALSE),0) -> 0 | BO73: =IFERROR(VLOOKUP($A73,'[6]export-2'!$A$2:$F$15,6,FALSE),BO72) -> 200 | BP73: 71.06754126 | BQ73: =OFFSET(A73,0,'Cool Graph'!$H$1) -> 0 | BR73: =OFFSET(A73,0,'Cool Graph'!$I$1) -> 71.06754126
A74: 2011-09-11 | B74: 0 | C74: 20.54 | D74: 46.77 | E74: 7.26 | F74: 0 | G74: 74.57 | H74: 0 | I74: 1 | J74: 0 | K74: 0 | L74: 0 | M74: 0 | N74: 0 | O74: 5.47 | P74: 0 | Q74: 0 | R74: 1.79 | S74: 0 | T74: 2 | U74: 0 | V74: 0 | W74: 0 | X74: 3 | Y74: 3 | Z74: 0 | AA74: 0 | AB74: 5 | AC74: 329.05 | AD74: =IFERROR(VLOOKUP($A74,[1]Sheet1!$A$4:$B$219,2,FALSE),0) -> 495 | AE74: 824.05 | AF74: 767.71 | AG74: =$BH74+$BI73-IFERROR(VLOOKUP($A74,[2]Sheet2!$A$4:$B$82,2,FALSE),0) -> 589.82 | AH74: =$BJ73+$BK73-IFERROR(VLOOKUP($A74,[2]Amazon!$A$2:$F$17,5,FALSE),0) -> 1272.69 | AI74: =$BL74+$BM73-IFERROR(VLOOKUP($A74,'[2]Myaccountaccess Pivot'!$A$4:$B$31,2,FALSE),0) -> 0 | AJ74: =IFERROR(VLOOKUP($A74,'[2]export-1'!$A$2:$F$441,6,FALSE),AJ73) -> 2079.24 | AK74: =IFERROR(VLOOKUP($A74,'[7]download-1'!$A$2:$F$513,6,FALSE),AK73) -> -899.63 | AL74: =IFERROR(VLOOKUP($A74,'[3]TexttoColumn Amazon Balance'!$A$14:$B$30,2,FALSE),IF(AL75>0,AL75-50,0)) -> 70.46 | AM74: 4083.33 | AN74: 9022.33 | AO74: 75 | AP74: 112 | AQ74: 0 | AR74: 0 | AX74: =IFERROR(VLOOKUP($A74,'[2]export-1'!$A$446:$G$451,7,FALSE),0) -> 0 | AY74: =IFERROR(VLOOKUP($A74,[3]Sheet4!$A$4:$B$56,2,FALSE),0) -> 0 | AZ74: =IFERROR(VLOOKUP($A74,'[3]headphones purchased'!$A$2:$G$27,6,FALSE),0) -> 0 | BA74: =ROUND(IFERROR(VLOOKUP($A74,'[4]download-1'!$A$471:$F$474,5,FALSE)/-9.5,0),0) -> 0 | BB74: =ROUND(IFERROR(VLOOKUP($A74,'[4]download-1'!$A$467:$F$469,5,FALSE)/-49,0),0) -> 0 | BC74: =IFERROR(VLOOKUP($A74,[5]Sheet8!$A$4:$B$89,2,FALSE),0) -> 0 | BF74: 0 | BG74: =IFERROR(VLOOKUP($A74,[3]Paypal!$A$2:$AA$1843,25,FALSE),0) -> 970.75 | BH74: =IFERROR(VLOOKUP($A74,'[3]Paypal Money Sent Pivot'!$A$4:$B$97,2,FALSE),0) -> 0 | BI74: =$BH74+$BI73-IFERROR(VLOOKUP($A74,[2]Sheet2!$A$4:$B$82,2,FALSE),0) -> 589.82 | BJ74: =IFERROR(VLOOKUP($A74,'[3]TexttoColumn Amazon Balance'!$A$14:$B$30,2,FALSE),0) -> 0 | BK74: =$BJ73+$BK73-IFERROR(VLOOKUP($A74,[2]Amazon!$A$2:$F$17,5,FALSE),0) -> 1272.69 | BL74: =IFERROR(VLOOKUP($A74,'[4]Payment Pivot'!$A$4:$B$39,2,FALSE),0) -> 0 | BM74: =$BL74+$BM73-IFERROR(VLOOKUP($A74,'[2]Myaccountaccess Pivot'!$A$4:$B$31,2,FALSE),0) -> 0 | BO74: =IFERROR(VLOOKUP($A74,'[6]export-2'!$A$2:$F$15,6,FALSE),BO73) -> 200 | BP74: 274.3774031 | BQ74: =OFFSET(A74,0,'Cool Graph'!$H$1) -> 0 | BR74: =OFFSET(A74,0,'Cool Graph'!$I$1) -> 274.3774031
A75: 2011-09-12 | B75: 0 | C75: 15.52 | D75: 40.12 | E75: 6.02 | F75: 0 | G75: 61.66 | H75: 0 | I75: 0 | J75: 0 | K75: 2 | L75: 0 | M75: 0 | N75: 0 | O75: 4.69 | P75: 0 | Q75: 0 | R75: 1.33 | S75: 0 | T75: 2 | U75: 0 | V75: 0 | W75: 0 | X75: 4 | Y75: 4 | Z75: 0 | AA75: 0 | AB75: 6 | AC75: 330.06 | AD75: =IFERROR(VLOOKUP($A75,[1]Sheet1!$A$4:$B$219,2,FALSE),0) -> 660 | AE75: 990.06 | AF75: 545.43 | AG75: =$BH75+$BI74-IFERROR(VLOOKUP($A75,[2]Sheet2!$A$4:$B$82,2,FALSE),0) -> -0.18 | AH75: =$BJ74+$BK74-IFERROR(VLOOKUP($A75,[2]Amazon!$A$2:$F$17,5,FALSE),0) -> 1272.69 | AI75: =$BL75+$BM74-IFERROR(VLOOKUP($A75,'[2]Myaccountaccess Pivot'!$A$4:$B$31,2,FALSE),0) -> 0 | AJ75: =IFERROR(VLOOKUP($A75,'[2]export-1'!$A$2:$F$441,6,FALSE),AJ74) -> 2669.24 | AK75: =IFERROR(VLOOKUP($A75,'[7]download-1'!$A$2:$F$513,6,FALSE),AK74) -> -899.63 | AL75: =IFERROR(VLOOKUP($A75,'[3]TexttoColumn Amazon Balance'!$A$14:$B$30,2,FALSE),IF(AL76>0,AL76-50,0)) -> 120.46 | AM75: 4911.76 | AN75: 9567.76 | AO75: 70 | AP75: 108 | AQ75: 0 | AR75: 0 | AX75: =IFERROR(VLOOKUP($A75,'[2]export-1'!$A$446:$G$451,7,FALSE),0) -> 0 | AY75: =IFERROR(VLOOKUP($A75,[3]Sheet4!$A$4:$B$56,2,FALSE),0) -> 0 | AZ75: =IFERROR(VLOOKUP($A75,'[3]headphones purchased'!$A$2:$G$27,6,FALSE),0) -> 0 | BA75: =ROUND(IFERROR(VLOOKUP($A75,'[4]download-1'!$A$471:$F$474,5,FALSE)/-9.5,0),0) -> 0 | BB75: =ROUND(IFERROR(VLOOKUP($A75,'[4]download-1'!$A$467:$F$469,5,FALSE)/-49,0),0) -> 0 | BC75: =IFERROR(VLOOKUP($A75,[5]Sheet8!$A$4:$B$89,2,FALSE),0) -> 0 | BF75: 1 | BG75: =IFERROR(VLOOKUP($A75,[3]Paypal!$A$2:$AA$1843,25,FALSE),0) -> 1749.18 | BH75: =IFERROR(VLOOKUP($A75,'[3]Paypal Money Sent Pivot'!$A$4:$B$97,2,FALSE),0) -> 0 | BI75: =$BH75+$BI74-IFERROR(VLOOKUP($A75,[2]Sheet2!$A$4:$B$82,2,FALSE),0) -> -0.18 | BJ75: =IFERROR(VLOOKUP($A75,'[3]TexttoColumn Amazon Balance'!$A$14:$B$30,2,FALSE),0) -> 0 | BK75: =$BJ74+$BK74-IFERROR(VLOOKUP($A75,[2]Amazon!$A$2:$F$17,5,FALSE),0) -> 1272.69 | BL75: =IFERROR(VLOOKUP($A75,'[4]Payment Pivot'!$A$4:$B$39,2,FALSE),0) -> 0 | BM75: =$BL75+$BM74-IFERROR(VLOOKUP($A75,'[2]Myaccountaccess Pivot'!$A$4:$B$31,2,FALSE),0) -> 0 | BO75: =IFERROR(VLOOKUP($A75,'[6]export-2'!$A$2:$F$15,6,FALSE),BO74) -> 200 | BP75: 357.5850288 | BQ75: =OFFSET(A75,0,'Cool Graph'!$H$1) -> 0 | BR75: =OFFSET(A75,0,'Cool Graph'!$I$1) -> 357.5850288
A76: 2011-09-13 | B76: 0 | C76: 13.97 | D76: 51.98 | E76: 7.35 | F76: 2.56 | G76: 75.86 | H76: 0 | I76: 0 | J76: 0 | K76: 0 | L76: 1 | M76: 0 | N76: 0 | O76: 5.05 | P76: 0 | Q76: 0 | R76: 2.3 | S76: 1 | T76: 0 | U76: 0 | V76: 0 | W76: 0 | X76: 2 | Y76: 2 | Z76: 0 | AA76: 0 | AB76: 2 | AC76: 0 | AD76: =IFERROR(VLOOKUP($A76,[1]Sheet1!$A$4:$B$219,2,FALSE),0) -> 330 | AE76: 330 | AF76: 182.45 | AG76: =$BH76+$BI75-IFERROR(VLOOKUP($A76,[2]Sheet2!$A$4:$B$82,2,FALSE),0) -> -0.18 | AH76: =$BJ75+$BK75-IFERROR(VLOOKUP($A76,[2]Amazon!$A$2:$F$17,5,FALSE),0) -> 0 | AI76: =$BL76+$BM75-IFERROR(VLOOKUP($A76,'[2]Myaccountaccess Pivot'!$A$4:$B$31,2,FALSE),0) -> 0 | AJ76: =IFERROR(VLOOKUP($A76,'[2]export-1'!$A$2:$F$441,6,FALSE),AJ75) -> 3897.13 | AK76: =IFERROR(VLOOKUP($A76,'[7]download-1'!$A$2:$F$513,6,FALSE),AK75) -> -899.63 | AL76: =IFERROR(VLOOKUP($A76,'[3]TexttoColumn Amazon Balance'!$A$14:$B$30,2,FALSE),IF(AL77>0,AL77-50,0)) -> 170.46 | AM76: 3447.21 | AN76: 9750.21 | AO76: 104 | AP76: 106 | AQ76: 0 | AR76: 0 | AX76: =IFERROR(VLOOKUP($A76,'[2]export-1'!$A$446:$G$451,7,FALSE),0) -> 0 | AY76: =IFERROR(VLOOKUP($A76,[3]Sheet4!$A$4:$B$56,2,FALSE),0) -> 36 | AZ76: =IFERROR(VLOOKUP($A76,'[3]headphones purchased'!$A$2:$G$27,6,FALSE),0) -> 0 | BA76: =ROUND(IFERROR(VLOOKUP($A76,'[4]download-1'!$A$471:$F$474,5,FALSE)/-9.5,0),0) -> 0 | BB76: =ROUND(IFERROR(VLOOKUP($A76,'[4]download-1'!$A$467:$F$469,5,FALSE)/-49,0),0) -> 0 | BC76: =IFERROR(VLOOKUP($A76,[5]Sheet8!$A$4:$B$89,2,FALSE),0) -> 0 | BF76: 0 | BG76: =IFERROR(VLOOKUP($A76,[3]Paypal!$A$2:$AA$1843,25,FALSE),0) -> 279.43 | BH76: =IFERROR(VLOOKUP($A76,'[3]Paypal Money Sent Pivot'!$A$4:$B$97,2,FALSE),0) -> 0 | BI76: =$BH76+$BI75-IFERROR(VLOOKUP($A76,[2]Sheet2!$A$4:$B$82,2,FALSE),0) -> -0.18 | BJ76: =IFERROR(VLOOKUP($A76,'[3]TexttoColumn Amazon Balance'!$A$14:$B$30,2,FALSE),0) -> 0 | BK76: =$BJ75+$BK75-IFERROR(VLOOKUP($A76,[2]Amazon!$A$2:$F$17,5,FALSE),0) -> 0 | BL76: =IFERROR(VLOOKUP($A76,'[4]Payment Pivot'!$A$4:$B$39,2,FALSE),0) -> 0 | BM76: =$BL76+$BM75-IFERROR(VLOOKUP($A76,'[2]Myaccountaccess Pivot'!$A$4:$B$31,2,FALSE),0) -> 0 | BO76: =IFERROR(VLOOKUP($A76,'[6]export-2'!$A$2:$F$15,6,FALSE),BO75) -> 200 | BP76: 63.87987383 | BQ76: =OFFSET(A76,0,'Cool Graph'!$H$1) -> 0 | BR76: =OFFSET(A76,0,'Cool Graph'!$I$1) -> 63.87987383
A77: 2011-09-14 | B77: 0 | C77: 9.32 | D77: 43.54 | E77: 10.24 | F77: 2.56 | G77: 65.66 | H77: 0 | I77: 0 | J77: 0 | K77: 3 | L77: 0 | M77: 0 | N77: 0 | O77: 8.65 | P77: 0 | Q77: 0 | R77: 1.59 | S77: 0 | T77: 0 | U77: 0 | V77: 0 | W77: 0 | X77: 5 | Y77: 5 | Z77: 0 | AA77: 0 | AB77: 5 | AC77: 0 | AD77: =IFERROR(VLOOKUP($A77,[1]Sheet1!$A$4:$B$219,2,FALSE),0) -> 825 | AE77: 825 | AF77: 706.32 | AG77: =$BH77+$BI76-IFERROR(VLOOKUP($A77,[2]Sheet2!$A$4:$B$82,2,FALSE),0) -> 999.82 | AH77: =$BJ76+$BK76-IFERROR(VLOOKUP($A77,[2]Amazon!$A$2:$F$17,5,FALSE),0) -> 0 | AI77: =$BL77+$BM76-IFERROR(VLOOKUP($A77,'[2]Myaccountaccess Pivot'!$A$4:$B$31,2,FALSE),0) -> 0 | AJ77: =IFERROR(VLOOKUP($A77,'[2]export-1'!$A$2:$F$441,6,FALSE),AJ76) -> 3897.13 | AK77: =IFERROR(VLOOKUP($A77,'[7]download-1'!$A$2:$F$513,6,FALSE),AK76) -> -911.58 | AL77: =IFERROR(VLOOKUP($A77,'[3]TexttoColumn Amazon Balance'!$A$14:$B$30,2,FALSE),IF(AL78>0,AL78-50,0)) -> 220.46 | AM77: 4397.03 | AN77: 10456.53 | AO77: 100 | AP77: 101 | AQ77: 0 | AR77: 0 | AX77: =IFERROR(VLOOKUP($A77,'[2]export-1'!$A$446:$G$451,7,FALSE),0) -> 0 | AY77: =IFERROR(VLOOKUP($A77,[3]Sheet4!$A$4:$B$56,2,FALSE),0) -> 0 | AZ77: =IFERROR(VLOOKUP($A77,'[3]headphones purchased'!$A$2:$G$27,6,FALSE),0) -> 0 | BA77: =ROUND(IFERROR(VLOOKUP($A77,'[4]download-1'!$A$471:$F$474,5,FALSE)/-9.5,0),0) -> 0 | BB77: =ROUND(IFERROR(VLOOKUP($A77,'[4]download-1'!$A$467:$F$469,5,FALSE)/-49,0),0) -> 0 | BC77: =IFERROR(VLOOKUP($A77,[5]Sheet8!$A$4:$B$89,2,FALSE),0) -> 0 | BF77: 1 | BG77: =IFERROR(VLOOKUP($A77,[3]Paypal!$A$2:$AA$1843,25,FALSE),0) -> 191.2 | BH77: =IFERROR(VLOOKUP($A77,'[3]Paypal Money Sent Pivot'!$A$4:$B$97,2,FALSE),0) -> 1000 | BI77: =$BH77+$BI76-IFERROR(VLOOKUP($A77,[2]Sheet2!$A$4:$B$82,2,FALSE),0) -> 999.82 | BJ77: =IFERROR(VLOOKUP($A77,'[3]TexttoColumn Amazon Balance'!$A$14:$B$30,2,FALSE),0) -> 0 | BK77: =$BJ76+$BK76-IFERROR(VLOOKUP($A77,[2]Amazon!$A$2:$F$17,5,FALSE),0) -> 0 | BL77: =IFERROR(VLOOKUP($A77,'[4]Payment Pivot'!$A$4:$B$39,2,FALSE),0) -> 0 | BM77: =$BL77+$BM76-IFERROR(VLOOKUP($A77,'[2]Myaccountaccess Pivot'!$A$4:$B$31,2,FALSE),0) -> 0 | BO77: =IFERROR(VLOOKUP($A77,'[6]export-2'!$A$2:$F$15,6,FALSE),BO76) -> 200 | BP77: 283.6896846 | BQ77: =OFFSET(A77,0,'Cool Graph'!$H$1) -> 0 | BR77: =OFFSET(A77,0,'Cool Graph'!$I$1) -> 283.6896846
A78: 2011-09-15 | B78: 0 | C78: 21.62 | D78: 28.74 | E78: 11.93 | F78: 2.09 | G78: 64.38 | H78: 0 | I78: 0 | J78: 0 | K78: 0 | L78: 0 | M78: 0 | N78: 0 | O78: 10.79 | P78: 0 | Q78: 0 | R78: 1.14 | S78: 0 | T78: 0 | U78: 0 | V78: 0 | W78: 0 | X78: 3 | Y78: 3 | Z78: 0 | AA78: 0 | AB78: 3 | AC78: 0 | AD78: =IFERROR(VLOOKUP($A78,[1]Sheet1!$A$4:$B$219,2,FALSE),0) -> 495 | AE78: 495 | AF78: -74.58 | AG78: =$BH78+$BI77-IFERROR(VLOOKUP($A78,[2]Sheet2!$A$4:$B$82,2,FALSE),0) -> 999.82 | AH78: =$BJ77+$BK77-IFERROR(VLOOKUP($A78,[2]Amazon!$A$2:$F$17,5,FALSE),0) -> 0 | AI78: =$BL78+$BM77-IFERROR(VLOOKUP($A78,'[2]Myaccountaccess Pivot'!$A$4:$B$31,2,FALSE),0) -> 899.63 | AJ78: =IFERROR(VLOOKUP($A78,'[2]export-1'!$A$2:$F$441,6,FALSE),AJ77) -> 2727.13 | AK78: =IFERROR(VLOOKUP($A78,'[7]download-1'!$A$2:$F$513,6,FALSE),AK77) -> -11.95 | AL78: =IFERROR(VLOOKUP($A78,'[3]TexttoColumn Amazon Balance'!$A$14:$B$30,2,FALSE),IF(AL79>0,AL79-50,0)) -> 270.46 | AM78: 3697.95 | AN78: 10381.95 | AO78: 97 | AP78: 98 | AQ78: 0 | AR78: 0 | AX78: =IFERROR(VLOOKUP($A78,'[2]export-1'!$A$446:$G$451,7,FALSE),0) -> 0 | AY78: =IFERROR(VLOOKUP($A78,[3]Sheet4!$A$4:$B$56,2,FALSE),0) -> 0 | AZ78: =IFERROR(VLOOKUP($A78,'[3]headphones purchased'!$A$2:$G$27,6,FALSE),0) -> 0 | BA78: =ROUND(IFERROR(VLOOKUP($A78,'[4]download-1'!$A$471:$F$474,5,FALSE)/-9.5,0),0) -> 0 | BB78: =ROUND(IFERROR(VLOOKUP($A78,'[4]download-1'!$A$467:$F$469,5,FALSE)/-49,0),0) -> 0 | BC78: =IFERROR(VLOOKUP($A78,[5]Sheet8!$A$4:$B$89,2,FALSE),0) -> 0 | BF78: 0 | BG78: =IFERROR(VLOOKUP($A78,[3]Paypal!$A$2:$AA$1843,25,FALSE),0) -> 612.12 | BH78: =IFERROR(VLOOKUP($A78,'[3]Paypal Money Sent Pivot'!$A$4:$B$97,2,FALSE),0) -> 0 | BI78: =$BH78+$BI77-IFERROR(VLOOKUP($A78,[2]Sheet2!$A$4:$B$82,2,FALSE),0) -> 999.82 | BJ78: =IFERROR(VLOOKUP($A78,'[3]TexttoColumn Amazon Balance'!$A$14:$B$30,2,FALSE),0) -> 0 | BK78: =$BJ77+$BK77-IFERROR(VLOOKUP($A78,[2]Amazon!$A$2:$F$17,5,FALSE),0) -> 0 | BL78: =IFERROR(VLOOKUP($A78,'[4]Payment Pivot'!$A$4:$B$39,2,FALSE),0) -> 899.63 | BM78: =$BL78+$BM77-IFERROR(VLOOKUP($A78,'[2]Myaccountaccess Pivot'!$A$4:$B$31,2,FALSE),0) -> 899.63 | BO78: =IFERROR(VLOOKUP($A78,'[6]export-2'!$A$2:$F$15,6,FALSE),BO77) -> 1000 | BP78: 145.2298108 | BQ78: =OFFSET(A78,0,'Cool Graph'!$H$1) -> 0 | BR78: =OFFSET(A78,0,'Cool Graph'!$I$1) -> 145.2298108
A79: 2011-09-16 | B79: 0 | C79: 31.5 | D79: 32.51 | E79: 11.33 | F79: 5.61 | G79: 80.95 | H79: 0 | I79: 2 | J79: 0 | K79: 1 | L79: 0 | M79: 0 | N79: 0 | O79: 10.3 | P79: 0 | Q79: 0 | R79: 1.03 | S79: 0 | T79: 0 | U79: 0 | V79: 0 | W79: 0 | X79: 6 | Y79: 6 | Z79: 0 | AA79: 0 | AB79: 6 | AC79: 0 | AD79: =IFERROR(VLOOKUP($A79,[1]Sheet1!$A$4:$B$219,2,FALSE),0) -> 990 | AE79: 990 | AF79: 326.56 | AG79: =$BH79+$BI78-IFERROR(VLOOKUP($A79,[2]Sheet2!$A$4:$B$82,2,FALSE),0) -> 1069.82 | AH79: =$BJ78+$BK78-IFERROR(VLOOKUP($A79,[2]Amazon!$A$2:$F$17,5,FALSE),0) -> 0 | AI79: =$BL79+$BM78-IFERROR(VLOOKUP($A79,'[2]Myaccountaccess Pivot'!$A$4:$B$31,2,FALSE),0) -> 0 | AJ79: =IFERROR(VLOOKUP($A79,'[2]export-1'!$A$2:$F$441,6,FALSE),AJ78) -> 1474.59 | AK79: =IFERROR(VLOOKUP($A79,'[7]download-1'!$A$2:$F$513,6,FALSE),AK78) -> -11.95 | AL79: =IFERROR(VLOOKUP($A79,'[3]TexttoColumn Amazon Balance'!$A$14:$B$30,2,FALSE),IF(AL80>0,AL80-50,0)) -> 320.46 | AM79: 3631.01 | AN79: 10708.51 | AO79: 106 | AP79: 93 | AQ79: 0 | AR79: 0 | AX79: =IFERROR(VLOOKUP($A79,'[2]export-1'!$A$446:$G$451,7,FALSE),0) -> 0 | AY79: =IFERROR(VLOOKUP($A79,[3]Sheet4!$A$4:$B$56,2,FALSE),0) -> 14 | AZ79: =IFERROR(VLOOKUP($A79,'[3]headphones purchased'!$A$2:$G$27,6,FALSE),0) -> 1 | BA79: =ROUND(IFERROR(VLOOKUP($A79,'[4]download-1'!$A$471:$F$474,5,FALSE)/-9.5,0),0) -> 0 | BB79: =ROUND(IFERROR(VLOOKUP($A79,'[4]download-1'!$A$467:$F$469,5,FALSE)/-49,0),0) -> 0 | BC79: =IFERROR(VLOOKUP($A79,[5]Sheet8!$A$4:$B$89,2,FALSE),0) -> 0 | BF79: 1 | BG79: =IFERROR(VLOOKUP($A79,[3]Paypal!$A$2:$AA$1843,25,FALSE),0) -> 778.09 | BH79: =IFERROR(VLOOKUP($A79,'[3]Paypal Money Sent Pivot'!$A$4:$B$97,2,FALSE),0) -> 70 | BI79: =$BH79+$BI78-IFERROR(VLOOKUP($A79,[2]Sheet2!$A$4:$B$82,2,FALSE),0) -> 1069.82 | BJ79: =IFERROR(VLOOKUP($A79,'[3]TexttoColumn Amazon Balance'!$A$14:$B$30,2,FALSE),0) -> 0 | BK79: =$BJ78+$BK78-IFERROR(VLOOKUP($A79,[2]Amazon!$A$2:$F$17,5,FALSE),0) -> 0 | BL79: =IFERROR(VLOOKUP($A79,'[4]Payment Pivot'!$A$4:$B$39,2,FALSE),0) -> 0 | BM79: =$BL79+$BM78-IFERROR(VLOOKUP($A79,'[2]Myaccountaccess Pivot'!$A$4:$B$31,2,FALSE),0) -> 0 | BO79: =IFERROR(VLOOKUP($A79,'[6]export-2'!$A$2:$F$15,6,FALSE),BO78) -> 1000 | BP79: 338.2696215 | BQ79: =OFFSET(A79,0,'Cool Graph'!$H$1) -> 0 | BR79: =OFFSET(A79,0,'Cool Graph'!$I$1) -> 338.2696215
A80: 2011-09-17 | B80: 0 | C80: 28.76 | D80: 37.79 | E80: 5.41 | F80: 1.15 | G80: 73.11 | H80: 0 | I80: 0 | J80: 0 | K80: 0 | L80: 1 | M80: 0 | N80: 0 | O80: 4.29 | P80: 1 | Q80: 0 | R80: 1.12 | S80: 0 | T80: 0 | U80: 0 | V80: 0 | W80: 0 | X80: 2 | Y80: 2 | Z80: 0 | AA80: 0 | AB80: 2 | AC80: 0 | AD80: =IFERROR(VLOOKUP($A80,[1]Sheet1!$A$4:$B$219,2,FALSE),0) -> 330 | AE80: 330 | AF80: 252.82 | AG80: =$BH80+$BI79-IFERROR(VLOOKUP($A80,[2]Sheet2!$A$4:$B$82,2,FALSE),0) -> 1069.82 | AH80: =$BJ79+$BK79-IFERROR(VLOOKUP($A80,[2]Amazon!$A$2:$F$17,5,FALSE),0) -> 0 | AI80: =$BL80+$BM79-IFERROR(VLOOKUP($A80,'[2]Myaccountaccess Pivot'!$A$4:$B$31,2,FALSE),0) -> 0 | AJ80: =IFERROR(VLOOKUP($A80,'[2]export-1'!$A$2:$F$441,6,FALSE),AJ79) -> 1474.59 | AK80: =IFERROR(VLOOKUP($A80,'[7]download-1'!$A$2:$F$513,6,FALSE),AK79) -> -11.95 | AL80: =IFERROR(VLOOKUP($A80,'[3]TexttoColumn Amazon Balance'!$A$14:$B$30,2,FALSE),IF(AL81>0,AL81-50,0)) -> 370.46 | AM80: 4000.83 | AN80: 10961.33 | AO80: 104 | AP80: 91 | AQ80: 0 | AR80: 0 | AX80: =IFERROR(VLOOKUP($A80,'[2]export-1'!$A$446:$G$451,7,FALSE),0) -> 0 | AY80: =IFERROR(VLOOKUP($A80,[3]Sheet4!$A$4:$B$56,2,FALSE),0) -> 0 | AZ80: =IFERROR(VLOOKUP($A80,'[3]headphones purchased'!$A$2:$G$27,6,FALSE),0) -> 0 | BA80: =ROUND(IFERROR(VLOOKUP($A80,'[4]download-1'!$A$471:$F$474,5,FALSE)/-9.5,0),0) -> 0 | BB80: =ROUND(IFERROR(VLOOKUP($A80,'[4]download-1'!$A$467:$F$469,5,FALSE)/-49,0),0) -> 0 | BC80: =IFERROR(VLOOKUP($A80,[5]Sheet8!$A$4:$B$89,2,FALSE),0) -> 0 | BF80: 0 | BG80: =IFERROR(VLOOKUP($A80,[3]Paypal!$A$2:$AA$1843,25,FALSE),0) -> 1097.91 | BH80: =IFERROR(VLOOKUP($A80,'[3]Paypal Money Sent Pivot'!$A$4:$B$97,2,FALSE),0) -> 0 | BI80: =$BH80+$BI79-IFERROR(VLOOKUP($A80,[2]Sheet2!$A$4:$B$82,2,FALSE),0) -> 1069.82 | BJ80: =IFERROR(VLOOKUP($A80,'[3]TexttoColumn Amazon Balance'!$A$14:$B$30,2,FALSE),0) -> 0 | BK80: =$BJ79+$BK79-IFERROR(VLOOKUP($A80,[2]Amazon!$A$2:$F$17,5,FALSE),0) -> 0 | BL80: =IFERROR(VLOOKUP($A80,'[4]Payment Pivot'!$A$4:$B$39,2,FALSE),0) -> 0 | BM80: =$BL80+$BM79-IFERROR(VLOOKUP($A80,'[2]Myaccountaccess Pivot'!$A$4:$B$31,2,FALSE),0) -> 0 | BO80: =IFERROR(VLOOKUP($A80,'[6]export-2'!$A$2:$F$15,6,FALSE),BO79) -> 1000 | BP80: 66.62987383 | BQ80: =OFFSET(A80,0,'Cool Graph'!$H$1) -> 0 | BR80: =OFFSET(A80,0,'Cool Graph'!$I$1) -> 66.62987383
A81: 2011-09-18 | B81: 0 | C81: 21.15 | D81: 46.18 | E81: 8.73 | F81: 0 | G81: 76.06 | H81: 0 | I81: 0 | J81: 0 | K81: 2 | L81: 1 | M81: 0 | N81: 0 | O81: 5.49 | P81: 0 | Q81: 0 | R81: 3.24 | S81: 1 | T81: 0 | U81: 0 | V81: 0 | W81: 0 | X81: 6 | Y81: 6 | Z81: 0 | AA81: 0 | AB81: 6 | AC81: 0 | AD81: =IFERROR(VLOOKUP($A81,[1]Sheet1!$A$4:$B$219,2,FALSE),0) -> 990 | AE81: 990 | AF81: 707.46 | AG81: =$BH81+$BI80-IFERROR(VLOOKUP($A81,[2]Sheet2!$A$4:$B$82,2,FALSE),0) -> 1069.82 | AH81: =$BJ80+$BK80-IFERROR(VLOOKUP($A81,[2]Amazon!$A$2:$F$17,5,FALSE),0) -> 0 | AI81: =$BL81+$BM80-IFERROR(VLOOKUP($A81,'[2]Myaccountaccess Pivot'!$A$4:$B$31,2,FALSE),0) -> 0 | AJ81: =IFERROR(VLOOKUP($A81,'[2]export-1'!$A$2:$F$441,6,FALSE),AJ80) -> 1474.59 | AK81: =IFERROR(VLOOKUP($A81,'[7]download-1'!$A$2:$F$513,6,FALSE),AK80) -> -11.95 | AL81: =IFERROR(VLOOKUP($A81,'[3]TexttoColumn Amazon Balance'!$A$14:$B$30,2,FALSE),IF(AL82>0,AL82-50,0)) -> 420.46 | AM81: 5010.29 | AN81: 11668.79 | AO81: 99 | AP81: 85 | AQ81: 0 | AR81: 0 | AX81: =IFERROR(VLOOKUP($A81,'[2]export-1'!$A$446:$G$451,7,FALSE),0) -> 0 | AY81: =IFERROR(VLOOKUP($A81,[3]Sheet4!$A$4:$B$56,2,FALSE),0) -> 0 | AZ81: =IFERROR(VLOOKUP($A81,'[3]headphones purchased'!$A$2:$G$27,6,FALSE),0) -> 0 | BA81: =ROUND(IFERROR(VLOOKUP($A81,'[4]download-1'!$A$471:$F$474,5,FALSE)/-9.5,0),0) -> 0 | BB81: =ROUND(IFERROR(VLOOKUP($A81,'[4]download-1'!$A$467:$F$469,5,FALSE)/-49,0),0) -> 0 | BC81: =IFERROR(VLOOKUP($A81,[5]Sheet8!$A$4:$B$89,2,FALSE),0) -> 0 | BF81: 1 | BG81: =IFERROR(VLOOKUP($A81,[3]Paypal!$A$2:$AA$1843,25,FALSE),0) -> 2057.37 | BH81: =IFERROR(VLOOKUP($A81,'[3]Paypal Money Sent Pivot'!$A$4:$B$97,2,FALSE),0) -> 0 | BI81: =$BH81+$BI80-IFERROR(VLOOKUP($A81,[2]Sheet2!$A$4:$B$82,2,FALSE),0) -> 1069.82 | BJ81: =IFERROR(VLOOKUP($A81,'[3]TexttoColumn Amazon Balance'!$A$14:$B$30,2,FALSE),0) -> 0 | BK81: =$BJ80+$BK80-IFERROR(VLOOKUP($A81,[2]Amazon!$A$2:$F$17,5,FALSE),0) -> 0 | BL81: =IFERROR(VLOOKUP($A81,'[4]Payment Pivot'!$A$4:$B$39,2,FALSE),0) -> 0 | BM81: =$BL81+$BM80-IFERROR(VLOOKUP($A81,'[2]Myaccountaccess Pivot'!$A$4:$B$31,2,FALSE),0) -> 0 | BO81: =IFERROR(VLOOKUP($A81,'[6]export-2'!$A$2:$F$15,6,FALSE),BO80) -> 1000 | BP81: 343.1596215 | BQ81: =OFFSET(A81,0,'Cool Graph'!$H$1) -> 0 | BR81: =OFFSET(A81,0,'Cool Graph'!$I$1) -> 343.1596215
A82: 2011-09-19 | B82: 0 | C82: 29.98 | D82: 46.89 | E82: 11.99 | F82: 0 | G82: 88.86 | H82: 0 | I82: 1 | J82: 0 | K82: 2 | L82: 0 | M82: 0 | N82: 0 | O82: 7.57 | P82: 0 | Q82: 0 | R82: 4.42 | S82: 0 | T82: 0 | U82: 0 | V82: 0 | W82: 0 | X82: 7 | Y82: 7 | Z82: 0 | AA82: 0 | AB82: 7 | AC82: 0 | AD82: =IFERROR(VLOOKUP($A82,[1]Sheet1!$A$4:$B$219,2,FALSE),0) -> 1155 | AE82: 1155 | AF82: -139.54 | AG82: =$BH82+$BI81-IFERROR(VLOOKUP($A82,[2]Sheet2!$A$4:$B$82,2,FALSE),0) -> 999.82 | AH82: =$BJ81+$BK81-IFERROR(VLOOKUP($A82,[2]Amazon!$A$2:$F$17,5,FALSE),0) -> 0 | AI82: =$BL82+$BM81-IFERROR(VLOOKUP($A82,'[2]Myaccountaccess Pivot'!$A$4:$B$31,2,FALSE),0) -> 11.95 | AJ82: =IFERROR(VLOOKUP($A82,'[2]export-1'!$A$2:$F$441,6,FALSE),AJ81) -> 2267.94 | AK82: =IFERROR(VLOOKUP($A82,'[7]download-1'!$A$2:$F$513,6,FALSE),AK81) -> -1099.49 | AL82: =IFERROR(VLOOKUP($A82,'[3]TexttoColumn Amazon Balance'!$A$14:$B$30,2,FALSE),IF(AL83>0,AL83-50,0)) -> 470.46 | AM82: 2965.25 | AN82: 11529.25 | AO82: 128 | AP82: 136 | AQ82: 0 | AR82: 0 | AX82: =IFERROR(VLOOKUP($A82,'[2]export-1'!$A$446:$G$451,7,FALSE),0) -> 0 | AY82: =IFERROR(VLOOKUP($A82,[3]Sheet4!$A$4:$B$56,2,FALSE),0) -> 36 | AZ82: =IFERROR(VLOOKUP($A82,'[3]headphones purchased'!$A$2:$G$27,6,FALSE),0) -> 58 | BA82: =ROUND(IFERROR(VLOOKUP($A82,'[4]download-1'!$A$471:$F$474,5,FALSE)/-9.5,0),0) -> 0 | BB82: =ROUND(IFERROR(VLOOKUP($A82,'[4]download-1'!$A$467:$F$469,5,FALSE)/-49,0),0) -> 0 | BC82: =IFERROR(VLOOKUP($A82,[5]Sheet8!$A$4:$B$89,2,FALSE),0) -> 0 | BF82: 0 | BG82: =IFERROR(VLOOKUP($A82,[3]Paypal!$A$2:$AA$1843,25,FALSE),0) -> 338.47 | BH82: =IFERROR(VLOOKUP($A82,'[3]Paypal Money Sent Pivot'!$A$4:$B$97,2,FALSE),0) -> 1000 | BI82: =$BH82+$BI81-IFERROR(VLOOKUP($A82,[2]Sheet2!$A$4:$B$82,2,FALSE),0) -> 999.82 | BJ82: =IFERROR(VLOOKUP($A82,'[3]TexttoColumn Amazon Balance'!$A$14:$B$30,2,FALSE),0) -> 0 | BK82: =$BJ81+$BK81-IFERROR(VLOOKUP($A82,[2]Amazon!$A$2:$F$17,5,FALSE),0) -> 0 | BL82: =IFERROR(VLOOKUP($A82,'[4]Payment Pivot'!$A$4:$B$39,2,FALSE),0) -> 11.95 | BM82: =$BL82+$BM81-IFERROR(VLOOKUP($A82,'[2]Myaccountaccess Pivot'!$A$4:$B$31,2,FALSE),0) -> 11.95 | BO82: =IFERROR(VLOOKUP($A82,'[6]export-2'!$A$2:$F$15,6,FALSE),BO81) -> 1000 | BP82: 400.2295584 | BQ82: =OFFSET(A82,0,'Cool Graph'!$H$1) -> 0 | BR82: =OFFSET(A82,0,'Cool Graph'!$I$1) -> 400.2295584
A83: 2011-09-20 | B83: 0 | C83: 20 | D83: 46.9 | E83: 6.42 | F83: 2.33 | G83: 75.65 | H83: 0 | I83: 0 | J83: 0 | K83: 3 | L83: 0 | M83: 1 | N83: 0 | O83: 3.57 | P83: 0 | Q83: 0 | R83: 2.85 | S83: 0 | T83: 0 | U83: 0 | V83: 0 | W83: 0 | X83: 6 | Y83: 6 | Z83: 0 | AA83: 0 | AB83: 6 | AC83: 0 | AD83: =IFERROR(VLOOKUP($A83,[1]Sheet1!$A$4:$B$219,2,FALSE),0) -> 990 | AE83: 990 | AF83: 539.5 | AG83: =$BH83+$BI82-IFERROR(VLOOKUP($A83,[2]Sheet2!$A$4:$B$82,2,FALSE),0) -> 2099.82 | AH83: =$BJ82+$BK82-IFERROR(VLOOKUP($A83,[2]Amazon!$A$2:$F$17,5,FALSE),0) -> 0 | AI83: =$BL83+$BM82-IFERROR(VLOOKUP($A83,'[2]Myaccountaccess Pivot'!$A$4:$B$31,2,FALSE),0) -> 0 | AJ83: =IFERROR(VLOOKUP($A83,'[2]export-1'!$A$2:$F$441,6,FALSE),AJ82) -> 1950.8 | AK83: =IFERROR(VLOOKUP($A83,'[7]download-1'!$A$2:$F$513,6,FALSE),AK82) -> -1099.49 | AL83: =IFERROR(VLOOKUP($A83,'[3]TexttoColumn Amazon Balance'!$A$14:$B$30,2,FALSE),IF(AL84>0,AL84-50,0)) -> 520.46 | AM83: 3806.75 | AN83: 12068.75 | AO83: 123 | AP83: 130 | AQ83: 0 | AR83: 0 | AX83: =IFERROR(VLOOKUP($A83,'[2]export-1'!$A$446:$G$451,7,FALSE),0) -> 0 | AY83: =IFERROR(VLOOKUP($A83,[3]Sheet4!$A$4:$B$56,2,FALSE),0) -> 0 | AZ83: =IFERROR(VLOOKUP($A83,'[3]headphones purchased'!$A$2:$G$27,6,FALSE),0) -> 0 | BA83: =ROUND(IFERROR(VLOOKUP($A83,'[4]download-1'!$A$471:$F$474,5,FALSE)/-9.5,0),0) -> 0 | BB83: =ROUND(IFERROR(VLOOKUP($A83,'[4]download-1'!$A$467:$F$469,5,FALSE)/-49,0),0) -> 0 | BC83: =IFERROR(VLOOKUP($A83,[5]Sheet8!$A$4:$B$89,2,FALSE),0) -> 0 | BF83: 1 | BG83: =IFERROR(VLOOKUP($A83,[3]Paypal!$A$2:$AA$1843,25,FALSE),0) -> 335.16 | BH83: =IFERROR(VLOOKUP($A83,'[3]Paypal Money Sent Pivot'!$A$4:$B$97,2,FALSE),0) -> 1100 | BI83: =$BH83+$BI82-IFERROR(VLOOKUP($A83,[2]Sheet2!$A$4:$B$82,2,FALSE),0) -> 2099.82 | BJ83: =IFERROR(VLOOKUP($A83,'[3]TexttoColumn Amazon Balance'!$A$14:$B$30,2,FALSE),0) -> 0 | BK83: =$BJ82+$BK82-IFERROR(VLOOKUP($A83,[2]Amazon!$A$2:$F$17,5,FALSE),0) -> 0 | BL83: =IFERROR(VLOOKUP($A83,'[4]Payment Pivot'!$A$4:$B$39,2,FALSE),0) -> 0 | BM83: =$BL83+$BM82-IFERROR(VLOOKUP($A83,'[2]Myaccountaccess Pivot'!$A$4:$B$31,2,FALSE),0) -> 0 | BO83: =IFERROR(VLOOKUP($A83,'[6]export-2'!$A$2:$F$15,6,FALSE),BO82) -> 1000 | BP83: 343.5696215 | BQ83: =OFFSET(A83,0,'Cool Graph'!$H$1) -> 0 | BR83: =OFFSET(A83,0,'Cool Graph'!$I$1) -> 343.5696215
A84: 2011-09-21 | B84: 0 | C84: 19.34 | D84: 39.86 | E84: 7.12 | F84: 4.18 | G84: 70.5 | H84: 0 | I84: 0 | J84: 0 | K84: 2 | L84: 0 | M84: 0 | N84: 0 | O84: 4.88 | P84: 0 | Q84: 0 | R84: 2.24 | S84: 0 | T84: 0 | U84: 0 | V84: 0 | W84: 0 | X84: 4 | Y84: 4 | Z84: 0 | AA84: 0 | AB84: 4 | AC84: 0 | AD84: =IFERROR(VLOOKUP($A84,[1]Sheet1!$A$4:$B$219,2,FALSE),0) -> 660 | AE84: 660 | AF84: 428.47 | AG84: =$BH84+$BI83-IFERROR(VLOOKUP($A84,[2]Sheet2!$A$4:$B$82,2,FALSE),0) -> 1099.82 | AH84: =$BJ83+$BK83-IFERROR(VLOOKUP($A84,[2]Amazon!$A$2:$F$17,5,FALSE),0) -> 0 | AI84: =$BL84+$BM83-IFERROR(VLOOKUP($A84,'[2]Myaccountaccess Pivot'!$A$4:$B$31,2,FALSE),0) -> 0 | AJ84: =IFERROR(VLOOKUP($A84,'[2]export-1'!$A$2:$F$441,6,FALSE),AJ83) -> 2910.8 | AK84: =IFERROR(VLOOKUP($A84,'[7]download-1'!$A$2:$F$513,6,FALSE),AK83) -> -1099.49 | AL84: =IFERROR(VLOOKUP($A84,'[3]TexttoColumn Amazon Balance'!$A$14:$B$30,2,FALSE),IF(AL85>0,AL85-50,0)) -> 570.46 | AM84: 4420.22 | AN84: 12497.22 | AO84: 120 | AP84: 126 | AQ84: 0 | AR84: 0 | AX84: =IFERROR(VLOOKUP($A84,'[2]export-1'!$A$446:$G$451,7,FALSE),0) -> 0 | AY84: =IFERROR(VLOOKUP($A84,[3]Sheet4!$A$4:$B$56,2,FALSE),0) -> 3 | AZ84: =IFERROR(VLOOKUP($A84,'[3]headphones purchased'!$A$2:$G$27,6,FALSE),0) -> 0 | BA84: =ROUND(IFERROR(VLOOKUP($A84,'[4]download-1'!$A$471:$F$474,5,FALSE)/-9.5,0),0) -> 0 | BB84: =ROUND(IFERROR(VLOOKUP($A84,'[4]download-1'!$A$467:$F$469,5,FALSE)/-49,0),0) -> 0 | BC84: =IFERROR(VLOOKUP($A84,[5]Sheet8!$A$4:$B$89,2,FALSE),0) -> 2 | BF84: 0 | BG84: =IFERROR(VLOOKUP($A84,[3]Paypal!$A$2:$AA$1843,25,FALSE),0) -> 938.63 | BH84: =IFERROR(VLOOKUP($A84,'[3]Paypal Money Sent Pivot'!$A$4:$B$97,2,FALSE),0) -> 0 | BI84: =$BH84+$BI83-IFERROR(VLOOKUP($A84,[2]Sheet2!$A$4:$B$82,2,FALSE),0) -> 1099.82 | BJ84: =IFERROR(VLOOKUP($A84,'[3]TexttoColumn Amazon Balance'!$A$14:$B$30,2,FALSE),0) -> 0 | BK84: =$BJ83+$BK83-IFERROR(VLOOKUP($A84,[2]Amazon!$A$2:$F$17,5,FALSE),0) -> 0 | BL84: =IFERROR(VLOOKUP($A84,'[4]Payment Pivot'!$A$4:$B$39,2,FALSE),0) -> 0 | BM84: =$BL84+$BM83-IFERROR(VLOOKUP($A84,'[2]Myaccountaccess Pivot'!$A$4:$B$31,2,FALSE),0) -> 0 | BO84: =IFERROR(VLOOKUP($A84,'[6]export-2'!$A$2:$F$15,6,FALSE),BO83) -> 1000 | BP84: 208.9797477 | BQ84: =OFFSET(A84,0,'Cool Graph'!$H$1) -> 0 | BR84: =OFFSET(A84,0,'Cool Graph'!$I$1) -> 208.9797477
A85: 2011-09-22 | B85: 0 | C85: 16.73 | D85: 37.04 | E85: 6.46 | F85: 2.39 | G85: 62.62 | H85: 0 | I85: 0 | J85: 0 | K85: 0 | L85: 0 | M85: 0 | N85: 0 | O85: 5.16 | P85: 0 | Q85: 0 | R85: 1.3 | S85: 0 | T85: 0 | U85: 0 | V85: 0 | W85: 0 | X85: 6 | Y85: 6 | Z85: 0 | AA85: 0 | AB85: 6 | AC85: 0 | AD85: =IFERROR(VLOOKUP($A85,[1]Sheet1!$A$4:$B$219,2,FALSE),0) -> 990 | AE85: 990 | AF85: 566.86 | AG85: =$BH85+$BI84-IFERROR(VLOOKUP($A85,[2]Sheet2!$A$4:$B$82,2,FALSE),0) -> -0.18 | AH85: =$BJ84+$BK84-IFERROR(VLOOKUP($A85,[2]Amazon!$A$2:$F$17,5,FALSE),0) -> 0 | AI85: =$BL85+$BM84-IFERROR(VLOOKUP($A85,'[2]Myaccountaccess Pivot'!$A$4:$B$31,2,FALSE),0) -> 0 | AJ85: =IFERROR(VLOOKUP($A85,'[2]export-1'!$A$2:$F$441,6,FALSE),AJ84) -> 3968.2 | AK85: =IFERROR(VLOOKUP($A85,'[7]download-1'!$A$2:$F$513,6,FALSE),AK84) -> -1099.49 | AL85: =IFERROR(VLOOKUP($A85,'[3]TexttoColumn Amazon Balance'!$A$14:$B$30,2,FALSE),IF(AL86>0,AL86-50,0)) -> 620.46 | AM85: 4015.08 | AN85: 13064.08 | AO85: 141 | AP85: 120 | AQ85: 0 | AR85: 0 | AX85: =IFERROR(VLOOKUP($A85,'[2]export-1'!$A$446:$G$451,7,FALSE),0) -> 0 | AY85: =IFERROR(VLOOKUP($A85,[3]Sheet4!$A$4:$B$56,2,FALSE),0) -> 27 | AZ85: =IFERROR(VLOOKUP($A85,'[3]headphones purchased'!$A$2:$G$27,6,FALSE),0) -> 0 | BA85: =ROUND(IFERROR(VLOOKUP($A85,'[4]download-1'!$A$471:$F$474,5,FALSE)/-9.5,0),0) -> 0 | BB85: =ROUND(IFERROR(VLOOKUP($A85,'[4]download-1'!$A$467:$F$469,5,FALSE)/-49,0),0) -> 0 | BC85: =IFERROR(VLOOKUP($A85,[5]Sheet8!$A$4:$B$89,2,FALSE),0) -> 1 | BF85: 1 | BG85: =IFERROR(VLOOKUP($A85,[3]Paypal!$A$2:$AA$1843,25,FALSE),0) -> 526.09 | BH85: =IFERROR(VLOOKUP($A85,'[3]Paypal Money Sent Pivot'!$A$4:$B$97,2,FALSE),0) -> 0 | BI85: =$BH85+$BI84-IFERROR(VLOOKUP($A85,[2]Sheet2!$A$4:$B$82,2,FALSE),0) -> -0.18 | BJ85: =IFERROR(VLOOKUP($A85,'[3]TexttoColumn Amazon Balance'!$A$14:$B$30,2,FALSE),0) -> 0 | BK85: =$BJ84+$BK84-IFERROR(VLOOKUP($A85,[2]Amazon!$A$2:$F$17,5,FALSE),0) -> 0 | BL85: =IFERROR(VLOOKUP($A85,'[4]Payment Pivot'!$A$4:$B$39,2,FALSE),0) -> 0 | BM85: =$BL85+$BM84-IFERROR(VLOOKUP($A85,'[2]Myaccountaccess Pivot'!$A$4:$B$31,2,FALSE),0) -> 0 | BO85: =IFERROR(VLOOKUP($A85,'[6]export-2'!$A$2:$F$15,6,FALSE),BO84) -> 1000 | BP85: 356.5996215 | BQ85: =OFFSET(A85,0,'Cool Graph'!$H$1) -> 0 | BR85: =OFFSET(A85,0,'Cool Graph'!$I$1) -> 356.5996215
A86: 2011-09-23 | B86: 0 | C86: 20.01 | D86: 40.93 | E86: 8.75 | F86: 1.55 | G86: 71.24 | H86: 0 | I86: 0 | J86: 0 | K86: 1 | L86: 0 | M86: 1 | N86: 0 | O86: 6.15 | P86: 0 | Q86: 0 | R86: 2.6 | S86: 0 | T86: 0 | U86: 0 | V86: 0 | W86: 0 | X86: 3 | Y86: 3 | Z86: 0 | AA86: 0 | AB86: 3 | AC86: 0 | AD86: =IFERROR(VLOOKUP($A86,[1]Sheet1!$A$4:$B$219,2,FALSE),0) -> 495 | AE86: 495 | AF86: 100.13 | AG86: =$BH86+$BI85-IFERROR(VLOOKUP($A86,[2]Sheet2!$A$4:$B$82,2,FALSE),0) -> -0.18 | AH86: =$BJ85+$BK85-IFERROR(VLOOKUP($A86,[2]Amazon!$A$2:$F$17,5,FALSE),0) -> 0 | AI86: =$BL86+$BM85-IFERROR(VLOOKUP($A86,'[2]Myaccountaccess Pivot'!$A$4:$B$31,2,FALSE),0) -> 0 | AJ86: =IFERROR(VLOOKUP($A86,'[2]export-1'!$A$2:$F$441,6,FALSE),AJ85) -> 3962.25 | AK86: =IFERROR(VLOOKUP($A86,'[7]download-1'!$A$2:$F$513,6,FALSE),AK85) -> -1099.49 | AL86: =IFERROR(VLOOKUP($A86,'[3]TexttoColumn Amazon Balance'!$A$14:$B$30,2,FALSE),IF(AL87>0,AL87-50,0)) -> 670.46 | AM86: 4339.71 | AN86: 13164.21 | AO86: 137 | AP86: 117 | AQ86: 0 | AR86: 0 | AX86: =IFERROR(VLOOKUP($A86,'[2]export-1'!$A$446:$G$451,7,FALSE),0) -> 0 | AY86: =IFERROR(VLOOKUP($A86,[3]Sheet4!$A$4:$B$56,2,FALSE),0) -> 0 | AZ86: =IFERROR(VLOOKUP($A86,'[3]headphones purchased'!$A$2:$G$27,6,FALSE),0) -> 0 | BA86: =ROUND(IFERROR(VLOOKUP($A86,'[4]download-1'!$A$471:$F$474,5,FALSE)/-9.5,0),0) -> 0 | BB86: =ROUND(IFERROR(VLOOKUP($A86,'[4]download-1'!$A$467:$F$469,5,FALSE)/-49,0),0) -> 0 | BC86: =IFERROR(VLOOKUP($A86,[5]Sheet8!$A$4:$B$89,2,FALSE),0) -> 1 | BF86: 0 | BG86: =IFERROR(VLOOKUP($A86,[3]Paypal!$A$2:$AA$1843,25,FALSE),0) -> 806.67 | BH86: =IFERROR(VLOOKUP($A86,'[3]Paypal Money Sent Pivot'!$A$4:$B$97,2,FALSE),0) -> 0 | BI86: =$BH86+$BI85-IFERROR(VLOOKUP($A86,[2]Sheet2!$A$4:$B$82,2,FALSE),0) -> -0.18 | BJ86: =IFERROR(VLOOKUP($A86,'[3]TexttoColumn Amazon Balance'!$A$14:$B$30,2,FALSE),0) -> 0 | BK86: =$BJ85+$BK85-IFERROR(VLOOKUP($A86,[2]Amazon!$A$2:$F$17,5,FALSE),0) -> 0 | BL86: =IFERROR(VLOOKUP($A86,'[4]Payment Pivot'!$A$4:$B$39,2,FALSE),0) -> 0 | BM86: =$BL86+$BM85-IFERROR(VLOOKUP($A86,'[2]Myaccountaccess Pivot'!$A$4:$B$31,2,FALSE),0) -> 0 | BO86: =IFERROR(VLOOKUP($A86,'[6]export-2'!$A$2:$F$15,6,FALSE),BO85) -> 1000 | BP86: 138.3698108 | BQ86: =OFFSET(A86,0,'Cool Graph'!$H$1) -> 0 | BR86: =OFFSET(A86,0,'Cool Graph'!$I$1) -> 138.3698108
A87: 2011-09-24 | B87: 0 | C87: 13.6 | D87: 37.02 | E87: 12.5 | F87: 3.25 | G87: 66.37 | H87: 0 | I87: 0 | J87: 0 | K87: 1 | L87: 0 | M87: 0 | N87: 0 | O87: 10.04 | P87: 0 | Q87: 0 | R87: 2.46 | S87: 0 | T87: 0 | U87: 0 | V87: 0 | W87: 0 | X87: 2 | Y87: 2 | Z87: 0 | AA87: 0 | AB87: 2 | AC87: 0 | AD87: =IFERROR(VLOOKUP($A87,[1]Sheet1!$A$4:$B$219,2,FALSE),0) -> 330 | AE87: 330 | AF87: 296.48 | AG87: =$BH87+$BI86-IFERROR(VLOOKUP($A87,[2]Sheet2!$A$4:$B$82,2,FALSE),0) -> -0.18 | AH87: =$BJ86+$BK86-IFERROR(VLOOKUP($A87,[2]Amazon!$A$2:$F$17,5,FALSE),0) -> 0 | AI87: =$BL87+$BM86-IFERROR(VLOOKUP($A87,'[2]Myaccountaccess Pivot'!$A$4:$B$31,2,FALSE),0) -> 0 | AJ87: =IFERROR(VLOOKUP($A87,'[2]export-1'!$A$2:$F$441,6,FALSE),AJ86) -> 3962.25 | AK87: =IFERROR(VLOOKUP($A87,'[7]download-1'!$A$2:$F$513,6,FALSE),AK86) -> -1099.49 | AL87: =IFERROR(VLOOKUP($A87,'[3]TexttoColumn Amazon Balance'!$A$14:$B$30,2,FALSE),IF(AL88>0,AL88-50,0)) -> 720.46 | AM87: 4704.19 | AN87: 13460.69 | AO87: 136 | AP87: 115 | AQ87: 0 | AR87: 0 | AX87: =IFERROR(VLOOKUP($A87,'[2]export-1'!$A$446:$G$451,7,FALSE),0) -> 0 | AY87: =IFERROR(VLOOKUP($A87,[3]Sheet4!$A$4:$B$56,2,FALSE),0) -> 0 | AZ87: =IFERROR(VLOOKUP($A87,'[3]headphones purchased'!$A$2:$G$27,6,FALSE),0) -> 0 | BA87: =ROUND(IFERROR(VLOOKUP($A87,'[4]download-1'!$A$471:$F$474,5,FALSE)/-9.5,0),0) -> 0 | BB87: =ROUND(IFERROR(VLOOKUP($A87,'[4]download-1'!$A$467:$F$469,5,FALSE)/-49,0),0) -> 0 | BC87: =IFERROR(VLOOKUP($A87,[5]Sheet8!$A$4:$B$89,2,FALSE),0) -> 0 | BF87: 1 | BG87: =IFERROR(VLOOKUP($A87,[3]Paypal!$A$2:$AA$1843,25,FALSE),0) -> 1121.15 | BH87: =IFERROR(VLOOKUP($A87,'[3]Paypal Money Sent Pivot'!$A$4:$B$97,2,FALSE),0) -> 0 | BI87: =$BH87+$BI86-IFERROR(VLOOKUP($A87,[2]Sheet2!$A$4:$B$82,2,FALSE),0) -> -0.18 | BJ87: =IFERROR(VLOOKUP($A87,'[3]TexttoColumn Amazon Balance'!$A$14:$B$30,2,FALSE),0) -> 720.46 | BK87: =$BJ86+$BK86-IFERROR(VLOOKUP($A87,[2]Amazon!$A$2:$F$17,5,FALSE),0) -> 0 | BL87: =IFERROR(VLOOKUP($A87,'[4]Payment Pivot'!$A$4:$B$39,2,FALSE),0) -> 0 | BM87: =$BL87+$BM86-IFERROR(VLOOKUP($A87,'[2]Myaccountaccess Pivot'!$A$4:$B$31,2,FALSE),0) -> 0 | BO87: =IFERROR(VLOOKUP($A87,'[6]export-2'!$A$2:$F$15,6,FALSE),BO86) -> 1000 | BP87: 73.36987383 | BQ87: =OFFSET(A87,0,'Cool Graph'!$H$1) -> 0 | BR87: =OFFSET(A87,0,'Cool Graph'!$I$1) -> 73.36987383
A88: 2011-09-25 | B88: 0 | C88: 18.91 | D88: 48.45 | E88: 33.89 | F88: 0 | G88: 101.25 | H88: 0 | I88: 0 | J88: 0 | K88: 2 | L88: 1 | M88: 1 | N88: 0 | O88: 26.7 | P88: 0 | Q88: 1 | R88: 7.19 | S88: 1 | T88: 0 | U88: 0 | V88: 0 | W88: 0 | X88: 5 | Y88: 5 | Z88: 0 | AA88: 0 | AB88: 5 | AC88: 0 | AD88: =IFERROR(VLOOKUP($A88,[1]Sheet1!$A$4:$B$219,2,FALSE),0) -> 825 | AE88: 825 | AF88: 3651.8 | AG88: =$BH88+$BI87-IFERROR(VLOOKUP($A88,[2]Sheet2!$A$4:$B$82,2,FALSE),0) -> -0.18 | AH88: =$BJ87+$BK87-IFERROR(VLOOKUP($A88,[2]Amazon!$A$2:$F$17,5,FALSE),0) -> 720.46 | AI88: =$BL88+$BM87-IFERROR(VLOOKUP($A88,'[2]Myaccountaccess Pivot'!$A$4:$B$31,2,FALSE),0) -> 0 | AJ88: =IFERROR(VLOOKUP($A88,'[2]export-1'!$A$2:$F$441,6,FALSE),AJ87) -> 3962.25 | AK88: =IFERROR(VLOOKUP($A88,'[7]download-1'!$A$2:$F$513,6,FALSE),AK87) -> -1099.49 | AL88: =IFERROR(VLOOKUP($A88,'[3]TexttoColumn Amazon Balance'!$A$14:$B$30,2,FALSE),IF(AL89>0,AL89-50,0)) -> 3144.75 | AM88: 8648.49 | AN88: 17112.49 | AO88: 131 | AP88: 110 | AQ88: 0 | AR88: 0 | AX88: =IFERROR(VLOOKUP($A88,'[2]export-1'!$A$446:$G$451,7,FALSE),0) -> 0 | AY88: =IFERROR(VLOOKUP($A88,[3]Sheet4!$A$4:$B$56,2,FALSE),0) -> 0 | AZ88: =IFERROR(VLOOKUP($A88,'[3]headphones purchased'!$A$2:$G$27,6,FALSE),0) -> 0 | BA88: =ROUND(IFERROR(VLOOKUP($A88,'[4]download-1'!$A$471:$F$474,5,FALSE)/-9.5,0),0) -> 0 | BB88: =ROUND(IFERROR(VLOOKUP($A88,'[4]download-1'!$A$467:$F$469,5,FALSE)/-49,0),0) -> 0 | BC88: =IFERROR(VLOOKUP($A88,[5]Sheet8!$A$4:$B$89,2,FALSE),0) -> 0 | BF88: 0 | BG88: =IFERROR(VLOOKUP($A88,[3]Paypal!$A$2:$AA$1843,25,FALSE),0) -> 1920.7 | BH88: =IFERROR(VLOOKUP($A88,'[3]Paypal Money Sent Pivot'!$A$4:$B$97,2,FALSE),0) -> 0 | BI88: =$BH88+$BI87-IFERROR(VLOOKUP($A88,[2]Sheet2!$A$4:$B$82,2,FALSE),0) -> -0.18 | BJ88: =IFERROR(VLOOKUP($A88,'[3]TexttoColumn Amazon Balance'!$A$14:$B$30,2,FALSE),0) -> 0 | BK88: =$BJ87+$BK87-IFERROR(VLOOKUP($A88,[2]Amazon!$A$2:$F$17,5,FALSE),0) -> 720.46 | BL88: =IFERROR(VLOOKUP($A88,'[4]Payment Pivot'!$A$4:$B$39,2,FALSE),0) -> 0 | BM88: =$BL88+$BM87-IFERROR(VLOOKUP($A88,'[2]Myaccountaccess Pivot'!$A$4:$B$31,2,FALSE),0) -> 0 | BO88: =IFERROR(VLOOKUP($A88,'[6]export-2'!$A$2:$F$15,6,FALSE),BO87) -> 1000 | BP88: 248.0996846 | BQ88: =OFFSET(A88,0,'Cool Graph'!$H$1) -> 0 | BR88: =OFFSET(A88,0,'Cool Graph'!$I$1) -> 248.0996846
A89: 2011-09-26 | B89: 0 | C89: 15.32 | D89: 64.11 | E89: 21.67 | F89: 0 | G89: 101.1 | H89: 0 | I89: 0 | J89: 0 | K89: 0 | L89: 0 | M89: 0 | N89: 0 | O89: 16.19 | P89: 0 | Q89: 0 | R89: 5.48 | S89: 0 | T89: 1 | U89: 1 | V89: 0 | W89: 0 | X89: 3 | Y89: 3 | Z89: 0 | AA89: 0 | AB89: 4 | AC89: 335.13 | AD89: =IFERROR(VLOOKUP($A89,[1]Sheet1!$A$4:$B$219,2,FALSE),0) -> 495 | AE89: 830.13 | AF89: -487.28 | AG89: =$BH89+$BI88-IFERROR(VLOOKUP($A89,[2]Sheet2!$A$4:$B$82,2,FALSE),0) -> 999.82 | AH89: =$BJ88+$BK88-IFERROR(VLOOKUP($A89,[2]Amazon!$A$2:$F$17,5,FALSE),0) -> 720.46 | AI89: =$BL89+$BM88-IFERROR(VLOOKUP($A89,'[2]Myaccountaccess Pivot'!$A$4:$B$31,2,FALSE),0) -> 1099.49 | AJ89: =IFERROR(VLOOKUP($A89,'[2]export-1'!$A$2:$F$441,6,FALSE),AJ88) -> 3252.25 | AK89: =IFERROR(VLOOKUP($A89,'[7]download-1'!$A$2:$F$513,6,FALSE),AK88) -> -40.2 | AL89: =IFERROR(VLOOKUP($A89,'[3]TexttoColumn Amazon Balance'!$A$14:$B$30,2,FALSE),IF(AL90>0,AL90-50,0)) -> 3194.75 | AM89: 7366.21 | AN89: 16625.21 | AO89: 148 | AP89: 106 | AQ89: 0 | AR89: 0 | AX89: =IFERROR(VLOOKUP($A89,'[2]export-1'!$A$446:$G$451,7,FALSE),0) -> 0 | AY89: =IFERROR(VLOOKUP($A89,[3]Sheet4!$A$4:$B$56,2,FALSE),0) -> 21 | AZ89: =IFERROR(VLOOKUP($A89,'[3]headphones purchased'!$A$2:$G$27,6,FALSE),0) -> 0 | BA89: =ROUND(IFERROR(VLOOKUP($A89,'[4]download-1'!$A$471:$F$474,5,FALSE)/-9.5,0),0) -> 0 | BB89: =ROUND(IFERROR(VLOOKUP($A89,'[4]download-1'!$A$467:$F$469,5,FALSE)/-49,0),0) -> 0 | BC89: =IFERROR(VLOOKUP($A89,[5]Sheet8!$A$4:$B$89,2,FALSE),0) -> 1 | BF89: 1 | BG89: =IFERROR(VLOOKUP($A89,[3]Paypal!$A$2:$AA$1843,25,FALSE),0) -> 338.62 | BH89: =IFERROR(VLOOKUP($A89,'[3]Paypal Money Sent Pivot'!$A$4:$B$97,2,FALSE),0) -> 1000 | BI89: =$BH89+$BI88-IFERROR(VLOOKUP($A89,[2]Sheet2!$A$4:$B$82,2,FALSE),0) -> 999.82 | BJ89: =IFERROR(VLOOKUP($A89,'[3]TexttoColumn Amazon Balance'!$A$14:$B$30,2,FALSE),0) -> 0 | BK89: =$BJ88+$BK88-IFERROR(VLOOKUP($A89,[2]Amazon!$A$2:$F$17,5,FALSE),0) -> 720.46 | BL89: =IFERROR(VLOOKUP($A89,'[4]Payment Pivot'!$A$4:$B$39,2,FALSE),0) -> 1099.49 | BM89: =$BL89+$BM88-IFERROR(VLOOKUP($A89,'[2]Myaccountaccess Pivot'!$A$4:$B$31,2,FALSE),0) -> 1099.49 | BO89: =IFERROR(VLOOKUP($A89,'[6]export-2'!$A$2:$F$15,6,FALSE),BO88) -> 1000 | BP89: 250.4220044 | BQ89: =OFFSET(A89,0,'Cool Graph'!$H$1) -> 0 | BR89: =OFFSET(A89,0,'Cool Graph'!$I$1) -> 250.4220044
A90: 2011-09-27 | B90: 0 | C90: 22.22 | D90: 82.21 | E90: 31.26 | F90: 3.38 | G90: 139.07 | H90: 0 | I90: 0 | J90: 0 | K90: 1 | L90: 0 | M90: 0 | N90: 0 | O90: 28.32 | P90: 0 | Q90: 0 | R90: 2.94 | S90: 0 | T90: 2 | U90: 1 | V90: 0 | W90: 0 | X90: 4 | Y90: 4 | Z90: 0 | AA90: 0 | AB90: 6 | AC90: 366.92 | AD90: =IFERROR(VLOOKUP($A90,[1]Sheet1!$A$4:$B$219,2,FALSE),0) -> 660 | AE90: 1026.92 | AF90: 322.32 | AG90: =$BH90+$BI89-IFERROR(VLOOKUP($A90,[2]Sheet2!$A$4:$B$82,2,FALSE),0) -> 999.82 | AH90: =$BJ89+$BK89-IFERROR(VLOOKUP($A90,[2]Amazon!$A$2:$F$17,5,FALSE),0) -> 0 | AI90: =$BL90+$BM89-IFERROR(VLOOKUP($A90,'[2]Myaccountaccess Pivot'!$A$4:$B$31,2,FALSE),0) -> 0 | AJ90: =IFERROR(VLOOKUP($A90,'[2]export-1'!$A$2:$F$441,6,FALSE),AJ89) -> 2873.22 | AK90: =IFERROR(VLOOKUP($A90,'[7]download-1'!$A$2:$F$513,6,FALSE),AK89) -> -40.2 | AL90: =IFERROR(VLOOKUP($A90,'[3]TexttoColumn Amazon Balance'!$A$14:$B$30,2,FALSE),IF(AL91>0,AL91-50,0)) -> 3244.75 | AM90: 8030.03 | AN90: 16947.53 | AO90: 142 | AP90: 101 | AQ90: 0 | AR90: 0 | AX90: =IFERROR(VLOOKUP($A90,'[2]export-1'!$A$446:$G$451,7,FALSE),0) -> 0 | AY90: =IFERROR(VLOOKUP($A90,[3]Sheet4!$A$4:$B$56,2,FALSE),0) -> 0 | AZ90: =IFERROR(VLOOKUP($A90,'[3]headphones purchased'!$A$2:$G$27,6,FALSE),0) -> 0 | BA90: =ROUND(IFERROR(VLOOKUP($A90,'[4]download-1'!$A$471:$F$474,5,FALSE)/-9.5,0),0) -> 0 | BB90: =ROUND(IFERROR(VLOOKUP($A90,'[4]download-1'!$A$467:$F$469,5,FALSE)/-49,0),0) -> 0 | BC90: =IFERROR(VLOOKUP($A90,[5]Sheet8!$A$4:$B$89,2,FALSE),0) -> 0 | BF90: 0 | BG90: =IFERROR(VLOOKUP($A90,[3]Paypal!$A$2:$AA$1843,25,FALSE),0) -> 952.44 | BH90: =IFERROR(VLOOKUP($A90,'[3]Paypal Money Sent Pivot'!$A$4:$B$97,2,FALSE),0) -> 0 | BI90: =$BH90+$BI89-IFERROR(VLOOKUP($A90,[2]Sheet2!$A$4:$B$82,2,FALSE),0) -> 999.82 | BJ90: =IFERROR(VLOOKUP($A90,'[3]TexttoColumn Amazon Balance'!$A$14:$B$30,2,FALSE),0) -> 0 | BK90: =$BJ89+$BK89-IFERROR(VLOOKUP($A90,[2]Amazon!$A$2:$F$17,5,FALSE),0) -> 0 | BL90: =IFERROR(VLOOKUP($A90,'[4]Payment Pivot'!$A$4:$B$39,2,FALSE),0) -> 0 | BM90: =$BL90+$BM89-IFERROR(VLOOKUP($A90,'[2]Myaccountaccess Pivot'!$A$4:$B$31,2,FALSE),0) -> 0 | BO90: =IFERROR(VLOOKUP($A90,'[6]export-2'!$A$2:$F$15,6,FALSE),BO89) -> 1000 | BP90: 295.7835492 | BQ90: =OFFSET(A90,0,'Cool Graph'!$H$1) -> 0 | BR90: =OFFSET(A90,0,'Cool Graph'!$I$1) -> 295.7835492
A91: 2011-09-28 | B91: 30 | C91: 15.32 | D91: 71.76 | E91: 49.86 | F91: 6.94 | G91: 173.88 | H91: 0 | I91: 0 | J91: 0 | K91: 2 | L91: 0 | M91: 0 | N91: 0 | O91: 45.68 | P91: 0 | Q91: 0 | R91: 4.18 | S91: 0 | T91: 2 | U91: 0 | V91: 0 | W91: 0 | X91: 10 | Y91: 10 | Z91: 0 | AA91: 0 | AB91: 12 | AC91: 337.27 | AD91: =IFERROR(VLOOKUP($A91,[1]Sheet1!$A$4:$B$219,2,FALSE),0) -> 1650 | AE91: 1987.27 | AF91: 422.03 | AG91: =$BH91+$BI90-IFERROR(VLOOKUP($A91,[2]Sheet2!$A$4:$B$82,2,FALSE),0) -> 999.82 | AH91: =$BJ90+$BK90-IFERROR(VLOOKUP($A91,[2]Amazon!$A$2:$F$17,5,FALSE),0) -> 0 | AI91: =$BL91+$BM90-IFERROR(VLOOKUP($A91,'[2]Myaccountaccess Pivot'!$A$4:$B$31,2,FALSE),0) -> 0 | AJ91: =IFERROR(VLOOKUP($A91,'[2]export-1'!$A$2:$F$441,6,FALSE),AJ90) -> 2873.22 | AK91: =IFERROR(VLOOKUP($A91,'[7]download-1'!$A$2:$F$513,6,FALSE),AK90) -> -540.2 | AL91: =IFERROR(VLOOKUP($A91,'[3]TexttoColumn Amazon Balance'!$A$14:$B$30,2,FALSE),IF(AL92>0,AL92-50,0)) -> 3294.75 | AM91: 9135.06 | AN91: 17369.56 | AO91: 130 | AP91: 91 | AQ91: 0 | AR91: 0 | AX91: =IFERROR(VLOOKUP($A91,'[2]export-1'!$A$446:$G$451,7,FALSE),0) -> 0 | AY91: =IFERROR(VLOOKUP($A91,[3]Sheet4!$A$4:$B$56,2,FALSE),0) -> 0 | AZ91: =IFERROR(VLOOKUP($A91,'[3]headphones purchased'!$A$2:$G$27,6,FALSE),0) -> 0 | BA91: =ROUND(IFERROR(VLOOKUP($A91,'[4]download-1'!$A$471:$F$474,5,FALSE)/-9.5,0),0) -> 0 | BB91: =ROUND(IFERROR(VLOOKUP($A91,'[4]download-1'!$A$467:$F$469,5,FALSE)/-49,0),0) -> 0 | BC91: =IFERROR(VLOOKUP($A91,[5]Sheet8!$A$4:$B$89,2,FALSE),0) -> 1 | BF91: 1 | BG91: =IFERROR(VLOOKUP($A91,[3]Paypal!$A$2:$AA$1843,25,FALSE),0) -> 2507.47 | BH91: =IFERROR(VLOOKUP($A91,'[3]Paypal Money Sent Pivot'!$A$4:$B$97,2,FALSE),0) -> 0 | BI91: =$BH91+$BI90-IFERROR(VLOOKUP($A91,[2]Sheet2!$A$4:$B$82,2,FALSE),0) -> 999.82 | BJ91: =IFERROR(VLOOKUP($A91,'[3]TexttoColumn Amazon Balance'!$A$14:$B$30,2,FALSE),0) -> 0 | BK91: =$BJ90+$BK90-IFERROR(VLOOKUP($A91,[2]Amazon!$A$2:$F$17,5,FALSE),0) -> 0 | BL91: =IFERROR(VLOOKUP($A91,'[4]Payment Pivot'!$A$4:$B$39,2,FALSE),0) -> 0 | BM91: =$BL91+$BM90-IFERROR(VLOOKUP($A91,'[2]Myaccountaccess Pivot'!$A$4:$B$31,2,FALSE),0) -> 0 | BO91: =IFERROR(VLOOKUP($A91,'[6]export-2'!$A$2:$F$15,6,FALSE),BO90) -> 1000 | BP91: 667.6377548 | BQ91: =OFFSET(A91,0,'Cool Graph'!$H$1) -> 30 | BR91: =OFFSET(A91,0,'Cool Graph'!$I$1) -> 667.6377548
A92: 2011-09-29 | B92: 30 | C92: 0 | D92: 63.08 | E92: 71.54 | F92: 4.06 | G92: 168.68 | H92: 0 | I92: 0 | J92: 0 | K92: 3 | L92: 0 | M92: 1 | N92: 0 | O92: 65.81 | P92: 0 | Q92: 0 | R92: 5.73 | S92: 0 | T92: 7 | U92: 3 | V92: 0 | W92: 0 | X92: 8 | Y92: 8 | Z92: 0 | AA92: 0 | AB92: 15 | AC92: 1256.05 | AD92: =IFERROR(VLOOKUP($A92,[1]Sheet1!$A$4:$B$219,2,FALSE),0) -> 1320 | AE92: 2576.05 | AF92: 45.01 | AG92: =$BH92+$BI91-IFERROR(VLOOKUP($A92,[2]Sheet2!$A$4:$B$82,2,FALSE),0) -> -0.18 | AH92: =$BJ91+$BK91-IFERROR(VLOOKUP($A92,[2]Amazon!$A$2:$F$17,5,FALSE),0) -> 0 | AI92: =$BL92+$BM91-IFERROR(VLOOKUP($A92,'[2]Myaccountaccess Pivot'!$A$4:$B$31,2,FALSE),0) -> 540.2 | AJ92: =IFERROR(VLOOKUP($A92,'[2]export-1'!$A$2:$F$441,6,FALSE),AJ91) -> 3469.47 | AK92: =IFERROR(VLOOKUP($A92,'[7]download-1'!$A$2:$F$513,6,FALSE),AK91) -> -1.932676241e-12 | AL92: =IFERROR(VLOOKUP($A92,'[3]TexttoColumn Amazon Balance'!$A$14:$B$30,2,FALSE),IF(AL93>0,AL93-50,0)) -> 3344.75 | AM92: 10019.57 | AN92: 17414.57 | AO92: 115 | AP92: 80 | AQ92: 0 | AR92: 0 | AX92: =IFERROR(VLOOKUP($A92,'[2]export-1'!$A$446:$G$451,7,FALSE),0) -> 0 | AY92: =IFERROR(VLOOKUP($A92,[3]Sheet4!$A$4:$B$56,2,FALSE),0) -> 0 | AZ92: =IFERROR(VLOOKUP($A92,'[3]headphones purchased'!$A$2:$G$27,6,FALSE),0) -> 0 | BA92: =ROUND(IFERROR(VLOOKUP($A92,'[4]download-1'!$A$471:$F$474,5,FALSE)/-9.5,0),0) -> 0 | BB92: =ROUND(IFERROR(VLOOKUP($A92,'[4]download-1'!$A$467:$F$469,5,FALSE)/-49,0),0) -> 0 | BC92: =IFERROR(VLOOKUP($A92,[5]Sheet8!$A$4:$B$89,2,FALSE),0) -> 0 | BF92: 0 | BG92: =IFERROR(VLOOKUP($A92,[3]Paypal!$A$2:$AA$1843,25,FALSE),0) -> 3745.73 | BH92: =IFERROR(VLOOKUP($A92,'[3]Paypal Money Sent Pivot'!$A$4:$B$97,2,FALSE),0) -> 0 | BI92: =$BH92+$BI91-IFERROR(VLOOKUP($A92,[2]Sheet2!$A$4:$B$82,2,FALSE),0) -> -0.18 | BJ92: =IFERROR(VLOOKUP($A92,'[3]TexttoColumn Amazon Balance'!$A$14:$B$30,2,FALSE),0) -> 0 | BK92: =$BJ91+$BK91-IFERROR(VLOOKUP($A92,[2]Amazon!$A$2:$F$17,5,FALSE),0) -> 0 | BL92: =IFERROR(VLOOKUP($A92,'[4]Payment Pivot'!$A$4:$B$39,2,FALSE),0) -> 540.2 | BM92: =$BL92+$BM91-IFERROR(VLOOKUP($A92,'[2]Myaccountaccess Pivot'!$A$4:$B$31,2,FALSE),0) -> 540.2 | BO92: =IFERROR(VLOOKUP($A92,'[6]export-2'!$A$2:$F$15,6,FALSE),BO91) -> 1000 | BP92: 922.1590969 | BQ92: =OFFSET(A92,0,'Cool Graph'!$H$1) -> 30 | BR92: =OFFSET(A92,0,'Cool Graph'!$I$1) -> 922.1590969
A93: 2011-09-30 | B93: 30 | C93: 14.11 | D93: 58.15 | E93: 136.95 | F93: 1.04 | G93: 240.25 | H93: 1 | I93: 0 | J93: 0 | K93: 4 | L93: 1 | M93: 1 | N93: 0 | O93: 131.2 | P93: 0 | Q93: 0 | R93: 5.75 | S93: 1 | T93: 1 | U93: 0 | V93: 0 | W93: 0 | X93: 7 | Y93: 7 | Z93: 0 | AA93: 0 | AB93: 8 | AC93: 165 | AD93: =IFERROR(VLOOKUP($A93,[1]Sheet1!$A$4:$B$219,2,FALSE),0) -> 1155 | AE93: 1320 | AF93: 480.99 | AG93: =$BH93+$BI92-IFERROR(VLOOKUP($A93,[2]Sheet2!$A$4:$B$82,2,FALSE),0) -> -0.18 | AH93: =$BJ92+$BK92-IFERROR(VLOOKUP($A93,[2]Amazon!$A$2:$F$17,5,FALSE),0) -> 0 | AI93: =$BL93+$BM92-IFERROR(VLOOKUP($A93,'[2]Myaccountaccess Pivot'!$A$4:$B$31,2,FALSE),0) -> 0 | AJ93: =IFERROR(VLOOKUP($A93,'[2]export-1'!$A$2:$F$441,6,FALSE),AJ92) -> 2713.27 | AK93: =IFERROR(VLOOKUP($A93,'[7]download-1'!$A$2:$F$513,6,FALSE),AK92) -> -1.932676241e-12 | AL93: =IFERROR(VLOOKUP($A93,'[3]TexttoColumn Amazon Balance'!$A$14:$B$30,2,FALSE),IF(AL94>0,AL94-50,0)) -> 3394.75 | AM93: 10910.02 | AN93: 17895.56 | AO93: 108 | AP93: 73 | AQ93: 0 | AR93: 0 | AX93: =IFERROR(VLOOKUP($A93,'[2]export-1'!$A$446:$G$451,7,FALSE),0) -> 0 | AY93: =IFERROR(VLOOKUP($A93,[3]Sheet4!$A$4:$B$56,2,FALSE),0) -> 0 | AZ93: =IFERROR(VLOOKUP($A93,'[3]headphones purchased'!$A$2:$G$27,6,FALSE),0) -> 0 | BA93: =ROUND(IFERROR(VLOOKUP($A93,'[4]download-1'!$A$471:$F$474,5,FALSE)/-9.5,0),0) -> 0 | BB93: =ROUND(IFERROR(VLOOKUP($A93,'[4]download-1'!$A$467:$F$469,5,FALSE)/-49,0),0) -> 0 | BC93: =IFERROR(VLOOKUP($A93,[5]Sheet8!$A$4:$B$89,2,FALSE),0) -> 0 | BF93: 1 | BG93: =IFERROR(VLOOKUP($A93,[3]Paypal!$A$2:$AA$1843,25,FALSE),0) -> 4802.18 | BH93: =IFERROR(VLOOKUP($A93,'[3]Paypal Money Sent Pivot'!$A$4:$B$97,2,FALSE),0) -> 0 | BI93: =$BH93+$BI92-IFERROR(VLOOKUP($A93,[2]Sheet2!$A$4:$B$82,2,FALSE),0) -> -0.18 | BJ93: =IFERROR(VLOOKUP($A93,'[3]TexttoColumn Amazon Balance'!$A$14:$B$30,2,FALSE),0) -> 0 | BK93: =$BJ92+$BK92-IFERROR(VLOOKUP($A93,[2]Amazon!$A$2:$F$17,5,FALSE),0) -> 0 | BL93: =IFERROR(VLOOKUP($A93,'[4]Payment Pivot'!$A$4:$B$39,2,FALSE),0) -> 0 | BM93: =$BL93+$BM92-IFERROR(VLOOKUP($A93,'[2]Myaccountaccess Pivot'!$A$4:$B$31,2,FALSE),0) -> 0 | BO93: =IFERROR(VLOOKUP($A93,'[6]export-2'!$A$2:$F$15,6,FALSE),BO92) -> 1000.04 | BP93: 318.7094953 | BQ93: =OFFSET(A93,0,'Cool Graph'!$H$1) -> 30 | BR93: =OFFSET(A93,0,'Cool Graph'!$I$1) -> 318.7094953
A94: 2011-10-01 | B94: 30 | C94: 15.02 | D94: 53.09 | E94: 133.18 | F94: 0.69 | G94: 231.98 | H94: 0 | I94: 0 | J94: 0 | K94: 2 | L94: 1 | M94: 0 | N94: 0 | O94: 123.88 | P94: 1 | Q94: 0 | R94: 9.3 | S94: 0 | T94: 0 | U94: 0 | V94: 0 | W94: 0 | X94: 3 | Y94: 3 | Z94: 0 | AA94: 0 | AB94: 3 | AC94: 0 | AD94: =IFERROR(VLOOKUP($A94,[1]Sheet1!$A$4:$B$219,2,FALSE),0) -> 495 | AE94: 495 | AF94: 324.23 | AG94: =$BH94+$BI93-IFERROR(VLOOKUP($A94,[2]Sheet2!$A$4:$B$82,2,FALSE),0) -> -0.18 | AH94: =$BJ93+$BK93-IFERROR(VLOOKUP($A94,[2]Amazon!$A$2:$F$17,5,FALSE),0) -> 0 | AI94: =$BL94+$BM93-IFERROR(VLOOKUP($A94,'[2]Myaccountaccess Pivot'!$A$4:$B$31,2,FALSE),0) -> 0 | AJ94: =IFERROR(VLOOKUP($A94,'[2]export-1'!$A$2:$F$441,6,FALSE),AJ93) -> 2713.27 | AK94: =IFERROR(VLOOKUP($A94,'[7]download-1'!$A$2:$F$513,6,FALSE),AK93) -> -1.932676241e-12 | AL94: =IFERROR(VLOOKUP($A94,'[3]TexttoColumn Amazon Balance'!$A$14:$B$30,2,FALSE),IF(AL95>0,AL95-50,0)) -> 3444.75 | AM94: 11409.75 | AN94: 18219.79 | AO94: 105 | AP94: 70 | AQ94: 0 | AR94: 0 | AX94: =IFERROR(VLOOKUP($A94,'[2]export-1'!$A$446:$G$451,7,FALSE),0) -> 0 | AY94: =IFERROR(VLOOKUP($A94,[3]Sheet4!$A$4:$B$56,2,FALSE),0) -> 0 | AZ94: =IFERROR(VLOOKUP($A94,'[3]headphones purchased'!$A$2:$G$27,6,FALSE),0) -> 0 | BA94: =ROUND(IFERROR(VLOOKUP($A94,'[4]download-1'!$A$471:$F$474,5,FALSE)/-9.5,0),0) -> 0 | BB94: =ROUND(IFERROR(VLOOKUP($A94,'[4]download-1'!$A$467:$F$469,5,FALSE)/-49,0),0) -> 0 | BC94: =IFERROR(VLOOKUP($A94,[5]Sheet8!$A$4:$B$89,2,FALSE),0) -> 0 | BF94: 0 | BG94: =IFERROR(VLOOKUP($A94,[3]Paypal!$A$2:$AA$1843,25,FALSE),0) -> 5251.91 | BH94: =IFERROR(VLOOKUP($A94,'[3]Paypal Money Sent Pivot'!$A$4:$B$97,2,FALSE),0) -> 0 | BI94: =$BH94+$BI93-IFERROR(VLOOKUP($A94,[2]Sheet2!$A$4:$B$82,2,FALSE),0) -> -0.18 | BJ94: =IFERROR(VLOOKUP($A94,'[3]TexttoColumn Amazon Balance'!$A$14:$B$30,2,FALSE),0) -> 0 | BK94: =$BJ93+$BK93-IFERROR(VLOOKUP($A94,[2]Amazon!$A$2:$F$17,5,FALSE),0) -> 0 | BL94: =IFERROR(VLOOKUP($A94,'[4]Payment Pivot'!$A$4:$B$39,2,FALSE),0) -> 0 | BM94: =$BL94+$BM93-IFERROR(VLOOKUP($A94,'[2]Myaccountaccess Pivot'!$A$4:$B$31,2,FALSE),0) -> 0 | BO94: =IFERROR(VLOOKUP($A94,'[6]export-2'!$A$2:$F$15,6,FALSE),BO93) -> 1000.04 | BP94: -22.37018925 | BQ94: =OFFSET(A94,0,'Cool Graph'!$H$1) -> 30 | BR94: =OFFSET(A94,0,'Cool Graph'!$I$1) -> -22.37018925
A95: 2011-10-02 | B95: 30 | C95: 14.33 | D95: 52.75 | E95: 104.99 | F95: 1.7 | G95: 203.77 | H95: 1 | I95: 0 | J95: 0 | K95: 2 | L95: 1 | M95: 2 | N95: 0 | O95: 96.29 | P95: 1 | Q95: 0 | R95: 8.7 | S95: 0 | T95: 4 | U95: 0 | V95: 0 | W95: 0 | X95: 7 | Y95: 7 | Z95: 0 | AA95: 0 | AB95: 11 | AC95: 660 | AD95: =IFERROR(VLOOKUP($A95,[1]Sheet1!$A$4:$B$219,2,FALSE),0) -> 1155 | AE95: 1815 | AF95: 742.78 | AG95: =$BH95+$BI94-IFERROR(VLOOKUP($A95,[2]Sheet2!$A$4:$B$82,2,FALSE),0) -> -0.18 | AH95: =$BJ94+$BK94-IFERROR(VLOOKUP($A95,[2]Amazon!$A$2:$F$17,5,FALSE),0) -> 0 | AI95: =$BL95+$BM94-IFERROR(VLOOKUP($A95,'[2]Myaccountaccess Pivot'!$A$4:$B$31,2,FALSE),0) -> 0 | AJ95: =IFERROR(VLOOKUP($A95,'[2]export-1'!$A$2:$F$441,6,FALSE),AJ94) -> 2713.27 | AK95: =IFERROR(VLOOKUP($A95,'[7]download-1'!$A$2:$F$513,6,FALSE),AK94) -> -1.932676241e-12 | AL95: =IFERROR(VLOOKUP($A95,'[3]TexttoColumn Amazon Balance'!$A$14:$B$30,2,FALSE),IF(AL96>0,AL96-50,0)) -> 3494.75 | AM95: 12709.03 | AN95: 18962.57 | AO95: 95 | AP95: 63 | AQ95: 0 | AR95: 0 | AX95: =IFERROR(VLOOKUP($A95,'[2]export-1'!$A$446:$G$451,7,FALSE),0) -> 0 | AY95: =IFERROR(VLOOKUP($A95,[3]Sheet4!$A$4:$B$56,2,FALSE),0) -> 0 | AZ95: =IFERROR(VLOOKUP($A95,'[3]headphones purchased'!$A$2:$G$27,6,FALSE),0) -> 0 | BA95: =ROUND(IFERROR(VLOOKUP($A95,'[4]download-1'!$A$471:$F$474,5,FALSE)/-9.5,0),0) -> 0 | BB95: =ROUND(IFERROR(VLOOKUP($A95,'[4]download-1'!$A$467:$F$469,5,FALSE)/-49,0),0) -> 0 | BC95: =IFERROR(VLOOKUP($A95,[5]Sheet8!$A$4:$B$89,2,FALSE),0) -> 0 | BF95: 1 | BG95: =IFERROR(VLOOKUP($A95,[3]Paypal!$A$2:$AA$1843,25,FALSE),0) -> 6501.19 | BH95: =IFERROR(VLOOKUP($A95,'[3]Paypal Money Sent Pivot'!$A$4:$B$97,2,FALSE),0) -> 0 | BI95: =$BH95+$BI94-IFERROR(VLOOKUP($A95,[2]Sheet2!$A$4:$B$82,2,FALSE),0) -> -0.18 | BJ95: =IFERROR(VLOOKUP($A95,'[3]TexttoColumn Amazon Balance'!$A$14:$B$30,2,FALSE),0) -> 0 | BK95: =$BJ94+$BK94-IFERROR(VLOOKUP($A95,[2]Amazon!$A$2:$F$17,5,FALSE),0) -> 0 | BL95: =IFERROR(VLOOKUP($A95,'[4]Payment Pivot'!$A$4:$B$39,2,FALSE),0) -> 0 | BM95: =$BL95+$BM94-IFERROR(VLOOKUP($A95,'[2]Myaccountaccess Pivot'!$A$4:$B$31,2,FALSE),0) -> 0 | BO95: =IFERROR(VLOOKUP($A95,'[6]export-2'!$A$2:$F$15,6,FALSE),BO94) -> 1000.04 | BP95: 564.7993061 | BQ95: =OFFSET(A95,0,'Cool Graph'!$H$1) -> 30 | BR95: =OFFSET(A95,0,'Cool Graph'!$I$1) -> 564.7993061
A96: 2011-10-03 | B96: 60 | C96: 17.44 | D96: 47.66 | E96: 179.64 | F96: 2.36 | G96: 307.1 | H96: 0 | I96: 0 | J96: 0 | K96: 3 | L96: 1 | M96: 5 | N96: 0 | O96: 170.25 | P96: 1 | Q96: 3 | R96: 9.39 | S96: 0 | T96: 1 | U96: 0 | V96: 0 | W96: 0 | X96: 4 | Y96: 4 | Z96: 0 | AA96: 0 | AB96: 5 | AC96: 165 | AD96: =IFERROR(VLOOKUP($A96,[1]Sheet1!$A$4:$B$219,2,FALSE),0) -> 660 | AE96: 825 | AF96: 4.53 | AG96: =$BH96+$BI95-IFERROR(VLOOKUP($A96,[2]Sheet2!$A$4:$B$82,2,FALSE),0) -> -0.18 | AH96: =$BJ95+$BK95-IFERROR(VLOOKUP($A96,[2]Amazon!$A$2:$F$17,5,FALSE),0) -> 0 | AI96: =$BL96+$BM95-IFERROR(VLOOKUP($A96,'[2]Myaccountaccess Pivot'!$A$4:$B$31,2,FALSE),0) -> 0 | AJ96: =IFERROR(VLOOKUP($A96,'[2]export-1'!$A$2:$F$441,6,FALSE),AJ95) -> 2713.27 | AK96: =IFERROR(VLOOKUP($A96,'[7]download-1'!$A$2:$F$513,6,FALSE),AK95) -> -500 | AL96: =IFERROR(VLOOKUP($A96,'[3]TexttoColumn Amazon Balance'!$A$14:$B$30,2,FALSE),IF(AL97>0,AL97-50,0)) -> 3544.75 | AM96: 12310.56 | AN96: 18967.1 | AO96: 104 | AP96: 59 | AQ96: 0 | AR96: 0 | AX96: =IFERROR(VLOOKUP($A96,'[2]export-1'!$A$446:$G$451,7,FALSE),0) -> 0 | AY96: =IFERROR(VLOOKUP($A96,[3]Sheet4!$A$4:$B$56,2,FALSE),0) -> 15 | AZ96: =IFERROR(VLOOKUP($A96,'[3]headphones purchased'!$A$2:$G$27,6,FALSE),0) -> 0 | BA96: =ROUND(IFERROR(VLOOKUP($A96,'[4]download-1'!$A$471:$F$474,5,FALSE)/-9.5,0),0) -> 0 | BB96: =ROUND(IFERROR(VLOOKUP($A96,'[4]download-1'!$A$467:$F$469,5,FALSE)/-49,0),0) -> 0 | BC96: =IFERROR(VLOOKUP($A96,[5]Sheet8!$A$4:$B$89,2,FALSE),0) -> 1 | BF96: 0 | BG96: =IFERROR(VLOOKUP($A96,[3]Paypal!$A$2:$AA$1843,25,FALSE),0) -> 6552.72 | BH96: =IFERROR(VLOOKUP($A96,'[3]Paypal Money Sent Pivot'!$A$4:$B$97,2,FALSE),0) -> 0 | BI96: =$BH96+$BI95-IFERROR(VLOOKUP($A96,[2]Sheet2!$A$4:$B$82,2,FALSE),0) -> -0.18 | BJ96: =IFERROR(VLOOKUP($A96,'[3]TexttoColumn Amazon Balance'!$A$14:$B$30,2,FALSE),0) -> 0 | BK96: =$BJ95+$BK95-IFERROR(VLOOKUP($A96,[2]Amazon!$A$2:$F$17,5,FALSE),0) -> 0 | BL96: =IFERROR(VLOOKUP($A96,'[4]Payment Pivot'!$A$4:$B$39,2,FALSE),0) -> 0 | BM96: =$BL96+$BM95-IFERROR(VLOOKUP($A96,'[2]Myaccountaccess Pivot'!$A$4:$B$31,2,FALSE),0) -> 0 | BO96: =IFERROR(VLOOKUP($A96,'[6]export-2'!$A$2:$F$15,6,FALSE),BO95) -> 1000.04 | BP96: 42.24968459 | BQ96: =OFFSET(A96,0,'Cool Graph'!$H$1) -> 60 | BR96: =OFFSET(A96,0,'Cool Graph'!$I$1) -> 42.24968459
A97: 2011-10-04 | B97: 250 | C97: 18.44 | D97: 84.83 | E97: 259.4 | F97: 1.84 | G97: 614.51 | H97: 1 | I97: 0 | J97: 0 | K97: 0 | L97: 1 | M97: 0 | N97: 0 | O97: 250.85 | P97: 0 | Q97: 0 | R97: 8.55 | S97: 1 | T97: 1 | U97: 0 | V97: 0 | W97: 0 | X97: 6 | Y97: 6 | Z97: 0 | AA97: 0 | AB97: 7 | AC97: 165 | AD97: =IFERROR(VLOOKUP($A97,[1]Sheet1!$A$4:$B$219,2,FALSE),0) -> 990 | AE97: 1155 | AF97: 107.56 | AG97: =$BH97+$BI96-IFERROR(VLOOKUP($A97,[2]Sheet2!$A$4:$B$82,2,FALSE),0) -> -0.18 | AH97: =$BJ96+$BK96-IFERROR(VLOOKUP($A97,[2]Amazon!$A$2:$F$17,5,FALSE),0) -> 0 | AI97: =$BL97+$BM96-IFERROR(VLOOKUP($A97,'[2]Myaccountaccess Pivot'!$A$4:$B$31,2,FALSE),0) -> 0 | AJ97: =IFERROR(VLOOKUP($A97,'[2]export-1'!$A$2:$F$441,6,FALSE),AJ96) -> 2461.31 | AK97: =IFERROR(VLOOKUP($A97,'[7]download-1'!$A$2:$F$513,6,FALSE),AK96) -> -548.63 | AL97: =IFERROR(VLOOKUP($A97,'[3]TexttoColumn Amazon Balance'!$A$14:$B$30,2,FALSE),IF(AL98>0,AL98-50,0)) -> 3594.75 | AM97: 10466.12 | AN97: 19074.66 | AO97: 145 | AP97: 53 | AQ97: 0 | AR97: 0 | AX97: =IFERROR(VLOOKUP($A97,'[2]export-1'!$A$446:$G$451,7,FALSE),0) -> 0 | AY97: =IFERROR(VLOOKUP($A97,[3]Sheet4!$A$4:$B$56,2,FALSE),0) -> 48 | AZ97: =IFERROR(VLOOKUP($A97,'[3]headphones purchased'!$A$2:$G$27,6,FALSE),0) -> 0 | BA97: =ROUND(IFERROR(VLOOKUP($A97,'[4]download-1'!$A$471:$F$474,5,FALSE)/-9.5,0),0) -> 0 | BB97: =ROUND(IFERROR(VLOOKUP($A97,'[4]download-1'!$A$467:$F$469,5,FALSE)/-49,0),0) -> 0 | BC97: =IFERROR(VLOOKUP($A97,[5]Sheet8!$A$4:$B$89,2,FALSE),0) -> 1 | BF97: 1 | BG97: =IFERROR(VLOOKUP($A97,[3]Paypal!$A$2:$AA$1843,25,FALSE),0) -> 4958.87 | BH97: =IFERROR(VLOOKUP($A97,'[3]Paypal Money Sent Pivot'!$A$4:$B$97,2,FALSE),0) -> 0 | BI97: =$BH97+$BI96-IFERROR(VLOOKUP($A97,[2]Sheet2!$A$4:$B$82,2,FALSE),0) -> -0.18 | BJ97: =IFERROR(VLOOKUP($A97,'[3]TexttoColumn Amazon Balance'!$A$14:$B$30,2,FALSE),0) -> 0 | BK97: =$BJ96+$BK96-IFERROR(VLOOKUP($A97,[2]Amazon!$A$2:$F$17,5,FALSE),0) -> 0 | BL97: =IFERROR(VLOOKUP($A97,'[4]Payment Pivot'!$A$4:$B$39,2,FALSE),0) -> 0 | BM97: =$BL97+$BM96-IFERROR(VLOOKUP($A97,'[2]Myaccountaccess Pivot'!$A$4:$B$31,2,FALSE),0) -> 0 | BO97: =IFERROR(VLOOKUP($A97,'[6]export-2'!$A$2:$F$15,6,FALSE),BO96) -> 1000.04 | BP97: -125.4204416 | BQ97: =OFFSET(A97,0,'Cool Graph'!$H$1) -> 250 | BR97: =OFFSET(A97,0,'Cool Graph'!$I$1) -> -125.4204416
A98: 2011-10-05 | B98: 250 | C98: 14.65 | D98: 131.12 | E98: 233.75 | F98: 5.41 | G98: 634.93 | H98: 1 | I98: 0 | J98: 0 | K98: 5 | L98: 1 | M98: 0 | N98: 0 | O98: 229.01 | P98: 1 | Q98: 0 | R98: 4.74 | S98: 0 | T98: 1 | U98: 0 | V98: 0 | W98: 0 | X98: 15 | Y98: 15 | Z98: 0 | AA98: 0 | AB98: 16 | AC98: 160 | AD98: =IFERROR(VLOOKUP($A98,[1]Sheet1!$A$4:$B$219,2,FALSE),0) -> 2475 | AE98: 2635 | AF98: 418.66 | AG98: =$BH98+$BI97-IFERROR(VLOOKUP($A98,[2]Sheet2!$A$4:$B$82,2,FALSE),0) -> 4499.82 | AH98: =$BJ97+$BK97-IFERROR(VLOOKUP($A98,[2]Amazon!$A$2:$F$17,5,FALSE),0) -> 0 | AI98: =$BL98+$BM97-IFERROR(VLOOKUP($A98,'[2]Myaccountaccess Pivot'!$A$4:$B$31,2,FALSE),0) -> 0 | AJ98: =IFERROR(VLOOKUP($A98,'[2]export-1'!$A$2:$F$441,6,FALSE),AJ97) -> 2110.34 | AK98: =IFERROR(VLOOKUP($A98,'[7]download-1'!$A$2:$F$513,6,FALSE),AK97) -> -1648.26 | AL98: =IFERROR(VLOOKUP($A98,'[3]TexttoColumn Amazon Balance'!$A$14:$B$30,2,FALSE),IF(AL99>0,AL99-50,0)) -> 3644.75 | AM98: 9448.78 | AN98: 19493.32 | AO98: 165 | AP98: 101 | AQ98: 0 | AR98: 0 | AX98: =IFERROR(VLOOKUP($A98,'[2]export-1'!$A$446:$G$451,7,FALSE),0) -> 0 | AY98: =IFERROR(VLOOKUP($A98,[3]Sheet4!$A$4:$B$56,2,FALSE),0) -> 36 | AZ98: =IFERROR(VLOOKUP($A98,'[3]headphones purchased'!$A$2:$G$27,6,FALSE),0) -> 63 | BA98: =ROUND(IFERROR(VLOOKUP($A98,'[4]download-1'!$A$471:$F$474,5,FALSE)/-9.5,0),0) -> 0 | BB98: =ROUND(IFERROR(VLOOKUP($A98,'[4]download-1'!$A$467:$F$469,5,FALSE)/-49,0),0) -> 0 | BC98: =IFERROR(VLOOKUP($A98,[5]Sheet8!$A$4:$B$89,2,FALSE),0) -> 0 | BF98: 0 | BG98: =IFERROR(VLOOKUP($A98,[3]Paypal!$A$2:$AA$1843,25,FALSE),0) -> 842.13 | BH98: =IFERROR(VLOOKUP($A98,'[3]Paypal Money Sent Pivot'!$A$4:$B$97,2,FALSE),0) -> 4500 | BI98: =$BH98+$BI97-IFERROR(VLOOKUP($A98,[2]Sheet2!$A$4:$B$82,2,FALSE),0) -> 4499.82 | BJ98: =IFERROR(VLOOKUP($A98,'[3]TexttoColumn Amazon Balance'!$A$14:$B$30,2,FALSE),0) -> 0 | BK98: =$BJ97+$BK97-IFERROR(VLOOKUP($A98,[2]Amazon!$A$2:$F$17,5,FALSE),0) -> 0 | BL98: =IFERROR(VLOOKUP($A98,'[4]Payment Pivot'!$A$4:$B$39,2,FALSE),0) -> 0 | BM98: =$BL98+$BM97-IFERROR(VLOOKUP($A98,'[2]Myaccountaccess Pivot'!$A$4:$B$31,2,FALSE),0) -> 0 | BO98: =IFERROR(VLOOKUP($A98,'[6]export-2'!$A$2:$F$15,6,FALSE),BO97) -> 1000.04 | BP98: 480.8717199 | BQ98: =OFFSET(A98,0,'Cool Graph'!$H$1) -> 250 | BR98: =OFFSET(A98,0,'Cool Graph'!$I$1) -> 480.8717199
